Workbook

Sheet RESULTATS
B2: RESULTATS REELS
B4: A SAISIR SUR CETTE PAGE
B6: SAISIE DES RESULTATS | S6: GROUPES | AE6: PHASES FINALES
B7: Date | C7: Heure | D7: Match | E7: Groupe | F7: 1 | G7: N | H7: 2 | J7: Buts | M7: Buts | S7: suivi des scores|||||||||||||||||||||||||||||||||||||||||||||||||||||||||||||||||||| | AE7: Dernière saisie des scores >>> | AM7: jeudi 22 février 2018 à 12:34:41
B8: =VLOOKUP($D8,TABLEAU_MATCHS[#All],2,FALSE) -> 2018-06-14 | C8: =VLOOKUP($D8,TABLEAU_MATCHS[#All],3,FALSE) -> 17:00:00 | D8: 1 | E8: ="Groupe "&VLOOKUP($I8,TABLEAU_TEAMS[[#All],[TEAM]:[GROUP_INITIAL_RANK]],2,FALSE) -> Groupe A | I8: =VLOOKUP($D8,TABLEAU_MATCHS[#All],4,FALSE) -> Russie | J8: 5 | L8: =VLOOKUP($D8,TABLEAU_MATCHS[#All],5,FALSE) -> Arabie Saoudite | M8: 0 | S8: Rg | T8: Groupe A | U8: MJ | V8: G | W8: N | X8: P | Y8: BP | Z8: BC | AA8: +/- | AB8: Pts | AE8: Date | AF8: Finale | AI8: Buts | AK8: Pen | AO8: Buts | AQ8: Pen
B9: =VLOOKUP($D9,TABLEAU_MATCHS[#All],2,FALSE) -> 2018-06-15 | C9: =VLOOKUP($D9,TABLEAU_MATCHS[#All],3,FALSE) -> 14:00:00 | D9: 2 | E9: ="Groupe "&VLOOKUP($I9,TABLEAU_TEAMS[[#All],[TEAM]:[GROUP_INITIAL_RANK]],2,FALSE) -> Groupe A | I9: =VLOOKUP($D9,TABLEAU_MATCHS[#All],4,FALSE) -> Egypte | J9: 0 | L9: =VLOOKUP($D9,TABLEAU_MATCHS[#All],5,FALSE) -> Uruguay | M9: 1 | Q9: =INDEX($Q60:$Q63,MATCH(SMALL(COUNTIF($Q60:$Q63,">="&$Q60:$Q63),ROW(INDIRECT("1:"&ROWS($Q60:$Q63)))),COUNTIF($Q60:$Q63,">="&$Q60:$Q63),0)) -> 03550Russie | R9: =INDEX($R60:$R63,MATCH(SMALL(COUNTIF($Q60:$Q63,">="&$Q60:$Q63),ROW(INDIRECT("1:"&ROWS($Q60:$Q63)))),COUNTIF($Q60:$Q63,">="&$Q60:$Q63),0)) -> 3550 | S9: =INDEX($S60:$S63,MATCH(SMALL(COUNTIF($Q60:$Q63,">="&$Q60:$Q63),ROW(INDIRECT("1:"&ROWS($Q60:$Q63)))),COUNTIF($Q60:$Q63,">="&$Q60:$Q63),0)) -> 1 | T9: =INDEX($T60:$T63,MATCH(SMALL(COUNTIF($Q60:$Q63,">="&$Q60:$Q63),ROW(INDIRECT("1:"&ROWS($Q60:$Q63)))),COUNTIF($Q60:$Q63,">="&$Q60:$Q63),0)) -> Russie | U9: =SUMPRODUCT((Teams1=T9)*(Teams1_Score<>""))+SUMPRODUCT((Teams2=T9)*(Teams2_Score<>"")) -> 1 | V9: =SUMPRODUCT((Teams1=T9)*(Teams1_Score>Teams2_Score))+SUMPRODUCT((Teams2=T9)*(Teams2_Score>Teams1_Score)) -> 1 | W9: =SUMPRODUCT((Teams1=T9)*(Teams1_Score=Teams2_Score)*(Teams1_Score<>""))+SUMPRODUCT((Teams2=T9)*(Teams2_Score=Teams1_Score)*(Teams2_Score<>"")) -> 0 | X9: =SUMPRODUCT((Teams1=T9)*(Teams1_Score<Teams2_Score))+SUMPRODUCT((Teams2=T9)*(Teams2_Score<Teams1_Score)) -> 0 | Y9: =SUMPRODUCT((Teams1=T9)*(Teams1_Score))+SUMPRODUCT((Teams2=T9)*(Teams2_Score)) -> 5 | Z9: =SUMPRODUCT((Teams1=T9)*(Teams2_Score))+SUMPRODUCT((Teams2=T9)*(Teams1_Score)) -> 0 | AA9: =Y9-Z9 -> 5 | AB9: =3*V9+W9 -> 3
B10: =VLOOKUP($D10,TABLEAU_MATCHS[#All],2,FALSE) -> 2018-06-15 | C10: =VLOOKUP($D10,TABLEAU_MATCHS[#All],3,FALSE) -> 17:00:00 | D10: 3 | E10: ="Groupe "&VLOOKUP($I10,TABLEAU_TEAMS[[#All],[TEAM]:[GROUP_INITIAL_RANK]],2,FALSE) -> Groupe B | I10: =VLOOKUP($D10,TABLEAU_MATCHS[#All],4,FALSE) -> Maroc | J10: 0 | L10: =VLOOKUP($D10,TABLEAU_MATCHS[#All],5,FALSE) -> RI Iran | M10: 1 | Q10: 03110Uruguay | R10: 3110 | S10: 2 | T10: Uruguay | U10: =SUMPRODUCT((Teams1=T10)*(Teams1_Score<>""))+SUMPRODUCT((Teams2=T10)*(Teams2_Score<>"")) -> 1 | V10: =SUMPRODUCT((Teams1=T10)*(Teams1_Score>Teams2_Score))+SUMPRODUCT((Teams2=T10)*(Teams2_Score>Teams1_Score)) -> 1 | W10: =SUMPRODUCT((Teams1=T10)*(Teams1_Score=Teams2_Score)*(Teams1_Score<>""))+SUMPRODUCT((Teams2=T10)*(Teams2_Score=Teams1_Score)*(Teams2_Score<>"")) -> 0 | X10: =SUMPRODUCT((Teams1=T10)*(Teams1_Score<Teams2_Score))+SUMPRODUCT((Teams2=T10)*(Teams2_Score<Teams1_Score)) -> 0 | Y10: =SUMPRODUCT((Teams1=T10)*(Teams1_Score))+SUMPRODUCT((Teams2=T10)*(Teams2_Score)) -> 1 | Z10: =SUMPRODUCT((Teams1=T10)*(Teams2_Score))+SUMPRODUCT((Teams2=T10)*(Teams1_Score)) -> 0 | AA10: =Y10-Z10 -> 1 | AB10: =3*V10+W10 -> 3 | AE10: 2018-07-15 | AG10: =+IF(AI18<>"",IF(AH18>AN18,AG18,AM18),"Vainqueur 1") -> Vainqueur 1 | AH10: =AI10*10+AK10 -> 0 | AM10: =+IF(AI19<>"",IF(AH19>AN19,AG19,AM19),"Vainqueur 2") -> Vainqueur 2 | AN10: =AO10*10+AQ10 -> 0 | AS10: =IF(AI10<>"",IF(AH10>AN10,AG10,AM10),"") -> 
B11: =VLOOKUP($D11,TABLEAU_MATCHS[#All],2,FALSE) -> 2018-06-15 | C11: =VLOOKUP($D11,TABLEAU_MATCHS[#All],3,FALSE) -> 20:00:00 | D11: 4 | E11: ="Groupe "&VLOOKUP($I11,TABLEAU_TEAMS[[#All],[TEAM]:[GROUP_INITIAL_RANK]],2,FALSE) -> Groupe B | I11: =VLOOKUP($D11,TABLEAU_MATCHS[#All],4,FALSE) -> Portugal | J11: 3 | L11: =VLOOKUP($D11,TABLEAU_MATCHS[#All],5,FALSE) -> Espagne | M11: 3 | Q11: -00500Arabie Saoudite | R11: -500 | S11: 4 | T11: Arabie Saoudite | U11: =SUMPRODUCT((Teams1=T11)*(Teams1_Score<>""))+SUMPRODUCT((Teams2=T11)*(Teams2_Score<>"")) -> 1 | V11: =SUMPRODUCT((Teams1=T11)*(Teams1_Score>Teams2_Score))+SUMPRODUCT((Teams2=T11)*(Teams2_Score>Teams1_Score)) -> 0 | W11: =SUMPRODUCT((Teams1=T11)*(Teams1_Score=Teams2_Score)*(Teams1_Score<>""))+SUMPRODUCT((Teams2=T11)*(Teams2_Score=Teams1_Score)*(Teams2_Score<>"")) -> 0 | X11: =SUMPRODUCT((Teams1=T11)*(Teams1_Score<Teams2_Score))+SUMPRODUCT((Teams2=T11)*(Teams2_Score<Teams1_Score)) -> 1 | Y11: =SUMPRODUCT((Teams1=T11)*(Teams1_Score))+SUMPRODUCT((Teams2=T11)*(Teams2_Score)) -> 0 | Z11: =SUMPRODUCT((Teams1=T11)*(Teams2_Score))+SUMPRODUCT((Teams2=T11)*(Teams1_Score)) -> 5 | AA11: =Y11-Z11 -> -5 | AB11: =3*V11+W11 -> 0
B12: =VLOOKUP($D12,TABLEAU_MATCHS[#All],2,FALSE) -> 2018-06-16 | C12: =VLOOKUP($D12,TABLEAU_MATCHS[#All],3,FALSE) -> 12:00:00 | D12: 5 | E12: ="Groupe "&VLOOKUP($I12,TABLEAU_TEAMS[[#All],[TEAM]:[GROUP_INITIAL_RANK]],2,FALSE) -> Groupe C | I12: =VLOOKUP($D12,TABLEAU_MATCHS[#All],4,FALSE) -> France | L12: =VLOOKUP($D12,TABLEAU_MATCHS[#All],5,FALSE) -> Australie | Q12: -00100Egypte | R12: -100 | S12: 3 | T12: Egypte | U12: =SUMPRODUCT((Teams1=T12)*(Teams1_Score<>""))+SUMPRODUCT((Teams2=T12)*(Teams2_Score<>"")) -> 1 | V12: =SUMPRODUCT((Teams1=T12)*(Teams1_Score>Teams2_Score))+SUMPRODUCT((Teams2=T12)*(Teams2_Score>Teams1_Score)) -> 0 | W12: =SUMPRODUCT((Teams1=T12)*(Teams1_Score=Teams2_Score)*(Teams1_Score<>""))+SUMPRODUCT((Teams2=T12)*(Teams2_Score=Teams1_Score)*(Teams2_Score<>"")) -> 0 | X12: =SUMPRODUCT((Teams1=T12)*(Teams1_Score<Teams2_Score))+SUMPRODUCT((Teams2=T12)*(Teams2_Score<Teams1_Score)) -> 1 | Y12: =SUMPRODUCT((Teams1=T12)*(Teams1_Score))+SUMPRODUCT((Teams2=T12)*(Teams2_Score)) -> 0 | Z12: =SUMPRODUCT((Teams1=T12)*(Teams2_Score))+SUMPRODUCT((Teams2=T12)*(Teams1_Score)) -> 1 | AA12: =Y12-Z12 -> -1 | AB12: =3*V12+W12 -> 0 | AE12: Date | AF12: Petite Finale | AI12: Buts | AK12: Pen | AO12: Buts | AQ12: Pen
B13: =VLOOKUP($D13,TABLEAU_MATCHS[#All],2,FALSE) -> 2018-06-16 | C13: =VLOOKUP($D13,TABLEAU_MATCHS[#All],3,FALSE) -> 18:00:00 | D13: 6 | E13: ="Groupe "&VLOOKUP($I13,TABLEAU_TEAMS[[#All],[TEAM]:[GROUP_INITIAL_RANK]],2,FALSE) -> Groupe C | I13: =VLOOKUP($D13,TABLEAU_MATCHS[#All],4,FALSE) -> Pérou | L13: =VLOOKUP($D13,TABLEAU_MATCHS[#All],5,FALSE) -> Danemark
B14: =VLOOKUP($D14,TABLEAU_MATCHS[#All],2,FALSE) -> 2018-06-16 | C14: =VLOOKUP($D14,TABLEAU_MATCHS[#All],3,FALSE) -> 15:00:00 | D14: 7 | E14: ="Groupe "&VLOOKUP($I14,TABLEAU_TEAMS[[#All],[TEAM]:[GROUP_INITIAL_RANK]],2,FALSE) -> Groupe D | I14: =VLOOKUP($D14,TABLEAU_MATCHS[#All],4,FALSE) -> Argentine | L14: =VLOOKUP($D14,TABLEAU_MATCHS[#All],5,FALSE) -> Islande | S14: Rg | T14: Groupe B | U14: MJ | V14: G | W14: N | X14: P | Y14: BP | Z14: BC | AA14: +/- | AB14: Pts | AE14: 2018-07-14 | AG14: =+IF(AI18<>"",IF(AH18>AN18,AM18,AG18),"Perdant 1") -> Perdant 1 | AH14: =AI14*10+AK14 -> 0 | AM14: =+IF(AI19<>"",IF(AH19>AN19,AM19,AG19),"Perdant 2") -> Perdant 2 | AN14: =AO14*10+AQ14 -> 0
B15: =VLOOKUP($D15,TABLEAU_MATCHS[#All],2,FALSE) -> 2018-06-16 | C15: =VLOOKUP($D15,TABLEAU_MATCHS[#All],3,FALSE) -> 21:00:00 | D15: 8 | E15: ="Groupe "&VLOOKUP($I15,TABLEAU_TEAMS[[#All],[TEAM]:[GROUP_INITIAL_RANK]],2,FALSE) -> Groupe D | I15: =VLOOKUP($D15,TABLEAU_MATCHS[#All],4,FALSE) -> Croatie | L15: =VLOOKUP($D15,TABLEAU_MATCHS[#All],5,FALSE) -> Nigeria | Q15: =INDEX($Q66:$Q69,MATCH(SMALL(COUNTIF($Q66:$Q69,">="&$Q66:$Q69),ROW(INDIRECT("1:"&ROWS($Q66:$Q69)))),COUNTIF($Q66:$Q69,">="&$Q66:$Q69),0)) -> 03110RI Iran | R15: =INDEX($R66:$R69,MATCH(SMALL(COUNTIF($Q66:$Q69,">="&$Q66:$Q69),ROW(INDIRECT("1:"&ROWS($Q66:$Q69)))),COUNTIF($Q66:$Q69,">="&$Q66:$Q69),0)) -> 3110 | S15: =INDEX($S66:$S69,MATCH(SMALL(COUNTIF($Q66:$Q69,">="&$Q66:$Q69),ROW(INDIRECT("1:"&ROWS($Q66:$Q69)))),COUNTIF($Q66:$Q69,">="&$Q66:$Q69),0)) -> 1 | T15: =INDEX($T66:$T69,MATCH(SMALL(COUNTIF($Q66:$Q69,">="&$Q66:$Q69),ROW(INDIRECT("1:"&ROWS($Q66:$Q69)))),COUNTIF($Q66:$Q69,">="&$Q66:$Q69),0)) -> RI Iran | U15: =SUMPRODUCT((Teams1=T15)*(Teams1_Score<>""))+SUMPRODUCT((Teams2=T15)*(Teams2_Score<>"")) -> 1 | V15: =SUMPRODUCT((Teams1=T15)*(Teams1_Score>Teams2_Score))+SUMPRODUCT((Teams2=T15)*(Teams2_Score>Teams1_Score)) -> 1 | W15: =SUMPRODUCT((Teams1=T15)*(Teams1_Score=Teams2_Score)*(Teams1_Score<>""))+SUMPRODUCT((Teams2=T15)*(Teams2_Score=Teams1_Score)*(Teams2_Score<>"")) -> 0 | X15: =SUMPRODUCT((Teams1=T15)*(Teams1_Score<Teams2_Score))+SUMPRODUCT((Teams2=T15)*(Teams2_Score<Teams1_Score)) -> 0 | Y15: =SUMPRODUCT((Teams1=T15)*(Teams1_Score))+SUMPRODUCT((Teams2=T15)*(Teams2_Score)) -> 1 | Z15: =SUMPRODUCT((Teams1=T15)*(Teams2_Score))+SUMPRODUCT((Teams2=T15)*(Teams1_Score)) -> 0 | AA15: =Y15-Z15 -> 1 | AB15: =3*V15+W15 -> 3
B16: =VLOOKUP($D16,TABLEAU_MATCHS[#All],2,FALSE) -> 2018-06-17 | C16: =VLOOKUP($D16,TABLEAU_MATCHS[#All],3,FALSE) -> 14:00:00 | D16: 9 | E16: ="Groupe "&VLOOKUP($I16,TABLEAU_TEAMS[[#All],[TEAM]:[GROUP_INITIAL_RANK]],2,FALSE) -> Groupe E | I16: =VLOOKUP($D16,TABLEAU_MATCHS[#All],4,FALSE) -> Costa Rica | L16: =VLOOKUP($D16,TABLEAU_MATCHS[#All],5,FALSE) -> Serbie | Q16: 01030Portugal | R16: 1030 | S16: 2 | T16: Portugal | U16: =SUMPRODUCT((Teams1=T16)*(Teams1_Score<>""))+SUMPRODUCT((Teams2=T16)*(Teams2_Score<>"")) -> 1 | V16: =SUMPRODUCT((Teams1=T16)*(Teams1_Score>Teams2_Score))+SUMPRODUCT((Teams2=T16)*(Teams2_Score>Teams1_Score)) -> 0 | W16: =SUMPRODUCT((Teams1=T16)*(Teams1_Score=Teams2_Score)*(Teams1_Score<>""))+SUMPRODUCT((Teams2=T16)*(Teams2_Score=Teams1_Score)*(Teams2_Score<>"")) -> 1 | X16: =SUMPRODUCT((Teams1=T16)*(Teams1_Score<Teams2_Score))+SUMPRODUCT((Teams2=T16)*(Teams2_Score<Teams1_Score)) -> 0 | Y16: =SUMPRODUCT((Teams1=T16)*(Teams1_Score))+SUMPRODUCT((Teams2=T16)*(Teams2_Score)) -> 3 | Z16: =SUMPRODUCT((Teams1=T16)*(Teams2_Score))+SUMPRODUCT((Teams2=T16)*(Teams1_Score)) -> 3 | AA16: =Y16-Z16 -> 0 | AB16: =3*V16+W16 -> 1 | AE16: Date | AF16: Demi Finale | AI16: Buts | AK16: Pen | AO16: Buts | AQ16: Pen
B17: =VLOOKUP($D17,TABLEAU_MATCHS[#All],2,FALSE) -> 2018-06-17 | C17: =VLOOKUP($D17,TABLEAU_MATCHS[#All],3,FALSE) -> 20:00:00 | D17: 10 | E17: ="Groupe "&VLOOKUP($I17,TABLEAU_TEAMS[[#All],[TEAM]:[GROUP_INITIAL_RANK]],2,FALSE) -> Groupe E | I17: =VLOOKUP($D17,TABLEAU_MATCHS[#All],4,FALSE) -> Brésil | L17: =VLOOKUP($D17,TABLEAU_MATCHS[#All],5,FALSE) -> Suisse | Q17: 01030Espagne | R17: 1030 | S17: 2 | T17: Espagne | U17: =SUMPRODUCT((Teams1=T17)*(Teams1_Score<>""))+SUMPRODUCT((Teams2=T17)*(Teams2_Score<>"")) -> 1 | V17: =SUMPRODUCT((Teams1=T17)*(Teams1_Score>Teams2_Score))+SUMPRODUCT((Teams2=T17)*(Teams2_Score>Teams1_Score)) -> 0 | W17: =SUMPRODUCT((Teams1=T17)*(Teams1_Score=Teams2_Score)*(Teams1_Score<>""))+SUMPRODUCT((Teams2=T17)*(Teams2_Score=Teams1_Score)*(Teams2_Score<>"")) -> 1 | X17: =SUMPRODUCT((Teams1=T17)*(Teams1_Score<Teams2_Score))+SUMPRODUCT((Teams2=T17)*(Teams2_Score<Teams1_Score)) -> 0 | Y17: =SUMPRODUCT((Teams1=T17)*(Teams1_Score))+SUMPRODUCT((Teams2=T17)*(Teams2_Score)) -> 3 | Z17: =SUMPRODUCT((Teams1=T17)*(Teams2_Score))+SUMPRODUCT((Teams2=T17)*(Teams1_Score)) -> 3 | AA17: =Y17-Z17 -> 0 | AB17: =3*V17+W17 -> 1
B18: =VLOOKUP($D18,TABLEAU_MATCHS[#All],2,FALSE) -> 2018-06-17 | C18: =VLOOKUP($D18,TABLEAU_MATCHS[#All],3,FALSE) -> 17:00:00 | D18: 11 | E18: ="Groupe "&VLOOKUP($I18,TABLEAU_TEAMS[[#All],[TEAM]:[GROUP_INITIAL_RANK]],2,FALSE) -> Groupe F | I18: =VLOOKUP($D18,TABLEAU_MATCHS[#All],4,FALSE) -> Allemagne | L18: =VLOOKUP($D18,TABLEAU_MATCHS[#All],5,FALSE) -> Mexique | Q18: -00100Maroc | R18: -100 | S18: 4 | T18: Maroc | U18: =SUMPRODUCT((Teams1=T18)*(Teams1_Score<>""))+SUMPRODUCT((Teams2=T18)*(Teams2_Score<>"")) -> 1 | V18: =SUMPRODUCT((Teams1=T18)*(Teams1_Score>Teams2_Score))+SUMPRODUCT((Teams2=T18)*(Teams2_Score>Teams1_Score)) -> 0 | W18: =SUMPRODUCT((Teams1=T18)*(Teams1_Score=Teams2_Score)*(Teams1_Score<>""))+SUMPRODUCT((Teams2=T18)*(Teams2_Score=Teams1_Score)*(Teams2_Score<>"")) -> 0 | X18: =SUMPRODUCT((Teams1=T18)*(Teams1_Score<Teams2_Score))+SUMPRODUCT((Teams2=T18)*(Teams2_Score<Teams1_Score)) -> 1 | Y18: =SUMPRODUCT((Teams1=T18)*(Teams1_Score))+SUMPRODUCT((Teams2=T18)*(Teams2_Score)) -> 0 | Z18: =SUMPRODUCT((Teams1=T18)*(Teams2_Score))+SUMPRODUCT((Teams2=T18)*(Teams1_Score)) -> 1 | AA18: =Y18-Z18 -> -1 | AB18: =3*V18+W18 -> 0 | AE18: 2018-07-10 | AF18: 1 | AG18: =+IF(AI23<>"",IF(AH23>AN23,AG23,AM23),"Vainqueur A") -> Vainqueur A | AH18: =AI18*10+AK18 -> 0 | AM18: =+IF(AI25<>"",IF(AH25>AN25,AG25,AM25),"Vainqueur C") -> Vainqueur C | AN18: =AO18*10+AQ18 -> 0
B19: =VLOOKUP($D19,TABLEAU_MATCHS[#All],2,FALSE) -> 2018-06-18 | C19: =VLOOKUP($D19,TABLEAU_MATCHS[#All],3,FALSE) -> 14:00:00 | D19: 12 | E19: ="Groupe "&VLOOKUP($I19,TABLEAU_TEAMS[[#All],[TEAM]:[GROUP_INITIAL_RANK]],2,FALSE) -> Groupe F | I19: =VLOOKUP($D19,TABLEAU_MATCHS[#All],4,FALSE) -> Suède | L19: =VLOOKUP($D19,TABLEAU_MATCHS[#All],5,FALSE) -> République de Corée | AE19: 2018-07-11 | AF19: 2 | AG19: =+IF(AI24<>"",IF(AH24>AN24,AG24,AM24),"Vainqueur B") -> Vainqueur B | AH19: =AI19*10+AK19 -> 0 | AM19: =+IF(AI26<>"",IF(AH26>AN26,AG26,AM26),"Vainqueur D") -> Vainqueur D | AN19: =AO19*10+AQ19 -> 0
B20: =VLOOKUP($D20,TABLEAU_MATCHS[#All],2,FALSE) -> 2018-06-18 | C20: =VLOOKUP($D20,TABLEAU_MATCHS[#All],3,FALSE) -> 17:00:00 | D20: 13 | E20: ="Groupe "&VLOOKUP($I20,TABLEAU_TEAMS[[#All],[TEAM]:[GROUP_INITIAL_RANK]],2,FALSE) -> Groupe G | I20: =VLOOKUP($D20,TABLEAU_MATCHS[#All],4,FALSE) -> Belgique | L20: =VLOOKUP($D20,TABLEAU_MATCHS[#All],5,FALSE) -> Panama | S20: Rg | T20: Groupe C | U20: MJ | V20: G | W20: N | X20: P | Y20: BP | Z20: BC | AA20: +/- | AB20: Pts
B21: =VLOOKUP($D21,TABLEAU_MATCHS[#All],2,FALSE) -> 2018-06-18 | C21: =VLOOKUP($D21,TABLEAU_MATCHS[#All],3,FALSE) -> 20:00:00 | D21: 14 | E21: ="Groupe "&VLOOKUP($I21,TABLEAU_TEAMS[[#All],[TEAM]:[GROUP_INITIAL_RANK]],2,FALSE) -> Groupe G | I21: =VLOOKUP($D21,TABLEAU_MATCHS[#All],4,FALSE) -> Tunisie | L21: =VLOOKUP($D21,TABLEAU_MATCHS[#All],5,FALSE) -> Angleterre | Q21: =INDEX($Q72:$Q75,MATCH(SMALL(COUNTIF($Q72:$Q75,">="&$Q72:$Q75),ROW(INDIRECT("1:"&ROWS($Q72:$Q75)))),COUNTIF($Q72:$Q75,">="&$Q72:$Q75),0)) -> 00000Pérou | R21: =INDEX($R72:$R75,MATCH(SMALL(COUNTIF($Q72:$Q75,">="&$Q72:$Q75),ROW(INDIRECT("1:"&ROWS($Q72:$Q75)))),COUNTIF($Q72:$Q75,">="&$Q72:$Q75),0)) -> 0 | S21: =INDEX($S72:$S75,MATCH(SMALL(COUNTIF($Q72:$Q75,">="&$Q72:$Q75),ROW(INDIRECT("1:"&ROWS($Q72:$Q75)))),COUNTIF($Q72:$Q75,">="&$Q72:$Q75),0)) -> 1 | T21: =INDEX($T72:$T75,MATCH(SMALL(COUNTIF($Q72:$Q75,">="&$Q72:$Q75),ROW(INDIRECT("1:"&ROWS($Q72:$Q75)))),COUNTIF($Q72:$Q75,">="&$Q72:$Q75),0)) -> Pérou | U21: =SUMPRODUCT((Teams1=T21)*(Teams1_Score<>""))+SUMPRODUCT((Teams2=T21)*(Teams2_Score<>"")) -> 0 | V21: =SUMPRODUCT((Teams1=T21)*(Teams1_Score>Teams2_Score))+SUMPRODUCT((Teams2=T21)*(Teams2_Score>Teams1_Score)) -> 0 | W21: =SUMPRODUCT((Teams1=T21)*(Teams1_Score=Teams2_Score)*(Teams1_Score<>""))+SUMPRODUCT((Teams2=T21)*(Teams2_Score=Teams1_Score)*(Teams2_Score<>"")) -> 0 | X21: =SUMPRODUCT((Teams1=T21)*(Teams1_Score<Teams2_Score))+SUMPRODUCT((Teams2=T21)*(Teams2_Score<Teams1_Score)) -> 0 | Y21: =SUMPRODUCT((Teams1=T21)*(Teams1_Score))+SUMPRODUCT((Teams2=T21)*(Teams2_Score)) -> 0 | Z21: =SUMPRODUCT((Teams1=T21)*(Teams2_Score))+SUMPRODUCT((Teams2=T21)*(Teams1_Score)) -> 0 | AA21: =Y21-Z21 -> 0 | AB21: =3*V21+W21 -> 0 | AE21: Date | AF21: Quart de Finale | AI21: Buts | AK21: Pen | AO21: Buts | AQ21: Pen
B22: =VLOOKUP($D22,TABLEAU_MATCHS[#All],2,FALSE) -> 2018-06-19 | C22: =VLOOKUP($D22,TABLEAU_MATCHS[#All],3,FALSE) -> 17:00:00 | D22: 15 | E22: ="Groupe "&VLOOKUP($I22,TABLEAU_TEAMS[[#All],[TEAM]:[GROUP_INITIAL_RANK]],2,FALSE) -> Groupe H | I22: =VLOOKUP($D22,TABLEAU_MATCHS[#All],4,FALSE) -> Colombie | L22: =VLOOKUP($D22,TABLEAU_MATCHS[#All],5,FALSE) -> Japon | Q22: 00000France | R22: 0 | S22: 1 | T22: France | U22: =SUMPRODUCT((Teams1=T22)*(Teams1_Score<>""))+SUMPRODUCT((Teams2=T22)*(Teams2_Score<>"")) -> 0 | V22: =SUMPRODUCT((Teams1=T22)*(Teams1_Score>Teams2_Score))+SUMPRODUCT((Teams2=T22)*(Teams2_Score>Teams1_Score)) -> 0 | W22: =SUMPRODUCT((Teams1=T22)*(Teams1_Score=Teams2_Score)*(Teams1_Score<>""))+SUMPRODUCT((Teams2=T22)*(Teams2_Score=Teams1_Score)*(Teams2_Score<>"")) -> 0 | X22: =SUMPRODUCT((Teams1=T22)*(Teams1_Score<Teams2_Score))+SUMPRODUCT((Teams2=T22)*(Teams2_Score<Teams1_Score)) -> 0 | Y22: =SUMPRODUCT((Teams1=T22)*(Teams1_Score))+SUMPRODUCT((Teams2=T22)*(Teams2_Score)) -> 0 | Z22: =SUMPRODUCT((Teams1=T22)*(Teams2_Score))+SUMPRODUCT((Teams2=T22)*(Teams1_Score)) -> 0 | AA22: =Y22-Z22 -> 0 | AB22: =3*V22+W22 -> 0
B23: =VLOOKUP($D23,TABLEAU_MATCHS[#All],2,FALSE) -> 2018-06-19 | C23: =VLOOKUP($D23,TABLEAU_MATCHS[#All],3,FALSE) -> 14:00:00 | D23: 16 | E23: ="Groupe "&VLOOKUP($I23,TABLEAU_TEAMS[[#All],[TEAM]:[GROUP_INITIAL_RANK]],2,FALSE) -> Groupe H | I23: =VLOOKUP($D23,TABLEAU_MATCHS[#All],4,FALSE) -> Pologne | L23: =VLOOKUP($D23,TABLEAU_MATCHS[#All],5,FALSE) -> Sénégal | Q23: 00000Danemark | R23: 0 | S23: 1 | T23: Danemark | U23: =SUMPRODUCT((Teams1=T23)*(Teams1_Score<>""))+SUMPRODUCT((Teams2=T23)*(Teams2_Score<>"")) -> 0 | V23: =SUMPRODUCT((Teams1=T23)*(Teams1_Score>Teams2_Score))+SUMPRODUCT((Teams2=T23)*(Teams2_Score>Teams1_Score)) -> 0 | W23: =SUMPRODUCT((Teams1=T23)*(Teams1_Score=Teams2_Score)*(Teams1_Score<>""))+SUMPRODUCT((Teams2=T23)*(Teams2_Score=Teams1_Score)*(Teams2_Score<>"")) -> 0 | X23: =SUMPRODUCT((Teams1=T23)*(Teams1_Score<Teams2_Score))+SUMPRODUCT((Teams2=T23)*(Teams2_Score<Teams1_Score)) -> 0 | Y23: =SUMPRODUCT((Teams1=T23)*(Teams1_Score))+SUMPRODUCT((Teams2=T23)*(Teams2_Score)) -> 0 | Z23: =SUMPRODUCT((Teams1=T23)*(Teams2_Score))+SUMPRODUCT((Teams2=T23)*(Teams1_Score)) -> 0 | AA23: =Y23-Z23 -> 0 | AB23: =3*V23+W23 -> 0 | AE23: 2018-07-06 | AF23: A | AG23: =+IF(AI30<>"",IF(AH30>AN30,AG30,AM30),"Vainqueur 1") -> Vainqueur 1 | AH23: =AI23*10+AK23 -> 0 | AM23: =+IF(AI32<>"",IF(AH32>AN32,AG32,AM32),"Vainqueur 3") -> Vainqueur 3 | AN23: =AO23*10+AQ23 -> 0
B24: =VLOOKUP($D24,TABLEAU_MATCHS[#All],2,FALSE) -> 2018-06-19 | C24: =VLOOKUP($D24,TABLEAU_MATCHS[#All],3,FALSE) -> 20:00:00 | D24: 17 | E24: ="Groupe "&VLOOKUP($I24,TABLEAU_TEAMS[[#All],[TEAM]:[GROUP_INITIAL_RANK]],2,FALSE) -> Groupe A | I24: =VLOOKUP($D24,TABLEAU_MATCHS[#All],4,FALSE) -> Russie | L24: =VLOOKUP($D24,TABLEAU_MATCHS[#All],5,FALSE) -> Egypte | Q24: 00000Australie | R24: 0 | S24: 1 | T24: Australie | U24: =SUMPRODUCT((Teams1=T24)*(Teams1_Score<>""))+SUMPRODUCT((Teams2=T24)*(Teams2_Score<>"")) -> 0 | V24: =SUMPRODUCT((Teams1=T24)*(Teams1_Score>Teams2_Score))+SUMPRODUCT((Teams2=T24)*(Teams2_Score>Teams1_Score)) -> 0 | W24: =SUMPRODUCT((Teams1=T24)*(Teams1_Score=Teams2_Score)*(Teams1_Score<>""))+SUMPRODUCT((Teams2=T24)*(Teams2_Score=Teams1_Score)*(Teams2_Score<>"")) -> 0 | X24: =SUMPRODUCT((Teams1=T24)*(Teams1_Score<Teams2_Score))+SUMPRODUCT((Teams2=T24)*(Teams2_Score<Teams1_Score)) -> 0 | Y24: =SUMPRODUCT((Teams1=T24)*(Teams1_Score))+SUMPRODUCT((Teams2=T24)*(Teams2_Score)) -> 0 | Z24: =SUMPRODUCT((Teams1=T24)*(Teams2_Score))+SUMPRODUCT((Teams2=T24)*(Teams1_Score)) -> 0 | AA24: =Y24-Z24 -> 0 | AB24: =3*V24+W24 -> 0 | AE24: 2018-07-07 | AF24: B | AG24: =+IF(AI31<>"",IF(AH31>AN31,AG31,AM31),"Vainqueur 2") -> Vainqueur 2 | AH24: =AI24*10+AK24 -> 0 | AM24: =+IF(AI33<>"",IF(AH33>AN33,AG33,AM33),"Vainqueur 4") -> Vainqueur 4 | AN24: =AO24*10+AQ24 -> 0
B25: =VLOOKUP($D25,TABLEAU_MATCHS[#All],2,FALSE) -> 2018-06-20 | C25: =VLOOKUP($D25,TABLEAU_MATCHS[#All],3,FALSE) -> 17:00:00 | D25: 18 | E25: ="Groupe "&VLOOKUP($I25,TABLEAU_TEAMS[[#All],[TEAM]:[GROUP_INITIAL_RANK]],2,FALSE) -> Groupe A | I25: =VLOOKUP($D25,TABLEAU_MATCHS[#All],4,FALSE) -> Uruguay | L25: =VLOOKUP($D25,TABLEAU_MATCHS[#All],5,FALSE) -> Arabie Saoudite | AE25: 2018-07-06 | AF25: C | AG25: =+IF(AI34<>"",IF(AH34>AN34,AG34,AM34),"Vainqueur 5") -> Vainqueur 5 | AH25: =AI25*10+AK25 -> 0 | AM25: =+IF(AI36<>"",IF(AH36>AN36,AG36,AM36),"Vainqueur 7") -> Vainqueur 7 | AN25: =AO25*10+AQ25 -> 0
B26: =VLOOKUP($D26,TABLEAU_MATCHS[#All],2,FALSE) -> 2018-06-20 | C26: =VLOOKUP($D26,TABLEAU_MATCHS[#All],3,FALSE) -> 14:00:00 | D26: 19 | E26: ="Groupe "&VLOOKUP($I26,TABLEAU_TEAMS[[#All],[TEAM]:[GROUP_INITIAL_RANK]],2,FALSE) -> Groupe B | I26: =VLOOKUP($D26,TABLEAU_MATCHS[#All],4,FALSE) -> Portugal | L26: =VLOOKUP($D26,TABLEAU_MATCHS[#All],5,FALSE) -> Maroc | S26: Rg | T26: Groupe D | U26: MJ | V26: G | W26: N | X26: P | Y26: BP | Z26: BC | AA26: +/- | AB26: Pts | AE26: 2018-07-07 | AF26: D | AG26: =+IF(AI35<>"",IF(AH35>AN35,AG35,AM35),"Vainqueur 6") -> Vainqueur 6 | AH26: =AI26*10+AK26 -> 0 | AM26: =+IF(AI37<>"",IF(AH37>AN37,AG37,AM37),"Vainqueur 8") -> Vainqueur 8 | AN26: =AO26*10+AQ26 -> 0
B27: =VLOOKUP($D27,TABLEAU_MATCHS[#All],2,FALSE) -> 2018-06-20 | C27: =VLOOKUP($D27,TABLEAU_MATCHS[#All],3,FALSE) -> 20:00:00 | D27: 20 | E27: ="Groupe "&VLOOKUP($I27,TABLEAU_TEAMS[[#All],[TEAM]:[GROUP_INITIAL_RANK]],2,FALSE) -> Groupe B | I27: =VLOOKUP($D27,TABLEAU_MATCHS[#All],4,FALSE) -> RI Iran | L27: =VLOOKUP($D27,TABLEAU_MATCHS[#All],5,FALSE) -> Espagne | Q27: =INDEX($Q78:$Q81,MATCH(SMALL(COUNTIF($Q78:$Q81,">="&$Q78:$Q81),ROW(INDIRECT("1:"&ROWS($Q78:$Q81)))),COUNTIF($Q78:$Q81,">="&$Q78:$Q81),0)) -> 00000Nigeria | R27: =INDEX($R78:$R81,MATCH(SMALL(COUNTIF($Q78:$Q81,">="&$Q78:$Q81),ROW(INDIRECT("1:"&ROWS($Q78:$Q81)))),COUNTIF($Q78:$Q81,">="&$Q78:$Q81),0)) -> 0 | S27: =INDEX($S78:$S81,MATCH(SMALL(COUNTIF($Q78:$Q81,">="&$Q78:$Q81),ROW(INDIRECT("1:"&ROWS($Q78:$Q81)))),COUNTIF($Q78:$Q81,">="&$Q78:$Q81),0)) -> 1 | T27: =INDEX($T78:$T81,MATCH(SMALL(COUNTIF($Q78:$Q81,">="&$Q78:$Q81),ROW(INDIRECT("1:"&ROWS($Q78:$Q81)))),COUNTIF($Q78:$Q81,">="&$Q78:$Q81),0)) -> Nigeria | U27: =SUMPRODUCT((Teams1=T27)*(Teams1_Score<>""))+SUMPRODUCT((Teams2=T27)*(Teams2_Score<>"")) -> 0 | V27: =SUMPRODUCT((Teams1=T27)*(Teams1_Score>Teams2_Score))+SUMPRODUCT((Teams2=T27)*(Teams2_Score>Teams1_Score)) -> 0 | W27: =SUMPRODUCT((Teams1=T27)*(Teams1_Score=Teams2_Score)*(Teams1_Score<>""))+SUMPRODUCT((Teams2=T27)*(Teams2_Score=Teams1_Score)*(Teams2_Score<>"")) -> 0 | X27: =SUMPRODUCT((Teams1=T27)*(Teams1_Score<Teams2_Score))+SUMPRODUCT((Teams2=T27)*(Teams2_Score<Teams1_Score)) -> 0 | Y27: =SUMPRODUCT((Teams1=T27)*(Teams1_Score))+SUMPRODUCT((Teams2=T27)*(Teams2_Score)) -> 0 | Z27: =SUMPRODUCT((Teams1=T27)*(Teams2_Score))+SUMPRODUCT((Teams2=T27)*(Teams1_Score)) -> 0 | AA27: =Y27-Z27 -> 0 | AB27: =3*V27+W27 -> 0
B28: =VLOOKUP($D28,TABLEAU_MATCHS[#All],2,FALSE) -> 2018-06-21 | C28: =VLOOKUP($D28,TABLEAU_MATCHS[#All],3,FALSE) -> 14:00:00 | D28: 21 | E28: ="Groupe "&VLOOKUP($I28,TABLEAU_TEAMS[[#All],[TEAM]:[GROUP_INITIAL_RANK]],2,FALSE) -> Groupe C | I28: =VLOOKUP($D28,TABLEAU_MATCHS[#All],4,FALSE) -> Danemark | L28: =VLOOKUP($D28,TABLEAU_MATCHS[#All],5,FALSE) -> Australie | Q28: 00000Islande | R28: 0 | S28: 1 | T28: Islande | U28: =SUMPRODUCT((Teams1=T28)*(Teams1_Score<>""))+SUMPRODUCT((Teams2=T28)*(Teams2_Score<>"")) -> 0 | V28: =SUMPRODUCT((Teams1=T28)*(Teams1_Score>Teams2_Score))+SUMPRODUCT((Teams2=T28)*(Teams2_Score>Teams1_Score)) -> 0 | W28: =SUMPRODUCT((Teams1=T28)*(Teams1_Score=Teams2_Score)*(Teams1_Score<>""))+SUMPRODUCT((Teams2=T28)*(Teams2_Score=Teams1_Score)*(Teams2_Score<>"")) -> 0 | X28: =SUMPRODUCT((Teams1=T28)*(Teams1_Score<Teams2_Score))+SUMPRODUCT((Teams2=T28)*(Teams2_Score<Teams1_Score)) -> 0 | Y28: =SUMPRODUCT((Teams1=T28)*(Teams1_Score))+SUMPRODUCT((Teams2=T28)*(Teams2_Score)) -> 0 | Z28: =SUMPRODUCT((Teams1=T28)*(Teams2_Score))+SUMPRODUCT((Teams2=T28)*(Teams1_Score)) -> 0 | AA28: =Y28-Z28 -> 0 | AB28: =3*V28+W28 -> 0 | AE28: Date | AF28: Huitième de Finale | AI28: Buts | AK28: Pen | AO28: Buts | AQ28: Pen
B29: =VLOOKUP($D29,TABLEAU_MATCHS[#All],2,FALSE) -> 2018-06-21 | C29: =VLOOKUP($D29,TABLEAU_MATCHS[#All],3,FALSE) -> 17:00:00 | D29: 22 | E29: ="Groupe "&VLOOKUP($I29,TABLEAU_TEAMS[[#All],[TEAM]:[GROUP_INITIAL_RANK]],2,FALSE) -> Groupe C | I29: =VLOOKUP($D29,TABLEAU_MATCHS[#All],4,FALSE) -> France | L29: =VLOOKUP($D29,TABLEAU_MATCHS[#All],5,FALSE) -> Pérou | Q29: 00000Croatie | R29: 0 | S29: 1 | T29: Croatie | U29: =SUMPRODUCT((Teams1=T29)*(Teams1_Score<>""))+SUMPRODUCT((Teams2=T29)*(Teams2_Score<>"")) -> 0 | V29: =SUMPRODUCT((Teams1=T29)*(Teams1_Score>Teams2_Score))+SUMPRODUCT((Teams2=T29)*(Teams2_Score>Teams1_Score)) -> 0 | W29: =SUMPRODUCT((Teams1=T29)*(Teams1_Score=Teams2_Score)*(Teams1_Score<>""))+SUMPRODUCT((Teams2=T29)*(Teams2_Score=Teams1_Score)*(Teams2_Score<>"")) -> 0 | X29: =SUMPRODUCT((Teams1=T29)*(Teams1_Score<Teams2_Score))+SUMPRODUCT((Teams2=T29)*(Teams2_Score<Teams1_Score)) -> 0 | Y29: =SUMPRODUCT((Teams1=T29)*(Teams1_Score))+SUMPRODUCT((Teams2=T29)*(Teams2_Score)) -> 0 | Z29: =SUMPRODUCT((Teams1=T29)*(Teams2_Score))+SUMPRODUCT((Teams2=T29)*(Teams1_Score)) -> 0 | AA29: =Y29-Z29 -> 0 | AB29: =3*V29+W29 -> 0
B30: =VLOOKUP($D30,TABLEAU_MATCHS[#All],2,FALSE) -> 2018-06-21 | C30: =VLOOKUP($D30,TABLEAU_MATCHS[#All],3,FALSE) -> 20:00:00 | D30: 23 | E30: ="Groupe "&VLOOKUP($I30,TABLEAU_TEAMS[[#All],[TEAM]:[GROUP_INITIAL_RANK]],2,FALSE) -> Groupe D | I30: =VLOOKUP($D30,TABLEAU_MATCHS[#All],4,FALSE) -> Argentine | L30: =VLOOKUP($D30,TABLEAU_MATCHS[#All],5,FALSE) -> Croatie | Q30: 00000Argentine | R30: 0 | S30: 1 | T30: Argentine | U30: =SUMPRODUCT((Teams1=T30)*(Teams1_Score<>""))+SUMPRODUCT((Teams2=T30)*(Teams2_Score<>"")) -> 0 | V30: =SUMPRODUCT((Teams1=T30)*(Teams1_Score>Teams2_Score))+SUMPRODUCT((Teams2=T30)*(Teams2_Score>Teams1_Score)) -> 0 | W30: =SUMPRODUCT((Teams1=T30)*(Teams1_Score=Teams2_Score)*(Teams1_Score<>""))+SUMPRODUCT((Teams2=T30)*(Teams2_Score=Teams1_Score)*(Teams2_Score<>"")) -> 0 | X30: =SUMPRODUCT((Teams1=T30)*(Teams1_Score<Teams2_Score))+SUMPRODUCT((Teams2=T30)*(Teams2_Score<Teams1_Score)) -> 0 | Y30: =SUMPRODUCT((Teams1=T30)*(Teams1_Score))+SUMPRODUCT((Teams2=T30)*(Teams2_Score)) -> 0 | Z30: =SUMPRODUCT((Teams1=T30)*(Teams2_Score))+SUMPRODUCT((Teams2=T30)*(Teams1_Score)) -> 0 | AA30: =Y30-Z30 -> 0 | AB30: =3*V30+W30 -> 0 | AE30: 2018-06-30 | AF30: 1 | AG30: =IF(SUM(U9:U12)=0,"1er Groupe A",IF(COUNTIF(S9:S12,1)=1,VLOOKUP(1,S9:T12,2,FALSE),IF(COUNTIF(S9:S12,1)>=2,"Tirage au Sort A1"))) -> Russie | AH30: =AI30*10+AK30 -> 0 | AM30: =IF(SUM(U15:U18)=0,"2nd Groupe B",IF(OR(COUNTIF(S15:S18,1)>1,COUNTIF(S15:S18,2)>1),"Tirage au sort B2",VLOOKUP(2,S15:T18,2,FALSE))) -> Tirage au sort B2 | AN30: =AO30*10+AQ30 -> 0
B31: =VLOOKUP($D31,TABLEAU_MATCHS[#All],2,FALSE) -> 2018-06-22 | C31: =VLOOKUP($D31,TABLEAU_MATCHS[#All],3,FALSE) -> 17:00:00 | D31: 24 | E31: ="Groupe "&VLOOKUP($I31,TABLEAU_TEAMS[[#All],[TEAM]:[GROUP_INITIAL_RANK]],2,FALSE) -> Groupe D | I31: =VLOOKUP($D31,TABLEAU_MATCHS[#All],4,FALSE) -> Nigeria | L31: =VLOOKUP($D31,TABLEAU_MATCHS[#All],5,FALSE) -> Islande | AE31: 2018-07-01 | AF31: 2 | AG31: =IF(SUM(U15:U18)=0,"1er Groupe B",IF(COUNTIF(S15:S18,1)=1,VLOOKUP(1,S15:T18,2,FALSE),IF(COUNTIF(S15:S18,1)>=2,"Tirage au Sort B1"))) -> RI Iran | AH31: =AI31*10+AK31 -> 0 | AM31: =IF(SUM(U9:U12)=0,"2nd Groupe A",IF(OR(COUNTIF(S9:S12,1)>1,COUNTIF(S9:S12,2)>1),"Tirage au sort A2",VLOOKUP(2,S9:T12,2,FALSE))) -> Uruguay | AN31: 0
B32: =VLOOKUP($D32,TABLEAU_MATCHS[#All],2,FALSE) -> 2018-06-22 | C32: =VLOOKUP($D32,TABLEAU_MATCHS[#All],3,FALSE) -> 14:00:00 | D32: 25 | E32: ="Groupe "&VLOOKUP($I32,TABLEAU_TEAMS[[#All],[TEAM]:[GROUP_INITIAL_RANK]],2,FALSE) -> Groupe E | I32: =VLOOKUP($D32,TABLEAU_MATCHS[#All],4,FALSE) -> Brésil | L32: =VLOOKUP($D32,TABLEAU_MATCHS[#All],5,FALSE) -> Costa Rica | S32: Rg | T32: Groupe E | U32: MJ | V32: G | W32: N | X32: P | Y32: BP | Z32: BC | AA32: +/- | AB32: Pts | AE32: 2017-06-30 | AF32: 3 | AG32: =IF(SUM(U21:U24)=0,"1er Groupe C",IF(COUNTIF(S21:S24,1)=1,VLOOKUP(1,S21:T24,2,FALSE),IF(COUNTIF(S21:S24,1)>=2,"Tirage au Sort C1"))) -> 1er Groupe C | AH32: 0 | AM32: =IF(SUM(U27:U30)=0,"2nd Groupe D",IF(OR(COUNTIF(S27:S30,1)>1,COUNTIF(S27:S30,2)>1),"Tirage au sort D2",VLOOKUP(2,S27:T30,2,FALSE))) -> 2nd Groupe D | AN32: 0
B33: =VLOOKUP($D33,TABLEAU_MATCHS[#All],2,FALSE) -> 2018-06-22 | C33: =VLOOKUP($D33,TABLEAU_MATCHS[#All],3,FALSE) -> 20:00:00 | D33: 26 | E33: ="Groupe "&VLOOKUP($I33,TABLEAU_TEAMS[[#All],[TEAM]:[GROUP_INITIAL_RANK]],2,FALSE) -> Groupe E | I33: =VLOOKUP($D33,TABLEAU_MATCHS[#All],4,FALSE) -> Serbie | L33: =VLOOKUP($D33,TABLEAU_MATCHS[#All],5,FALSE) -> Suisse | Q33: =INDEX($Q84:$Q87,MATCH(SMALL(COUNTIF($Q84:$Q87,">="&$Q84:$Q87),ROW(INDIRECT("1:"&ROWS($Q84:$Q87)))),COUNTIF($Q84:$Q87,">="&$Q84:$Q87),0)) -> 00000Suisse | R33: =INDEX($R84:$R87,MATCH(SMALL(COUNTIF($Q84:$Q87,">="&$Q84:$Q87),ROW(INDIRECT("1:"&ROWS($Q84:$Q87)))),COUNTIF($Q84:$Q87,">="&$Q84:$Q87),0)) -> 0 | S33: =INDEX($S84:$S87,MATCH(SMALL(COUNTIF($Q84:$Q87,">="&$Q84:$Q87),ROW(INDIRECT("1:"&ROWS($Q84:$Q87)))),COUNTIF($Q84:$Q87,">="&$Q84:$Q87),0)) -> 1 | T33: =INDEX($T84:$T87,MATCH(SMALL(COUNTIF($Q84:$Q87,">="&$Q84:$Q87),ROW(INDIRECT("1:"&ROWS($Q84:$Q87)))),COUNTIF($Q84:$Q87,">="&$Q84:$Q87),0)) -> Suisse | U33: =SUMPRODUCT((Teams1=T33)*(Teams1_Score<>""))+SUMPRODUCT((Teams2=T33)*(Teams2_Score<>"")) -> 0 | V33: =SUMPRODUCT((Teams1=T33)*(Teams1_Score>Teams2_Score))+SUMPRODUCT((Teams2=T33)*(Teams2_Score>Teams1_Score)) -> 0 | W33: =SUMPRODUCT((Teams1=T33)*(Teams1_Score=Teams2_Score)*(Teams1_Score<>""))+SUMPRODUCT((Teams2=T33)*(Teams2_Score=Teams1_Score)*(Teams2_Score<>"")) -> 0 | X33: =SUMPRODUCT((Teams1=T33)*(Teams1_Score<Teams2_Score))+SUMPRODUCT((Teams2=T33)*(Teams2_Score<Teams1_Score)) -> 0 | Y33: =SUMPRODUCT((Teams1=T33)*(Teams1_Score))+SUMPRODUCT((Teams2=T33)*(Teams2_Score)) -> 0 | Z33: =SUMPRODUCT((Teams1=T33)*(Teams2_Score))+SUMPRODUCT((Teams2=T33)*(Teams1_Score)) -> 0 | AA33: =Y33-Z33 -> 0 | AB33: =3*V33+W33 -> 0 | AE33: 2018-07-01 | AF33: 4 | AG33: =IF(SUM(U27:U30)=0,"1er Groupe D",IF(COUNTIF(S27:S30,1)=1,VLOOKUP(1,S27:T30,2,FALSE),IF(COUNTIF(S27:S30,1)>=2,"Tirage au Sort D1"))) -> 1er Groupe D | AH33: 0 | AM33: =IF(SUM(U21:U24)=0,"2nd Groupe C",IF(OR(COUNTIF(S21:S24,1)>1,COUNTIF(S21:S24,2)>1),"Tirage au sort C2",VLOOKUP(2,S21:T24,2,FALSE))) -> 2nd Groupe C | AN33: 0
B34: =VLOOKUP($D34,TABLEAU_MATCHS[#All],2,FALSE) -> 2018-06-23 | C34: =VLOOKUP($D34,TABLEAU_MATCHS[#All],3,FALSE) -> 20:00:00 | D34: 27 | E34: ="Groupe "&VLOOKUP($I34,TABLEAU_TEAMS[[#All],[TEAM]:[GROUP_INITIAL_RANK]],2,FALSE) -> Groupe F | I34: =VLOOKUP($D34,TABLEAU_MATCHS[#All],4,FALSE) -> République de Corée | L34: =VLOOKUP($D34,TABLEAU_MATCHS[#All],5,FALSE) -> Mexique | Q34: 00000Serbie | R34: 0 | S34: 1 | T34: Serbie | U34: =SUMPRODUCT((Teams1=T34)*(Teams1_Score<>""))+SUMPRODUCT((Teams2=T34)*(Teams2_Score<>"")) -> 0 | V34: =SUMPRODUCT((Teams1=T34)*(Teams1_Score>Teams2_Score))+SUMPRODUCT((Teams2=T34)*(Teams2_Score>Teams1_Score)) -> 0 | W34: =SUMPRODUCT((Teams1=T34)*(Teams1_Score=Teams2_Score)*(Teams1_Score<>""))+SUMPRODUCT((Teams2=T34)*(Teams2_Score=Teams1_Score)*(Teams2_Score<>"")) -> 0 | X34: =SUMPRODUCT((Teams1=T34)*(Teams1_Score<Teams2_Score))+SUMPRODUCT((Teams2=T34)*(Teams2_Score<Teams1_Score)) -> 0 | Y34: =SUMPRODUCT((Teams1=T34)*(Teams1_Score))+SUMPRODUCT((Teams2=T34)*(Teams2_Score)) -> 0 | Z34: =SUMPRODUCT((Teams1=T34)*(Teams2_Score))+SUMPRODUCT((Teams2=T34)*(Teams1_Score)) -> 0 | AA34: =Y34-Z34 -> 0 | AB34: =3*V34+W34 -> 0 | AE34: 2018-07-02 | AF34: 5 | AG34: =IF(SUM(U33:U36)=0,"1er Groupe E",IF(COUNTIF(S33:S36,1)=1,VLOOKUP(1,S33:T36,2,FALSE),IF(COUNTIF(S33:S36,1)>=2,"Tirage au Sort E1"))) -> 1er Groupe E | AH34: 0 | AM34: =IF(SUM(U39:U42)=0,"2nd Groupe F",IF(OR(COUNTIF(S39:S42,1)>1,COUNTIF(S39:S42,2)>1),"Tirage au sort F2",VLOOKUP(2,S39:T42,2,FALSE))) -> 2nd Groupe F | AN34: 0
B35: =VLOOKUP($D35,TABLEAU_MATCHS[#All],2,FALSE) -> 2018-06-23 | C35: =VLOOKUP($D35,TABLEAU_MATCHS[#All],3,FALSE) -> 17:00:00 | D35: 28 | E35: ="Groupe "&VLOOKUP($I35,TABLEAU_TEAMS[[#All],[TEAM]:[GROUP_INITIAL_RANK]],2,FALSE) -> Groupe F | I35: =VLOOKUP($D35,TABLEAU_MATCHS[#All],4,FALSE) -> Allemagne | L35: =VLOOKUP($D35,TABLEAU_MATCHS[#All],5,FALSE) -> Suède | Q35: 00000Costa Rica | R35: 0 | S35: 1 | T35: Costa Rica | U35: =SUMPRODUCT((Teams1=T35)*(Teams1_Score<>""))+SUMPRODUCT((Teams2=T35)*(Teams2_Score<>"")) -> 0 | V35: =SUMPRODUCT((Teams1=T35)*(Teams1_Score>Teams2_Score))+SUMPRODUCT((Teams2=T35)*(Teams2_Score>Teams1_Score)) -> 0 | W35: =SUMPRODUCT((Teams1=T35)*(Teams1_Score=Teams2_Score)*(Teams1_Score<>""))+SUMPRODUCT((Teams2=T35)*(Teams2_Score=Teams1_Score)*(Teams2_Score<>"")) -> 0 | X35: =SUMPRODUCT((Teams1=T35)*(Teams1_Score<Teams2_Score))+SUMPRODUCT((Teams2=T35)*(Teams2_Score<Teams1_Score)) -> 0 | Y35: =SUMPRODUCT((Teams1=T35)*(Teams1_Score))+SUMPRODUCT((Teams2=T35)*(Teams2_Score)) -> 0 | Z35: =SUMPRODUCT((Teams1=T35)*(Teams2_Score))+SUMPRODUCT((Teams2=T35)*(Teams1_Score)) -> 0 | AA35: =Y35-Z35 -> 0 | AB35: =3*V35+W35 -> 0 | AE35: 2018-07-03 | AF35: 6 | AG35: =IF(SUM(U39:U42)=0,"1er Groupe F",IF(COUNTIF(S39:S42,1)=1,VLOOKUP(1,S39:T42,2,FALSE),IF(COUNTIF(S39:S42,1)>=2,"Tirage au Sort F1"))) -> 1er Groupe F | AH35: 0 | AM35: =IF(SUM(U33:U36)=0,"2nd Groupe E",IF(OR(COUNTIF(S33:S36,1)>1,COUNTIF(S33:S36,2)>1),"Tirage au sort E2",VLOOKUP(2,S33:T36,2,FALSE))) -> 2nd Groupe E | AN35: 0
B36: =VLOOKUP($D36,TABLEAU_MATCHS[#All],2,FALSE) -> 2018-06-23 | C36: =VLOOKUP($D36,TABLEAU_MATCHS[#All],3,FALSE) -> 14:00:00 | D36: 29 | E36: ="Groupe "&VLOOKUP($I36,TABLEAU_TEAMS[[#All],[TEAM]:[GROUP_INITIAL_RANK]],2,FALSE) -> Groupe G | I36: =VLOOKUP($D36,TABLEAU_MATCHS[#All],4,FALSE) -> Belgique | L36: =VLOOKUP($D36,TABLEAU_MATCHS[#All],5,FALSE) -> Tunisie | Q36: 00000Brésil | R36: 0 | S36: 1 | T36: Brésil | U36: =SUMPRODUCT((Teams1=T36)*(Teams1_Score<>""))+SUMPRODUCT((Teams2=T36)*(Teams2_Score<>"")) -> 0 | V36: =SUMPRODUCT((Teams1=T36)*(Teams1_Score>Teams2_Score))+SUMPRODUCT((Teams2=T36)*(Teams2_Score>Teams1_Score)) -> 0 | W36: =SUMPRODUCT((Teams1=T36)*(Teams1_Score=Teams2_Score)*(Teams1_Score<>""))+SUMPRODUCT((Teams2=T36)*(Teams2_Score=Teams1_Score)*(Teams2_Score<>"")) -> 0 | X36: =SUMPRODUCT((Teams1=T36)*(Teams1_Score<Teams2_Score))+SUMPRODUCT((Teams2=T36)*(Teams2_Score<Teams1_Score)) -> 0 | Y36: =SUMPRODUCT((Teams1=T36)*(Teams1_Score))+SUMPRODUCT((Teams2=T36)*(Teams2_Score)) -> 0 | Z36: =SUMPRODUCT((Teams1=T36)*(Teams2_Score))+SUMPRODUCT((Teams2=T36)*(Teams1_Score)) -> 0 | AA36: =Y36-Z36 -> 0 | AB36: =3*V36+W36 -> 0 | AE36: 2018-07-02 | AF36: 7 | AG36: =IF(SUM(U45:U48)=0,"1er Groupe G",IF(COUNTIF(S45:S48,1)=1,VLOOKUP(1,S45:T48,2,FALSE),IF(COUNTIF(S45:S48,1)>=2,"Tirage au Sort G1"))) -> 1er Groupe G | AH36: 0 | AM36: =IF(SUM(U51:U54)=0,"2nd Groupe H",IF(OR(COUNTIF(S51:S54,1)>1,COUNTIF(S51:S54,2)>1),"Tirage au sort H2",VLOOKUP(2,S51:T54,2,FALSE))) -> 2nd Groupe H | AN36: 0
B37: =VLOOKUP($D37,TABLEAU_MATCHS[#All],2,FALSE) -> 2018-06-24 | C37: =VLOOKUP($D37,TABLEAU_MATCHS[#All],3,FALSE) -> 14:00:00 | D37: 30 | E37: ="Groupe "&VLOOKUP($I37,TABLEAU_TEAMS[[#All],[TEAM]:[GROUP_INITIAL_RANK]],2,FALSE) -> Groupe G | I37: =VLOOKUP($D37,TABLEAU_MATCHS[#All],4,FALSE) -> Angleterre | L37: =VLOOKUP($D37,TABLEAU_MATCHS[#All],5,FALSE) -> Panama | AE37: 2018-07-03 | AF37: 8 | AG37: =IF(SUM(U51:U54)=0,"1er Groupe H",IF(COUNTIF(S51:S54,1)=1,VLOOKUP(1,S51:T54,2,FALSE),IF(COUNTIF(S51:S54,1)>=2,"Tirage au Sort H1"))) -> 1er Groupe H | AH37: 0 | AM37: =IF(SUM(U45:U48)=0,"2nd Groupe G",IF(OR(COUNTIF(S45:S48,1)>1,COUNTIF(S45:S48,2)>1),"Tirage au sort G2",VLOOKUP(2,S45:T48,2,FALSE))) -> 2nd Groupe G | AN37: 0
B38: =VLOOKUP($D38,TABLEAU_MATCHS[#All],2,FALSE) -> 2018-06-24 | C38: =VLOOKUP($D38,TABLEAU_MATCHS[#All],3,FALSE) -> 17:00:00 | D38: 31 | E38: ="Groupe "&VLOOKUP($I38,TABLEAU_TEAMS[[#All],[TEAM]:[GROUP_INITIAL_RANK]],2,FALSE) -> Groupe H | I38: =VLOOKUP($D38,TABLEAU_MATCHS[#All],4,FALSE) -> Japon | L38: =VLOOKUP($D38,TABLEAU_MATCHS[#All],5,FALSE) -> Sénégal | S38: Rg | T38: Groupe F | U38: MJ | V38: G | W38: N | X38: P | Y38: BP | Z38: BC | AA38: +/- | AB38: Pts
B39: =VLOOKUP($D39,TABLEAU_MATCHS[#All],2,FALSE) -> 2018-06-24 | C39: =VLOOKUP($D39,TABLEAU_MATCHS[#All],3,FALSE) -> 20:00:00 | D39: 32 | E39: ="Groupe "&VLOOKUP($I39,TABLEAU_TEAMS[[#All],[TEAM]:[GROUP_INITIAL_RANK]],2,FALSE) -> Groupe H | I39: =VLOOKUP($D39,TABLEAU_MATCHS[#All],4,FALSE) -> Pologne | L39: =VLOOKUP($D39,TABLEAU_MATCHS[#All],5,FALSE) -> Colombie | Q39: =INDEX($Q90:$Q93,MATCH(SMALL(COUNTIF($Q90:$Q93,">="&$Q90:$Q93),ROW(INDIRECT("1:"&ROWS($Q90:$Q93)))),COUNTIF($Q90:$Q93,">="&$Q90:$Q93),0)) -> 00000Suède | R39: =INDEX($R90:$R93,MATCH(SMALL(COUNTIF($Q90:$Q93,">="&$Q90:$Q93),ROW(INDIRECT("1:"&ROWS($Q90:$Q93)))),COUNTIF($Q90:$Q93,">="&$Q90:$Q93),0)) -> 0 | S39: =INDEX($S90:$S93,MATCH(SMALL(COUNTIF($Q90:$Q93,">="&$Q90:$Q93),ROW(INDIRECT("1:"&ROWS($Q90:$Q93)))),COUNTIF($Q90:$Q93,">="&$Q90:$Q93),0)) -> 1 | T39: =INDEX($T90:$T93,MATCH(SMALL(COUNTIF($Q90:$Q93,">="&$Q90:$Q93),ROW(INDIRECT("1:"&ROWS($Q90:$Q93)))),COUNTIF($Q90:$Q93,">="&$Q90:$Q93),0)) -> Suède | U39: =SUMPRODUCT((Teams1=T39)*(Teams1_Score<>""))+SUMPRODUCT((Teams2=T39)*(Teams2_Score<>"")) -> 0 | V39: =SUMPRODUCT((Teams1=T39)*(Teams1_Score>Teams2_Score))+SUMPRODUCT((Teams2=T39)*(Teams2_Score>Teams1_Score)) -> 0 | W39: =SUMPRODUCT((Teams1=T39)*(Teams1_Score=Teams2_Score)*(Teams1_Score<>""))+SUMPRODUCT((Teams2=T39)*(Teams2_Score=Teams1_Score)*(Teams2_Score<>"")) -> 0 | X39: =SUMPRODUCT((Teams1=T39)*(Teams1_Score<Teams2_Score))+SUMPRODUCT((Teams2=T39)*(Teams2_Score<Teams1_Score)) -> 0 | Y39: =SUMPRODUCT((Teams1=T39)*(Teams1_Score))+SUMPRODUCT((Teams2=T39)*(Teams2_Score)) -> 0 | Z39: =SUMPRODUCT((Teams1=T39)*(Teams2_Score))+SUMPRODUCT((Teams2=T39)*(Teams1_Score)) -> 0 | AA39: =Y39-Z39 -> 0 | AB39: =3*V39+W39 -> 0
B40: =VLOOKUP($D40,TABLEAU_MATCHS[#All],2,FALSE) -> 2018-06-25 | C40: =VLOOKUP($D40,TABLEAU_MATCHS[#All],3,FALSE) -> 16:00:00 | D40: 33 | E40: ="Groupe "&VLOOKUP($I40,TABLEAU_TEAMS[[#All],[TEAM]:[GROUP_INITIAL_RANK]],2,FALSE) -> Groupe A | I40: =VLOOKUP($D40,TABLEAU_MATCHS[#All],4,FALSE) -> Uruguay | L40: =VLOOKUP($D40,TABLEAU_MATCHS[#All],5,FALSE) -> Russie | Q40: 00000République de Corée | R40: 0 | S40: 1 | T40: République de Corée | U40: =SUMPRODUCT((Teams1=T40)*(Teams1_Score<>""))+SUMPRODUCT((Teams2=T40)*(Teams2_Score<>"")) -> 0 | V40: =SUMPRODUCT((Teams1=T40)*(Teams1_Score>Teams2_Score))+SUMPRODUCT((Teams2=T40)*(Teams2_Score>Teams1_Score)) -> 0 | W40: =SUMPRODUCT((Teams1=T40)*(Teams1_Score=Teams2_Score)*(Teams1_Score<>""))+SUMPRODUCT((Teams2=T40)*(Teams2_Score=Teams1_Score)*(Teams2_Score<>"")) -> 0 | X40: =SUMPRODUCT((Teams1=T40)*(Teams1_Score<Teams2_Score))+SUMPRODUCT((Teams2=T40)*(Teams2_Score<Teams1_Score)) -> 0 | Y40: =SUMPRODUCT((Teams1=T40)*(Teams1_Score))+SUMPRODUCT((Teams2=T40)*(Teams2_Score)) -> 0 | Z40: =SUMPRODUCT((Teams1=T40)*(Teams2_Score))+SUMPRODUCT((Teams2=T40)*(Teams1_Score)) -> 0 | AA40: =Y40-Z40 -> 0 | AB40: =3*V40+W40 -> 0
B41: =VLOOKUP($D41,TABLEAU_MATCHS[#All],2,FALSE) -> 2018-06-25 | C41: =VLOOKUP($D41,TABLEAU_MATCHS[#All],3,FALSE) -> 16:00:00 | D41: 34 | E41: ="Groupe "&VLOOKUP($I41,TABLEAU_TEAMS[[#All],[TEAM]:[GROUP_INITIAL_RANK]],2,FALSE) -> Groupe A | I41: =VLOOKUP($D41,TABLEAU_MATCHS[#All],4,FALSE) -> Arabie Saoudite | L41: =VLOOKUP($D41,TABLEAU_MATCHS[#All],5,FALSE) -> Egypte | Q41: 00000Mexique | R41: 0 | S41: 1 | T41: Mexique | U41: =SUMPRODUCT((Teams1=T41)*(Teams1_Score<>""))+SUMPRODUCT((Teams2=T41)*(Teams2_Score<>"")) -> 0 | V41: =SUMPRODUCT((Teams1=T41)*(Teams1_Score>Teams2_Score))+SUMPRODUCT((Teams2=T41)*(Teams2_Score>Teams1_Score)) -> 0 | W41: =SUMPRODUCT((Teams1=T41)*(Teams1_Score=Teams2_Score)*(Teams1_Score<>""))+SUMPRODUCT((Teams2=T41)*(Teams2_Score=Teams1_Score)*(Teams2_Score<>"")) -> 0 | X41: =SUMPRODUCT((Teams1=T41)*(Teams1_Score<Teams2_Score))+SUMPRODUCT((Teams2=T41)*(Teams2_Score<Teams1_Score)) -> 0 | Y41: =SUMPRODUCT((Teams1=T41)*(Teams1_Score))+SUMPRODUCT((Teams2=T41)*(Teams2_Score)) -> 0 | Z41: =SUMPRODUCT((Teams1=T41)*(Teams2_Score))+SUMPRODUCT((Teams2=T41)*(Teams1_Score)) -> 0 | AA41: =Y41-Z41 -> 0 | AB41: =3*V41+W41 -> 0
B42: =VLOOKUP($D42,TABLEAU_MATCHS[#All],2,FALSE) -> 2018-06-25 | C42: =VLOOKUP($D42,TABLEAU_MATCHS[#All],3,FALSE) -> 20:00:00 | D42: 35 | E42: ="Groupe "&VLOOKUP($I42,TABLEAU_TEAMS[[#All],[TEAM]:[GROUP_INITIAL_RANK]],2,FALSE) -> Groupe B | I42: =VLOOKUP($D42,TABLEAU_MATCHS[#All],4,FALSE) -> RI Iran | L42: =VLOOKUP($D42,TABLEAU_MATCHS[#All],5,FALSE) -> Portugal | Q42: 00000Allemagne | R42: 0 | S42: 1 | T42: Allemagne | U42: =SUMPRODUCT((Teams1=T42)*(Teams1_Score<>""))+SUMPRODUCT((Teams2=T42)*(Teams2_Score<>"")) -> 0 | V42: =SUMPRODUCT((Teams1=T42)*(Teams1_Score>Teams2_Score))+SUMPRODUCT((Teams2=T42)*(Teams2_Score>Teams1_Score)) -> 0 | W42: =SUMPRODUCT((Teams1=T42)*(Teams1_Score=Teams2_Score)*(Teams1_Score<>""))+SUMPRODUCT((Teams2=T42)*(Teams2_Score=Teams1_Score)*(Teams2_Score<>"")) -> 0 | X42: =SUMPRODUCT((Teams1=T42)*(Teams1_Score<Teams2_Score))+SUMPRODUCT((Teams2=T42)*(Teams2_Score<Teams1_Score)) -> 0 | Y42: =SUMPRODUCT((Teams1=T42)*(Teams1_Score))+SUMPRODUCT((Teams2=T42)*(Teams2_Score)) -> 0 | Z42: =SUMPRODUCT((Teams1=T42)*(Teams2_Score))+SUMPRODUCT((Teams2=T42)*(Teams1_Score)) -> 0 | AA42: =Y42-Z42 -> 0 | AB42: =3*V42+W42 -> 0
B43: =VLOOKUP($D43,TABLEAU_MATCHS[#All],2,FALSE) -> 2018-06-25 | C43: =VLOOKUP($D43,TABLEAU_MATCHS[#All],3,FALSE) -> 20:00:00 | D43: 36 | E43: ="Groupe "&VLOOKUP($I43,TABLEAU_TEAMS[[#All],[TEAM]:[GROUP_INITIAL_RANK]],2,FALSE) -> Groupe B | I43: =VLOOKUP($D43,TABLEAU_MATCHS[#All],4,FALSE) -> Espagne | L43: =VLOOKUP($D43,TABLEAU_MATCHS[#All],5,FALSE) -> Maroc
B44: =VLOOKUP($D44,TABLEAU_MATCHS[#All],2,FALSE) -> 2018-06-26 | C44: =VLOOKUP($D44,TABLEAU_MATCHS[#All],3,FALSE) -> 16:00:00 | D44: 37 | E44: ="Groupe "&VLOOKUP($I44,TABLEAU_TEAMS[[#All],[TEAM]:[GROUP_INITIAL_RANK]],2,FALSE) -> Groupe C | I44: =VLOOKUP($D44,TABLEAU_MATCHS[#All],4,FALSE) -> Danemark | L44: =VLOOKUP($D44,TABLEAU_MATCHS[#All],5,FALSE) -> France | S44: Rg | T44: Groupe G | U44: MJ | V44: G | W44: N | X44: P | Y44: BP | Z44: BC | AA44: +/- | AB44: Pts
B45: =VLOOKUP($D45,TABLEAU_MATCHS[#All],2,FALSE) -> 2018-06-26 | C45: =VLOOKUP($D45,TABLEAU_MATCHS[#All],3,FALSE) -> 16:00:00 | D45: 38 | E45: ="Groupe "&VLOOKUP($I45,TABLEAU_TEAMS[[#All],[TEAM]:[GROUP_INITIAL_RANK]],2,FALSE) -> Groupe C | I45: =VLOOKUP($D45,TABLEAU_MATCHS[#All],4,FALSE) -> Australie | L45: =VLOOKUP($D45,TABLEAU_MATCHS[#All],5,FALSE) -> Pérou | Q45: =INDEX($Q96:$Q99,MATCH(SMALL(COUNTIF($Q96:$Q99,">="&$Q96:$Q99),ROW(INDIRECT("1:"&ROWS($Q96:$Q99)))),COUNTIF($Q96:$Q99,">="&$Q96:$Q99),0)) -> 00000Tunisie | R45: =INDEX($R96:$R99,MATCH(SMALL(COUNTIF($Q96:$Q99,">="&$Q96:$Q99),ROW(INDIRECT("1:"&ROWS($Q96:$Q99)))),COUNTIF($Q96:$Q99,">="&$Q96:$Q99),0)) -> 0 | S45: =INDEX($S96:$S99,MATCH(SMALL(COUNTIF($Q96:$Q99,">="&$Q96:$Q99),ROW(INDIRECT("1:"&ROWS($Q96:$Q99)))),COUNTIF($Q96:$Q99,">="&$Q96:$Q99),0)) -> 1 | T45: =INDEX($T96:$T99,MATCH(SMALL(COUNTIF($Q96:$Q99,">="&$Q96:$Q99),ROW(INDIRECT("1:"&ROWS($Q96:$Q99)))),COUNTIF($Q96:$Q99,">="&$Q96:$Q99),0)) -> Tunisie | U45: =SUMPRODUCT((Teams1=T45)*(Teams1_Score<>""))+SUMPRODUCT((Teams2=T45)*(Teams2_Score<>"")) -> 0 | V45: =SUMPRODUCT((Teams1=T45)*(Teams1_Score>Teams2_Score))+SUMPRODUCT((Teams2=T45)*(Teams2_Score>Teams1_Score)) -> 0 | W45: =SUMPRODUCT((Teams1=T45)*(Teams1_Score=Teams2_Score)*(Teams1_Score<>""))+SUMPRODUCT((Teams2=T45)*(Teams2_Score=Teams1_Score)*(Teams2_Score<>"")) -> 0 | X45: =SUMPRODUCT((Teams1=T45)*(Teams1_Score<Teams2_Score))+SUMPRODUCT((Teams2=T45)*(Teams2_Score<Teams1_Score)) -> 0 | Y45: =SUMPRODUCT((Teams1=T45)*(Teams1_Score))+SUMPRODUCT((Teams2=T45)*(Teams2_Score)) -> 0 | Z45: =SUMPRODUCT((Teams1=T45)*(Teams2_Score))+SUMPRODUCT((Teams2=T45)*(Teams1_Score)) -> 0 | AA45: =Y45-Z45 -> 0 | AB45: =3*V45+W45 -> 0
B46: =VLOOKUP($D46,TABLEAU_MATCHS[#All],2,FALSE) -> 2018-06-26 | C46: =VLOOKUP($D46,TABLEAU_MATCHS[#All],3,FALSE) -> 20:00:00 | D46: 39 | E46: ="Groupe "&VLOOKUP($I46,TABLEAU_TEAMS[[#All],[TEAM]:[GROUP_INITIAL_RANK]],2,FALSE) -> Groupe D | I46: =VLOOKUP($D46,TABLEAU_MATCHS[#All],4,FALSE) -> Nigeria | L46: =VLOOKUP($D46,TABLEAU_MATCHS[#All],5,FALSE) -> Argentine | Q46: 00000Panama | R46: 0 | S46: 1 | T46: Panama | U46: =SUMPRODUCT((Teams1=T46)*(Teams1_Score<>""))+SUMPRODUCT((Teams2=T46)*(Teams2_Score<>"")) -> 0 | V46: =SUMPRODUCT((Teams1=T46)*(Teams1_Score>Teams2_Score))+SUMPRODUCT((Teams2=T46)*(Teams2_Score>Teams1_Score)) -> 0 | W46: =SUMPRODUCT((Teams1=T46)*(Teams1_Score=Teams2_Score)*(Teams1_Score<>""))+SUMPRODUCT((Teams2=T46)*(Teams2_Score=Teams1_Score)*(Teams2_Score<>"")) -> 0 | X46: =SUMPRODUCT((Teams1=T46)*(Teams1_Score<Teams2_Score))+SUMPRODUCT((Teams2=T46)*(Teams2_Score<Teams1_Score)) -> 0 | Y46: =SUMPRODUCT((Teams1=T46)*(Teams1_Score))+SUMPRODUCT((Teams2=T46)*(Teams2_Score)) -> 0 | Z46: =SUMPRODUCT((Teams1=T46)*(Teams2_Score))+SUMPRODUCT((Teams2=T46)*(Teams1_Score)) -> 0 | AA46: =Y46-Z46 -> 0 | AB46: =3*V46+W46 -> 0
B47: =VLOOKUP($D47,TABLEAU_MATCHS[#All],2,FALSE) -> 2018-06-26 | C47: =VLOOKUP($D47,TABLEAU_MATCHS[#All],3,FALSE) -> 20:00:00 | D47: 40 | E47: ="Groupe "&VLOOKUP($I47,TABLEAU_TEAMS[[#All],[TEAM]:[GROUP_INITIAL_RANK]],2,FALSE) -> Groupe D | I47: =VLOOKUP($D47,TABLEAU_MATCHS[#All],4,FALSE) -> Islande | L47: =VLOOKUP($D47,TABLEAU_MATCHS[#All],5,FALSE) -> Croatie | Q47: 00000Belgique | R47: 0 | S47: 1 | T47: Belgique | U47: =SUMPRODUCT((Teams1=T47)*(Teams1_Score<>""))+SUMPRODUCT((Teams2=T47)*(Teams2_Score<>"")) -> 0 | V47: =SUMPRODUCT((Teams1=T47)*(Teams1_Score>Teams2_Score))+SUMPRODUCT((Teams2=T47)*(Teams2_Score>Teams1_Score)) -> 0 | W47: =SUMPRODUCT((Teams1=T47)*(Teams1_Score=Teams2_Score)*(Teams1_Score<>""))+SUMPRODUCT((Teams2=T47)*(Teams2_Score=Teams1_Score)*(Teams2_Score<>"")) -> 0 | X47: =SUMPRODUCT((Teams1=T47)*(Teams1_Score<Teams2_Score))+SUMPRODUCT((Teams2=T47)*(Teams2_Score<Teams1_Score)) -> 0 | Y47: =SUMPRODUCT((Teams1=T47)*(Teams1_Score))+SUMPRODUCT((Teams2=T47)*(Teams2_Score)) -> 0 | Z47: =SUMPRODUCT((Teams1=T47)*(Teams2_Score))+SUMPRODUCT((Teams2=T47)*(Teams1_Score)) -> 0 | AA47: =Y47-Z47 -> 0 | AB47: =3*V47+W47 -> 0
B48: =VLOOKUP($D48,TABLEAU_MATCHS[#All],2,FALSE) -> 2018-06-27 | C48: =VLOOKUP($D48,TABLEAU_MATCHS[#All],3,FALSE) -> 20:00:00 | D48: 41 | E48: ="Groupe "&VLOOKUP($I48,TABLEAU_TEAMS[[#All],[TEAM]:[GROUP_INITIAL_RANK]],2,FALSE) -> Groupe E | I48: =VLOOKUP($D48,TABLEAU_MATCHS[#All],4,FALSE) -> Serbie | L48: =VLOOKUP($D48,TABLEAU_MATCHS[#All],5,FALSE) -> Brésil | Q48: 00000Angleterre | R48: 0 | S48: 1 | T48: Angleterre | U48: =SUMPRODUCT((Teams1=T48)*(Teams1_Score<>""))+SUMPRODUCT((Teams2=T48)*(Teams2_Score<>"")) -> 0 | V48: =SUMPRODUCT((Teams1=T48)*(Teams1_Score>Teams2_Score))+SUMPRODUCT((Teams2=T48)*(Teams2_Score>Teams1_Score)) -> 0 | W48: =SUMPRODUCT((Teams1=T48)*(Teams1_Score=Teams2_Score)*(Teams1_Score<>""))+SUMPRODUCT((Teams2=T48)*(Teams2_Score=Teams1_Score)*(Teams2_Score<>"")) -> 0 | X48: =SUMPRODUCT((Teams1=T48)*(Teams1_Score<Teams2_Score))+SUMPRODUCT((Teams2=T48)*(Teams2_Score<Teams1_Score)) -> 0 | Y48: =SUMPRODUCT((Teams1=T48)*(Teams1_Score))+SUMPRODUCT((Teams2=T48)*(Teams2_Score)) -> 0 | Z48: =SUMPRODUCT((Teams1=T48)*(Teams2_Score))+SUMPRODUCT((Teams2=T48)*(Teams1_Score)) -> 0 | AA48: =Y48-Z48 -> 0 | AB48: =3*V48+W48 -> 0
B49: =VLOOKUP($D49,TABLEAU_MATCHS[#All],2,FALSE) -> 2018-06-27 | C49: =VLOOKUP($D49,TABLEAU_MATCHS[#All],3,FALSE) -> 20:00:00 | D49: 42 | E49: ="Groupe "&VLOOKUP($I49,TABLEAU_TEAMS[[#All],[TEAM]:[GROUP_INITIAL_RANK]],2,FALSE) -> Groupe E | I49: =VLOOKUP($D49,TABLEAU_MATCHS[#All],4,FALSE) -> Suisse | L49: =VLOOKUP($D49,TABLEAU_MATCHS[#All],5,FALSE) -> Costa Rica
B50: =VLOOKUP($D50,TABLEAU_MATCHS[#All],2,FALSE) -> 2018-06-27 | C50: =VLOOKUP($D50,TABLEAU_MATCHS[#All],3,FALSE) -> 16:00:00 | D50: 43 | E50: ="Groupe "&VLOOKUP($I50,TABLEAU_TEAMS[[#All],[TEAM]:[GROUP_INITIAL_RANK]],2,FALSE) -> Groupe F | I50: =VLOOKUP($D50,TABLEAU_MATCHS[#All],4,FALSE) -> Mexique | L50: =VLOOKUP($D50,TABLEAU_MATCHS[#All],5,FALSE) -> Suède | S50: Rg | T50: Groupe H | U50: MJ | V50: G | W50: N | X50: P | Y50: BP | Z50: BC | AA50: +/- | AB50: Pts
B51: =VLOOKUP($D51,TABLEAU_MATCHS[#All],2,FALSE) -> 2018-06-27 | C51: =VLOOKUP($D51,TABLEAU_MATCHS[#All],3,FALSE) -> 16:00:00 | D51: 44 | E51: ="Groupe "&VLOOKUP($I51,TABLEAU_TEAMS[[#All],[TEAM]:[GROUP_INITIAL_RANK]],2,FALSE) -> Groupe F | I51: =VLOOKUP($D51,TABLEAU_MATCHS[#All],4,FALSE) -> République de Corée | L51: =VLOOKUP($D51,TABLEAU_MATCHS[#All],5,FALSE) -> Allemagne | Q51: =INDEX($Q102:$Q105,MATCH(SMALL(COUNTIF($Q102:$Q105,">="&$Q102:$Q105),ROW(INDIRECT("1:"&ROWS($Q102:$Q105)))),COUNTIF($Q102:$Q105,">="&$Q102:$Q105),0)) -> 00000Sénégal | R51: =INDEX($R102:$R105,MATCH(SMALL(COUNTIF($Q102:$Q105,">="&$Q102:$Q105),ROW(INDIRECT("1:"&ROWS($Q102:$Q105)))),COUNTIF($Q102:$Q105,">="&$Q102:$Q105),0)) -> 0 | S51: =INDEX($S102:$S105,MATCH(SMALL(COUNTIF($Q102:$Q105,">="&$Q102:$Q105),ROW(INDIRECT("1:"&ROWS($Q102:$Q105)))),COUNTIF($Q102:$Q105,">="&$Q102:$Q105),0)) -> 1 | T51: =INDEX($T102:$T105,MATCH(SMALL(COUNTIF($Q102:$Q105,">="&$Q102:$Q105),ROW(INDIRECT("1:"&ROWS($Q102:$Q105)))),COUNTIF($Q102:$Q105,">="&$Q102:$Q105),0)) -> Sénégal | U51: =SUMPRODUCT((Teams1=T51)*(Teams1_Score<>""))+SUMPRODUCT((Teams2=T51)*(Teams2_Score<>"")) -> 0 | V51: =SUMPRODUCT((Teams1=T51)*(Teams1_Score>Teams2_Score))+SUMPRODUCT((Teams2=T51)*(Teams2_Score>Teams1_Score)) -> 0 | W51: =SUMPRODUCT((Teams1=T51)*(Teams1_Score=Teams2_Score)*(Teams1_Score<>""))+SUMPRODUCT((Teams2=T51)*(Teams2_Score=Teams1_Score)*(Teams2_Score<>"")) -> 0 | X51: =SUMPRODUCT((Teams1=T51)*(Teams1_Score<Teams2_Score))+SUMPRODUCT((Teams2=T51)*(Teams2_Score<Teams1_Score)) -> 0 | Y51: =SUMPRODUCT((Teams1=T51)*(Teams1_Score))+SUMPRODUCT((Teams2=T51)*(Teams2_Score)) -> 0 | Z51: =SUMPRODUCT((Teams1=T51)*(Teams2_Score))+SUMPRODUCT((Teams2=T51)*(Teams1_Score)) -> 0 | AA51: =Y51-Z51 -> 0 | AB51: =3*V51+W51 -> 0
B52: =VLOOKUP($D52,TABLEAU_MATCHS[#All],2,FALSE) -> 2018-06-28 | C52: =VLOOKUP($D52,TABLEAU_MATCHS[#All],3,FALSE) -> 20:00:00 | D52: 45 | E52: ="Groupe "&VLOOKUP($I52,TABLEAU_TEAMS[[#All],[TEAM]:[GROUP_INITIAL_RANK]],2,FALSE) -> Groupe G | I52: =VLOOKUP($D52,TABLEAU_MATCHS[#All],4,FALSE) -> Panama | L52: =VLOOKUP($D52,TABLEAU_MATCHS[#All],5,FALSE) -> Tunisie | Q52: 00000Pologne | R52: 0 | S52: 1 | T52: Pologne | U52: =SUMPRODUCT((Teams1=T52)*(Teams1_Score<>""))+SUMPRODUCT((Teams2=T52)*(Teams2_Score<>"")) -> 0 | V52: =SUMPRODUCT((Teams1=T52)*(Teams1_Score>Teams2_Score))+SUMPRODUCT((Teams2=T52)*(Teams2_Score>Teams1_Score)) -> 0 | W52: =SUMPRODUCT((Teams1=T52)*(Teams1_Score=Teams2_Score)*(Teams1_Score<>""))+SUMPRODUCT((Teams2=T52)*(Teams2_Score=Teams1_Score)*(Teams2_Score<>"")) -> 0 | X52: =SUMPRODUCT((Teams1=T52)*(Teams1_Score<Teams2_Score))+SUMPRODUCT((Teams2=T52)*(Teams2_Score<Teams1_Score)) -> 0 | Y52: =SUMPRODUCT((Teams1=T52)*(Teams1_Score))+SUMPRODUCT((Teams2=T52)*(Teams2_Score)) -> 0 | Z52: =SUMPRODUCT((Teams1=T52)*(Teams2_Score))+SUMPRODUCT((Teams2=T52)*(Teams1_Score)) -> 0 | AA52: =Y52-Z52 -> 0 | AB52: =3*V52+W52 -> 0
B53: =VLOOKUP($D53,TABLEAU_MATCHS[#All],2,FALSE) -> 2018-06-28 | C53: =VLOOKUP($D53,TABLEAU_MATCHS[#All],3,FALSE) -> 20:00:00 | D53: 46 | E53: ="Groupe "&VLOOKUP($I53,TABLEAU_TEAMS[[#All],[TEAM]:[GROUP_INITIAL_RANK]],2,FALSE) -> Groupe G | I53: =VLOOKUP($D53,TABLEAU_MATCHS[#All],4,FALSE) -> Angleterre | L53: =VLOOKUP($D53,TABLEAU_MATCHS[#All],5,FALSE) -> Belgique | Q53: 00000Japon | R53: 0 | S53: 1 | T53: Japon | U53: =SUMPRODUCT((Teams1=T53)*(Teams1_Score<>""))+SUMPRODUCT((Teams2=T53)*(Teams2_Score<>"")) -> 0 | V53: =SUMPRODUCT((Teams1=T53)*(Teams1_Score>Teams2_Score))+SUMPRODUCT((Teams2=T53)*(Teams2_Score>Teams1_Score)) -> 0 | W53: =SUMPRODUCT((Teams1=T53)*(Teams1_Score=Teams2_Score)*(Teams1_Score<>""))+SUMPRODUCT((Teams2=T53)*(Teams2_Score=Teams1_Score)*(Teams2_Score<>"")) -> 0 | X53: =SUMPRODUCT((Teams1=T53)*(Teams1_Score<Teams2_Score))+SUMPRODUCT((Teams2=T53)*(Teams2_Score<Teams1_Score)) -> 0 | Y53: =SUMPRODUCT((Teams1=T53)*(Teams1_Score))+SUMPRODUCT((Teams2=T53)*(Teams2_Score)) -> 0 | Z53: =SUMPRODUCT((Teams1=T53)*(Teams2_Score))+SUMPRODUCT((Teams2=T53)*(Teams1_Score)) -> 0 | AA53: =Y53-Z53 -> 0 | AB53: =3*V53+W53 -> 0
B54: =VLOOKUP($D54,TABLEAU_MATCHS[#All],2,FALSE) -> 2018-06-28 | C54: =VLOOKUP($D54,TABLEAU_MATCHS[#All],3,FALSE) -> 16:00:00 | D54: 47 | E54: ="Groupe "&VLOOKUP($I54,TABLEAU_TEAMS[[#All],[TEAM]:[GROUP_INITIAL_RANK]],2,FALSE) -> Groupe H | I54: =VLOOKUP($D54,TABLEAU_MATCHS[#All],4,FALSE) -> Japon | L54: =VLOOKUP($D54,TABLEAU_MATCHS[#All],5,FALSE) -> Pologne | Q54: 00000Colombie | R54: 0 | S54: 1 | T54: Colombie | U54: =SUMPRODUCT((Teams1=T54)*(Teams1_Score<>""))+SUMPRODUCT((Teams2=T54)*(Teams2_Score<>"")) -> 0 | V54: =SUMPRODUCT((Teams1=T54)*(Teams1_Score>Teams2_Score))+SUMPRODUCT((Teams2=T54)*(Teams2_Score>Teams1_Score)) -> 0 | W54: =SUMPRODUCT((Teams1=T54)*(Teams1_Score=Teams2_Score)*(Teams1_Score<>""))+SUMPRODUCT((Teams2=T54)*(Teams2_Score=Teams1_Score)*(Teams2_Score<>"")) -> 0 | X54: =SUMPRODUCT((Teams1=T54)*(Teams1_Score<Teams2_Score))+SUMPRODUCT((Teams2=T54)*(Teams2_Score<Teams1_Score)) -> 0 | Y54: =SUMPRODUCT((Teams1=T54)*(Teams1_Score))+SUMPRODUCT((Teams2=T54)*(Teams2_Score)) -> 0 | Z54: =SUMPRODUCT((Teams1=T54)*(Teams2_Score))+SUMPRODUCT((Teams2=T54)*(Teams1_Score)) -> 0 | AA54: =Y54-Z54 -> 0 | AB54: =3*V54+W54 -> 0
B55: =VLOOKUP($D55,TABLEAU_MATCHS[#All],2,FALSE) -> 2018-06-28 | C55: =VLOOKUP($D55,TABLEAU_MATCHS[#All],3,FALSE) -> 16:00:00 | D55: 48 | E55: ="Groupe "&VLOOKUP($I55,TABLEAU_TEAMS[[#All],[TEAM]:[GROUP_INITIAL_RANK]],2,FALSE) -> Groupe H | I55: =VLOOKUP($D55,TABLEAU_MATCHS[#All],4,FALSE) -> Sénégal | L55: =VLOOKUP($D55,TABLEAU_MATCHS[#All],5,FALSE) -> Colombie
B59: Tirage au sort A1 | S59: Rg | T59: Groupe A | U59: MJ | V59: G | W59: N | X59: P | Y59: BP | Z59: BC | AA59: +/- | AB59: Pts
B60: =IF(ROWS($1:1)<=COUNTIF($S$9:$S$12,1),INDEX($T$9:$T$12,SMALL(IF($S$9:$S$12=1,ROW(INDIRECT("1:"&ROWS($S$9:$S$12)))),ROWS($1:1))),"") -> Russie | P60: A_1 | Q60: =TEXT(R60,"00000")&T60 -> 03550Russie | R60: =AB60*1000+AA60*100+Y60*10 -> 3550 | S60: =RANK(R60,$R60:$R63,0) -> 1 | T60: =VLOOKUP(P60,TABLEAU_TEAMS[#All],2,FALSE) -> Russie | U60: =SUMPRODUCT((Teams1=T60)*(Teams1_Score<>""))+SUMPRODUCT((Teams2=T60)*(Teams2_Score<>"")) -> 1 | V60: =SUMPRODUCT((Teams1=T60)*(Teams1_Score>Teams2_Score))+SUMPRODUCT((Teams2=T60)*(Teams2_Score>Teams1_Score)) -> 1 | W60: =SUMPRODUCT((Teams1=T60)*(Teams1_Score=Teams2_Score)*(Teams1_Score<>""))+SUMPRODUCT((Teams2=T60)*(Teams2_Score=Teams1_Score)*(Teams2_Score<>"")) -> 0 | X60: =SUMPRODUCT((Teams1=T60)*(Teams1_Score<Teams2_Score))+SUMPRODUCT((Teams2=T60)*(Teams2_Score<Teams1_Score)) -> 0 | Y60: =SUMPRODUCT((Teams1=T60)*(Teams1_Score))+SUMPRODUCT((Teams2=T60)*(Teams2_Score)) -> 5 | Z60: =SUMPRODUCT((Teams1=T60)*(Teams2_Score))+SUMPRODUCT((Teams2=T60)*(Teams1_Score)) -> 0 | AA60: =Y60-Z60 -> 5 | AB60: =3*V60+W60 -> 3
B61: =IF(ROWS($1:2)<=COUNTIF($S$9:$S$12,1),INDEX($T$9:$T$12,SMALL(IF($S$9:$S$12=1,ROW(INDIRECT("1:"&ROWS($S$9:$S$12)))),ROWS($1:2))),"") ->  | P61: A_2 | Q61: =TEXT(R61,"00000")&T61 -> -00500Arabie Saoudite | R61: =AB61*1000+AA61*100+Y61*10 -> -500 | S61: =RANK(R61,$R60:$R63,0) -> 4 | T61: =VLOOKUP(P61,TABLEAU_TEAMS[#All],2,FALSE) -> Arabie Saoudite | U61: =SUMPRODUCT((Teams1=T61)*(Teams1_Score<>""))+SUMPRODUCT((Teams2=T61)*(Teams2_Score<>"")) -> 1 | V61: =SUMPRODUCT((Teams1=T61)*(Teams1_Score>Teams2_Score))+SUMPRODUCT((Teams2=T61)*(Teams2_Score>Teams1_Score)) -> 0 | W61: =SUMPRODUCT((Teams1=T61)*(Teams1_Score=Teams2_Score)*(Teams1_Score<>""))+SUMPRODUCT((Teams2=T61)*(Teams2_Score=Teams1_Score)*(Teams2_Score<>"")) -> 0 | X61: =SUMPRODUCT((Teams1=T61)*(Teams1_Score<Teams2_Score))+SUMPRODUCT((Teams2=T61)*(Teams2_Score<Teams1_Score)) -> 1 | Y61: =SUMPRODUCT((Teams1=T61)*(Teams1_Score))+SUMPRODUCT((Teams2=T61)*(Teams2_Score)) -> 0 | Z61: =SUMPRODUCT((Teams1=T61)*(Teams2_Score))+SUMPRODUCT((Teams2=T61)*(Teams1_Score)) -> 5 | AA61: =Y61-Z61 -> -5 | AB61: =3*V61+W61 -> 0
B62: =IF(ROWS($1:3)<=COUNTIF($S$9:$S$12,1),INDEX($T$9:$T$12,SMALL(IF($S$9:$S$12=1,ROW(INDIRECT("1:"&ROWS($S$9:$S$12)))),ROWS($1:3))),"") ->  | P62: A_3 | Q62: =TEXT(R62,"00000")&T62 -> -00100Egypte | R62: =AB62*1000+AA62*100+Y62*10 -> -100 | S62: =RANK(R62,$R60:$R63,0) -> 3 | T62: =VLOOKUP(P62,TABLEAU_TEAMS[#All],2,FALSE) -> Egypte | U62: =SUMPRODUCT((Teams1=T62)*(Teams1_Score<>""))+SUMPRODUCT((Teams2=T62)*(Teams2_Score<>"")) -> 1 | V62: =SUMPRODUCT((Teams1=T62)*(Teams1_Score>Teams2_Score))+SUMPRODUCT((Teams2=T62)*(Teams2_Score>Teams1_Score)) -> 0 | W62: =SUMPRODUCT((Teams1=T62)*(Teams1_Score=Teams2_Score)*(Teams1_Score<>""))+SUMPRODUCT((Teams2=T62)*(Teams2_Score=Teams1_Score)*(Teams2_Score<>"")) -> 0 | X62: =SUMPRODUCT((Teams1=T62)*(Teams1_Score<Teams2_Score))+SUMPRODUCT((Teams2=T62)*(Teams2_Score<Teams1_Score)) -> 1 | Y62: =SUMPRODUCT((Teams1=T62)*(Teams1_Score))+SUMPRODUCT((Teams2=T62)*(Teams2_Score)) -> 0 | Z62: =SUMPRODUCT((Teams1=T62)*(Teams2_Score))+SUMPRODUCT((Teams2=T62)*(Teams1_Score)) -> 1 | AA62: =Y62-Z62 -> -1 | AB62: =3*V62+W62 -> 0
B63: =IF(ROWS($1:4)<=COUNTIF($S$9:$S$12,1),INDEX($T$9:$T$12,SMALL(IF($S$9:$S$12=1,ROW(INDIRECT("1:"&ROWS($S$9:$S$12)))),ROWS($1:4))),"") ->  | P63: A_4 | Q63: =TEXT(R63,"00000")&T63 -> 03110Uruguay | R63: =AB63*1000+AA63*100+Y63*10 -> 3110 | S63: =RANK(R63,$R60:$R63,0) -> 2 | T63: =VLOOKUP(P63,TABLEAU_TEAMS[#All],2,FALSE) -> Uruguay | U63: =SUMPRODUCT((Teams1=T63)*(Teams1_Score<>""))+SUMPRODUCT((Teams2=T63)*(Teams2_Score<>"")) -> 1 | V63: =SUMPRODUCT((Teams1=T63)*(Teams1_Score>Teams2_Score))+SUMPRODUCT((Teams2=T63)*(Teams2_Score>Teams1_Score)) -> 1 | W63: =SUMPRODUCT((Teams1=T63)*(Teams1_Score=Teams2_Score)*(Teams1_Score<>""))+SUMPRODUCT((Teams2=T63)*(Teams2_Score=Teams1_Score)*(Teams2_Score<>"")) -> 0 | X63: =SUMPRODUCT((Teams1=T63)*(Teams1_Score<Teams2_Score))+SUMPRODUCT((Teams2=T63)*(Teams2_Score<Teams1_Score)) -> 0 | Y63: =SUMPRODUCT((Teams1=T63)*(Teams1_Score))+SUMPRODUCT((Teams2=T63)*(Teams2_Score)) -> 1 | Z63: =SUMPRODUCT((Teams1=T63)*(Teams2_Score))+SUMPRODUCT((Teams2=T63)*(Teams1_Score)) -> 0 | AA63: =Y63-Z63 -> 1 | AB63: =3*V63+W63 -> 3
B64: Tirage au sort A2
B65: =IF(COUNTIF($S$9:$S$12,1)>1,IF(ROWS($1:1)<=COUNTIF($S$9:$S$12,1),INDEX($T$9:$T$12,SMALL(IF($S$9:$S$12=1,ROW(INDIRECT("1:"&ROWS($S$9:$S$12)))),ROWS($1:1))),""),IF(COUNTIF($S$9:$S$12,2)>1,IF(ROWS($1:1)<=COUNTIF($S$9:$S$12,2),INDEX($T$9:$T$12,SMALL(IF($S$9:$S$12=2,ROW(INDIRECT("1:"&ROWS($S$9:$S$12)))),ROWS($1:1))),""))) -> FALSE | S65: Rg | T65: Groupe B | U65: MJ | V65: G | W65: N | X65: P | Y65: BP | Z65: BC | AA65: Pts | AB65: Pts
B66: =IF(COUNTIF($S$9:$S$12,1)>1,IF(ROWS($1:2)<=COUNTIF($S$9:$S$12,1),INDEX($T$9:$T$12,SMALL(IF($S$9:$S$12=1,ROW(INDIRECT("1:"&ROWS($S$9:$S$12)))),ROWS($1:2))),""),IF(COUNTIF($S$9:$S$12,2)>1,IF(ROWS($1:2)<=COUNTIF($S$9:$S$12,2),INDEX($T$9:$T$12,SMALL(IF($S$9:$S$12=2,ROW(INDIRECT("1:"&ROWS($S$9:$S$12)))),ROWS($1:2))),""))) -> FALSE | P66: B_1 | Q66: =TEXT(R66,"00000")&T66 -> -00100Maroc | R66: =AB66*1000+AA66*100+Y66*10 -> -100 | S66: =RANK(R66,$R66:$R69,0) -> 4 | T66: =VLOOKUP(P66,TABLEAU_TEAMS[#All],2,FALSE) -> Maroc | U66: =SUMPRODUCT((Teams1=T66)*(Teams1_Score<>""))+SUMPRODUCT((Teams2=T66)*(Teams2_Score<>"")) -> 1 | V66: =SUMPRODUCT((Teams1=T66)*(Teams1_Score>Teams2_Score))+SUMPRODUCT((Teams2=T66)*(Teams2_Score>Teams1_Score)) -> 0 | W66: =SUMPRODUCT((Teams1=T66)*(Teams1_Score=Teams2_Score)*(Teams1_Score<>""))+SUMPRODUCT((Teams2=T66)*(Teams2_Score=Teams1_Score)*(Teams2_Score<>"")) -> 0 | X66: =SUMPRODUCT((Teams1=T66)*(Teams1_Score<Teams2_Score))+SUMPRODUCT((Teams2=T66)*(Teams2_Score<Teams1_Score)) -> 1 | Y66: =SUMPRODUCT((Teams1=T66)*(Teams1_Score))+SUMPRODUCT((Teams2=T66)*(Teams2_Score)) -> 0 | Z66: =SUMPRODUCT((Teams1=T66)*(Teams2_Score))+SUMPRODUCT((Teams2=T66)*(Teams1_Score)) -> 1 | AA66: =Y66-Z66 -> -1 | AB66: =3*V66+W66 -> 0
B67: =IF(COUNTIF($S$9:$S$12,1)>1,IF(ROWS($1:3)<=COUNTIF($S$9:$S$12,1),INDEX($T$9:$T$12,SMALL(IF($S$9:$S$12=1,ROW(INDIRECT("1:"&ROWS($S$9:$S$12)))),ROWS($1:3))),""),IF(COUNTIF($S$9:$S$12,2)>1,IF(ROWS($1:3)<=COUNTIF($S$9:$S$12,2),INDEX($T$9:$T$12,SMALL(IF($S$9:$S$12=2,ROW(INDIRECT("1:"&ROWS($S$9:$S$12)))),ROWS($1:3))),""))) -> FALSE | P67: B_2 | Q67: =TEXT(R67,"00000")&T67 -> 03110RI Iran | R67: =AB67*1000+AA67*100+Y67*10 -> 3110 | S67: =RANK(R67,$R66:$R69,0) -> 1 | T67: =VLOOKUP(P67,TABLEAU_TEAMS[#All],2,FALSE) -> RI Iran | U67: =SUMPRODUCT((Teams1=T67)*(Teams1_Score<>""))+SUMPRODUCT((Teams2=T67)*(Teams2_Score<>"")) -> 1 | V67: =SUMPRODUCT((Teams1=T67)*(Teams1_Score>Teams2_Score))+SUMPRODUCT((Teams2=T67)*(Teams2_Score>Teams1_Score)) -> 1 | W67: =SUMPRODUCT((Teams1=T67)*(Teams1_Score=Teams2_Score)*(Teams1_Score<>""))+SUMPRODUCT((Teams2=T67)*(Teams2_Score=Teams1_Score)*(Teams2_Score<>"")) -> 0 | X67: =SUMPRODUCT((Teams1=T67)*(Teams1_Score<Teams2_Score))+SUMPRODUCT((Teams2=T67)*(Teams2_Score<Teams1_Score)) -> 0 | Y67: =SUMPRODUCT((Teams1=T67)*(Teams1_Score))+SUMPRODUCT((Teams2=T67)*(Teams2_Score)) -> 1 | Z67: =SUMPRODUCT((Teams1=T67)*(Teams2_Score))+SUMPRODUCT((Teams2=T67)*(Teams1_Score)) -> 0 | AA67: =Y67-Z67 -> 1 | AB67: =3*V67+W67 -> 3
B68: =IF(COUNTIF($S$9:$S$12,1)>1,IF(ROWS($1:4)<=COUNTIF($S$9:$S$12,1),INDEX($T$9:$T$12,SMALL(IF($S$9:$S$12=1,ROW(INDIRECT("1:"&ROWS($S$9:$S$12)))),ROWS($1:4))),""),IF(COUNTIF($S$9:$S$12,2)>1,IF(ROWS($1:4)<=COUNTIF($S$9:$S$12,2),INDEX($T$9:$T$12,SMALL(IF($S$9:$S$12=2,ROW(INDIRECT("1:"&ROWS($S$9:$S$12)))),ROWS($1:4))),""))) -> FALSE | P68: B_3 | Q68: =TEXT(R68,"00000")&T68 -> 01030Portugal | R68: =AB68*1000+AA68*100+Y68*10 -> 1030 | S68: =RANK(R68,$R66:$R69,0) -> 2 | T68: =VLOOKUP(P68,TABLEAU_TEAMS[#All],2,FALSE) -> Portugal | U68: =SUMPRODUCT((Teams1=T68)*(Teams1_Score<>""))+SUMPRODUCT((Teams2=T68)*(Teams2_Score<>"")) -> 1 | V68: =SUMPRODUCT((Teams1=T68)*(Teams1_Score>Teams2_Score))+SUMPRODUCT((Teams2=T68)*(Teams2_Score>Teams1_Score)) -> 0 | W68: =SUMPRODUCT((Teams1=T68)*(Teams1_Score=Teams2_Score)*(Teams1_Score<>""))+SUMPRODUCT((Teams2=T68)*(Teams2_Score=Teams1_Score)*(Teams2_Score<>"")) -> 1 | X68: =SUMPRODUCT((Teams1=T68)*(Teams1_Score<Teams2_Score))+SUMPRODUCT((Teams2=T68)*(Teams2_Score<Teams1_Score)) -> 0 | Y68: =SUMPRODUCT((Teams1=T68)*(Teams1_Score))+SUMPRODUCT((Teams2=T68)*(Teams2_Score)) -> 3 | Z68: =SUMPRODUCT((Teams1=T68)*(Teams2_Score))+SUMPRODUCT((Teams2=T68)*(Teams1_Score)) -> 3 | AA68: =Y68-Z68 -> 0 | AB68: =3*V68+W68 -> 1
B69: Tirage au sort B1 | P69: B_4 | Q69: =TEXT(R69,"00000")&T69 -> 01030Espagne | R69: =AB69*1000+AA69*100+Y69*10 -> 1030 | S69: =RANK(R69,$R66:$R69,0) -> 2 | T69: =VLOOKUP(P69,TABLEAU_TEAMS[#All],2,FALSE) -> Espagne | U69: =SUMPRODUCT((Teams1=T69)*(Teams1_Score<>""))+SUMPRODUCT((Teams2=T69)*(Teams2_Score<>"")) -> 1 | V69: =SUMPRODUCT((Teams1=T69)*(Teams1_Score>Teams2_Score))+SUMPRODUCT((Teams2=T69)*(Teams2_Score>Teams1_Score)) -> 0 | W69: =SUMPRODUCT((Teams1=T69)*(Teams1_Score=Teams2_Score)*(Teams1_Score<>""))+SUMPRODUCT((Teams2=T69)*(Teams2_Score=Teams1_Score)*(Teams2_Score<>"")) -> 1 | X69: =SUMPRODUCT((Teams1=T69)*(Teams1_Score<Teams2_Score))+SUMPRODUCT((Teams2=T69)*(Teams2_Score<Teams1_Score)) -> 0 | Y69: =SUMPRODUCT((Teams1=T69)*(Teams1_Score))+SUMPRODUCT((Teams2=T69)*(Teams2_Score)) -> 3 | Z69: =SUMPRODUCT((Teams1=T69)*(Teams2_Score))+SUMPRODUCT((Teams2=T69)*(Teams1_Score)) -> 3 | AA69: =Y69-Z69 -> 0 | AB69: =3*V69+W69 -> 1
B70: =IF(ROWS($1:1)<=COUNTIF($S$15:$S$18,1),INDEX($T$15:$T$18,SMALL(IF($S$15:$S$18=1,ROW(INDIRECT("1:"&ROWS($S$15:$S$18)))),ROWS($1:1))),"") -> RI Iran
B71: =IF(ROWS($1:2)<=COUNTIF($S$15:$S$18,1),INDEX($T$15:$T$18,SMALL(IF($S$15:$S$18=1,ROW(INDIRECT("1:"&ROWS($S$15:$S$18)))),ROWS($1:2))),"") ->  | S71: Rg | T71: Groupe C | U71: MJ | V71: G | W71: N | X71: P | Y71: BP | Z71: BC | AA71: Pts | AB71: Pts
B72: =IF(ROWS($1:3)<=COUNTIF($S$15:$S$18,1),INDEX($T$15:$T$18,SMALL(IF($S$15:$S$18=1,ROW(INDIRECT("1:"&ROWS($S$15:$S$18)))),ROWS($1:3))),"") ->  | P72: C_1 | Q72: =TEXT(R72,"00000")&T72 -> 00000France | R72: =AB72*1000+AA72*100+Y72*10 -> 0 | S72: =RANK(R72,$R72:$R75,0) -> 1 | T72: =VLOOKUP(P72,TABLEAU_TEAMS[#All],2,FALSE) -> France | U72: =SUMPRODUCT((Teams1=T72)*(Teams1_Score<>""))+SUMPRODUCT((Teams2=T72)*(Teams2_Score<>"")) -> 0 | V72: =SUMPRODUCT((Teams1=T72)*(Teams1_Score>Teams2_Score))+SUMPRODUCT((Teams2=T72)*(Teams2_Score>Teams1_Score)) -> 0 | W72: =SUMPRODUCT((Teams1=T72)*(Teams1_Score=Teams2_Score)*(Teams1_Score<>""))+SUMPRODUCT((Teams2=T72)*(Teams2_Score=Teams1_Score)*(Teams2_Score<>"")) -> 0 | X72: =SUMPRODUCT((Teams1=T72)*(Teams1_Score<Teams2_Score))+SUMPRODUCT((Teams2=T72)*(Teams2_Score<Teams1_Score)) -> 0 | Y72: =SUMPRODUCT((Teams1=T72)*(Teams1_Score))+SUMPRODUCT((Teams2=T72)*(Teams2_Score)) -> 0 | Z72: =SUMPRODUCT((Teams1=T72)*(Teams2_Score))+SUMPRODUCT((Teams2=T72)*(Teams1_Score)) -> 0 | AA72: =Y72-Z72 -> 0 | AB72: =3*V72+W72 -> 0
B73: =IF(ROWS($1:4)<=COUNTIF($S$15:$S$18,1),INDEX($T$15:$T$18,SMALL(IF($S$15:$S$18=1,ROW(INDIRECT("1:"&ROWS($S$15:$S$18)))),ROWS($1:4))),"") ->  | P73: C_2 | Q73: =TEXT(R73,"00000")&T73 -> 00000Australie | R73: =AB73*1000+AA73*100+Y73*10 -> 0 | S73: =RANK(R73,$R72:$R75,0) -> 1 | T73: =VLOOKUP(P73,TABLEAU_TEAMS[#All],2,FALSE) -> Australie | U73: =SUMPRODUCT((Teams1=T73)*(Teams1_Score<>""))+SUMPRODUCT((Teams2=T73)*(Teams2_Score<>"")) -> 0 | V73: =SUMPRODUCT((Teams1=T73)*(Teams1_Score>Teams2_Score))+SUMPRODUCT((Teams2=T73)*(Teams2_Score>Teams1_Score)) -> 0 | W73: =SUMPRODUCT((Teams1=T73)*(Teams1_Score=Teams2_Score)*(Teams1_Score<>""))+SUMPRODUCT((Teams2=T73)*(Teams2_Score=Teams1_Score)*(Teams2_Score<>"")) -> 0 | X73: =SUMPRODUCT((Teams1=T73)*(Teams1_Score<Teams2_Score))+SUMPRODUCT((Teams2=T73)*(Teams2_Score<Teams1_Score)) -> 0 | Y73: =SUMPRODUCT((Teams1=T73)*(Teams1_Score))+SUMPRODUCT((Teams2=T73)*(Teams2_Score)) -> 0 | Z73: =SUMPRODUCT((Teams1=T73)*(Teams2_Score))+SUMPRODUCT((Teams2=T73)*(Teams1_Score)) -> 0 | AA73: =Y73-Z73 -> 0 | AB73: =3*V73+W73 -> 0
B74: Tirage au sort B2 | P74: C_3 | Q74: =TEXT(R74,"00000")&T74 -> 00000Pérou | R74: =AB74*1000+AA74*100+Y74*10 -> 0 | S74: =RANK(R74,$R72:$R75,0) -> 1 | T74: =VLOOKUP(P74,TABLEAU_TEAMS[#All],2,FALSE) -> Pérou | U74: =SUMPRODUCT((Teams1=T74)*(Teams1_Score<>""))+SUMPRODUCT((Teams2=T74)*(Teams2_Score<>"")) -> 0 | V74: =SUMPRODUCT((Teams1=T74)*(Teams1_Score>Teams2_Score))+SUMPRODUCT((Teams2=T74)*(Teams2_Score>Teams1_Score)) -> 0 | W74: =SUMPRODUCT((Teams1=T74)*(Teams1_Score=Teams2_Score)*(Teams1_Score<>""))+SUMPRODUCT((Teams2=T74)*(Teams2_Score=Teams1_Score)*(Teams2_Score<>"")) -> 0 | X74: =SUMPRODUCT((Teams1=T74)*(Teams1_Score<Teams2_Score))+SUMPRODUCT((Teams2=T74)*(Teams2_Score<Teams1_Score)) -> 0 | Y74: =SUMPRODUCT((Teams1=T74)*(Teams1_Score))+SUMPRODUCT((Teams2=T74)*(Teams2_Score)) -> 0 | Z74: =SUMPRODUCT((Teams1=T74)*(Teams2_Score))+SUMPRODUCT((Teams2=T74)*(Teams1_Score)) -> 0 | AA74: =Y74-Z74 -> 0 | AB74: =3*V74+W74 -> 0
B75: =IF(COUNTIF($S$15:$S$18,1)>1,IF(ROWS($1:1)<=COUNTIF($S$15:$S$18,1),INDEX($T$15:$T$18,SMALL(IF($S$15:$S$18=1,ROW(INDIRECT("1:"&ROWS($S$15:$S$18)))),ROWS($1:1))),""),IF(COUNTIF($S$15:$S$18,2)>1,IF(ROWS($1:1)<=COUNTIF($S$15:$S$18,2),INDEX($T$15:$T$18,SMALL(IF($S$15:$S$18=2,ROW(INDIRECT("1:"&ROWS($S$15:$S$18)))),ROWS($1:1))),""))) -> Portugal | P75: C_4 | Q75: =TEXT(R75,"00000")&T75 -> 00000Danemark | R75: =AB75*1000+AA75*100+Y75*10 -> 0 | S75: =RANK(R75,$R72:$R75,0) -> 1 | T75: =VLOOKUP(P75,TABLEAU_TEAMS[#All],2,FALSE) -> Danemark | U75: =SUMPRODUCT((Teams1=T75)*(Teams1_Score<>""))+SUMPRODUCT((Teams2=T75)*(Teams2_Score<>"")) -> 0 | V75: =SUMPRODUCT((Teams1=T75)*(Teams1_Score>Teams2_Score))+SUMPRODUCT((Teams2=T75)*(Teams2_Score>Teams1_Score)) -> 0 | W75: =SUMPRODUCT((Teams1=T75)*(Teams1_Score=Teams2_Score)*(Teams1_Score<>""))+SUMPRODUCT((Teams2=T75)*(Teams2_Score=Teams1_Score)*(Teams2_Score<>"")) -> 0 | X75: =SUMPRODUCT((Teams1=T75)*(Teams1_Score<Teams2_Score))+SUMPRODUCT((Teams2=T75)*(Teams2_Score<Teams1_Score)) -> 0 | Y75: =SUMPRODUCT((Teams1=T75)*(Teams1_Score))+SUMPRODUCT((Teams2=T75)*(Teams2_Score)) -> 0 | Z75: =SUMPRODUCT((Teams1=T75)*(Teams2_Score))+SUMPRODUCT((Teams2=T75)*(Teams1_Score)) -> 0 | AA75: =Y75-Z75 -> 0 | AB75: =3*V75+W75 -> 0
B76: =IF(COUNTIF($S$15:$S$18,1)>1,IF(ROWS($1:2)<=COUNTIF($S$15:$S$18,1),INDEX($T$15:$T$18,SMALL(IF($S$15:$S$18=1,ROW(INDIRECT("1:"&ROWS($S$15:$S$18)))),ROWS($1:2))),""),IF(COUNTIF($S$15:$S$18,2)>1,IF(ROWS($1:2)<=COUNTIF($S$15:$S$18,2),INDEX($T$15:$T$18,SMALL(IF($S$15:$S$18=2,ROW(INDIRECT("1:"&ROWS($S$15:$S$18)))),ROWS($1:2))),""))) -> Espagne
B77: =IF(COUNTIF($S$15:$S$18,1)>1,IF(ROWS($1:3)<=COUNTIF($S$15:$S$18,1),INDEX($T$15:$T$18,SMALL(IF($S$15:$S$18=1,ROW(INDIRECT("1:"&ROWS($S$15:$S$18)))),ROWS($1:3))),""),IF(COUNTIF($S$15:$S$18,2)>1,IF(ROWS($1:3)<=COUNTIF($S$15:$S$18,2),INDEX($T$15:$T$18,SMALL(IF($S$15:$S$18=2,ROW(INDIRECT("1:"&ROWS($S$15:$S$18)))),ROWS($1:3))),""))) ->  | S77: Rg | T77: Groupe D | U77: MJ | V77: G | W77: N | X77: P | Y77: BP | Z77: BC | AA77: Pts | AB77: Pts
B78: =IF(COUNTIF($S$15:$S$18,1)>1,IF(ROWS($1:4)<=COUNTIF($S$15:$S$18,1),INDEX($T$15:$T$18,SMALL(IF($S$15:$S$18=1,ROW(INDIRECT("1:"&ROWS($S$15:$S$18)))),ROWS($1:4))),""),IF(COUNTIF($S$15:$S$18,2)>1,IF(ROWS($1:4)<=COUNTIF($S$15:$S$18,2),INDEX($T$15:$T$18,SMALL(IF($S$15:$S$18=2,ROW(INDIRECT("1:"&ROWS($S$15:$S$18)))),ROWS($1:4))),""))) ->  | P78: D_1 | Q78: =TEXT(R78,"00000")&T78 -> 00000Argentine | R78: =AB78*1000+AA78*100+Y78*10 -> 0 | S78: =RANK(R78,$R78:$R81,0) -> 1 | T78: =VLOOKUP(P78,TABLEAU_TEAMS[#All],2,FALSE) -> Argentine | U78: =SUMPRODUCT((Teams1=T78)*(Teams1_Score<>""))+SUMPRODUCT((Teams2=T78)*(Teams2_Score<>"")) -> 0 | V78: =SUMPRODUCT((Teams1=T78)*(Teams1_Score>Teams2_Score))+SUMPRODUCT((Teams2=T78)*(Teams2_Score>Teams1_Score)) -> 0 | W78: =SUMPRODUCT((Teams1=T78)*(Teams1_Score=Teams2_Score)*(Teams1_Score<>""))+SUMPRODUCT((Teams2=T78)*(Teams2_Score=Teams1_Score)*(Teams2_Score<>"")) -> 0 | X78: =SUMPRODUCT((Teams1=T78)*(Teams1_Score<Teams2_Score))+SUMPRODUCT((Teams2=T78)*(Teams2_Score<Teams1_Score)) -> 0 | Y78: =SUMPRODUCT((Teams1=T78)*(Teams1_Score))+SUMPRODUCT((Teams2=T78)*(Teams2_Score)) -> 0 | Z78: =SUMPRODUCT((Teams1=T78)*(Teams2_Score))+SUMPRODUCT((Teams2=T78)*(Teams1_Score)) -> 0 | AA78: =Y78-Z78 -> 0 | AB78: =3*V78+W78 -> 0
B79: Tirage au sort C1 | P79: D_2 | Q79: =TEXT(R79,"00000")&T79 -> 00000Islande | R79: =AB79*1000+AA79*100+Y79*10 -> 0 | S79: =RANK(R79,$R78:$R81,0) -> 1 | T79: =VLOOKUP(P79,TABLEAU_TEAMS[#All],2,FALSE) -> Islande | U79: =SUMPRODUCT((Teams1=T79)*(Teams1_Score<>""))+SUMPRODUCT((Teams2=T79)*(Teams2_Score<>"")) -> 0 | V79: =SUMPRODUCT((Teams1=T79)*(Teams1_Score>Teams2_Score))+SUMPRODUCT((Teams2=T79)*(Teams2_Score>Teams1_Score)) -> 0 | W79: =SUMPRODUCT((Teams1=T79)*(Teams1_Score=Teams2_Score)*(Teams1_Score<>""))+SUMPRODUCT((Teams2=T79)*(Teams2_Score=Teams1_Score)*(Teams2_Score<>"")) -> 0 | X79: =SUMPRODUCT((Teams1=T79)*(Teams1_Score<Teams2_Score))+SUMPRODUCT((Teams2=T79)*(Teams2_Score<Teams1_Score)) -> 0 | Y79: =SUMPRODUCT((Teams1=T79)*(Teams1_Score))+SUMPRODUCT((Teams2=T79)*(Teams2_Score)) -> 0 | Z79: =SUMPRODUCT((Teams1=T79)*(Teams2_Score))+SUMPRODUCT((Teams2=T79)*(Teams1_Score)) -> 0 | AA79: =Y79-Z79 -> 0 | AB79: =3*V79+W79 -> 0
B80: =IF(ROWS($1:1)<=COUNTIF($S$21:$S$24,1),INDEX($T$21:$T$24,SMALL(IF($S$21:$S$24=1,ROW(INDIRECT("1:"&ROWS($S$21:$S$24)))),ROWS($1:1))),"") -> Pérou | P80: D_3 | Q80: =TEXT(R80,"00000")&T80 -> 00000Croatie | R80: =AB80*1000+AA80*100+Y80*10 -> 0 | S80: =RANK(R80,$R78:$R81,0) -> 1 | T80: =VLOOKUP(P80,TABLEAU_TEAMS[#All],2,FALSE) -> Croatie | U80: =SUMPRODUCT((Teams1=T80)*(Teams1_Score<>""))+SUMPRODUCT((Teams2=T80)*(Teams2_Score<>"")) -> 0 | V80: =SUMPRODUCT((Teams1=T80)*(Teams1_Score>Teams2_Score))+SUMPRODUCT((Teams2=T80)*(Teams2_Score>Teams1_Score)) -> 0 | W80: =SUMPRODUCT((Teams1=T80)*(Teams1_Score=Teams2_Score)*(Teams1_Score<>""))+SUMPRODUCT((Teams2=T80)*(Teams2_Score=Teams1_Score)*(Teams2_Score<>"")) -> 0 | X80: =SUMPRODUCT((Teams1=T80)*(Teams1_Score<Teams2_Score))+SUMPRODUCT((Teams2=T80)*(Teams2_Score<Teams1_Score)) -> 0 | Y80: =SUMPRODUCT((Teams1=T80)*(Teams1_Score))+SUMPRODUCT((Teams2=T80)*(Teams2_Score)) -> 0 | Z80: =SUMPRODUCT((Teams1=T80)*(Teams2_Score))+SUMPRODUCT((Teams2=T80)*(Teams1_Score)) -> 0 | AA80: =Y80-Z80 -> 0 | AB80: =3*V80+W80 -> 0
B81: =IF(ROWS($1:2)<=COUNTIF($S$21:$S$24,1),INDEX($T$21:$T$24,SMALL(IF($S$21:$S$24=1,ROW(INDIRECT("1:"&ROWS($S$21:$S$24)))),ROWS($1:2))),"") -> France | P81: D_4 | Q81: =TEXT(R81,"00000")&T81 -> 00000Nigeria | R81: =AB81*1000+AA81*100+Y81*10 -> 0 | S81: =RANK(R81,$R78:$R81,0) -> 1 | T81: =VLOOKUP(P81,TABLEAU_TEAMS[#All],2,FALSE) -> Nigeria | U81: =SUMPRODUCT((Teams1=T81)*(Teams1_Score<>""))+SUMPRODUCT((Teams2=T81)*(Teams2_Score<>"")) -> 0 | V81: =SUMPRODUCT((Teams1=T81)*(Teams1_Score>Teams2_Score))+SUMPRODUCT((Teams2=T81)*(Teams2_Score>Teams1_Score)) -> 0 | W81: =SUMPRODUCT((Teams1=T81)*(Teams1_Score=Teams2_Score)*(Teams1_Score<>""))+SUMPRODUCT((Teams2=T81)*(Teams2_Score=Teams1_Score)*(Teams2_Score<>"")) -> 0 | X81: =SUMPRODUCT((Teams1=T81)*(Teams1_Score<Teams2_Score))+SUMPRODUCT((Teams2=T81)*(Teams2_Score<Teams1_Score)) -> 0 | Y81: =SUMPRODUCT((Teams1=T81)*(Teams1_Score))+SUMPRODUCT((Teams2=T81)*(Teams2_Score)) -> 0 | Z81: =SUMPRODUCT((Teams1=T81)*(Teams2_Score))+SUMPRODUCT((Teams2=T81)*(Teams1_Score)) -> 0 | AA81: =Y81-Z81 -> 0 | AB81: =3*V81+W81 -> 0
B82: =IF(ROWS($1:3)<=COUNTIF($S$21:$S$24,1),INDEX($T$21:$T$24,SMALL(IF($S$21:$S$24=1,ROW(INDIRECT("1:"&ROWS($S$21:$S$24)))),ROWS($1:3))),"") -> Danemark
B83: =IF(ROWS($1:4)<=COUNTIF($S$21:$S$24,1),INDEX($T$21:$T$24,SMALL(IF($S$21:$S$24=1,ROW(INDIRECT("1:"&ROWS($S$21:$S$24)))),ROWS($1:4))),"") -> Australie | S83: Rg | T83: Groupe E | U83: MJ | V83: G | W83: N | X83: P | Y83: BP | Z83: BC | AA83: Pts | AB83: Pts
B84: Tirage au sort C2 | P84: E_1 | Q84: =TEXT(R84,"00000")&T84 -> 00000Costa Rica | R84: =AB84*1000+AA84*100+Y84*10 -> 0 | S84: =RANK(R84,$R84:$R87,0) -> 1 | T84: =VLOOKUP(P84,TABLEAU_TEAMS[#All],2,FALSE) -> Costa Rica | U84: =SUMPRODUCT((Teams1=T84)*(Teams1_Score<>""))+SUMPRODUCT((Teams2=T84)*(Teams2_Score<>"")) -> 0 | V84: =SUMPRODUCT((Teams1=T84)*(Teams1_Score>Teams2_Score))+SUMPRODUCT((Teams2=T84)*(Teams2_Score>Teams1_Score)) -> 0 | W84: =SUMPRODUCT((Teams1=T84)*(Teams1_Score=Teams2_Score)*(Teams1_Score<>""))+SUMPRODUCT((Teams2=T84)*(Teams2_Score=Teams1_Score)*(Teams2_Score<>"")) -> 0 | X84: =SUMPRODUCT((Teams1=T84)*(Teams1_Score<Teams2_Score))+SUMPRODUCT((Teams2=T84)*(Teams2_Score<Teams1_Score)) -> 0 | Y84: =SUMPRODUCT((Teams1=T84)*(Teams1_Score))+SUMPRODUCT((Teams2=T84)*(Teams2_Score)) -> 0 | Z84: =SUMPRODUCT((Teams1=T84)*(Teams2_Score))+SUMPRODUCT((Teams2=T84)*(Teams1_Score)) -> 0 | AA84: =Y84-Z84 -> 0 | AB84: =3*V84+W84 -> 0
B85: =IF(COUNTIF($S$21:$S$24,1)>1,IF(ROWS($1:1)<=COUNTIF($S$21:$S$24,1),INDEX($T$21:$T$24,SMALL(IF($S$21:$S$24=1,ROW(INDIRECT("1:"&ROWS($S$21:$S$24)))),ROWS($1:1))),""),IF(COUNTIF($S$21:$S$24,2)>1,IF(ROWS($1:1)<=COUNTIF($S$21:$S$24,2),INDEX($T$21:$T$24,SMALL(IF($S$21:$S$24=2,ROW(INDIRECT("1:"&ROWS($S$21:$S$24)))),ROWS($1:1))),""))) -> Pérou | P85: E_2 | Q85: =TEXT(R85,"00000")&T85 -> 00000Serbie | R85: =AB85*1000+AA85*100+Y85*10 -> 0 | S85: =RANK(R85,$R84:$R87,0) -> 1 | T85: =VLOOKUP(P85,TABLEAU_TEAMS[#All],2,FALSE) -> Serbie | U85: =SUMPRODUCT((Teams1=T85)*(Teams1_Score<>""))+SUMPRODUCT((Teams2=T85)*(Teams2_Score<>"")) -> 0 | V85: =SUMPRODUCT((Teams1=T85)*(Teams1_Score>Teams2_Score))+SUMPRODUCT((Teams2=T85)*(Teams2_Score>Teams1_Score)) -> 0 | W85: =SUMPRODUCT((Teams1=T85)*(Teams1_Score=Teams2_Score)*(Teams1_Score<>""))+SUMPRODUCT((Teams2=T85)*(Teams2_Score=Teams1_Score)*(Teams2_Score<>"")) -> 0 | X85: =SUMPRODUCT((Teams1=T85)*(Teams1_Score<Teams2_Score))+SUMPRODUCT((Teams2=T85)*(Teams2_Score<Teams1_Score)) -> 0 | Y85: =SUMPRODUCT((Teams1=T85)*(Teams1_Score))+SUMPRODUCT((Teams2=T85)*(Teams2_Score)) -> 0 | Z85: =SUMPRODUCT((Teams1=T85)*(Teams2_Score))+SUMPRODUCT((Teams2=T85)*(Teams1_Score)) -> 0 | AA85: =Y85-Z85 -> 0 | AB85: =3*V85+W85 -> 0
B86: =IF(COUNTIF($S$21:$S$24,1)>1,IF(ROWS($1:2)<=COUNTIF($S$21:$S$24,1),INDEX($T$21:$T$24,SMALL(IF($S$21:$S$24=1,ROW(INDIRECT("1:"&ROWS($S$21:$S$24)))),ROWS($1:2))),""),IF(COUNTIF($S$21:$S$24,2)>1,IF(ROWS($1:2)<=COUNTIF($S$21:$S$24,2),INDEX($T$21:$T$24,SMALL(IF($S$21:$S$24=2,ROW(INDIRECT("1:"&ROWS($S$21:$S$24)))),ROWS($1:2))),""))) -> France | P86: E_3 | Q86: =TEXT(R86,"00000")&T86 -> 00000Brésil | R86: =AB86*1000+AA86*100+Y86*10 -> 0 | S86: =RANK(R86,$R84:$R87,0) -> 1 | T86: =VLOOKUP(P86,TABLEAU_TEAMS[#All],2,FALSE) -> Brésil | U86: =SUMPRODUCT((Teams1=T86)*(Teams1_Score<>""))+SUMPRODUCT((Teams2=T86)*(Teams2_Score<>"")) -> 0 | V86: =SUMPRODUCT((Teams1=T86)*(Teams1_Score>Teams2_Score))+SUMPRODUCT((Teams2=T86)*(Teams2_Score>Teams1_Score)) -> 0 | W86: =SUMPRODUCT((Teams1=T86)*(Teams1_Score=Teams2_Score)*(Teams1_Score<>""))+SUMPRODUCT((Teams2=T86)*(Teams2_Score=Teams1_Score)*(Teams2_Score<>"")) -> 0 | X86: =SUMPRODUCT((Teams1=T86)*(Teams1_Score<Teams2_Score))+SUMPRODUCT((Teams2=T86)*(Teams2_Score<Teams1_Score)) -> 0 | Y86: =SUMPRODUCT((Teams1=T86)*(Teams1_Score))+SUMPRODUCT((Teams2=T86)*(Teams2_Score)) -> 0 | Z86: =SUMPRODUCT((Teams1=T86)*(Teams2_Score))+SUMPRODUCT((Teams2=T86)*(Teams1_Score)) -> 0 | AA86: =Y86-Z86 -> 0 | AB86: =3*V86+W86 -> 0
B87: =IF(COUNTIF($S$21:$S$24,1)>1,IF(ROWS($1:3)<=COUNTIF($S$21:$S$24,1),INDEX($T$21:$T$24,SMALL(IF($S$21:$S$24=1,ROW(INDIRECT("1:"&ROWS($S$21:$S$24)))),ROWS($1:3))),""),IF(COUNTIF($S$21:$S$24,2)>1,IF(ROWS($1:3)<=COUNTIF($S$21:$S$24,2),INDEX($T$21:$T$24,SMALL(IF($S$21:$S$24=2,ROW(INDIRECT("1:"&ROWS($S$21:$S$24)))),ROWS($1:3))),""))) -> Danemark | P87: E_4 | Q87: =TEXT(R87,"00000")&T87 -> 00000Suisse | R87: =AB87*1000+AA87*100+Y87*10 -> 0 | S87: =RANK(R87,$R84:$R87,0) -> 1 | T87: =VLOOKUP(P87,TABLEAU_TEAMS[#All],2,FALSE) -> Suisse | U87: =SUMPRODUCT((Teams1=T87)*(Teams1_Score<>""))+SUMPRODUCT((Teams2=T87)*(Teams2_Score<>"")) -> 0 | V87: =SUMPRODUCT((Teams1=T87)*(Teams1_Score>Teams2_Score))+SUMPRODUCT((Teams2=T87)*(Teams2_Score>Teams1_Score)) -> 0 | W87: =SUMPRODUCT((Teams1=T87)*(Teams1_Score=Teams2_Score)*(Teams1_Score<>""))+SUMPRODUCT((Teams2=T87)*(Teams2_Score=Teams1_Score)*(Teams2_Score<>"")) -> 0 | X87: =SUMPRODUCT((Teams1=T87)*(Teams1_Score<Teams2_Score))+SUMPRODUCT((Teams2=T87)*(Teams2_Score<Teams1_Score)) -> 0 | Y87: =SUMPRODUCT((Teams1=T87)*(Teams1_Score))+SUMPRODUCT((Teams2=T87)*(Teams2_Score)) -> 0 | Z87: =SUMPRODUCT((Teams1=T87)*(Teams2_Score))+SUMPRODUCT((Teams2=T87)*(Teams1_Score)) -> 0 | AA87: =Y87-Z87 -> 0 | AB87: =3*V87+W87 -> 0
B88: =IF(COUNTIF($S$21:$S$24,1)>1,IF(ROWS($1:4)<=COUNTIF($S$21:$S$24,1),INDEX($T$21:$T$24,SMALL(IF($S$21:$S$24=1,ROW(INDIRECT("1:"&ROWS($S$21:$S$24)))),ROWS($1:4))),""),IF(COUNTIF($S$21:$S$24,2)>1,IF(ROWS($1:4)<=COUNTIF($S$21:$S$24,2),INDEX($T$21:$T$24,SMALL(IF($S$21:$S$24=2,ROW(INDIRECT("1:"&ROWS($S$21:$S$24)))),ROWS($1:4))),""))) -> Australie
B89: Tirage au sort D1 | S89: Rg | T89: Groupe F | U89: MJ | V89: G | W89: N | X89: P | Y89: BP | Z89: BC | AA89: Pts | AB89: Pts
B90: =IF(ROWS($1:1)<=COUNTIF($S$27:$S$30,1),INDEX($T$27:$T$30,SMALL(IF($S$27:$S$30=1,ROW(INDIRECT("1:"&ROWS($S$27:$S$30)))),ROWS($1:1))),"") -> Nigeria | P90: F_1 | Q90: =TEXT(R90,"00000")&T90 -> 00000Allemagne | R90: =AB90*1000+AA90*100+Y90*10 -> 0 | S90: =RANK(R90,$R90:$R93,0) -> 1 | T90: =VLOOKUP(P90,TABLEAU_TEAMS[#All],2,FALSE) -> Allemagne | U90: =SUMPRODUCT((Teams1=T90)*(Teams1_Score<>""))+SUMPRODUCT((Teams2=T90)*(Teams2_Score<>"")) -> 0 | V90: =SUMPRODUCT((Teams1=T90)*(Teams1_Score>Teams2_Score))+SUMPRODUCT((Teams2=T90)*(Teams2_Score>Teams1_Score)) -> 0 | W90: =SUMPRODUCT((Teams1=T90)*(Teams1_Score=Teams2_Score)*(Teams1_Score<>""))+SUMPRODUCT((Teams2=T90)*(Teams2_Score=Teams1_Score)*(Teams2_Score<>"")) -> 0 | X90: =SUMPRODUCT((Teams1=T90)*(Teams1_Score<Teams2_Score))+SUMPRODUCT((Teams2=T90)*(Teams2_Score<Teams1_Score)) -> 0 | Y90: =SUMPRODUCT((Teams1=T90)*(Teams1_Score))+SUMPRODUCT((Teams2=T90)*(Teams2_Score)) -> 0 | Z90: =SUMPRODUCT((Teams1=T90)*(Teams2_Score))+SUMPRODUCT((Teams2=T90)*(Teams1_Score)) -> 0 | AA90: =Y90-Z90 -> 0 | AB90: =3*V90+W90 -> 0
B91: =IF(ROWS($1:2)<=COUNTIF($S$27:$S$30,1),INDEX($T$27:$T$30,SMALL(IF($S$27:$S$30=1,ROW(INDIRECT("1:"&ROWS($S$27:$S$30)))),ROWS($1:2))),"") -> Islande | P91: F_2 | Q91: =TEXT(R91,"00000")&T91 -> 00000Mexique | R91: =AB91*1000+AA91*100+Y91*10 -> 0 | S91: =RANK(R91,$R90:$R93,0) -> 1 | T91: =VLOOKUP(P91,TABLEAU_TEAMS[#All],2,FALSE) -> Mexique | U91: =SUMPRODUCT((Teams1=T91)*(Teams1_Score<>""))+SUMPRODUCT((Teams2=T91)*(Teams2_Score<>"")) -> 0 | V91: =SUMPRODUCT((Teams1=T91)*(Teams1_Score>Teams2_Score))+SUMPRODUCT((Teams2=T91)*(Teams2_Score>Teams1_Score)) -> 0 | W91: =SUMPRODUCT((Teams1=T91)*(Teams1_Score=Teams2_Score)*(Teams1_Score<>""))+SUMPRODUCT((Teams2=T91)*(Teams2_Score=Teams1_Score)*(Teams2_Score<>"")) -> 0 | X91: =SUMPRODUCT((Teams1=T91)*(Teams1_Score<Teams2_Score))+SUMPRODUCT((Teams2=T91)*(Teams2_Score<Teams1_Score)) -> 0 | Y91: =SUMPRODUCT((Teams1=T91)*(Teams1_Score))+SUMPRODUCT((Teams2=T91)*(Teams2_Score)) -> 0 | Z91: =SUMPRODUCT((Teams1=T91)*(Teams2_Score))+SUMPRODUCT((Teams2=T91)*(Teams1_Score)) -> 0 | AA91: =Y91-Z91 -> 0 | AB91: =3*V91+W91 -> 0
B92: =IF(ROWS($1:3)<=COUNTIF($S$27:$S$30,1),INDEX($T$27:$T$30,SMALL(IF($S$27:$S$30=1,ROW(INDIRECT("1:"&ROWS($S$27:$S$30)))),ROWS($1:3))),"") -> Croatie | P92: F_3 | Q92: =TEXT(R92,"00000")&T92 -> 00000Suède | R92: =AB92*1000+AA92*100+Y92*10 -> 0 | S92: =RANK(R92,$R90:$R93,0) -> 1 | T92: =VLOOKUP(P92,TABLEAU_TEAMS[#All],2,FALSE) -> Suède | U92: =SUMPRODUCT((Teams1=T92)*(Teams1_Score<>""))+SUMPRODUCT((Teams2=T92)*(Teams2_Score<>"")) -> 0 | V92: =SUMPRODUCT((Teams1=T92)*(Teams1_Score>Teams2_Score))+SUMPRODUCT((Teams2=T92)*(Teams2_Score>Teams1_Score)) -> 0 | W92: =SUMPRODUCT((Teams1=T92)*(Teams1_Score=Teams2_Score)*(Teams1_Score<>""))+SUMPRODUCT((Teams2=T92)*(Teams2_Score=Teams1_Score)*(Teams2_Score<>"")) -> 0 | X92: =SUMPRODUCT((Teams1=T92)*(Teams1_Score<Teams2_Score))+SUMPRODUCT((Teams2=T92)*(Teams2_Score<Teams1_Score)) -> 0 | Y92: =SUMPRODUCT((Teams1=T92)*(Teams1_Score))+SUMPRODUCT((Teams2=T92)*(Teams2_Score)) -> 0 | Z92: =SUMPRODUCT((Teams1=T92)*(Teams2_Score))+SUMPRODUCT((Teams2=T92)*(Teams1_Score)) -> 0 | AA92: =Y92-Z92 -> 0 | AB92: =3*V92+W92 -> 0
B93: =IF(ROWS($1:4)<=COUNTIF($S$27:$S$30,1),INDEX($T$27:$T$30,SMALL(IF($S$27:$S$30=1,ROW(INDIRECT("1:"&ROWS($S$27:$S$30)))),ROWS($1:4))),"") -> Argentine | P93: F_4 | Q93: =TEXT(R93,"00000")&T93 -> 00000République de Corée | R93: =AB93*1000+AA93*100+Y93*10 -> 0 | S93: =RANK(R93,$R90:$R93,0) -> 1 | T93: =VLOOKUP(P93,TABLEAU_TEAMS[#All],2,FALSE) -> République de Corée | U93: =SUMPRODUCT((Teams1=T93)*(Teams1_Score<>""))+SUMPRODUCT((Teams2=T93)*(Teams2_Score<>"")) -> 0 | V93: =SUMPRODUCT((Teams1=T93)*(Teams1_Score>Teams2_Score))+SUMPRODUCT((Teams2=T93)*(Teams2_Score>Teams1_Score)) -> 0 | W93: =SUMPRODUCT((Teams1=T93)*(Teams1_Score=Teams2_Score)*(Teams1_Score<>""))+SUMPRODUCT((Teams2=T93)*(Teams2_Score=Teams1_Score)*(Teams2_Score<>"")) -> 0 | X93: =SUMPRODUCT((Teams1=T93)*(Teams1_Score<Teams2_Score))+SUMPRODUCT((Teams2=T93)*(Teams2_Score<Teams1_Score)) -> 0 | Y93: =SUMPRODUCT((Teams1=T93)*(Teams1_Score))+SUMPRODUCT((Teams2=T93)*(Teams2_Score)) -> 0 | Z93: =SUMPRODUCT((Teams1=T93)*(Teams2_Score))+SUMPRODUCT((Teams2=T93)*(Teams1_Score)) -> 0 | AA93: =Y93-Z93 -> 0 | AB93: =3*V93+W93 -> 0
B94: Tirage au sort D2
B95: =IF(COUNTIF($S$27:$S$30,1)>1,IF(ROWS($1:1)<=COUNTIF($S$27:$S$30,1),INDEX($T$27:$T$30,SMALL(IF($S$27:$S$30=1,ROW(INDIRECT("1:"&ROWS($S$27:$S$30)))),ROWS($1:1))),""),IF(COUNTIF($S$27:$S$30,2)>1,IF(ROWS($1:1)<=COUNTIF($S$27:$S$30,2),INDEX($T$27:$T$30,SMALL(IF($S$27:$S$30=2,ROW(INDIRECT("1:"&ROWS($S$27:$S$30)))),ROWS($1:1))),""))) -> Nigeria | S95: Rg | T95: Groupe G | U95: MJ | V95: G | W95: N | X95: P | Y95: BP | Z95: BC | AA95: Pts | AB95: Pts
B96: =IF(COUNTIF($S$27:$S$30,1)>1,IF(ROWS($1:2)<=COUNTIF($S$27:$S$30,1),INDEX($T$27:$T$30,SMALL(IF($S$27:$S$30=1,ROW(INDIRECT("1:"&ROWS($S$27:$S$30)))),ROWS($1:2))),""),IF(COUNTIF($S$27:$S$30,2)>1,IF(ROWS($1:2)<=COUNTIF($S$27:$S$30,2),INDEX($T$27:$T$30,SMALL(IF($S$27:$S$30=2,ROW(INDIRECT("1:"&ROWS($S$27:$S$30)))),ROWS($1:2))),""))) -> Islande | P96: G_1 | Q96: =TEXT(R96,"00000")&T96 -> 00000Belgique | R96: =AB96*1000+AA96*100+Y96*10 -> 0 | S96: =RANK(R96,$R96:$R99,0) -> 1 | T96: =VLOOKUP(P96,TABLEAU_TEAMS[#All],2,FALSE) -> Belgique | U96: =SUMPRODUCT((Teams1=T96)*(Teams1_Score<>""))+SUMPRODUCT((Teams2=T96)*(Teams2_Score<>"")) -> 0 | V96: =SUMPRODUCT((Teams1=T96)*(Teams1_Score>Teams2_Score))+SUMPRODUCT((Teams2=T96)*(Teams2_Score>Teams1_Score)) -> 0 | W96: =SUMPRODUCT((Teams1=T96)*(Teams1_Score=Teams2_Score)*(Teams1_Score<>""))+SUMPRODUCT((Teams2=T96)*(Teams2_Score=Teams1_Score)*(Teams2_Score<>"")) -> 0 | X96: =SUMPRODUCT((Teams1=T96)*(Teams1_Score<Teams2_Score))+SUMPRODUCT((Teams2=T96)*(Teams2_Score<Teams1_Score)) -> 0 | Y96: =SUMPRODUCT((Teams1=T96)*(Teams1_Score))+SUMPRODUCT((Teams2=T96)*(Teams2_Score)) -> 0 | Z96: =SUMPRODUCT((Teams1=T96)*(Teams2_Score))+SUMPRODUCT((Teams2=T96)*(Teams1_Score)) -> 0 | AA96: =Y96-Z96 -> 0 | AB96: =3*V96+W96 -> 0
B97: =IF(COUNTIF($S$27:$S$30,1)>1,IF(ROWS($1:3)<=COUNTIF($S$27:$S$30,1),INDEX($T$27:$T$30,SMALL(IF($S$27:$S$30=1,ROW(INDIRECT("1:"&ROWS($S$27:$S$30)))),ROWS($1:3))),""),IF(COUNTIF($S$27:$S$30,2)>1,IF(ROWS($1:3)<=COUNTIF($S$27:$S$30,2),INDEX($T$27:$T$30,SMALL(IF($S$27:$S$30=2,ROW(INDIRECT("1:"&ROWS($S$27:$S$30)))),ROWS($1:3))),""))) -> Croatie | P97: G_2 | Q97: =TEXT(R97,"00000")&T97 -> 00000Panama | R97: =AB97*1000+AA97*100+Y97*10 -> 0 | S97: =RANK(R97,$R96:$R99,0) -> 1 | T97: =VLOOKUP(P97,TABLEAU_TEAMS[#All],2,FALSE) -> Panama | U97: =SUMPRODUCT((Teams1=T97)*(Teams1_Score<>""))+SUMPRODUCT((Teams2=T97)*(Teams2_Score<>"")) -> 0 | V97: =SUMPRODUCT((Teams1=T97)*(Teams1_Score>Teams2_Score))+SUMPRODUCT((Teams2=T97)*(Teams2_Score>Teams1_Score)) -> 0 | W97: =SUMPRODUCT((Teams1=T97)*(Teams1_Score=Teams2_Score)*(Teams1_Score<>""))+SUMPRODUCT((Teams2=T97)*(Teams2_Score=Teams1_Score)*(Teams2_Score<>"")) -> 0 | X97: =SUMPRODUCT((Teams1=T97)*(Teams1_Score<Teams2_Score))+SUMPRODUCT((Teams2=T97)*(Teams2_Score<Teams1_Score)) -> 0 | Y97: =SUMPRODUCT((Teams1=T97)*(Teams1_Score))+SUMPRODUCT((Teams2=T97)*(Teams2_Score)) -> 0 | Z97: =SUMPRODUCT((Teams1=T97)*(Teams2_Score))+SUMPRODUCT((Teams2=T97)*(Teams1_Score)) -> 0 | AA97: =Y97-Z97 -> 0 | AB97: =3*V97+W97 -> 0
B98: =IF(COUNTIF($S$27:$S$30,1)>1,IF(ROWS($1:4)<=COUNTIF($S$27:$S$30,1),INDEX($T$27:$T$30,SMALL(IF($S$27:$S$30=1,ROW(INDIRECT("1:"&ROWS($S$27:$S$30)))),ROWS($1:4))),""),IF(COUNTIF($S$27:$S$30,2)>1,IF(ROWS($1:4)<=COUNTIF($S$27:$S$30,2),INDEX($T$27:$T$30,SMALL(IF($S$27:$S$30=2,ROW(INDIRECT("1:"&ROWS($S$27:$S$30)))),ROWS($1:4))),""))) -> Argentine | P98: G_3 | Q98: =TEXT(R98,"00000")&T98 -> 00000Tunisie | R98: =AB98*1000+AA98*100+Y98*10 -> 0 | S98: =RANK(R98,$R96:$R99,0) -> 1 | T98: =VLOOKUP(P98,TABLEAU_TEAMS[#All],2,FALSE) -> Tunisie | U98: =SUMPRODUCT((Teams1=T98)*(Teams1_Score<>""))+SUMPRODUCT((Teams2=T98)*(Teams2_Score<>"")) -> 0 | V98: =SUMPRODUCT((Teams1=T98)*(Teams1_Score>Teams2_Score))+SUMPRODUCT((Teams2=T98)*(Teams2_Score>Teams1_Score)) -> 0 | W98: =SUMPRODUCT((Teams1=T98)*(Teams1_Score=Teams2_Score)*(Teams1_Score<>""))+SUMPRODUCT((Teams2=T98)*(Teams2_Score=Teams1_Score)*(Teams2_Score<>"")) -> 0 | X98: =SUMPRODUCT((Teams1=T98)*(Teams1_Score<Teams2_Score))+SUMPRODUCT((Teams2=T98)*(Teams2_Score<Teams1_Score)) -> 0 | Y98: =SUMPRODUCT((Teams1=T98)*(Teams1_Score))+SUMPRODUCT((Teams2=T98)*(Teams2_Score)) -> 0 | Z98: =SUMPRODUCT((Teams1=T98)*(Teams2_Score))+SUMPRODUCT((Teams2=T98)*(Teams1_Score)) -> 0 | AA98: =Y98-Z98 -> 0 | AB98: =3*V98+W98 -> 0
B99: Tirage au sort E1 | P99: G_4 | Q99: =TEXT(R99,"00000")&T99 -> 00000Angleterre | R99: =AB99*1000+AA99*100+Y99*10 -> 0 | S99: =RANK(R99,$R96:$R99,0) -> 1 | T99: =VLOOKUP(P99,TABLEAU_TEAMS[#All],2,FALSE) -> Angleterre | U99: =SUMPRODUCT((Teams1=T99)*(Teams1_Score<>""))+SUMPRODUCT((Teams2=T99)*(Teams2_Score<>"")) -> 0 | V99: =SUMPRODUCT((Teams1=T99)*(Teams1_Score>Teams2_Score))+SUMPRODUCT((Teams2=T99)*(Teams2_Score>Teams1_Score)) -> 0 | W99: =SUMPRODUCT((Teams1=T99)*(Teams1_Score=Teams2_Score)*(Teams1_Score<>""))+SUMPRODUCT((Teams2=T99)*(Teams2_Score=Teams1_Score)*(Teams2_Score<>"")) -> 0 | X99: =SUMPRODUCT((Teams1=T99)*(Teams1_Score<Teams2_Score))+SUMPRODUCT((Teams2=T99)*(Teams2_Score<Teams1_Score)) -> 0 | Y99: =SUMPRODUCT((Teams1=T99)*(Teams1_Score))+SUMPRODUCT((Teams2=T99)*(Teams2_Score)) -> 0 | Z99: =SUMPRODUCT((Teams1=T99)*(Teams2_Score))+SUMPRODUCT((Teams2=T99)*(Teams1_Score)) -> 0 | AA99: =Y99-Z99 -> 0 | AB99: =3*V99+W99 -> 0
B100: =IF(ROWS($1:1)<=COUNTIF($S$33:$S$36,1),INDEX($T$33:$T$36,SMALL(IF($S$33:$S$36=1,ROW(INDIRECT("1:"&ROWS($S$33:$S$36)))),ROWS($1:1))),"") -> Suisse
B101: =IF(ROWS($1:2)<=COUNTIF($S$33:$S$36,1),INDEX($T$33:$T$36,SMALL(IF($S$33:$S$36=1,ROW(INDIRECT("1:"&ROWS($S$33:$S$36)))),ROWS($1:2))),"") -> Serbie | S101: Rg | T101: Groupe H | U101: MJ | V101: G | W101: N | X101: P | Y101: BP | Z101: BC | AA101: Pts | AB101: Pts
B102: =IF(ROWS($1:3)<=COUNTIF($S$33:$S$36,1),INDEX($T$33:$T$36,SMALL(IF($S$33:$S$36=1,ROW(INDIRECT("1:"&ROWS($S$33:$S$36)))),ROWS($1:3))),"") -> Costa Rica | P102: H_1 | Q102: =TEXT(R102,"00000")&T102 -> 00000Colombie | R102: =AB102*1000+AA102*100+Y102*10 -> 0 | S102: =RANK(R102,$R102:$R105,0) -> 1 | T102: =VLOOKUP(P102,TABLEAU_TEAMS[#All],2,FALSE) -> Colombie | U102: =SUMPRODUCT((Teams1=T102)*(Teams1_Score<>""))+SUMPRODUCT((Teams2=T102)*(Teams2_Score<>"")) -> 0 | V102: =SUMPRODUCT((Teams1=T102)*(Teams1_Score>Teams2_Score))+SUMPRODUCT((Teams2=T102)*(Teams2_Score>Teams1_Score)) -> 0 | W102: =SUMPRODUCT((Teams1=T102)*(Teams1_Score=Teams2_Score)*(Teams1_Score<>""))+SUMPRODUCT((Teams2=T102)*(Teams2_Score=Teams1_Score)*(Teams2_Score<>"")) -> 0 | X102: =SUMPRODUCT((Teams1=T102)*(Teams1_Score<Teams2_Score))+SUMPRODUCT((Teams2=T102)*(Teams2_Score<Teams1_Score)) -> 0 | Y102: =SUMPRODUCT((Teams1=T102)*(Teams1_Score))+SUMPRODUCT((Teams2=T102)*(Teams2_Score)) -> 0 | Z102: =SUMPRODUCT((Teams1=T102)*(Teams2_Score))+SUMPRODUCT((Teams2=T102)*(Teams1_Score)) -> 0 | AA102: =Y102-Z102 -> 0 | AB102: =3*V102+W102 -> 0
B103: =IF(ROWS($1:4)<=COUNTIF($S$33:$S$36,1),INDEX($T$33:$T$36,SMALL(IF($S$33:$S$36=1,ROW(INDIRECT("1:"&ROWS($S$33:$S$36)))),ROWS($1:4))),"") -> Brésil | P103: H_2 | Q103: =TEXT(R103,"00000")&T103 -> 00000Japon | R103: =AB103*1000+AA103*100+Y103*10 -> 0 | S103: =RANK(R103,$R102:$R105,0) -> 1 | T103: =VLOOKUP(P103,TABLEAU_TEAMS[#All],2,FALSE) -> Japon | U103: =SUMPRODUCT((Teams1=T103)*(Teams1_Score<>""))+SUMPRODUCT((Teams2=T103)*(Teams2_Score<>"")) -> 0 | V103: =SUMPRODUCT((Teams1=T103)*(Teams1_Score>Teams2_Score))+SUMPRODUCT((Teams2=T103)*(Teams2_Score>Teams1_Score)) -> 0 | W103: =SUMPRODUCT((Teams1=T103)*(Teams1_Score=Teams2_Score)*(Teams1_Score<>""))+SUMPRODUCT((Teams2=T103)*(Teams2_Score=Teams1_Score)*(Teams2_Score<>"")) -> 0 | X103: =SUMPRODUCT((Teams1=T103)*(Teams1_Score<Teams2_Score))+SUMPRODUCT((Teams2=T103)*(Teams2_Score<Teams1_Score)) -> 0 | Y103: =SUMPRODUCT((Teams1=T103)*(Teams1_Score))+SUMPRODUCT((Teams2=T103)*(Teams2_Score)) -> 0 | Z103: =SUMPRODUCT((Teams1=T103)*(Teams2_Score))+SUMPRODUCT((Teams2=T103)*(Teams1_Score)) -> 0 | AA103: =Y103-Z103 -> 0 | AB103: =3*V103+W103 -> 0
B104: Tirage au sort E2 | P104: H_3 | Q104: =TEXT(R104,"00000")&T104 -> 00000Pologne | R104: =AB104*1000+AA104*100+Y104*10 -> 0 | S104: =RANK(R104,$R102:$R105,0) -> 1 | T104: =VLOOKUP(P104,TABLEAU_TEAMS[#All],2,FALSE) -> Pologne | U104: =SUMPRODUCT((Teams1=T104)*(Teams1_Score<>""))+SUMPRODUCT((Teams2=T104)*(Teams2_Score<>"")) -> 0 | V104: =SUMPRODUCT((Teams1=T104)*(Teams1_Score>Teams2_Score))+SUMPRODUCT((Teams2=T104)*(Teams2_Score>Teams1_Score)) -> 0 | W104: =SUMPRODUCT((Teams1=T104)*(Teams1_Score=Teams2_Score)*(Teams1_Score<>""))+SUMPRODUCT((Teams2=T104)*(Teams2_Score=Teams1_Score)*(Teams2_Score<>"")) -> 0 | X104: =SUMPRODUCT((Teams1=T104)*(Teams1_Score<Teams2_Score))+SUMPRODUCT((Teams2=T104)*(Teams2_Score<Teams1_Score)) -> 0 | Y104: =SUMPRODUCT((Teams1=T104)*(Teams1_Score))+SUMPRODUCT((Teams2=T104)*(Teams2_Score)) -> 0 | Z104: =SUMPRODUCT((Teams1=T104)*(Teams2_Score))+SUMPRODUCT((Teams2=T104)*(Teams1_Score)) -> 0 | AA104: =Y104-Z104 -> 0 | AB104: =3*V104+W104 -> 0
B105: =IF(COUNTIF($S$33:$S$36,1)>1,IF(ROWS($1:1)<=COUNTIF($S$33:$S$36,1),INDEX($T$33:$T$36,SMALL(IF($S$33:$S$36=1,ROW(INDIRECT("1:"&ROWS($S$33:$S$36)))),ROWS($1:1))),""),IF(COUNTIF($S$33:$S$36,2)>1,IF(ROWS($1:1)<=COUNTIF($S$33:$S$36,2),INDEX($T$33:$T$36,SMALL(IF($S$33:$S$36=2,ROW(INDIRECT("1:"&ROWS($S$33:$S$36)))),ROWS($1:1))),""))) -> Suisse | P105: H_4 | Q105: =TEXT(R105,"00000")&T105 -> 00000Sénégal | R105: =AB105*1000+AA105*100+Y105*10 -> 0 | S105: =RANK(R105,$R102:$R105,0) -> 1 | T105: =VLOOKUP(P105,TABLEAU_TEAMS[#All],2,FALSE) -> Sénégal | U105: =SUMPRODUCT((Teams1=T105)*(Teams1_Score<>""))+SUMPRODUCT((Teams2=T105)*(Teams2_Score<>"")) -> 0 | V105: =SUMPRODUCT((Teams1=T105)*(Teams1_Score>Teams2_Score))+SUMPRODUCT((Teams2=T105)*(Teams2_Score>Teams1_Score)) -> 0 | W105: =SUMPRODUCT((Teams1=T105)*(Teams1_Score=Teams2_Score)*(Teams1_Score<>""))+SUMPRODUCT((Teams2=T105)*(Teams2_Score=Teams1_Score)*(Teams2_Score<>"")) -> 0 | X105: =SUMPRODUCT((Teams1=T105)*(Teams1_Score<Teams2_Score))+SUMPRODUCT((Teams2=T105)*(Teams2_Score<Teams1_Score)) -> 0 | Y105: =SUMPRODUCT((Teams1=T105)*(Teams1_Score))+SUMPRODUCT((Teams2=T105)*(Teams2_Score)) -> 0 | Z105: =SUMPRODUCT((Teams1=T105)*(Teams2_Score))+SUMPRODUCT((Teams2=T105)*(Teams1_Score)) -> 0 | AA105: =Y105-Z105 -> 0 | AB105: =3*V105+W105 -> 0
B106: =IF(COUNTIF($S$33:$S$36,1)>1,IF(ROWS($1:2)<=COUNTIF($S$33:$S$36,1),INDEX($T$33:$T$36,SMALL(IF($S$33:$S$36=1,ROW(INDIRECT("1:"&ROWS($S$33:$S$36)))),ROWS($1:2))),""),IF(COUNTIF($S$33:$S$36,2)>1,IF(ROWS($1:2)<=COUNTIF($S$33:$S$36,2),INDEX($T$33:$T$36,SMALL(IF($S$33:$S$36=2,ROW(INDIRECT("1:"&ROWS($S$33:$S$36)))),ROWS($1:2))),""))) -> Serbie
B107: =IF(COUNTIF($S$33:$S$36,1)>1,IF(ROWS($1:3)<=COUNTIF($S$33:$S$36,1),INDEX($T$33:$T$36,SMALL(IF($S$33:$S$36=1,ROW(INDIRECT("1:"&ROWS($S$33:$S$36)))),ROWS($1:3))),""),IF(COUNTIF($S$33:$S$36,2)>1,IF(ROWS($1:3)<=COUNTIF($S$33:$S$36,2),INDEX($T$33:$T$36,SMALL(IF($S$33:$S$36=2,ROW(INDIRECT("1:"&ROWS($S$33:$S$36)))),ROWS($1:3))),""))) -> Costa Rica
B108: =IF(COUNTIF($S$33:$S$36,1)>1,IF(ROWS($1:4)<=COUNTIF($S$33:$S$36,1),INDEX($T$33:$T$36,SMALL(IF($S$33:$S$36=1,ROW(INDIRECT("1:"&ROWS($S$33:$S$36)))),ROWS($1:4))),""),IF(COUNTIF($S$33:$S$36,2)>1,IF(ROWS($1:4)<=COUNTIF($S$33:$S$36,2),INDEX($T$33:$T$36,SMALL(IF($S$33:$S$36=2,ROW(INDIRECT("1:"&ROWS($S$33:$S$36)))),ROWS($1:4))),""))) -> Brésil
B109: Tirage au sort F1
B110: =IF(ROWS($1:1)<=COUNTIF($S$39:$S$42,1),INDEX($T$39:$T$42,SMALL(IF($S$39:$S$42=1,ROW(INDIRECT("1:"&ROWS($S$39:$S$42)))),ROWS($1:1))),"") -> Suède
B111: =IF(ROWS($1:2)<=COUNTIF($S$39:$S$42,1),INDEX($T$39:$T$42,SMALL(IF($S$39:$S$42=1,ROW(INDIRECT("1:"&ROWS($S$39:$S$42)))),ROWS($1:2))),"") -> République de Corée
B112: =IF(ROWS($1:3)<=COUNTIF($S$39:$S$42,1),INDEX($T$39:$T$42,SMALL(IF($S$39:$S$42=1,ROW(INDIRECT("1:"&ROWS($S$39:$S$42)))),ROWS($1:3))),"") -> Mexique
B113: =IF(ROWS($1:4)<=COUNTIF($S$39:$S$42,1),INDEX($T$39:$T$42,SMALL(IF($S$39:$S$42=1,ROW(INDIRECT("1:"&ROWS($S$39:$S$42)))),ROWS($1:4))),"") -> Allemagne
B114: Tirage au sort F2
B115: =IF(COUNTIF($S$39:$S$42,1)>1,IF(ROWS($1:1)<=COUNTIF($S$39:$S$42,1),INDEX($T$39:$T$42,SMALL(IF($S$39:$S$42=1,ROW(INDIRECT("1:"&ROWS($S$39:$S$42)))),ROWS($1:1))),""),IF(COUNTIF($S$39:$S$42,2)>1,IF(ROWS($1:1)<=COUNTIF($S$39:$S$42,2),INDEX($T$39:$T$42,SMALL(IF($S$39:$S$42=2,ROW(INDIRECT("1:"&ROWS($S$39:$S$42)))),ROWS($1:1))),""))) -> Suède
B116: =IF(COUNTIF($S$39:$S$42,1)>1,IF(ROWS($1:2)<=COUNTIF($S$39:$S$42,1),INDEX($T$39:$T$42,SMALL(IF($S$39:$S$42=1,ROW(INDIRECT("1:"&ROWS($S$39:$S$42)))),ROWS($1:2))),""),IF(COUNTIF($S$39:$S$42,2)>1,IF(ROWS($1:2)<=COUNTIF($S$39:$S$42,2),INDEX($T$39:$T$42,SMALL(IF($S$39:$S$42=2,ROW(INDIRECT("1:"&ROWS($S$39:$S$42)))),ROWS($1:2))),""))) -> République de Corée
B117: =IF(COUNTIF($S$39:$S$42,1)>1,IF(ROWS($1:3)<=COUNTIF($S$39:$S$42,1),INDEX($T$39:$T$42,SMALL(IF($S$39:$S$42=1,ROW(INDIRECT("1:"&ROWS($S$39:$S$42)))),ROWS($1:3))),""),IF(COUNTIF($S$39:$S$42,2)>1,IF(ROWS($1:3)<=COUNTIF($S$39:$S$42,2),INDEX($T$39:$T$42,SMALL(IF($S$39:$S$42=2,ROW(INDIRECT("1:"&ROWS($S$39:$S$42)))),ROWS($1:3))),""))) -> Mexique
B118: =IF(COUNTIF($S$39:$S$42,1)>1,IF(ROWS($1:4)<=COUNTIF($S$39:$S$42,1),INDEX($T$39:$T$42,SMALL(IF($S$39:$S$42=1,ROW(INDIRECT("1:"&ROWS($S$39:$S$42)))),ROWS($1:4))),""),IF(COUNTIF($S$39:$S$42,2)>1,IF(ROWS($1:4)<=COUNTIF($S$39:$S$42,2),INDEX($T$39:$T$42,SMALL(IF($S$39:$S$42=2,ROW(INDIRECT("1:"&ROWS($S$39:$S$42)))),ROWS($1:4))),""))) -> Allemagne
B119: Tirage au sort G1
B120: =IF(ROWS($1:1)<=COUNTIF($S$45:$S$48,1),INDEX($T$45:$T$48,SMALL(IF($S$45:$S$48=1,ROW(INDIRECT("1:"&ROWS($S$45:$S$48)))),ROWS($1:1))),"") -> Tunisie
B121: =IF(ROWS($1:2)<=COUNTIF($S$45:$S$48,1),INDEX($T$45:$T$48,SMALL(IF($S$45:$S$48=1,ROW(INDIRECT("1:"&ROWS($S$45:$S$48)))),ROWS($1:2))),"") -> Panama
B122: =IF(ROWS($1:3)<=COUNTIF($S$45:$S$48,1),INDEX($T$45:$T$48,SMALL(IF($S$45:$S$48=1,ROW(INDIRECT("1:"&ROWS($S$45:$S$48)))),ROWS($1:3))),"") -> Belgique
B123: =IF(ROWS($1:4)<=COUNTIF($S$45:$S$48,1),INDEX($T$45:$T$48,SMALL(IF($S$45:$S$48=1,ROW(INDIRECT("1:"&ROWS($S$45:$S$48)))),ROWS($1:4))),"") -> Angleterre
B124: Tirage au sort G2
B125: =IF(COUNTIF($S$45:$S$48,1)>1,IF(ROWS($1:1)<=COUNTIF($S$45:$S$48,1),INDEX($T$45:$T$48,SMALL(IF($S$45:$S$48=1,ROW(INDIRECT("1:"&ROWS($S$45:$S$48)))),ROWS($1:1))),""),IF(COUNTIF($S$45:$S$48,2)>1,IF(ROWS($1:1)<=COUNTIF($S$45:$S$48,2),INDEX($T$45:$T$48,SMALL(IF($S$45:$S$48=2,ROW(INDIRECT("1:"&ROWS($S$45:$S$48)))),ROWS($1:1))),""))) -> Tunisie
B126: =IF(COUNTIF($S$45:$S$48,1)>1,IF(ROWS($1:2)<=COUNTIF($S$45:$S$48,1),INDEX($T$45:$T$48,SMALL(IF($S$45:$S$48=1,ROW(INDIRECT("1:"&ROWS($S$45:$S$48)))),ROWS($1:2))),""),IF(COUNTIF($S$45:$S$48,2)>1,IF(ROWS($1:2)<=COUNTIF($S$45:$S$48,2),INDEX($T$45:$T$48,SMALL(IF($S$45:$S$48=2,ROW(INDIRECT("1:"&ROWS($S$45:$S$48)))),ROWS($1:2))),""))) -> Panama
B127: =IF(COUNTIF($S$45:$S$48,1)>1,IF(ROWS($1:3)<=COUNTIF($S$45:$S$48,1),INDEX($T$45:$T$48,SMALL(IF($S$45:$S$48=1,ROW(INDIRECT("1:"&ROWS($S$45:$S$48)))),ROWS($1:3))),""),IF(COUNTIF($S$45:$S$48,2)>1,IF(ROWS($1:3)<=COUNTIF($S$45:$S$48,2),INDEX($T$45:$T$48,SMALL(IF($S$45:$S$48=2,ROW(INDIRECT("1:"&ROWS($S$45:$S$48)))),ROWS($1:3))),""))) -> Belgique
B128: =IF(COUNTIF($S$45:$S$48,1)>1,IF(ROWS($1:4)<=COUNTIF($S$45:$S$48,1),INDEX($T$45:$T$48,SMALL(IF($S$45:$S$48=1,ROW(INDIRECT("1:"&ROWS($S$45:$S$48)))),ROWS($1:4))),""),IF(COUNTIF($S$45:$S$48,2)>1,IF(ROWS($1:4)<=COUNTIF($S$45:$S$48,2),INDEX($T$45:$T$48,SMALL(IF($S$45:$S$48=2,ROW(INDIRECT("1:"&ROWS($S$45:$S$48)))),ROWS($1:4))),""))) -> Angleterre
B129: Tirage au sort H1
B130: =IF(ROWS($1:1)<=COUNTIF($S$51:$S$54,1),INDEX($T$51:$T$54,SMALL(IF($S$51:$S$54=1,ROW(INDIRECT("1:"&ROWS($S$51:$S$54)))),ROWS($1:1))),"") -> Sénégal
B131: =IF(ROWS($1:2)<=COUNTIF($S$51:$S$54,1),INDEX($T$51:$T$54,SMALL(IF($S$51:$S$54=1,ROW(INDIRECT("1:"&ROWS($S$51:$S$54)))),ROWS($1:2))),"") -> Pologne
B132: =IF(ROWS($1:3)<=COUNTIF($S$51:$S$54,1),INDEX($T$51:$T$54,SMALL(IF($S$51:$S$54=1,ROW(INDIRECT("1:"&ROWS($S$51:$S$54)))),ROWS($1:3))),"") -> Japon
B133: =IF(ROWS($1:4)<=COUNTIF($S$51:$S$54,1),INDEX($T$51:$T$54,SMALL(IF($S$51:$S$54=1,ROW(INDIRECT("1:"&ROWS($S$51:$S$54)))),ROWS($1:4))),"") -> Colombie
B134: Tirage au sort H2
B135: =IF(COUNTIF($S$51:$S$54,1)>1,IF(ROWS($1:1)<=COUNTIF($S$51:$S$54,1),INDEX($T$51:$T$54,SMALL(IF($S$51:$S$54=1,ROW(INDIRECT("1:"&ROWS($S$51:$S$54)))),ROWS($1:1))),""),IF(COUNTIF($S$51:$S$54,2)>1,IF(ROWS($1:1)<=COUNTIF($S$51:$S$54,2),INDEX($T$51:$T$54,SMALL(IF($S$51:$S$54=2,ROW(INDIRECT("1:"&ROWS($S$51:$S$54)))),ROWS($1:1))),""))) -> Sénégal
B136: =IF(COUNTIF($S$51:$S$54,1)>1,IF(ROWS($1:2)<=COUNTIF($S$51:$S$54,1),INDEX($T$51:$T$54,SMALL(IF($S$51:$S$54=1,ROW(INDIRECT("1:"&ROWS($S$51:$S$54)))),ROWS($1:2))),""),IF(COUNTIF($S$51:$S$54,2)>1,IF(ROWS($1:2)<=COUNTIF($S$51:$S$54,2),INDEX($T$51:$T$54,SMALL(IF($S$51:$S$54=2,ROW(INDIRECT("1:"&ROWS($S$51:$S$54)))),ROWS($1:2))),""))) -> Pologne
B137: =IF(COUNTIF($S$51:$S$54,1)>1,IF(ROWS($1:3)<=COUNTIF($S$51:$S$54,1),INDEX($T$51:$T$54,SMALL(IF($S$51:$S$54=1,ROW(INDIRECT("1:"&ROWS($S$51:$S$54)))),ROWS($1:3))),""),IF(COUNTIF($S$51:$S$54,2)>1,IF(ROWS($1:3)<=COUNTIF($S$51:$S$54,2),INDEX($T$51:$T$54,SMALL(IF($S$51:$S$54=2,ROW(INDIRECT("1:"&ROWS($S$51:$S$54)))),ROWS($1:3))),""))) -> Japon
B138: =IF(COUNTIF($S$51:$S$54,1)>1,IF(ROWS($1:4)<=COUNTIF($S$51:$S$54,1),INDEX($T$51:$T$54,SMALL(IF($S$51:$S$54=1,ROW(INDIRECT("1:"&ROWS($S$51:$S$54)))),ROWS($1:4))),""),IF(COUNTIF($S$51:$S$54,2)>1,IF(ROWS($1:4)<=COUNTIF($S$51:$S$54,2),INDEX($T$51:$T$54,SMALL(IF($S$51:$S$54=2,ROW(INDIRECT("1:"&ROWS($S$51:$S$54)))),ROWS($1:4))),""))) -> Colombie

Sheet CLASSEMENT
B1: ="CLASSEMENT DES PRONOSTIQUEURS "&IF(PHASES_FINALES="OUI","EN PHASES FINALES","EN PHASE DE GROUPES") -> CLASSEMENT DES PRONOSTIQUEURS EN PHASE DE GROUPES | S1: =IF(ROWS($1:2)<=COUNTA(NomsF),INDEX(NomsF,ROWS($1:2)),"") -> CLASSEMENT
S2: =IF(ROWS($1:3)<=COUNTA(NomsF),INDEX(NomsF,ROWS($1:3)),"") -> GUIDE
S3: =IF(ROWS($1:4)<=COUNTA(NomsF),INDEX(NomsF,ROWS($1:4)),"") -> DATA_1_TEAMS
D4: Nom Pronostiqueur | E4: Lien | F4: Points | S4: =IF(ROWS($1:5)<=COUNTA(NomsF),INDEX(NomsF,ROWS($1:5)),"") -> DATA_1_MATCHS
C5: 1 | D5: =IFERROR(INDEX(R$5:R$204,MATCH(LARGE(U$5:U$204,C5),U$5:U$204,0)),"") -> Vincent | E5: =HYPERLINK("#'"&D5&"'!A1",REPT("Cliquez ici pour ouvrir le prono de "&UPPER(D5),ISREF(INDIRECT("'"&D5&"'!A1")))) -> Cliquez ici pour ouvrir le prono de VINCENT | F5: =IF(R5<>"",IFERROR(LARGE($U$5:$U$204,$C5),""),"") -> 5.000000005 | I5: ACTIVER LE CALCUL DES SCORES AVEC PHASES FINALES? | R5: =IFERROR(INDIRECT("'"&S5&"'!$B$4"),"") -> Vincent | S5: =IF(ROWS($1:6)<=COUNTA(NomsF),INDEX(NomsF,ROWS($1:6)),"") -> Vincent | T5: =IFERROR(INDIRECT("'"&S5&"'!$Ap$6"),"") -> 5 | U5: =IFERROR(IF(T5,T5+(ROW()/10^9),""),"") -> 5.000000005
C6: 2 | D6: =IFERROR(INDEX(R$5:R$204,MATCH(LARGE(U$5:U$204,C6),U$5:U$204,0)),"") -> Kociancic | E6: =HYPERLINK("#'"&D6&"'!A1",REPT("Cliquez ici pour ouvrir le prono de "&UPPER(D6),ISREF(INDIRECT("'"&D6&"'!A1")))) -> Cliquez ici pour ouvrir le prono de KOCIANCIC | F6: =IF(R6<>"",IFERROR(LARGE($U$5:$U$204,$C6),""),"") -> 3.000000015 | L6: NON | R6: =IFERROR(INDIRECT("'"&S6&"'!$B$4"),"") -> Vildary | S6: =IF(ROWS($1:7)<=COUNTA(NomsF),INDEX(NomsF,ROWS($1:7)),"") -> Vildary | T6: =IFERROR(INDIRECT("'"&S6&"'!$Ap$6"),"") -> 2 | U6: =IFERROR(IF(T6,T6+(ROW()/10^9),""),"") -> 2.000000006
C7: 3 | D7: RomainR | E7: Cliquez ici pour ouvrir le prono de ROMAINR | F7: 3.000000012 | R7: Alexis | S7: =IF(ROWS($1:8)<=COUNTA(NomsF),INDEX(NomsF,ROWS($1:8)),"") -> Alexis | T7: 2 | U7: 2.000000007
C8: 4 | D8: Alaeddine | E8: Cliquez ici pour ouvrir le prono de ALAEDDINE | F8: 2.000000014 | R8: Tiphaine | S8: =IF(ROWS($1:9)<=COUNTA(NomsF),INDEX(NomsF,ROWS($1:9)),"") -> Tiphaine | T8: 2 | U8: 2.000000008
C9: 5 | D9: Alexandre | E9: Cliquez ici pour ouvrir le prono de ALEXANDRE | F9: 2.000000013 | R9: Marie | S9: =IF(ROWS($1:10)<=COUNTA(NomsF),INDEX(NomsF,ROWS($1:10)),"") -> Marie | T9: 1 | U9: 1.000000009
C10: 6 | D10: Groger | E10: Cliquez ici pour ouvrir le prono de GROGER | F10: 2.000000011 | R10: JD | S10: =IF(ROWS($1:11)<=COUNTA(NomsF),INDEX(NomsF,ROWS($1:11)),"") -> JD | T10: 1 | U10: 1.00000001
C11: 7 | D11: Tiphaine | E11: Cliquez ici pour ouvrir le prono de TIPHAINE | F11: 2.000000008 | R11: Groger | S11: =IF(ROWS($1:12)<=COUNTA(NomsF),INDEX(NomsF,ROWS($1:12)),"") -> Groger | T11: 2 | U11: 2.000000011
C12: 8 | D12: Alexis | E12: Cliquez ici pour ouvrir le prono de ALEXIS | F12: 2.000000007 | R12: RomainR | S12: =IF(ROWS($1:13)<=COUNTA(NomsF),INDEX(NomsF,ROWS($1:13)),"") -> RomainR | T12: 3 | U12: 3.000000012
C13: 9 | D13: Vildary | E13: Cliquez ici pour ouvrir le prono de VILDARY | F13: 2.000000006 | R13: Alexandre | S13: =IF(ROWS($1:14)<=COUNTA(NomsF),INDEX(NomsF,ROWS($1:14)),"") -> Alexandre | T13: 2 | U13: 2.000000013
C14: 10 | D14: JD | E14: Cliquez ici pour ouvrir le prono de JD | F14: 1.00000001 | R14: Alaeddine | S14: =IF(ROWS($1:15)<=COUNTA(NomsF),INDEX(NomsF,ROWS($1:15)),"") -> Alaeddine | T14: 2 | U14: 2.000000014
C15: 11 | D15: Marie | E15: Cliquez ici pour ouvrir le prono de MARIE | F15: 1.000000009 | R15: Kociancic | S15: =IF(ROWS($1:16)<=COUNTA(NomsF),INDEX(NomsF,ROWS($1:16)),"") -> Kociancic | T15: 3 | U15: 3.000000015
C16: 12 | R16: PRONOSTIQUEUR | S16: =IF(ROWS($1:17)<=COUNTA(NomsF),INDEX(NomsF,ROWS($1:17)),"") -> PRONOSTIQUEUR | T16: 0
C17: 13 | S17: =IF(ROWS($1:18)<=COUNTA(NomsF),INDEX(NomsF,ROWS($1:18)),"") -> 
C18: 14 | S18: =IF(ROWS($1:19)<=COUNTA(NomsF),INDEX(NomsF,ROWS($1:19)),"") -> 
C19: 15 | S19: =IF(ROWS($1:20)<=COUNTA(NomsF),INDEX(NomsF,ROWS($1:20)),"") -> 
C20: 16 | S20: =IF(ROWS($1:21)<=COUNTA(NomsF),INDEX(NomsF,ROWS($1:21)),"") -> 
C21: 17 | S21: =IF(ROWS($1:22)<=COUNTA(NomsF),INDEX(NomsF,ROWS($1:22)),"") -> 
C22: 18 | S22: =IF(ROWS($1:23)<=COUNTA(NomsF),INDEX(NomsF,ROWS($1:23)),"") -> 
C23: 19 | S23: =IF(ROWS($1:24)<=COUNTA(NomsF),INDEX(NomsF,ROWS($1:24)),"") -> 
C24: 20 | S24: =IF(ROWS($1:25)<=COUNTA(NomsF),INDEX(NomsF,ROWS($1:25)),"") -> 
C25: 21 | S25: =IF(ROWS($1:26)<=COUNTA(NomsF),INDEX(NomsF,ROWS($1:26)),"") -> 
C26: 22 | S26: =IF(ROWS($1:27)<=COUNTA(NomsF),INDEX(NomsF,ROWS($1:27)),"") -> 
C27: 23 | S27: =IF(ROWS($1:28)<=COUNTA(NomsF),INDEX(NomsF,ROWS($1:28)),"") -> 
C28: 24 | S28: =IF(ROWS($1:29)<=COUNTA(NomsF),INDEX(NomsF,ROWS($1:29)),"") -> 
C29: 25 | S29: =IF(ROWS($1:30)<=COUNTA(NomsF),INDEX(NomsF,ROWS($1:30)),"") -> 
C30: 26 | S30: =IF(ROWS($1:31)<=COUNTA(NomsF),INDEX(NomsF,ROWS($1:31)),"") -> 
C31: 27 | S31: =IF(ROWS($1:32)<=COUNTA(NomsF),INDEX(NomsF,ROWS($1:32)),"") -> 
C32: 28 | S32: =IF(ROWS($1:33)<=COUNTA(NomsF),INDEX(NomsF,ROWS($1:33)),"") -> 
C33: 29 | S33: =IF(ROWS($1:34)<=COUNTA(NomsF),INDEX(NomsF,ROWS($1:34)),"") -> 
C34: 30 | S34: =IF(ROWS($1:35)<=COUNTA(NomsF),INDEX(NomsF,ROWS($1:35)),"") -> 
C35: 31 | S35: =IF(ROWS($1:36)<=COUNTA(NomsF),INDEX(NomsF,ROWS($1:36)),"") -> 
C36: 32 | S36: =IF(ROWS($1:37)<=COUNTA(NomsF),INDEX(NomsF,ROWS($1:37)),"") -> 
C37: 33 | S37: =IF(ROWS($1:38)<=COUNTA(NomsF),INDEX(NomsF,ROWS($1:38)),"") -> 
C38: 34 | S38: =IF(ROWS($1:39)<=COUNTA(NomsF),INDEX(NomsF,ROWS($1:39)),"") -> 
C39: 35 | S39: =IF(ROWS($1:40)<=COUNTA(NomsF),INDEX(NomsF,ROWS($1:40)),"") -> 
C40: 36 | S40: =IF(ROWS($1:41)<=COUNTA(NomsF),INDEX(NomsF,ROWS($1:41)),"") -> 
C41: 37 | S41: =IF(ROWS($1:42)<=COUNTA(NomsF),INDEX(NomsF,ROWS($1:42)),"") -> 
C42: 38 | S42: =IF(ROWS($1:43)<=COUNTA(NomsF),INDEX(NomsF,ROWS($1:43)),"") -> 
C43: 39 | S43: =IF(ROWS($1:44)<=COUNTA(NomsF),INDEX(NomsF,ROWS($1:44)),"") -> 
C44: 40 | S44: =IF(ROWS($1:45)<=COUNTA(NomsF),INDEX(NomsF,ROWS($1:45)),"") -> 
C45: 41 | S45: =IF(ROWS($1:46)<=COUNTA(NomsF),INDEX(NomsF,ROWS($1:46)),"") -> 
C46: 42 | S46: =IF(ROWS($1:47)<=COUNTA(NomsF),INDEX(NomsF,ROWS($1:47)),"") -> 
C47: 43 | S47: =IF(ROWS($1:48)<=COUNTA(NomsF),INDEX(NomsF,ROWS($1:48)),"") -> 
C48: 44 | S48: =IF(ROWS($1:49)<=COUNTA(NomsF),INDEX(NomsF,ROWS($1:49)),"") -> 
C49: 45 | S49: =IF(ROWS($1:50)<=COUNTA(NomsF),INDEX(NomsF,ROWS($1:50)),"") -> 
C50: 46 | S50: =IF(ROWS($1:51)<=COUNTA(NomsF),INDEX(NomsF,ROWS($1:51)),"") -> 
C51: 47 | S51: =IF(ROWS($1:52)<=COUNTA(NomsF),INDEX(NomsF,ROWS($1:52)),"") -> 
C52: 48 | S52: =IF(ROWS($1:53)<=COUNTA(NomsF),INDEX(NomsF,ROWS($1:53)),"") -> 
C53: 49 | S53: =IF(ROWS($1:54)<=COUNTA(NomsF),INDEX(NomsF,ROWS($1:54)),"") -> 
C54: 50 | S54: =IF(ROWS($1:55)<=COUNTA(NomsF),INDEX(NomsF,ROWS($1:55)),"") -> 
C55: 51 | S55: =IF(ROWS($1:56)<=COUNTA(NomsF),INDEX(NomsF,ROWS($1:56)),"") -> 
C56: 52 | S56: =IF(ROWS($1:57)<=COUNTA(NomsF),INDEX(NomsF,ROWS($1:57)),"") -> 
C57: 53 | S57: =IF(ROWS($1:58)<=COUNTA(NomsF),INDEX(NomsF,ROWS($1:58)),"") -> 
C58: 54 | S58: =IF(ROWS($1:59)<=COUNTA(NomsF),INDEX(NomsF,ROWS($1:59)),"") -> 
C59: 55 | S59: =IF(ROWS($1:60)<=COUNTA(NomsF),INDEX(NomsF,ROWS($1:60)),"") -> 
C60: 56 | S60: =IF(ROWS($1:61)<=COUNTA(NomsF),INDEX(NomsF,ROWS($1:61)),"") -> 
C61: 57 | S61: =IF(ROWS($1:62)<=COUNTA(NomsF),INDEX(NomsF,ROWS($1:62)),"") -> 
C62: 58 | S62: =IF(ROWS($1:63)<=COUNTA(NomsF),INDEX(NomsF,ROWS($1:63)),"") -> 
C63: 59 | S63: =IF(ROWS($1:64)<=COUNTA(NomsF),INDEX(NomsF,ROWS($1:64)),"") -> 
C64: 60 | S64: =IF(ROWS($1:65)<=COUNTA(NomsF),INDEX(NomsF,ROWS($1:65)),"") -> 
C65: 61 | S65: =IF(ROWS($1:66)<=COUNTA(NomsF),INDEX(NomsF,ROWS($1:66)),"") -> 
C66: 62 | S66: =IF(ROWS($1:67)<=COUNTA(NomsF),INDEX(NomsF,ROWS($1:67)),"") -> 
C67: 63 | S67: =IF(ROWS($1:68)<=COUNTA(NomsF),INDEX(NomsF,ROWS($1:68)),"") -> 
C68: 64 | S68: =IF(ROWS($1:69)<=COUNTA(NomsF),INDEX(NomsF,ROWS($1:69)),"") -> 
C69: 65 | S69: =IF(ROWS($1:70)<=COUNTA(NomsF),INDEX(NomsF,ROWS($1:70)),"") -> 
C70: 66 | D70: =IFERROR(INDEX(R$5:R$204,MATCH(LARGE(U$5:U$204,C70),U$5:U$204,0)),"") ->  | E70: =HYPERLINK("#'"&D70&"'!A1",REPT("Cliquez ici pour ouvrir le prono de "&UPPER(D70),ISREF(INDIRECT("'"&D70&"'!A1")))) ->  | F70: =IF(R70<>"",IFERROR(LARGE($U$5:$U$204,$C70),""),"") ->  | R70: =IFERROR(INDIRECT("'"&S70&"'!$B$4"),"") ->  | S70: =IF(ROWS($1:71)<=COUNTA(NomsF),INDEX(NomsF,ROWS($1:71)),"") ->  | T70: =IFERROR(INDIRECT("'"&S70&"'!$Ap$6"),"") ->  | U70: =IFERROR(IF(T70,T70+(ROW()/10^9),""),"") -> 
C71: 67 | S71: =IF(ROWS($1:72)<=COUNTA(NomsF),INDEX(NomsF,ROWS($1:72)),"") -> 
C72: 68 | S72: =IF(ROWS($1:73)<=COUNTA(NomsF),INDEX(NomsF,ROWS($1:73)),"") -> 
C73: 69 | S73: =IF(ROWS($1:74)<=COUNTA(NomsF),INDEX(NomsF,ROWS($1:74)),"") -> 
C74: 70 | S74: =IF(ROWS($1:75)<=COUNTA(NomsF),INDEX(NomsF,ROWS($1:75)),"") -> 
C75: 71 | S75: =IF(ROWS($1:76)<=COUNTA(NomsF),INDEX(NomsF,ROWS($1:76)),"") -> 
C76: 72 | S76: =IF(ROWS($1:77)<=COUNTA(NomsF),INDEX(NomsF,ROWS($1:77)),"") -> 
C77: 73 | S77: =IF(ROWS($1:78)<=COUNTA(NomsF),INDEX(NomsF,ROWS($1:78)),"") -> 
C78: 74 | S78: =IF(ROWS($1:79)<=COUNTA(NomsF),INDEX(NomsF,ROWS($1:79)),"") -> 
C79: 75 | S79: =IF(ROWS($1:80)<=COUNTA(NomsF),INDEX(NomsF,ROWS($1:80)),"") -> 
C80: 76 | S80: =IF(ROWS($1:81)<=COUNTA(NomsF),INDEX(NomsF,ROWS($1:81)),"") -> 
C81: 77 | S81: =IF(ROWS($1:82)<=COUNTA(NomsF),INDEX(NomsF,ROWS($1:82)),"") -> 
C82: 78 | S82: =IF(ROWS($1:83)<=COUNTA(NomsF),INDEX(NomsF,ROWS($1:83)),"") -> 
C83: 79 | S83: =IF(ROWS($1:84)<=COUNTA(NomsF),INDEX(NomsF,ROWS($1:84)),"") -> 
C84: 80 | S84: =IF(ROWS($1:85)<=COUNTA(NomsF),INDEX(NomsF,ROWS($1:85)),"") -> 
C85: 81 | S85: =IF(ROWS($1:86)<=COUNTA(NomsF),INDEX(NomsF,ROWS($1:86)),"") -> 
C86: 82 | S86: =IF(ROWS($1:87)<=COUNTA(NomsF),INDEX(NomsF,ROWS($1:87)),"") -> 
C87: 83 | S87: =IF(ROWS($1:88)<=COUNTA(NomsF),INDEX(NomsF,ROWS($1:88)),"") -> 
C88: 84 | S88: =IF(ROWS($1:89)<=COUNTA(NomsF),INDEX(NomsF,ROWS($1:89)),"") -> 
C89: 85 | S89: =IF(ROWS($1:90)<=COUNTA(NomsF),INDEX(NomsF,ROWS($1:90)),"") -> 
C90: 86 | S90: =IF(ROWS($1:91)<=COUNTA(NomsF),INDEX(NomsF,ROWS($1:91)),"") -> 
C91: 87 | S91: =IF(ROWS($1:92)<=COUNTA(NomsF),INDEX(NomsF,ROWS($1:92)),"") -> 
C92: 88 | S92: =IF(ROWS($1:93)<=COUNTA(NomsF),INDEX(NomsF,ROWS($1:93)),"") -> 
C93: 89 | S93: =IF(ROWS($1:94)<=COUNTA(NomsF),INDEX(NomsF,ROWS($1:94)),"") -> 
C94: 90 | S94: =IF(ROWS($1:95)<=COUNTA(NomsF),INDEX(NomsF,ROWS($1:95)),"") -> 
C95: 91 | S95: =IF(ROWS($1:96)<=COUNTA(NomsF),INDEX(NomsF,ROWS($1:96)),"") -> 
C96: 92 | S96: =IF(ROWS($1:97)<=COUNTA(NomsF),INDEX(NomsF,ROWS($1:97)),"") -> 
C97: 93 | S97: =IF(ROWS($1:98)<=COUNTA(NomsF),INDEX(NomsF,ROWS($1:98)),"") -> 
C98: 94 | S98: =IF(ROWS($1:99)<=COUNTA(NomsF),INDEX(NomsF,ROWS($1:99)),"") -> 
C99: 95 | S99: =IF(ROWS($1:100)<=COUNTA(NomsF),INDEX(NomsF,ROWS($1:100)),"") -> 
C100: 96 | S100: =IF(ROWS($1:101)<=COUNTA(NomsF),INDEX(NomsF,ROWS($1:101)),"") -> 
C101: 97 | S101: =IF(ROWS($1:102)<=COUNTA(NomsF),INDEX(NomsF,ROWS($1:102)),"") -> 
C102: 98 | S102: =IF(ROWS($1:103)<=COUNTA(NomsF),INDEX(NomsF,ROWS($1:103)),"") -> 
C103: 99 | S103: =IF(ROWS($1:104)<=COUNTA(NomsF),INDEX(NomsF,ROWS($1:104)),"") -> 
C104: 100 | S104: =IF(ROWS($1:105)<=COUNTA(NomsF),INDEX(NomsF,ROWS($1:105)),"") -> 
C105: 101 | S105: =IF(ROWS($1:106)<=COUNTA(NomsF),INDEX(NomsF,ROWS($1:106)),"") -> 
C106: 102 | S106: =IF(ROWS($1:107)<=COUNTA(NomsF),INDEX(NomsF,ROWS($1:107)),"") -> 
C107: 103 | S107: =IF(ROWS($1:108)<=COUNTA(NomsF),INDEX(NomsF,ROWS($1:108)),"") -> 
C108: 104 | S108: =IF(ROWS($1:109)<=COUNTA(NomsF),INDEX(NomsF,ROWS($1:109)),"") -> 
C109: 105 | S109: =IF(ROWS($1:110)<=COUNTA(NomsF),INDEX(NomsF,ROWS($1:110)),"") -> 
C110: 106 | S110: =IF(ROWS($1:111)<=COUNTA(NomsF),INDEX(NomsF,ROWS($1:111)),"") -> 
C111: 107 | S111: =IF(ROWS($1:112)<=COUNTA(NomsF),INDEX(NomsF,ROWS($1:112)),"") -> 
C112: 108 | S112: =IF(ROWS($1:113)<=COUNTA(NomsF),INDEX(NomsF,ROWS($1:113)),"") -> 
C113: 109 | S113: =IF(ROWS($1:114)<=COUNTA(NomsF),INDEX(NomsF,ROWS($1:114)),"") -> 
C114: 110 | S114: =IF(ROWS($1:115)<=COUNTA(NomsF),INDEX(NomsF,ROWS($1:115)),"") -> 
C115: 111 | S115: =IF(ROWS($1:116)<=COUNTA(NomsF),INDEX(NomsF,ROWS($1:116)),"") -> 
C116: 112 | S116: =IF(ROWS($1:117)<=COUNTA(NomsF),INDEX(NomsF,ROWS($1:117)),"") -> 
C117: 113 | S117: =IF(ROWS($1:118)<=COUNTA(NomsF),INDEX(NomsF,ROWS($1:118)),"") -> 
C118: 114 | S118: =IF(ROWS($1:119)<=COUNTA(NomsF),INDEX(NomsF,ROWS($1:119)),"") -> 
C119: 115 | S119: =IF(ROWS($1:120)<=COUNTA(NomsF),INDEX(NomsF,ROWS($1:120)),"") -> 
C120: 116 | S120: =IF(ROWS($1:121)<=COUNTA(NomsF),INDEX(NomsF,ROWS($1:121)),"") -> 
C121: 117 | S121: =IF(ROWS($1:122)<=COUNTA(NomsF),INDEX(NomsF,ROWS($1:122)),"") -> 
C122: 118 | S122: =IF(ROWS($1:123)<=COUNTA(NomsF),INDEX(NomsF,ROWS($1:123)),"") -> 
C123: 119 | S123: =IF(ROWS($1:124)<=COUNTA(NomsF),INDEX(NomsF,ROWS($1:124)),"") -> 
C124: 120 | S124: =IF(ROWS($1:125)<=COUNTA(NomsF),INDEX(NomsF,ROWS($1:125)),"") -> 
C125: 121 | S125: =IF(ROWS($1:126)<=COUNTA(NomsF),INDEX(NomsF,ROWS($1:126)),"") -> 
C126: 122 | S126: =IF(ROWS($1:127)<=COUNTA(NomsF),INDEX(NomsF,ROWS($1:127)),"") -> 
C127: 123 | S127: =IF(ROWS($1:128)<=COUNTA(NomsF),INDEX(NomsF,ROWS($1:128)),"") -> 
C128: 124 | S128: =IF(ROWS($1:129)<=COUNTA(NomsF),INDEX(NomsF,ROWS($1:129)),"") -> 
C129: 125 | S129: =IF(ROWS($1:130)<=COUNTA(NomsF),INDEX(NomsF,ROWS($1:130)),"") -> 
C130: 126 | S130: =IF(ROWS($1:131)<=COUNTA(NomsF),INDEX(NomsF,ROWS($1:131)),"") -> 
C131: 127 | S131: =IF(ROWS($1:132)<=COUNTA(NomsF),INDEX(NomsF,ROWS($1:132)),"") -> 
C132: 128 | S132: =IF(ROWS($1:133)<=COUNTA(NomsF),INDEX(NomsF,ROWS($1:133)),"") -> 
C133: 129 | S133: =IF(ROWS($1:134)<=COUNTA(NomsF),INDEX(NomsF,ROWS($1:134)),"") -> 
C134: 130 | D134: =IFERROR(INDEX(R$5:R$204,MATCH(LARGE(U$5:U$204,C134),U$5:U$204,0)),"") ->  | E134: =HYPERLINK("#'"&D134&"'!A1",REPT("Cliquez ici pour ouvrir le prono de "&UPPER(D134),ISREF(INDIRECT("'"&D134&"'!A1")))) ->  | F134: =IF(R134<>"",IFERROR(LARGE($U$5:$U$204,$C134),""),"") ->  | R134: =IFERROR(INDIRECT("'"&S134&"'!$B$4"),"") ->  | S134: =IF(ROWS($1:135)<=COUNTA(NomsF),INDEX(NomsF,ROWS($1:135)),"") ->  | T134: =IFERROR(INDIRECT("'"&S134&"'!$Ap$6"),"") ->  | U134: =IFERROR(IF(T134,T134+(ROW()/10^9),""),"") -> 
C135: 131 | S135: =IF(ROWS($1:136)<=COUNTA(NomsF),INDEX(NomsF,ROWS($1:136)),"") -> 
C136: 132 | S136: =IF(ROWS($1:137)<=COUNTA(NomsF),INDEX(NomsF,ROWS($1:137)),"") -> 
C137: 133 | S137: =IF(ROWS($1:138)<=COUNTA(NomsF),INDEX(NomsF,ROWS($1:138)),"") -> 
C138: 134 | S138: =IF(ROWS($1:139)<=COUNTA(NomsF),INDEX(NomsF,ROWS($1:139)),"") -> 
C139: 135 | S139: =IF(ROWS($1:140)<=COUNTA(NomsF),INDEX(NomsF,ROWS($1:140)),"") -> 
C140: 136 | S140: =IF(ROWS($1:141)<=COUNTA(NomsF),INDEX(NomsF,ROWS($1:141)),"") -> 
C141: 137 | S141: =IF(ROWS($1:142)<=COUNTA(NomsF),INDEX(NomsF,ROWS($1:142)),"") -> 
C142: 138 | S142: =IF(ROWS($1:143)<=COUNTA(NomsF),INDEX(NomsF,ROWS($1:143)),"") -> 
C143: 139 | S143: =IF(ROWS($1:144)<=COUNTA(NomsF),INDEX(NomsF,ROWS($1:144)),"") -> 
C144: 140 | S144: =IF(ROWS($1:145)<=COUNTA(NomsF),INDEX(NomsF,ROWS($1:145)),"") -> 
C145: 141 | S145: =IF(ROWS($1:146)<=COUNTA(NomsF),INDEX(NomsF,ROWS($1:146)),"") -> 
C146: 142 | S146: =IF(ROWS($1:147)<=COUNTA(NomsF),INDEX(NomsF,ROWS($1:147)),"") -> 
C147: 143 | S147: =IF(ROWS($1:148)<=COUNTA(NomsF),INDEX(NomsF,ROWS($1:148)),"") -> 
C148: 144 | S148: =IF(ROWS($1:149)<=COUNTA(NomsF),INDEX(NomsF,ROWS($1:149)),"") -> 
C149: 145 | S149: =IF(ROWS($1:150)<=COUNTA(NomsF),INDEX(NomsF,ROWS($1:150)),"") -> 
C150: 146 | S150: =IF(ROWS($1:151)<=COUNTA(NomsF),INDEX(NomsF,ROWS($1:151)),"") -> 
C151: 147 | S151: =IF(ROWS($1:152)<=COUNTA(NomsF),INDEX(NomsF,ROWS($1:152)),"") -> 
C152: 148 | S152: =IF(ROWS($1:153)<=COUNTA(NomsF),INDEX(NomsF,ROWS($1:153)),"") -> 
C153: 149 | S153: =IF(ROWS($1:154)<=COUNTA(NomsF),INDEX(NomsF,ROWS($1:154)),"") -> 
C154: 150 | S154: =IF(ROWS($1:155)<=COUNTA(NomsF),INDEX(NomsF,ROWS($1:155)),"") -> 
C155: 151 | S155: =IF(ROWS($1:156)<=COUNTA(NomsF),INDEX(NomsF,ROWS($1:156)),"") -> 
C156: 152 | S156: =IF(ROWS($1:157)<=COUNTA(NomsF),INDEX(NomsF,ROWS($1:157)),"") -> 
C157: 153 | S157: =IF(ROWS($1:158)<=COUNTA(NomsF),INDEX(NomsF,ROWS($1:158)),"") -> 
C158: 154 | S158: =IF(ROWS($1:159)<=COUNTA(NomsF),INDEX(NomsF,ROWS($1:159)),"") -> 
C159: 155 | S159: =IF(ROWS($1:160)<=COUNTA(NomsF),INDEX(NomsF,ROWS($1:160)),"") -> 
C160: 156 | S160: =IF(ROWS($1:161)<=COUNTA(NomsF),INDEX(NomsF,ROWS($1:161)),"") -> 
C161: 157 | S161: =IF(ROWS($1:162)<=COUNTA(NomsF),INDEX(NomsF,ROWS($1:162)),"") -> 
C162: 158 | S162: =IF(ROWS($1:163)<=COUNTA(NomsF),INDEX(NomsF,ROWS($1:163)),"") -> 
C163: 159 | S163: =IF(ROWS($1:164)<=COUNTA(NomsF),INDEX(NomsF,ROWS($1:164)),"") -> 
C164: 160 | S164: =IF(ROWS($1:165)<=COUNTA(NomsF),INDEX(NomsF,ROWS($1:165)),"") -> 
C165: 161 | S165: =IF(ROWS($1:166)<=COUNTA(NomsF),INDEX(NomsF,ROWS($1:166)),"") -> 
C166: 162 | S166: =IF(ROWS($1:167)<=COUNTA(NomsF),INDEX(NomsF,ROWS($1:167)),"") -> 
C167: 163 | S167: =IF(ROWS($1:168)<=COUNTA(NomsF),INDEX(NomsF,ROWS($1:168)),"") -> 
C168: 164 | S168: =IF(ROWS($1:169)<=COUNTA(NomsF),INDEX(NomsF,ROWS($1:169)),"") -> 
C169: 165 | S169: =IF(ROWS($1:170)<=COUNTA(NomsF),INDEX(NomsF,ROWS($1:170)),"") -> 
C170: 166 | S170: =IF(ROWS($1:171)<=COUNTA(NomsF),INDEX(NomsF,ROWS($1:171)),"") -> 
C171: 167 | S171: =IF(ROWS($1:172)<=COUNTA(NomsF),INDEX(NomsF,ROWS($1:172)),"") -> 
C172: 168 | S172: =IF(ROWS($1:173)<=COUNTA(NomsF),INDEX(NomsF,ROWS($1:173)),"") -> 
C173: 169 | S173: =IF(ROWS($1:174)<=COUNTA(NomsF),INDEX(NomsF,ROWS($1:174)),"") -> 
C174: 170 | S174: =IF(ROWS($1:175)<=COUNTA(NomsF),INDEX(NomsF,ROWS($1:175)),"") -> 
C175: 171 | S175: =IF(ROWS($1:176)<=COUNTA(NomsF),INDEX(NomsF,ROWS($1:176)),"") -> 
C176: 172 | S176: =IF(ROWS($1:177)<=COUNTA(NomsF),INDEX(NomsF,ROWS($1:177)),"") -> 
C177: 173 | S177: =IF(ROWS($1:178)<=COUNTA(NomsF),INDEX(NomsF,ROWS($1:178)),"") -> 
C178: 174 | S178: =IF(ROWS($1:179)<=COUNTA(NomsF),INDEX(NomsF,ROWS($1:179)),"") -> 
C179: 175 | S179: =IF(ROWS($1:180)<=COUNTA(NomsF),INDEX(NomsF,ROWS($1:180)),"") -> 
C180: 176 | S180: =IF(ROWS($1:181)<=COUNTA(NomsF),INDEX(NomsF,ROWS($1:181)),"") -> 
C181: 177 | S181: =IF(ROWS($1:182)<=COUNTA(NomsF),INDEX(NomsF,ROWS($1:182)),"") -> 
C182: 178 | S182: =IF(ROWS($1:183)<=COUNTA(NomsF),INDEX(NomsF,ROWS($1:183)),"") -> 
C183: 179 | S183: =IF(ROWS($1:184)<=COUNTA(NomsF),INDEX(NomsF,ROWS($1:184)),"") -> 
C184: 180 | S184: =IF(ROWS($1:185)<=COUNTA(NomsF),INDEX(NomsF,ROWS($1:185)),"") -> 
C185: 181 | S185: =IF(ROWS($1:186)<=COUNTA(NomsF),INDEX(NomsF,ROWS($1:186)),"") -> 
C186: 182 | S186: =IF(ROWS($1:187)<=COUNTA(NomsF),INDEX(NomsF,ROWS($1:187)),"") -> 
C187: 183 | S187: =IF(ROWS($1:188)<=COUNTA(NomsF),INDEX(NomsF,ROWS($1:188)),"") -> 
C188: 184 | S188: =IF(ROWS($1:189)<=COUNTA(NomsF),INDEX(NomsF,ROWS($1:189)),"") -> 
C189: 185 | S189: =IF(ROWS($1:190)<=COUNTA(NomsF),INDEX(NomsF,ROWS($1:190)),"") -> 
C190: 186 | S190: =IF(ROWS($1:191)<=COUNTA(NomsF),INDEX(NomsF,ROWS($1:191)),"") -> 
C191: 187 | S191: =IF(ROWS($1:192)<=COUNTA(NomsF),INDEX(NomsF,ROWS($1:192)),"") -> 
C192: 188 | S192: =IF(ROWS($1:193)<=COUNTA(NomsF),INDEX(NomsF,ROWS($1:193)),"") -> 
C193: 189 | S193: =IF(ROWS($1:194)<=COUNTA(NomsF),INDEX(NomsF,ROWS($1:194)),"") -> 
C194: 190 | S194: =IF(ROWS($1:195)<=COUNTA(NomsF),INDEX(NomsF,ROWS($1:195)),"") -> 
C195: 191 | S195: =IF(ROWS($1:196)<=COUNTA(NomsF),INDEX(NomsF,ROWS($1:196)),"") -> 
C196: 192 | S196: =IF(ROWS($1:197)<=COUNTA(NomsF),INDEX(NomsF,ROWS($1:197)),"") -> 
C197: 193 | S197: =IF(ROWS($1:198)<=COUNTA(NomsF),INDEX(NomsF,ROWS($1:198)),"") -> 
C198: 194 | D198: =IFERROR(INDEX(R$5:R$204,MATCH(LARGE(U$5:U$204,C198),U$5:U$204,0)),"") ->  | E198: =HYPERLINK("#'"&D198&"'!A1",REPT("Cliquez ici pour ouvrir le prono de "&UPPER(D198),ISREF(INDIRECT("'"&D198&"'!A1")))) ->  | F198: =IF(R198<>"",IFERROR(LARGE($U$5:$U$204,$C198),""),"") ->  | R198: =IFERROR(INDIRECT("'"&S198&"'!$B$4"),"") ->  | S198: =IF(ROWS($1:199)<=COUNTA(NomsF),INDEX(NomsF,ROWS($1:199)),"") ->  | T198: =IFERROR(INDIRECT("'"&S198&"'!$Ap$6"),"") ->  | U198: =IFERROR(IF(T198,T198+(ROW()/10^9),""),"") -> 
C199: 195 | S199: =IF(ROWS($1:200)<=COUNTA(NomsF),INDEX(NomsF,ROWS($1:200)),"") -> 
C200: 196 | S200: =IF(ROWS($1:201)<=COUNTA(NomsF),INDEX(NomsF,ROWS($1:201)),"") -> 
... 4 more rows

Sheet GUIDE
C6: UTILISATION DU FICHIER PRONOSTIC FIFA World Cup 2018 | R6: Pour les curieux et utilisateurs avertis, ôtez la protection avec le mot de passe : XLD. | AC6: VERSIONS
C7: 1 - COMMENT CA MARCHE? | AC7: Version 1.0
AC8: Cette version 1.0 a été réalisée à partir de la version 2.6 (JCGL) du fichier précédemment créé pour
C9: Merci d'avoir téléchargé "FIFA World Cup Russia 2018 - XLD". | P9: REGLES DE CALCUL DES POINTS ATTRIBUES : | AC9: la coupe du monde 2014.
C10: L'origine de ce fichier remonte à la coupe du monde 2014. Il a été créé par David Aubert, webmaster du site Excel Downloads :
C11: https://www.excel-downloads.com | AC11: Version 1.0a
C12: Il a été ensuite amélioré par les membres du site et plus particulièrement par JCGL, que je remercie chaleureusement!! | AC12: Correction d'une erreur de calcul des points pour l'équipe du Nigeria.
C13: Rendez vous régulièrement sur la page de téléchargement du fichier pour suivre les mises à jour ou participer aux discussions relatives
C14: au programme : | E14: https://www.excel-downloads.com/resources/coupe-du-monde-football-russie-2018.1075/ | AC14: Version 1.1
AC15: Affichage dynamique du classement groupe par groupe en fonction des résultats des matchs.
C16: Ce fichier va vous permettre d'organiser un concours de pronostics pour 1 à 200 joueurs. | AC16: Possibilité de jouer jusqu'à 200 pronostiqueurs.
C17: Avant la coupe du monde, créez un onglet par pronostiqueur et saisissez les pronostics des joueurs. | AC17: Correction des liens dans l'onglet "Classement" (merci Job75 et Modeste!)
C18: Lorsque la Coupe du Monde débute, il ne vous reste plus qu'à saisir les résultats des matchs au jour le jour et
C19: voir évoluer les scores et classements des pronostiqueurs jusqu'à la Finale, dans l'onglet "CLASSEMENT". | AC19: Version 1.1a
AC20: Correction d'une erreur de typo sans impact sur la qualité des données (merci jimdk).
C21: Commençons tout d'abord par voir comment créer les onglets des pronostiqueurs…
AC22: Version 1.1b
AC23: Possibilité de calculer les scores des pronostiqueurs en intégrant les bonifications des phases finales ou non.
C24: 2 - AJOUT DES PRONOSTIQUEURS | AC24: Indicateurs visuels (couleurs) en face des matchs ou équipes générant des points aux pronostiqueurs (utile
AC25: pour faire les contrôles).
C26: IMPORTANT : pour le bon fonctionnement du fichier, il est crucial que les onglets "RESULTATS", "CLASSEMENT" et "GUIDE" restent positionnés avant les onglets de pronostics.
C27: Faite donc en sorte de ne jamais déplacer un fichier de pronostic avant ou entre ces onglets. | AC27: Version 1.1c
AC28: Correction d'une erreur mineure d'affichage sans impact sur la qualité des données (merci Paul.R).
C29: Suivre les étapes imagées ci-dessous : | AC29: Mise à jour des heures des matchs aux heures françaises de diffusion.
C30: Le fichier d'origine comporte un seul pronostiqueur nommé "Pronostiqueur 1".
C31: Dupliquez cet onglet autant de fois que nécessaire et renommez le ainsi que ses copies avec les noms des pronostiqueurs.
C48: 3 - SAISIE DES PRONOSTIQUES
C50: La saisie des pronostics d'effectue dans les onglets que vous avez créés tel qu'expliqué dans la partie "2 - AJOUT DES PRONOSTIQUEURS" de ce guide.
C52: EN PHASE DE GROUPES
C54: Saisir les scores pour chaque matchs dans les colonnes "Buts" | L54: Les points et les statistiques sont calculés automatiquement
C55: Les vainqueurs sont automatiquement mis en évidence sur fond rouge. | L55: dans les tableaux récapitulatifs des groupes.
C69: 1/8èmes de FINALE
C71: Dans 99% des cas, les règles de la FIFA permettent de départager tous les pays | L71: Si les règles de calcul de la FIFA ne permettent pas de départager les ex-aequos,
C72: et il y a très peu de chances qu'il y ait des ex-aequos. | L72: alors le tableau des huitièmes de finales mettra en évidences les ex-aequos qui
C73: Après avoir saisi tous les scores en phases de groupes, le tableau des huitièmes de finales doit être ainsi : | L73: seront départagés par un tirage au sort.
L74: Le tableau ressemblera à cela :
M90: Dans ce cas, il y a des ex-aequos dans le groupe B qui seront départagés par un
M91: tirage au sort. Choisissez les pays dans la liste déroulante.
M92: ATTENTION, dans ce cas, les modifications apportées aux scores dans la phase
M93: de groupe ne seront plus répercutées dans le tableau des huitièmes de finales.
M94: Il faudra reprendre un fichier vierge et ressaisir les scores pour faire une autre
M95: simulation.
C97: SAISIE DES SCORES EN PHASE FINALE
C99: Saisissez les scores des huitèmes de finales dans les colonnes "Buts".
C100: En cas d'égalité, départagez les équipes aux tirs au buts en inscrivant les scores
C101: dans les colonnes "Pen".
C102: Vos pronostics des huitièmes de finales se répercutent automatiquement dans le
C103: tableau des quarts de finales qu'il faudra renseigner de la même façon et ainsi
C104: de suite jusqu'à la finale!!
C123: 4 - SAISIE DES RESULTATS PENDANT LA COUPE DU MONDE & CLASSEMENT DES PRONOSTIQUEURS
C125: Dès que la coupe du monde démarre, ne touchez plus aux pronositques.
C126: Il suffit maintenant de saisir les résultats régulièrement (ou en fin de Coupe du Monde) pour découvrir le vainqueur du concours de pronostics!!
C128: La saisie des résultats s'efectue dans l'onglet "RESULTATS" comme vous l'avez fait pour les onglets des pronostiqueurs.
C130: Le score des pronostiqueurs est automatiquement mis à jour dans les onglets des pronostiqueurs (en haut à droite) :
C147: Le classement des pronostiqueurs est lui aussi mis à jour au fil de la saisie des résultats. | L147: Si vous ne souhaitez pas que les points attribués pour chaque 1/8ème de finaliste trouvé
C148: Onglet "CLASSEMENT" : | L148: soient additionnés au score des pronostiqueurs pendant la saisie des résultats des phases
L149: de groupe, vous pouvez désactiver le calcul des scores des phases finales.
L150: Attention, il est impératif que cette sélection soit sur OUI lorsque les phases de poules sont
L151: terminées. Sinon, le classement ne prendra pas en compte les phases finales.

Sheet DATA_1_TEAMS (hidden)
A1: CODE | B1: TEAM | C1: GROUP | D1: GROUP_INITIAL_RANK
A2: =+TABLEAU_TEAMS[[#This Row],[GROUP]]&"_"&TABLEAU_TEAMS[[#This Row],[GROUP_INITIAL_RANK]] -> A_1 | B2: Russie | C2: A | D2: 1
A3: =+TABLEAU_TEAMS[[#This Row],[GROUP]]&"_"&TABLEAU_TEAMS[[#This Row],[GROUP_INITIAL_RANK]] -> A_2 | B3: Arabie Saoudite | C3: A | D3: 2
A4: =+TABLEAU_TEAMS[[#This Row],[GROUP]]&"_"&TABLEAU_TEAMS[[#This Row],[GROUP_INITIAL_RANK]] -> A_3 | B4: Egypte | C4: A | D4: 3
A5: =+TABLEAU_TEAMS[[#This Row],[GROUP]]&"_"&TABLEAU_TEAMS[[#This Row],[GROUP_INITIAL_RANK]] -> A_4 | B5: Uruguay | C5: A | D5: 4
A6: =+TABLEAU_TEAMS[[#This Row],[GROUP]]&"_"&TABLEAU_TEAMS[[#This Row],[GROUP_INITIAL_RANK]] -> B_1 | B6: Maroc | C6: B | D6: 1
A7: =+TABLEAU_TEAMS[[#This Row],[GROUP]]&"_"&TABLEAU_TEAMS[[#This Row],[GROUP_INITIAL_RANK]] -> B_2 | B7: RI Iran | C7: B | D7: 2
A8: =+TABLEAU_TEAMS[[#This Row],[GROUP]]&"_"&TABLEAU_TEAMS[[#This Row],[GROUP_INITIAL_RANK]] -> B_3 | B8: Portugal | C8: B | D8: 3
A9: =+TABLEAU_TEAMS[[#This Row],[GROUP]]&"_"&TABLEAU_TEAMS[[#This Row],[GROUP_INITIAL_RANK]] -> B_4 | B9: Espagne | C9: B | D9: 4
A10: =+TABLEAU_TEAMS[[#This Row],[GROUP]]&"_"&TABLEAU_TEAMS[[#This Row],[GROUP_INITIAL_RANK]] -> C_1 | B10: France | C10: C | D10: 1
A11: =+TABLEAU_TEAMS[[#This Row],[GROUP]]&"_"&TABLEAU_TEAMS[[#This Row],[GROUP_INITIAL_RANK]] -> C_2 | B11: Australie | C11: C | D11: 2
A12: =+TABLEAU_TEAMS[[#This Row],[GROUP]]&"_"&TABLEAU_TEAMS[[#This Row],[GROUP_INITIAL_RANK]] -> C_3 | B12: Pérou | C12: C | D12: 3
A13: =+TABLEAU_TEAMS[[#This Row],[GROUP]]&"_"&TABLEAU_TEAMS[[#This Row],[GROUP_INITIAL_RANK]] -> C_4 | B13: Danemark | C13: C | D13: 4
A14: =+TABLEAU_TEAMS[[#This Row],[GROUP]]&"_"&TABLEAU_TEAMS[[#This Row],[GROUP_INITIAL_RANK]] -> D_1 | B14: Argentine | C14: D | D14: 1
A15: =+TABLEAU_TEAMS[[#This Row],[GROUP]]&"_"&TABLEAU_TEAMS[[#This Row],[GROUP_INITIAL_RANK]] -> D_2 | B15: Islande | C15: D | D15: 2
A16: =+TABLEAU_TEAMS[[#This Row],[GROUP]]&"_"&TABLEAU_TEAMS[[#This Row],[GROUP_INITIAL_RANK]] -> D_3 | B16: Croatie | C16: D | D16: 3
A17: =+TABLEAU_TEAMS[[#This Row],[GROUP]]&"_"&TABLEAU_TEAMS[[#This Row],[GROUP_INITIAL_RANK]] -> D_4 | B17: Nigeria | C17: D | D17: 4
A18: =+TABLEAU_TEAMS[[#This Row],[GROUP]]&"_"&TABLEAU_TEAMS[[#This Row],[GROUP_INITIAL_RANK]] -> E_1 | B18: Costa Rica | C18: E | D18: 1
A19: =+TABLEAU_TEAMS[[#This Row],[GROUP]]&"_"&TABLEAU_TEAMS[[#This Row],[GROUP_INITIAL_RANK]] -> E_2 | B19: Serbie | C19: E | D19: 2
A20: =+TABLEAU_TEAMS[[#This Row],[GROUP]]&"_"&TABLEAU_TEAMS[[#This Row],[GROUP_INITIAL_RANK]] -> E_3 | B20: Brésil | C20: E | D20: 3
A21: =+TABLEAU_TEAMS[[#This Row],[GROUP]]&"_"&TABLEAU_TEAMS[[#This Row],[GROUP_INITIAL_RANK]] -> E_4 | B21: Suisse | C21: E | D21: 4
A22: =+TABLEAU_TEAMS[[#This Row],[GROUP]]&"_"&TABLEAU_TEAMS[[#This Row],[GROUP_INITIAL_RANK]] -> F_1 | B22: Allemagne | C22: F | D22: 1
A23: =+TABLEAU_TEAMS[[#This Row],[GROUP]]&"_"&TABLEAU_TEAMS[[#This Row],[GROUP_INITIAL_RANK]] -> F_2 | B23: Mexique | C23: F | D23: 2
A24: =+TABLEAU_TEAMS[[#This Row],[GROUP]]&"_"&TABLEAU_TEAMS[[#This Row],[GROUP_INITIAL_RANK]] -> F_3 | B24: Suède | C24: F | D24: 3
A25: =+TABLEAU_TEAMS[[#This Row],[GROUP]]&"_"&TABLEAU_TEAMS[[#This Row],[GROUP_INITIAL_RANK]] -> F_4 | B25: République de Corée | C25: F | D25: 4
A26: =+TABLEAU_TEAMS[[#This Row],[GROUP]]&"_"&TABLEAU_TEAMS[[#This Row],[GROUP_INITIAL_RANK]] -> G_1 | B26: Belgique | C26: G | D26: 1
A27: =+TABLEAU_TEAMS[[#This Row],[GROUP]]&"_"&TABLEAU_TEAMS[[#This Row],[GROUP_INITIAL_RANK]] -> G_2 | B27: Panama | C27: G | D27: 2
A28: =+TABLEAU_TEAMS[[#This Row],[GROUP]]&"_"&TABLEAU_TEAMS[[#This Row],[GROUP_INITIAL_RANK]] -> G_3 | B28: Tunisie | C28: G | D28: 3
A29: =+TABLEAU_TEAMS[[#This Row],[GROUP]]&"_"&TABLEAU_TEAMS[[#This Row],[GROUP_INITIAL_RANK]] -> G_4 | B29: Angleterre | C29: G | D29: 4
A30: =+TABLEAU_TEAMS[[#This Row],[GROUP]]&"_"&TABLEAU_TEAMS[[#This Row],[GROUP_INITIAL_RANK]] -> H_1 | B30: Colombie | C30: H | D30: 1
A31: =+TABLEAU_TEAMS[[#This Row],[GROUP]]&"_"&TABLEAU_TEAMS[[#This Row],[GROUP_INITIAL_RANK]] -> H_2 | B31: Japon | C31: H | D31: 2
A32: =+TABLEAU_TEAMS[[#This Row],[GROUP]]&"_"&TABLEAU_TEAMS[[#This Row],[GROUP_INITIAL_RANK]] -> H_3 | B32: Pologne | C32: H | D32: 3
A33: =+TABLEAU_TEAMS[[#This Row],[GROUP]]&"_"&TABLEAU_TEAMS[[#This Row],[GROUP_INITIAL_RANK]] -> H_4 | B33: Sénégal | C33: H | D33: 4

Sheet DATA_1_MATCHS (hidden)
A1: MATCH_NUMBER | B1: MATCH_DATE | C1: MATCH_TIME | D1: TEAM_1 | E1: TEAM_2
A2: 1 | B2: 2018-06-14 | C2: 17:00:00 | D2: Russie | E2: Arabie Saoudite
A3: 2 | B3: 2018-06-15 | C3: 14:00:00 | D3: Egypte | E3: Uruguay
A4: 3 | B4: 2018-06-15 | C4: 17:00:00 | D4: Maroc | E4: RI Iran
A5: 4 | B5: 2018-06-15 | C5: 20:00:00 | D5: Portugal | E5: Espagne
A6: 5 | B6: 2018-06-16 | C6: 12:00:00 | D6: France | E6: Australie
A7: 6 | B7: 2018-06-16 | C7: 18:00:00 | D7: Pérou | E7: Danemark
A8: 7 | B8: 2018-06-16 | C8: 15:00:00 | D8: Argentine | E8: Islande
A9: 8 | B9: 2018-06-16 | C9: 21:00:00 | D9: Croatie | E9: Nigeria
A10: 9 | B10: 2018-06-17 | C10: 14:00:00 | D10: Costa Rica | E10: Serbie
A11: 10 | B11: 2018-06-17 | C11: 20:00:00 | D11: Brésil | E11: Suisse
A12: 11 | B12: 2018-06-17 | C12: 17:00:00 | D12: Allemagne | E12: Mexique
A13: 12 | B13: 2018-06-18 | C13: 14:00:00 | D13: Suède | E13: République de Corée
A14: 13 | B14: 2018-06-18 | C14: 17:00:00 | D14: Belgique | E14: Panama
A15: 14 | B15: 2018-06-18 | C15: 20:00:00 | D15: Tunisie | E15: Angleterre
A16: 15 | B16: 2018-06-19 | C16: 17:00:00 | D16: Colombie | E16: Japon
A17: 16 | B17: 2018-06-19 | C17: 14:00:00 | D17: Pologne | E17: Sénégal
A18: 17 | B18: 2018-06-19 | C18: 20:00:00 | D18: Russie | E18: Egypte
A19: 18 | B19: 2018-06-20 | C19: 17:00:00 | D19: Uruguay | E19: Arabie Saoudite
A20: 19 | B20: 2018-06-20 | C20: 14:00:00 | D20: Portugal | E20: Maroc
A21: 20 | B21: 2018-06-20 | C21: 20:00:00 | D21: RI Iran | E21: Espagne
A22: 21 | B22: 2018-06-21 | C22: 14:00:00 | D22: Danemark | E22: Australie
A23: 22 | B23: 2018-06-21 | C23: 17:00:00 | D23: France | E23: Pérou
A24: 23 | B24: 2018-06-21 | C24: 20:00:00 | D24: Argentine | E24: Croatie
A25: 24 | B25: 2018-06-22 | C25: 17:00:00 | D25: Nigeria | E25: Islande
A26: 25 | B26: 2018-06-22 | C26: 14:00:00 | D26: Brésil | E26: Costa Rica
A27: 26 | B27: 2018-06-22 | C27: 20:00:00 | D27: Serbie | E27: Suisse
A28: 27 | B28: 2018-06-23 | C28: 20:00:00 | D28: République de Corée | E28: Mexique
A29: 28 | B29: 2018-06-23 | C29: 17:00:00 | D29: Allemagne | E29: Suède
A30: 29 | B30: 2018-06-23 | C30: 14:00:00 | D30: Belgique | E30: Tunisie
A31: 30 | B31: 2018-06-24 | C31: 14:00:00 | D31: Angleterre | E31: Panama
A32: 31 | B32: 2018-06-24 | C32: 17:00:00 | D32: Japon | E32: Sénégal
A33: 32 | B33: 2018-06-24 | C33: 20:00:00 | D33: Pologne | E33: Colombie
A34: 33 | B34: 2018-06-25 | C34: 16:00:00 | D34: Uruguay | E34: Russie
A35: 34 | B35: 2018-06-25 | C35: 16:00:00 | D35: Arabie Saoudite | E35: Egypte
A36: 35 | B36: 2018-06-25 | C36: 20:00:00 | D36: RI Iran | E36: Portugal
A37: 36 | B37: 2018-06-25 | C37: 20:00:00 | D37: Espagne | E37: Maroc
A38: 37 | B38: 2018-06-26 | C38: 16:00:00 | D38: Danemark | E38: France
A39: 38 | B39: 2018-06-26 | C39: 16:00:00 | D39: Australie | E39: Pérou
A40: 39 | B40: 2018-06-26 | C40: 20:00:00 | D40: Nigeria | E40: Argentine
A41: 40 | B41: 2018-06-26 | C41: 20:00:00 | D41: Islande | E41: Croatie
A42: 41 | B42: 2018-06-27 | C42: 20:00:00 | D42: Serbie | E42: Brésil
A43: 42 | B43: 2018-06-27 | C43: 20:00:00 | D43: Suisse | E43: Costa Rica
A44: 43 | B44: 2018-06-27 | C44: 16:00:00 | D44: Mexique | E44: Suède
A45: 44 | B45: 2018-06-27 | C45: 16:00:00 | D45: République de Corée | E45: Allemagne
A46: 45 | B46: 2018-06-28 | C46: 20:00:00 | D46: Panama | E46: Tunisie
A47: 46 | B47: 2018-06-28 | C47: 20:00:00 | D47: Angleterre | E47: Belgique
A48: 47 | B48: 2018-06-28 | C48: 16:00:00 | D48: Japon | E48: Pologne
A49: 48 | B49: 2018-06-28 | C49: 16:00:00 | D49: Sénégal | E49: Colombie

Sheet Vincent
B2: Pronostics de :
B4: =MID(CELL("filename",A1),FIND("]",CELL("filename",A1))+1,32) -> Vincent
B6: SAISIE DES PRONOSTICS | T6: GROUPES | AG6: SCORE PRONOSTIQUEUR | AP6: =AN8+AN12 -> 5
B7: Date | C7: Heure | D7: Match | E7: Groupe | F7: 1 | G7: N | H7: 2 | J7: Buts | M7: Buts
B8: =VLOOKUP($D8,TABLEAU_MATCHS[#All],2,FALSE) -> 2018-06-14 | C8: =VLOOKUP($D8,TABLEAU_MATCHS[#All],3,FALSE) -> 17:00:00 | D8: 1 | E8: ="Groupe "&VLOOKUP($I8,TABLEAU_TEAMS[[#All],[TEAM]:[GROUP_INITIAL_RANK]],2,FALSE) -> Groupe A | F8: 1.3 | G8: 4.3 | H8: 10 | I8: =VLOOKUP($D8,TABLEAU_MATCHS[#All],4,FALSE) -> Russie | J8: 2 | L8: =VLOOKUP($D8,TABLEAU_MATCHS[#All],5,FALSE) -> Arabie Saoudite | M8: 0 | N8: =IF(OR(ISBLANK(RESULTATS!J8),ISBLANK(J8)),"",IF(AND(Vincent!J8=RESULTATS!J8,Vincent!M8=RESULTATS!M8),3,IF(OR(AND(Vincent!J8>Vincent!M8,RESULTATS!J8>RESULTATS!M8),AND(Vincent!J8<Vincent!M8,RESULTATS!J8<RESULTATS!M8),AND(Vincent!J8=Vincent!M8,RESULTATS!J8=RESULTATS!M8)),1,0))) -> 1 | T8: Rg | U8: Groupe A | V8: MJ | W8: G | X8: N | Y8: P | Z8: BP | AA8: BC | AB8: +/- | AC8: Pts | AG8: Phases de groupes | AN8: =N56 -> 5 | AP8: points
B9: =VLOOKUP($D9,TABLEAU_MATCHS[#All],2,FALSE) -> 2018-06-15 | C9: =VLOOKUP($D9,TABLEAU_MATCHS[#All],3,FALSE) -> 14:00:00 | D9: 2 | E9: ="Groupe "&VLOOKUP($I9,TABLEAU_TEAMS[[#All],[TEAM]:[GROUP_INITIAL_RANK]],2,FALSE) -> Groupe A | F9: 2.2 | G9: 2.9 | H9: 3.25 | I9: =VLOOKUP($D9,TABLEAU_MATCHS[#All],4,FALSE) -> Egypte | J9: 0 | L9: =VLOOKUP($D9,TABLEAU_MATCHS[#All],5,FALSE) -> Uruguay | M9: 1 | N9: =IF(OR(ISBLANK(RESULTATS!J9),ISBLANK(J9)),"",IF(AND(Vincent!J9=RESULTATS!J9,Vincent!M9=RESULTATS!M9),3,IF(OR(AND(Vincent!J9>Vincent!M9,RESULTATS!J9>RESULTATS!M9),AND(Vincent!J9<Vincent!M9,RESULTATS!J9<RESULTATS!M9),AND(Vincent!J9=Vincent!M9,RESULTATS!J9=RESULTATS!M9)),1,0))) -> 3 | R9: =INDEX($R60:$R63,MATCH(SMALL(COUNTIF($R60:$R63,">="&$R60:$R63),ROW(INDIRECT("1:"&ROWS($R60:$R63)))),COUNTIF($R60:$R63,">="&$R60:$R63),0)) -> 07570Uruguay | S9: =INDEX($S60:$S63,MATCH(SMALL(COUNTIF($R60:$R63,">="&$R60:$R63),ROW(INDIRECT("1:"&ROWS($R60:$R63)))),COUNTIF($R60:$R63,">="&$R60:$R63),0)) -> 7570 | T9: =INDEX($T60:$T63,MATCH(SMALL(COUNTIF($R60:$R63,">="&$R60:$R63),ROW(INDIRECT("1:"&ROWS($R60:$R63)))),COUNTIF($R60:$R63,">="&$R60:$R63),0)) -> 1 | U9: =INDEX($U60:$U63,MATCH(SMALL(COUNTIF($R60:$R63,">="&$R60:$R63),ROW(INDIRECT("1:"&ROWS($R60:$R63)))),COUNTIF($R60:$R63,">="&$R60:$R63),0)) -> Uruguay | V9: =SUMPRODUCT((Teams1=U9)*(Teams1_Score<>""))+SUMPRODUCT((Teams2=U9)*(Teams2_Score<>"")) -> 3 | W9: =SUMPRODUCT((Teams1=U9)*(Teams1_Score>Teams2_Score))+SUMPRODUCT((Teams2=U9)*(Teams2_Score>Teams1_Score)) -> 2 | X9: =SUMPRODUCT((Teams1=U9)*(Teams1_Score=Teams2_Score)*(Teams1_Score<>""))+SUMPRODUCT((Teams2=U9)*(Teams2_Score=Teams1_Score)*(Teams2_Score<>"")) -> 1 | Y9: =SUMPRODUCT((Teams1=U9)*(Teams1_Score<Teams2_Score))+SUMPRODUCT((Teams2=U9)*(Teams2_Score<Teams1_Score)) -> 0 | Z9: =SUMPRODUCT((Teams1=U9)*(Teams1_Score))+SUMPRODUCT((Teams2=U9)*(Teams2_Score)) -> 7 | AA9: =SUMPRODUCT((Teams1=U9)*(Teams2_Score))+SUMPRODUCT((Teams2=U9)*(Teams1_Score)) -> 2 | AB9: =Z9-AA9 -> 5 | AC9: =3*W9+X9 -> 7 | AG9: Vainqueur ou nul trouvé (1 pt) | AJ9: =COUNTIF($N$8:$N$55,1)+COUNTIF($N$8:$N$55,3) -> 3 | AK9: matchs | AN9: =AJ9 -> 3 | AP9: points
B10: =VLOOKUP($D10,TABLEAU_MATCHS[#All],2,FALSE) -> 2018-06-15 | C10: =VLOOKUP($D10,TABLEAU_MATCHS[#All],3,FALSE) -> 17:00:00 | D10: 3 | E10: ="Groupe "&VLOOKUP($I10,TABLEAU_TEAMS[[#All],[TEAM]:[GROUP_INITIAL_RANK]],2,FALSE) -> Groupe B | F10: 1.8 | G10: 3.05 | H10: 4.5 | I10: =VLOOKUP($D10,TABLEAU_MATCHS[#All],4,FALSE) -> Maroc | J10: 2 | L10: =VLOOKUP($D10,TABLEAU_MATCHS[#All],5,FALSE) -> RI Iran | M10: 0 | N10: =IF(OR(ISBLANK(RESULTATS!J10),ISBLANK(J10)),"",IF(AND(Vincent!J10=RESULTATS!J10,Vincent!M10=RESULTATS!M10),3,IF(OR(AND(Vincent!J10>Vincent!M10,RESULTATS!J10>RESULTATS!M10),AND(Vincent!J10<Vincent!M10,RESULTATS!J10<RESULTATS!M10),AND(Vincent!J10=Vincent!M10,RESULTATS!J10=RESULTATS!M10)),1,0))) -> 0 | R10: 07350Russie | S10: 7350 | T10: 2 | U10: Russie | V10: =SUMPRODUCT((Teams1=U10)*(Teams1_Score<>""))+SUMPRODUCT((Teams2=U10)*(Teams2_Score<>"")) -> 3 | W10: =SUMPRODUCT((Teams1=U10)*(Teams1_Score>Teams2_Score))+SUMPRODUCT((Teams2=U10)*(Teams2_Score>Teams1_Score)) -> 2 | X10: =SUMPRODUCT((Teams1=U10)*(Teams1_Score=Teams2_Score)*(Teams1_Score<>""))+SUMPRODUCT((Teams2=U10)*(Teams2_Score=Teams1_Score)*(Teams2_Score<>"")) -> 1 | Y10: =SUMPRODUCT((Teams1=U10)*(Teams1_Score<Teams2_Score))+SUMPRODUCT((Teams2=U10)*(Teams2_Score<Teams1_Score)) -> 0 | Z10: =SUMPRODUCT((Teams1=U10)*(Teams1_Score))+SUMPRODUCT((Teams2=U10)*(Teams2_Score)) -> 5 | AA10: =SUMPRODUCT((Teams1=U10)*(Teams2_Score))+SUMPRODUCT((Teams2=U10)*(Teams1_Score)) -> 2 | AB10: =Z10-AA10 -> 3 | AC10: =3*W10+X10 -> 7 | AG10: Bonus score exact (2 pts) | AJ10: =+COUNTIF($N$8:$N$55,3) -> 1 | AK10: matchs | AN10: =AJ10*2 -> 2 | AP10: points
B11: =VLOOKUP($D11,TABLEAU_MATCHS[#All],2,FALSE) -> 2018-06-15 | C11: =VLOOKUP($D11,TABLEAU_MATCHS[#All],3,FALSE) -> 20:00:00 | D11: 4 | E11: ="Groupe "&VLOOKUP($I11,TABLEAU_TEAMS[[#All],[TEAM]:[GROUP_INITIAL_RANK]],2,FALSE) -> Groupe B | F11: 1.42 | G11: 3.9 | H11: 7 | I11: =VLOOKUP($D11,TABLEAU_MATCHS[#All],4,FALSE) -> Portugal | J11: 1 | L11: =VLOOKUP($D11,TABLEAU_MATCHS[#All],5,FALSE) -> Espagne | M11: 1 | N11: =IF(OR(ISBLANK(RESULTATS!J11),ISBLANK(J11)),"",IF(AND(Vincent!J11=RESULTATS!J11,Vincent!M11=RESULTATS!M11),3,IF(OR(AND(Vincent!J11>Vincent!M11,RESULTATS!J11>RESULTATS!M11),AND(Vincent!J11<Vincent!M11,RESULTATS!J11<RESULTATS!M11),AND(Vincent!J11=Vincent!M11,RESULTATS!J11=RESULTATS!M11)),1,0))) -> 1 | R11: 03020Egypte | S11: 3020 | T11: 3 | U11: Egypte | V11: =SUMPRODUCT((Teams1=U11)*(Teams1_Score<>""))+SUMPRODUCT((Teams2=U11)*(Teams2_Score<>"")) -> 3 | W11: =SUMPRODUCT((Teams1=U11)*(Teams1_Score>Teams2_Score))+SUMPRODUCT((Teams2=U11)*(Teams2_Score>Teams1_Score)) -> 1 | X11: =SUMPRODUCT((Teams1=U11)*(Teams1_Score=Teams2_Score)*(Teams1_Score<>""))+SUMPRODUCT((Teams2=U11)*(Teams2_Score=Teams1_Score)*(Teams2_Score<>"")) -> 0 | Y11: =SUMPRODUCT((Teams1=U11)*(Teams1_Score<Teams2_Score))+SUMPRODUCT((Teams2=U11)*(Teams2_Score<Teams1_Score)) -> 2 | Z11: =SUMPRODUCT((Teams1=U11)*(Teams1_Score))+SUMPRODUCT((Teams2=U11)*(Teams2_Score)) -> 2 | AA11: =SUMPRODUCT((Teams1=U11)*(Teams2_Score))+SUMPRODUCT((Teams2=U11)*(Teams1_Score)) -> 2 | AB11: =Z11-AA11 -> 0 | AC11: =3*W11+X11 -> 3
B12: =VLOOKUP($D12,TABLEAU_MATCHS[#All],2,FALSE) -> 2018-06-16 | C12: =VLOOKUP($D12,TABLEAU_MATCHS[#All],3,FALSE) -> 12:00:00 | D12: 5 | E12: ="Groupe "&VLOOKUP($I12,TABLEAU_TEAMS[[#All],[TEAM]:[GROUP_INITIAL_RANK]],2,FALSE) -> Groupe C | F12: 1.7 | G12: 3.1 | H12: 5 | I12: =VLOOKUP($D12,TABLEAU_MATCHS[#All],4,FALSE) -> France | J12: 2 | L12: =VLOOKUP($D12,TABLEAU_MATCHS[#All],5,FALSE) -> Australie | M12: 0 | N12: =IF(OR(ISBLANK(RESULTATS!J12),ISBLANK(J12)),"",IF(AND(Vincent!J12=RESULTATS!J12,Vincent!M12=RESULTATS!M12),3,IF(OR(AND(Vincent!J12>Vincent!M12,RESULTATS!J12>RESULTATS!M12),AND(Vincent!J12<Vincent!M12,RESULTATS!J12<RESULTATS!M12),AND(Vincent!J12=Vincent!M12,RESULTATS!J12=RESULTATS!M12)),1,0))) ->  | R12: -00800Arabie Saoudite | S12: -800 | T12: 4 | U12: Arabie Saoudite | V12: =SUMPRODUCT((Teams1=U12)*(Teams1_Score<>""))+SUMPRODUCT((Teams2=U12)*(Teams2_Score<>"")) -> 3 | W12: =SUMPRODUCT((Teams1=U12)*(Teams1_Score>Teams2_Score))+SUMPRODUCT((Teams2=U12)*(Teams2_Score>Teams1_Score)) -> 0 | X12: =SUMPRODUCT((Teams1=U12)*(Teams1_Score=Teams2_Score)*(Teams1_Score<>""))+SUMPRODUCT((Teams2=U12)*(Teams2_Score=Teams1_Score)*(Teams2_Score<>"")) -> 0 | Y12: =SUMPRODUCT((Teams1=U12)*(Teams1_Score<Teams2_Score))+SUMPRODUCT((Teams2=U12)*(Teams2_Score<Teams1_Score)) -> 3 | Z12: =SUMPRODUCT((Teams1=U12)*(Teams1_Score))+SUMPRODUCT((Teams2=U12)*(Teams2_Score)) -> 0 | AA12: =SUMPRODUCT((Teams1=U12)*(Teams2_Score))+SUMPRODUCT((Teams2=U12)*(Teams1_Score)) -> 8 | AB12: =Z12-AA12 -> -8 | AC12: =3*W12+X12 -> 0 | AG12: Phases finales | AN12: =SUM(AN13:AN17) -> 0 | AP12: points
B13: =VLOOKUP($D13,TABLEAU_MATCHS[#All],2,FALSE) -> 2018-06-16 | C13: =VLOOKUP($D13,TABLEAU_MATCHS[#All],3,FALSE) -> 18:00:00 | D13: 6 | E13: ="Groupe "&VLOOKUP($I13,TABLEAU_TEAMS[[#All],[TEAM]:[GROUP_INITIAL_RANK]],2,FALSE) -> Groupe C | F13: 2.55 | G13: 2.9 | H13: 2.7 | I13: =VLOOKUP($D13,TABLEAU_MATCHS[#All],4,FALSE) -> Pérou | J13: 1 | L13: =VLOOKUP($D13,TABLEAU_MATCHS[#All],5,FALSE) -> Danemark | M13: 2 | N13: =IF(OR(ISBLANK(RESULTATS!J13),ISBLANK(J13)),"",IF(AND(Vincent!J13=RESULTATS!J13,Vincent!M13=RESULTATS!M13),3,IF(OR(AND(Vincent!J13>Vincent!M13,RESULTATS!J13>RESULTATS!M13),AND(Vincent!J13<Vincent!M13,RESULTATS!J13<RESULTATS!M13),AND(Vincent!J13=Vincent!M13,RESULTATS!J13=RESULTATS!M13)),1,0))) ->  | AG13: Huitièmes de finaliste trouvés (2 pts) | AJ13: =IF(CLASSEMENT!PHASES_FINALES="OUI",$AK$53+$AQ$53,0) -> 0 | AK13: équipe(s) | AN13: =AJ13*2 -> 0 | AP13: points
B14: =VLOOKUP($D14,TABLEAU_MATCHS[#All],2,FALSE) -> 2018-06-16 | C14: =VLOOKUP($D14,TABLEAU_MATCHS[#All],3,FALSE) -> 15:00:00 | D14: 7 | E14: ="Groupe "&VLOOKUP($I14,TABLEAU_TEAMS[[#All],[TEAM]:[GROUP_INITIAL_RANK]],2,FALSE) -> Groupe D | F14: 1.4 | G14: 4 | H14: 7.25 | I14: =VLOOKUP($D14,TABLEAU_MATCHS[#All],4,FALSE) -> Argentine | J14: 2 | L14: =VLOOKUP($D14,TABLEAU_MATCHS[#All],5,FALSE) -> Islande | M14: 0 | N14: =IF(OR(ISBLANK(RESULTATS!J14),ISBLANK(J14)),"",IF(AND(Vincent!J14=RESULTATS!J14,Vincent!M14=RESULTATS!M14),3,IF(OR(AND(Vincent!J14>Vincent!M14,RESULTATS!J14>RESULTATS!M14),AND(Vincent!J14<Vincent!M14,RESULTATS!J14<RESULTATS!M14),AND(Vincent!J14=Vincent!M14,RESULTATS!J14=RESULTATS!M14)),1,0))) ->  | T14: Rg | U14: Groupe B | V14: MJ | W14: G | X14: N | Y14: P | Z14: BP | AA14: BC | AB14: +/- | AC14: Pts | AG14: Quarts de finalistes trouvés (4 pts) | AJ14: =IF(CLASSEMENT!PHASES_FINALES="OUI",$AK$42+$AQ$42,0) -> 0 | AK14: équipe(s) | AN14: =AJ14*4 -> 0 | AP14: points
B15: =VLOOKUP($D15,TABLEAU_MATCHS[#All],2,FALSE) -> 2018-06-16 | C15: =VLOOKUP($D15,TABLEAU_MATCHS[#All],3,FALSE) -> 21:00:00 | D15: 8 | E15: ="Groupe "&VLOOKUP($I15,TABLEAU_TEAMS[[#All],[TEAM]:[GROUP_INITIAL_RANK]],2,FALSE) -> Groupe D | F15: 2.95 | G15: 2.7 | H15: 2.55 | I15: =VLOOKUP($D15,TABLEAU_MATCHS[#All],4,FALSE) -> Croatie | J15: 2 | L15: =VLOOKUP($D15,TABLEAU_MATCHS[#All],5,FALSE) -> Nigeria | M15: 3 | N15: =IF(OR(ISBLANK(RESULTATS!J15),ISBLANK(J15)),"",IF(AND(Vincent!J15=RESULTATS!J15,Vincent!M15=RESULTATS!M15),3,IF(OR(AND(Vincent!J15>Vincent!M15,RESULTATS!J15>RESULTATS!M15),AND(Vincent!J15<Vincent!M15,RESULTATS!J15<RESULTATS!M15),AND(Vincent!J15=Vincent!M15,RESULTATS!J15=RESULTATS!M15)),1,0))) ->  | R15: =INDEX($R66:$R69,MATCH(SMALL(COUNTIF($R66:$R69,">="&$R66:$R69),ROW(INDIRECT("1:"&ROWS($R66:$R69)))),COUNTIF($R66:$R69,">="&$R66:$R69),0)) -> 07680Espagne | S15: =INDEX($S66:$S69,MATCH(SMALL(COUNTIF($R66:$R69,">="&$R66:$R69),ROW(INDIRECT("1:"&ROWS($R66:$R69)))),COUNTIF($R66:$R69,">="&$R66:$R69),0)) -> 7680 | T15: =INDEX($T66:$T69,MATCH(SMALL(COUNTIF($R66:$R69,">="&$R66:$R69),ROW(INDIRECT("1:"&ROWS($R66:$R69)))),COUNTIF($R66:$R69,">="&$R66:$R69),0)) -> 1 | U15: =INDEX($U66:$U69,MATCH(SMALL(COUNTIF($R66:$R69,">="&$R66:$R69),ROW(INDIRECT("1:"&ROWS($R66:$R69)))),COUNTIF($R66:$R69,">="&$R66:$R69),0)) -> Espagne | V15: =SUMPRODUCT((Teams1=U15)*(Teams1_Score<>""))+SUMPRODUCT((Teams2=U15)*(Teams2_Score<>"")) -> 3 | W15: =SUMPRODUCT((Teams1=U15)*(Teams1_Score>Teams2_Score))+SUMPRODUCT((Teams2=U15)*(Teams2_Score>Teams1_Score)) -> 2 | X15: =SUMPRODUCT((Teams1=U15)*(Teams1_Score=Teams2_Score)*(Teams1_Score<>""))+SUMPRODUCT((Teams2=U15)*(Teams2_Score=Teams1_Score)*(Teams2_Score<>"")) -> 1 | Y15: =SUMPRODUCT((Teams1=U15)*(Teams1_Score<Teams2_Score))+SUMPRODUCT((Teams2=U15)*(Teams2_Score<Teams1_Score)) -> 0 | Z15: =SUMPRODUCT((Teams1=U15)*(Teams1_Score))+SUMPRODUCT((Teams2=U15)*(Teams2_Score)) -> 8 | AA15: =SUMPRODUCT((Teams1=U15)*(Teams2_Score))+SUMPRODUCT((Teams2=U15)*(Teams1_Score)) -> 2 | AB15: =Z15-AA15 -> 6 | AC15: =3*W15+X15 -> 7 | AG15: Demi finalistes trouvés (5 pts) | AJ15: =IF(CLASSEMENT!PHASES_FINALES="OUI",$AK$35+$AQ$35,0) -> 0 | AK15: équipe(s) | AN15: =AJ15*5 -> 0 | AP15: points
B16: =VLOOKUP($D16,TABLEAU_MATCHS[#All],2,FALSE) -> 2018-06-17 | C16: =VLOOKUP($D16,TABLEAU_MATCHS[#All],3,FALSE) -> 14:00:00 | D16: 9 | E16: ="Groupe "&VLOOKUP($I16,TABLEAU_TEAMS[[#All],[TEAM]:[GROUP_INITIAL_RANK]],2,FALSE) -> Groupe E | F16: 2.35 | G16: 2.9 | H16: 2.95 | I16: =VLOOKUP($D16,TABLEAU_MATCHS[#All],4,FALSE) -> Costa Rica | J16: 1 | L16: =VLOOKUP($D16,TABLEAU_MATCHS[#All],5,FALSE) -> Serbie | M16: 2 | N16: =IF(OR(ISBLANK(RESULTATS!J16),ISBLANK(J16)),"",IF(AND(Vincent!J16=RESULTATS!J16,Vincent!M16=RESULTATS!M16),3,IF(OR(AND(Vincent!J16>Vincent!M16,RESULTATS!J16>RESULTATS!M16),AND(Vincent!J16<Vincent!M16,RESULTATS!J16<RESULTATS!M16),AND(Vincent!J16=Vincent!M16,RESULTATS!J16=RESULTATS!M16)),1,0))) ->  | R16: 07670Portugal | S16: 7670 | T16: 2 | U16: Portugal | V16: =SUMPRODUCT((Teams1=U16)*(Teams1_Score<>""))+SUMPRODUCT((Teams2=U16)*(Teams2_Score<>"")) -> 3 | W16: =SUMPRODUCT((Teams1=U16)*(Teams1_Score>Teams2_Score))+SUMPRODUCT((Teams2=U16)*(Teams2_Score>Teams1_Score)) -> 2 | X16: =SUMPRODUCT((Teams1=U16)*(Teams1_Score=Teams2_Score)*(Teams1_Score<>""))+SUMPRODUCT((Teams2=U16)*(Teams2_Score=Teams1_Score)*(Teams2_Score<>"")) -> 1 | Y16: =SUMPRODUCT((Teams1=U16)*(Teams1_Score<Teams2_Score))+SUMPRODUCT((Teams2=U16)*(Teams2_Score<Teams1_Score)) -> 0 | Z16: =SUMPRODUCT((Teams1=U16)*(Teams1_Score))+SUMPRODUCT((Teams2=U16)*(Teams2_Score)) -> 7 | AA16: =SUMPRODUCT((Teams1=U16)*(Teams2_Score))+SUMPRODUCT((Teams2=U16)*(Teams1_Score)) -> 1 | AB16: =Z16-AA16 -> 6 | AC16: =3*W16+X16 -> 7 | AG16: Finalistes trouvés (6 pts) | AJ16: =IF(CLASSEMENT!PHASES_FINALES="OUI",$AK$25+$AQ$25,0) -> 0 | AK16: équipe(s) | AN16: =AJ16*6 -> 0 | AP16: points
B17: =VLOOKUP($D17,TABLEAU_MATCHS[#All],2,FALSE) -> 2018-06-17 | C17: =VLOOKUP($D17,TABLEAU_MATCHS[#All],3,FALSE) -> 20:00:00 | D17: 10 | E17: ="Groupe "&VLOOKUP($I17,TABLEAU_TEAMS[[#All],[TEAM]:[GROUP_INITIAL_RANK]],2,FALSE) -> Groupe E | F17: 1.28 | G17: 4.7 | H17: 9.5 | I17: =VLOOKUP($D17,TABLEAU_MATCHS[#All],4,FALSE) -> Brésil | J17: 3 | L17: =VLOOKUP($D17,TABLEAU_MATCHS[#All],5,FALSE) -> Suisse | M17: 1 | N17: =IF(OR(ISBLANK(RESULTATS!J17),ISBLANK(J17)),"",IF(AND(Vincent!J17=RESULTATS!J17,Vincent!M17=RESULTATS!M17),3,IF(OR(AND(Vincent!J17>Vincent!M17,RESULTATS!J17>RESULTATS!M17),AND(Vincent!J17<Vincent!M17,RESULTATS!J17<RESULTATS!M17),AND(Vincent!J17=Vincent!M17,RESULTATS!J17=RESULTATS!M17)),1,0))) ->  | R17: 02830Maroc | S17: 2830 | T17: 3 | U17: Maroc | V17: =SUMPRODUCT((Teams1=U17)*(Teams1_Score<>""))+SUMPRODUCT((Teams2=U17)*(Teams2_Score<>"")) -> 3 | W17: =SUMPRODUCT((Teams1=U17)*(Teams1_Score>Teams2_Score))+SUMPRODUCT((Teams2=U17)*(Teams2_Score>Teams1_Score)) -> 1 | X17: =SUMPRODUCT((Teams1=U17)*(Teams1_Score=Teams2_Score)*(Teams1_Score<>""))+SUMPRODUCT((Teams2=U17)*(Teams2_Score=Teams1_Score)*(Teams2_Score<>"")) -> 0 | Y17: =SUMPRODUCT((Teams1=U17)*(Teams1_Score<Teams2_Score))+SUMPRODUCT((Teams2=U17)*(Teams2_Score<Teams1_Score)) -> 2 | Z17: =SUMPRODUCT((Teams1=U17)*(Teams1_Score))+SUMPRODUCT((Teams2=U17)*(Teams2_Score)) -> 3 | AA17: =SUMPRODUCT((Teams1=U17)*(Teams2_Score))+SUMPRODUCT((Teams2=U17)*(Teams1_Score)) -> 5 | AB17: =Z17-AA17 -> -2 | AC17: =3*W17+X17 -> 3 | AG17: Champion du monde trouvé (7 pts) | AJ17: =IF(CLASSEMENT!PHASES_FINALES="OUI",IF(AJ25<>"",IF($AT$25=RESULTATS!AS10,1,0),0),0) -> 0 | AK17: équipe | AN17: =AJ17*7 -> 0 | AP17: points
B18: =VLOOKUP($D18,TABLEAU_MATCHS[#All],2,FALSE) -> 2018-06-17 | C18: =VLOOKUP($D18,TABLEAU_MATCHS[#All],3,FALSE) -> 17:00:00 | D18: 11 | E18: ="Groupe "&VLOOKUP($I18,TABLEAU_TEAMS[[#All],[TEAM]:[GROUP_INITIAL_RANK]],2,FALSE) -> Groupe F | F18: 1.34 | G18: 4.3 | H18: 7.5 | I18: =VLOOKUP($D18,TABLEAU_MATCHS[#All],4,FALSE) -> Allemagne | J18: 3 | L18: =VLOOKUP($D18,TABLEAU_MATCHS[#All],5,FALSE) -> Mexique | M18: 1 | N18: =IF(OR(ISBLANK(RESULTATS!J18),ISBLANK(J18)),"",IF(AND(Vincent!J18=RESULTATS!J18,Vincent!M18=RESULTATS!M18),3,IF(OR(AND(Vincent!J18>Vincent!M18,RESULTATS!J18>RESULTATS!M18),AND(Vincent!J18<Vincent!M18,RESULTATS!J18<RESULTATS!M18),AND(Vincent!J18=Vincent!M18,RESULTATS!J18=RESULTATS!M18)),1,0))) ->  | R18: -01000RI Iran | S18: -1000 | T18: 4 | U18: RI Iran | V18: =SUMPRODUCT((Teams1=U18)*(Teams1_Score<>""))+SUMPRODUCT((Teams2=U18)*(Teams2_Score<>"")) -> 3 | W18: =SUMPRODUCT((Teams1=U18)*(Teams1_Score>Teams2_Score))+SUMPRODUCT((Teams2=U18)*(Teams2_Score>Teams1_Score)) -> 0 | X18: =SUMPRODUCT((Teams1=U18)*(Teams1_Score=Teams2_Score)*(Teams1_Score<>""))+SUMPRODUCT((Teams2=U18)*(Teams2_Score=Teams1_Score)*(Teams2_Score<>"")) -> 0 | Y18: =SUMPRODUCT((Teams1=U18)*(Teams1_Score<Teams2_Score))+SUMPRODUCT((Teams2=U18)*(Teams2_Score<Teams1_Score)) -> 3 | Z18: =SUMPRODUCT((Teams1=U18)*(Teams1_Score))+SUMPRODUCT((Teams2=U18)*(Teams2_Score)) -> 0 | AA18: =SUMPRODUCT((Teams1=U18)*(Teams2_Score))+SUMPRODUCT((Teams2=U18)*(Teams1_Score)) -> 10 | AB18: =Z18-AA18 -> -10 | AC18: =3*W18+X18 -> 0
B19: =VLOOKUP($D19,TABLEAU_MATCHS[#All],2,FALSE) -> 2018-06-18 | C19: =VLOOKUP($D19,TABLEAU_MATCHS[#All],3,FALSE) -> 14:00:00 | D19: 12 | E19: ="Groupe "&VLOOKUP($I19,TABLEAU_TEAMS[[#All],[TEAM]:[GROUP_INITIAL_RANK]],2,FALSE) -> Groupe F | F19: 3.3 | G19: 2.95 | H19: 2.15 | I19: =VLOOKUP($D19,TABLEAU_MATCHS[#All],4,FALSE) -> Suède | J19: 0 | L19: =VLOOKUP($D19,TABLEAU_MATCHS[#All],5,FALSE) -> République de Corée | M19: 0 | N19: =IF(OR(ISBLANK(RESULTATS!J19),ISBLANK(J19)),"",IF(AND(Vincent!J19=RESULTATS!J19,Vincent!M19=RESULTATS!M19),3,IF(OR(AND(Vincent!J19>Vincent!M19,RESULTATS!J19>RESULTATS!M19),AND(Vincent!J19<Vincent!M19,RESULTATS!J19<RESULTATS!M19),AND(Vincent!J19=Vincent!M19,RESULTATS!J19=RESULTATS!M19)),1,0))) -> 
B20: =VLOOKUP($D20,TABLEAU_MATCHS[#All],2,FALSE) -> 2018-06-18 | C20: =VLOOKUP($D20,TABLEAU_MATCHS[#All],3,FALSE) -> 17:00:00 | D20: 13 | E20: ="Groupe "&VLOOKUP($I20,TABLEAU_TEAMS[[#All],[TEAM]:[GROUP_INITIAL_RANK]],2,FALSE) -> Groupe G | F20: 1.95 | G20: 2.95 | H20: 4 | I20: =VLOOKUP($D20,TABLEAU_MATCHS[#All],4,FALSE) -> Belgique | J20: 3 | L20: =VLOOKUP($D20,TABLEAU_MATCHS[#All],5,FALSE) -> Panama | M20: 0 | N20: =IF(OR(ISBLANK(RESULTATS!J20),ISBLANK(J20)),"",IF(AND(Vincent!J20=RESULTATS!J20,Vincent!M20=RESULTATS!M20),3,IF(OR(AND(Vincent!J20>Vincent!M20,RESULTATS!J20>RESULTATS!M20),AND(Vincent!J20<Vincent!M20,RESULTATS!J20<RESULTATS!M20),AND(Vincent!J20=Vincent!M20,RESULTATS!J20=RESULTATS!M20)),1,0))) ->  | T20: Rg | U20: Groupe C | V20: MJ | W20: G | X20: N | Y20: P | Z20: BP | AA20: BC | AB20: +/- | AC20: Pts
B21: =VLOOKUP($D21,TABLEAU_MATCHS[#All],2,FALSE) -> 2018-06-18 | C21: =VLOOKUP($D21,TABLEAU_MATCHS[#All],3,FALSE) -> 20:00:00 | D21: 14 | E21: ="Groupe "&VLOOKUP($I21,TABLEAU_TEAMS[[#All],[TEAM]:[GROUP_INITIAL_RANK]],2,FALSE) -> Groupe G | F21: 2.55 | G21: 2.9 | H21: 2.7 | I21: =VLOOKUP($D21,TABLEAU_MATCHS[#All],4,FALSE) -> Tunisie | J21: 1 | L21: =VLOOKUP($D21,TABLEAU_MATCHS[#All],5,FALSE) -> Angleterre | M21: 2 | N21: =IF(OR(ISBLANK(RESULTATS!J21),ISBLANK(J21)),"",IF(AND(Vincent!J21=RESULTATS!J21,Vincent!M21=RESULTATS!M21),3,IF(OR(AND(Vincent!J21>Vincent!M21,RESULTATS!J21>RESULTATS!M21),AND(Vincent!J21<Vincent!M21,RESULTATS!J21<RESULTATS!M21),AND(Vincent!J21=Vincent!M21,RESULTATS!J21=RESULTATS!M21)),1,0))) ->  | R21: =INDEX($R72:$R75,MATCH(SMALL(COUNTIF($R72:$R75,">="&$R72:$R75),ROW(INDIRECT("1:"&ROWS($R72:$R75)))),COUNTIF($R72:$R75,">="&$R72:$R75),0)) -> 09670France | S21: =INDEX($S72:$S75,MATCH(SMALL(COUNTIF($R72:$R75,">="&$R72:$R75),ROW(INDIRECT("1:"&ROWS($R72:$R75)))),COUNTIF($R72:$R75,">="&$R72:$R75),0)) -> 9670 | T21: =INDEX($T72:$T75,MATCH(SMALL(COUNTIF($R72:$R75,">="&$R72:$R75),ROW(INDIRECT("1:"&ROWS($R72:$R75)))),COUNTIF($R72:$R75,">="&$R72:$R75),0)) -> 1 | U21: =INDEX($U72:$U75,MATCH(SMALL(COUNTIF($R72:$R75,">="&$R72:$R75),ROW(INDIRECT("1:"&ROWS($R72:$R75)))),COUNTIF($R72:$R75,">="&$R72:$R75),0)) -> France | V21: =SUMPRODUCT((Teams1=U21)*(Teams1_Score<>""))+SUMPRODUCT((Teams2=U21)*(Teams2_Score<>"")) -> 3 | W21: =SUMPRODUCT((Teams1=U21)*(Teams1_Score>Teams2_Score))+SUMPRODUCT((Teams2=U21)*(Teams2_Score>Teams1_Score)) -> 3 | X21: =SUMPRODUCT((Teams1=U21)*(Teams1_Score=Teams2_Score)*(Teams1_Score<>""))+SUMPRODUCT((Teams2=U21)*(Teams2_Score=Teams1_Score)*(Teams2_Score<>"")) -> 0 | Y21: =SUMPRODUCT((Teams1=U21)*(Teams1_Score<Teams2_Score))+SUMPRODUCT((Teams2=U21)*(Teams2_Score<Teams1_Score)) -> 0 | Z21: =SUMPRODUCT((Teams1=U21)*(Teams1_Score))+SUMPRODUCT((Teams2=U21)*(Teams2_Score)) -> 7 | AA21: =SUMPRODUCT((Teams1=U21)*(Teams2_Score))+SUMPRODUCT((Teams2=U21)*(Teams1_Score)) -> 1 | AB21: =Z21-AA21 -> 6 | AC21: =3*W21+X21 -> 9 | AG21: PHASES FINALES
B22: =VLOOKUP($D22,TABLEAU_MATCHS[#All],2,FALSE) -> 2018-06-19 | C22: =VLOOKUP($D22,TABLEAU_MATCHS[#All],3,FALSE) -> 17:00:00 | D22: 15 | E22: ="Groupe "&VLOOKUP($I22,TABLEAU_TEAMS[[#All],[TEAM]:[GROUP_INITIAL_RANK]],2,FALSE) -> Groupe H | F22: 1.38 | G22: 3.9 | H22: 8 | I22: =VLOOKUP($D22,TABLEAU_MATCHS[#All],4,FALSE) -> Colombie | J22: 2 | L22: =VLOOKUP($D22,TABLEAU_MATCHS[#All],5,FALSE) -> Japon | M22: 1 | N22: =IF(OR(ISBLANK(RESULTATS!J22),ISBLANK(J22)),"",IF(AND(Vincent!J22=RESULTATS!J22,Vincent!M22=RESULTATS!M22),3,IF(OR(AND(Vincent!J22>Vincent!M22,RESULTATS!J22>RESULTATS!M22),AND(Vincent!J22<Vincent!M22,RESULTATS!J22<RESULTATS!M22),AND(Vincent!J22=Vincent!M22,RESULTATS!J22=RESULTATS!M22)),1,0))) ->  | R22: 06150Danemark | S22: 6150 | T22: 2 | U22: Danemark | V22: =SUMPRODUCT((Teams1=U22)*(Teams1_Score<>""))+SUMPRODUCT((Teams2=U22)*(Teams2_Score<>"")) -> 3 | W22: =SUMPRODUCT((Teams1=U22)*(Teams1_Score>Teams2_Score))+SUMPRODUCT((Teams2=U22)*(Teams2_Score>Teams1_Score)) -> 2 | X22: =SUMPRODUCT((Teams1=U22)*(Teams1_Score=Teams2_Score)*(Teams1_Score<>""))+SUMPRODUCT((Teams2=U22)*(Teams2_Score=Teams1_Score)*(Teams2_Score<>"")) -> 0 | Y22: =SUMPRODUCT((Teams1=U22)*(Teams1_Score<Teams2_Score))+SUMPRODUCT((Teams2=U22)*(Teams2_Score<Teams1_Score)) -> 1 | Z22: =SUMPRODUCT((Teams1=U22)*(Teams1_Score))+SUMPRODUCT((Teams2=U22)*(Teams2_Score)) -> 5 | AA22: =SUMPRODUCT((Teams1=U22)*(Teams2_Score))+SUMPRODUCT((Teams2=U22)*(Teams1_Score)) -> 4 | AB22: =Z22-AA22 -> 1 | AC22: =3*W22+X22 -> 6
B23: =VLOOKUP($D23,TABLEAU_MATCHS[#All],2,FALSE) -> 2018-06-19 | C23: =VLOOKUP($D23,TABLEAU_MATCHS[#All],3,FALSE) -> 14:00:00 | D23: 16 | E23: ="Groupe "&VLOOKUP($I23,TABLEAU_TEAMS[[#All],[TEAM]:[GROUP_INITIAL_RANK]],2,FALSE) -> Groupe H | F23: 2.05 | G23: 2.9 | H23: 3.5 | I23: =VLOOKUP($D23,TABLEAU_MATCHS[#All],4,FALSE) -> Pologne | J23: 1 | L23: =VLOOKUP($D23,TABLEAU_MATCHS[#All],5,FALSE) -> Sénégal | M23: 1 | N23: =IF(OR(ISBLANK(RESULTATS!J23),ISBLANK(J23)),"",IF(AND(Vincent!J23=RESULTATS!J23,Vincent!M23=RESULTATS!M23),3,IF(OR(AND(Vincent!J23>Vincent!M23,RESULTATS!J23>RESULTATS!M23),AND(Vincent!J23<Vincent!M23,RESULTATS!J23<RESULTATS!M23),AND(Vincent!J23=Vincent!M23,RESULTATS!J23=RESULTATS!M23)),1,0))) ->  | R23: 02830Pérou | S23: 2830 | T23: 3 | U23: Pérou | V23: =SUMPRODUCT((Teams1=U23)*(Teams1_Score<>""))+SUMPRODUCT((Teams2=U23)*(Teams2_Score<>"")) -> 3 | W23: =SUMPRODUCT((Teams1=U23)*(Teams1_Score>Teams2_Score))+SUMPRODUCT((Teams2=U23)*(Teams2_Score>Teams1_Score)) -> 1 | X23: =SUMPRODUCT((Teams1=U23)*(Teams1_Score=Teams2_Score)*(Teams1_Score<>""))+SUMPRODUCT((Teams2=U23)*(Teams2_Score=Teams1_Score)*(Teams2_Score<>"")) -> 0 | Y23: =SUMPRODUCT((Teams1=U23)*(Teams1_Score<Teams2_Score))+SUMPRODUCT((Teams2=U23)*(Teams2_Score<Teams1_Score)) -> 2 | Z23: =SUMPRODUCT((Teams1=U23)*(Teams1_Score))+SUMPRODUCT((Teams2=U23)*(Teams2_Score)) -> 3 | AA23: =SUMPRODUCT((Teams1=U23)*(Teams2_Score))+SUMPRODUCT((Teams2=U23)*(Teams1_Score)) -> 5 | AB23: =Z23-AA23 -> -2 | AC23: =3*W23+X23 -> 3 | AF23: Date | AG23: Finale | AJ23: Buts | AL23: Pen | AP23: Buts | AR23: Pen
B24: =VLOOKUP($D24,TABLEAU_MATCHS[#All],2,FALSE) -> 2018-06-19 | C24: =VLOOKUP($D24,TABLEAU_MATCHS[#All],3,FALSE) -> 20:00:00 | D24: 17 | E24: ="Groupe "&VLOOKUP($I24,TABLEAU_TEAMS[[#All],[TEAM]:[GROUP_INITIAL_RANK]],2,FALSE) -> Groupe A | F24: 1.26 | G24: 4.8 | H24: 9 | I24: =VLOOKUP($D24,TABLEAU_MATCHS[#All],4,FALSE) -> Russie | J24: 1 | L24: =VLOOKUP($D24,TABLEAU_MATCHS[#All],5,FALSE) -> Egypte | M24: 0 | N24: =IF(OR(ISBLANK(RESULTATS!J24),ISBLANK(J24)),"",IF(AND(Vincent!J24=RESULTATS!J24,Vincent!M24=RESULTATS!M24),3,IF(OR(AND(Vincent!J24>Vincent!M24,RESULTATS!J24>RESULTATS!M24),AND(Vincent!J24<Vincent!M24,RESULTATS!J24<RESULTATS!M24),AND(Vincent!J24=Vincent!M24,RESULTATS!J24=RESULTATS!M24)),1,0))) ->  | R24: -00490Australie | S24: -490 | T24: 4 | U24: Australie | V24: =SUMPRODUCT((Teams1=U24)*(Teams1_Score<>""))+SUMPRODUCT((Teams2=U24)*(Teams2_Score<>"")) -> 3 | W24: =SUMPRODUCT((Teams1=U24)*(Teams1_Score>Teams2_Score))+SUMPRODUCT((Teams2=U24)*(Teams2_Score>Teams1_Score)) -> 0 | X24: =SUMPRODUCT((Teams1=U24)*(Teams1_Score=Teams2_Score)*(Teams1_Score<>""))+SUMPRODUCT((Teams2=U24)*(Teams2_Score=Teams1_Score)*(Teams2_Score<>"")) -> 0 | Y24: =SUMPRODUCT((Teams1=U24)*(Teams1_Score<Teams2_Score))+SUMPRODUCT((Teams2=U24)*(Teams2_Score<Teams1_Score)) -> 3 | Z24: =SUMPRODUCT((Teams1=U24)*(Teams1_Score))+SUMPRODUCT((Teams2=U24)*(Teams2_Score)) -> 1 | AA24: =SUMPRODUCT((Teams1=U24)*(Teams2_Score))+SUMPRODUCT((Teams2=U24)*(Teams1_Score)) -> 6 | AB24: =Z24-AA24 -> -5 | AC24: =3*W24+X24 -> 0
B25: =VLOOKUP($D25,TABLEAU_MATCHS[#All],2,FALSE) -> 2018-06-20 | C25: =VLOOKUP($D25,TABLEAU_MATCHS[#All],3,FALSE) -> 17:00:00 | D25: 18 | E25: ="Groupe "&VLOOKUP($I25,TABLEAU_TEAMS[[#All],[TEAM]:[GROUP_INITIAL_RANK]],2,FALSE) -> Groupe A | F25: 3.5 | G25: 3 | H25: 2 | I25: =VLOOKUP($D25,TABLEAU_MATCHS[#All],4,FALSE) -> Uruguay | J25: 4 | L25: =VLOOKUP($D25,TABLEAU_MATCHS[#All],5,FALSE) -> Arabie Saoudite | M25: 0 | N25: =IF(OR(ISBLANK(RESULTATS!J25),ISBLANK(J25)),"",IF(AND(Vincent!J25=RESULTATS!J25,Vincent!M25=RESULTATS!M25),3,IF(OR(AND(Vincent!J25>Vincent!M25,RESULTATS!J25>RESULTATS!M25),AND(Vincent!J25<Vincent!M25,RESULTATS!J25<RESULTATS!M25),AND(Vincent!J25=Vincent!M25,RESULTATS!J25=RESULTATS!M25)),1,0))) ->  | AF25: 2018-07-15 | AH25: =+IF(AJ33<>"",IF(AI33>AO33,AH33,AN33),"Vainqueur 1") -> Vainqueur 1 | AI25: =AJ25*10+AL25 -> 0 | AK25: =IF(LEFT(AH25,5)<>"Vainq",COUNTIF(RESULTATS!$AG$10:$AM$10,AH25),0) -> 0 | AN25: =+IF(AJ34<>"",IF(AI34>AO34,AH34,AN34),"Vainqueur 2") -> Vainqueur 2 | AO25: =AP25*10+AR25 -> 0 | AQ25: =IF(LEFT(AN25,5)<>"Vainq",COUNTIF(RESULTATS!$AG$10:$AM$10,AN25),0) -> 0 | AT25: =IF(AJ25<>"",IF(AI25>AO25,AH25,AN25),"") -> 
B26: =VLOOKUP($D26,TABLEAU_MATCHS[#All],2,FALSE) -> 2018-06-20 | C26: =VLOOKUP($D26,TABLEAU_MATCHS[#All],3,FALSE) -> 14:00:00 | D26: 19 | E26: ="Groupe "&VLOOKUP($I26,TABLEAU_TEAMS[[#All],[TEAM]:[GROUP_INITIAL_RANK]],2,FALSE) -> Groupe B | F26: 1.66 | G26: 3.35 | H26: 4.8 | I26: =VLOOKUP($D26,TABLEAU_MATCHS[#All],4,FALSE) -> Portugal | J26: 2 | L26: =VLOOKUP($D26,TABLEAU_MATCHS[#All],5,FALSE) -> Maroc | M26: 0 | N26: =IF(OR(ISBLANK(RESULTATS!J26),ISBLANK(J26)),"",IF(AND(Vincent!J26=RESULTATS!J26,Vincent!M26=RESULTATS!M26),3,IF(OR(AND(Vincent!J26>Vincent!M26,RESULTATS!J26>RESULTATS!M26),AND(Vincent!J26<Vincent!M26,RESULTATS!J26<RESULTATS!M26),AND(Vincent!J26=Vincent!M26,RESULTATS!J26=RESULTATS!M26)),1,0))) ->  | T26: Rg | U26: Groupe D | V26: MJ | W26: G | X26: N | Y26: P | Z26: BP | AA26: BC | AB26: +/- | AC26: Pts
B27: =VLOOKUP($D27,TABLEAU_MATCHS[#All],2,FALSE) -> 2018-06-20 | C27: =VLOOKUP($D27,TABLEAU_MATCHS[#All],3,FALSE) -> 20:00:00 | D27: 20 | E27: ="Groupe "&VLOOKUP($I27,TABLEAU_TEAMS[[#All],[TEAM]:[GROUP_INITIAL_RANK]],2,FALSE) -> Groupe B | F27: 8.5 | G27: 4.7 | H27: 1.28 | I27: =VLOOKUP($D27,TABLEAU_MATCHS[#All],4,FALSE) -> RI Iran | J27: 0 | L27: =VLOOKUP($D27,TABLEAU_MATCHS[#All],5,FALSE) -> Espagne | M27: 4 | N27: =IF(OR(ISBLANK(RESULTATS!J27),ISBLANK(J27)),"",IF(AND(Vincent!J27=RESULTATS!J27,Vincent!M27=RESULTATS!M27),3,IF(OR(AND(Vincent!J27>Vincent!M27,RESULTATS!J27>RESULTATS!M27),AND(Vincent!J27<Vincent!M27,RESULTATS!J27<RESULTATS!M27),AND(Vincent!J27=Vincent!M27,RESULTATS!J27=RESULTATS!M27)),1,0))) ->  | R27: =INDEX($R78:$R81,MATCH(SMALL(COUNTIF($R78:$R81,">="&$R78:$R81),ROW(INDIRECT("1:"&ROWS($R78:$R81)))),COUNTIF($R78:$R81,">="&$R78:$R81),0)) -> 09580Nigeria | S27: =INDEX($S78:$S81,MATCH(SMALL(COUNTIF($R78:$R81,">="&$R78:$R81),ROW(INDIRECT("1:"&ROWS($R78:$R81)))),COUNTIF($R78:$R81,">="&$R78:$R81),0)) -> 9580 | T27: =INDEX($T78:$T81,MATCH(SMALL(COUNTIF($R78:$R81,">="&$R78:$R81),ROW(INDIRECT("1:"&ROWS($R78:$R81)))),COUNTIF($R78:$R81,">="&$R78:$R81),0)) -> 1 | U27: =INDEX($U78:$U81,MATCH(SMALL(COUNTIF($R78:$R81,">="&$R78:$R81),ROW(INDIRECT("1:"&ROWS($R78:$R81)))),COUNTIF($R78:$R81,">="&$R78:$R81),0)) -> Nigeria | V27: =SUMPRODUCT((Teams1=U27)*(Teams1_Score<>""))+SUMPRODUCT((Teams2=U27)*(Teams2_Score<>"")) -> 3 | W27: =SUMPRODUCT((Teams1=U27)*(Teams1_Score>Teams2_Score))+SUMPRODUCT((Teams2=U27)*(Teams2_Score>Teams1_Score)) -> 3 | X27: =SUMPRODUCT((Teams1=U27)*(Teams1_Score=Teams2_Score)*(Teams1_Score<>""))+SUMPRODUCT((Teams2=U27)*(Teams2_Score=Teams1_Score)*(Teams2_Score<>"")) -> 0 | Y27: =SUMPRODUCT((Teams1=U27)*(Teams1_Score<Teams2_Score))+SUMPRODUCT((Teams2=U27)*(Teams2_Score<Teams1_Score)) -> 0 | Z27: =SUMPRODUCT((Teams1=U27)*(Teams1_Score))+SUMPRODUCT((Teams2=U27)*(Teams2_Score)) -> 8 | AA27: =SUMPRODUCT((Teams1=U27)*(Teams2_Score))+SUMPRODUCT((Teams2=U27)*(Teams1_Score)) -> 3 | AB27: =Z27-AA27 -> 5 | AC27: =3*W27+X27 -> 9 | AF27: Date | AG27: Petite Finale | AJ27: Buts | AL27: Pen | AP27: Buts | AR27: Pen
B28: =VLOOKUP($D28,TABLEAU_MATCHS[#All],2,FALSE) -> 2018-06-21 | C28: =VLOOKUP($D28,TABLEAU_MATCHS[#All],3,FALSE) -> 14:00:00 | D28: 21 | E28: ="Groupe "&VLOOKUP($I28,TABLEAU_TEAMS[[#All],[TEAM]:[GROUP_INITIAL_RANK]],2,FALSE) -> Groupe C | F28: 1.85 | G28: 3 | H28: 4 | I28: =VLOOKUP($D28,TABLEAU_MATCHS[#All],4,FALSE) -> Danemark | J28: 2 | L28: =VLOOKUP($D28,TABLEAU_MATCHS[#All],5,FALSE) -> Australie | M28: 0 | N28: =IF(OR(ISBLANK(RESULTATS!J28),ISBLANK(J28)),"",IF(AND(Vincent!J28=RESULTATS!J28,Vincent!M28=RESULTATS!M28),3,IF(OR(AND(Vincent!J28>Vincent!M28,RESULTATS!J28>RESULTATS!M28),AND(Vincent!J28<Vincent!M28,RESULTATS!J28<RESULTATS!M28),AND(Vincent!J28=Vincent!M28,RESULTATS!J28=RESULTATS!M28)),1,0))) ->  | R28: 06150Argentine | S28: 6150 | T28: 2 | U28: Argentine | V28: =SUMPRODUCT((Teams1=U28)*(Teams1_Score<>""))+SUMPRODUCT((Teams2=U28)*(Teams2_Score<>"")) -> 3 | W28: =SUMPRODUCT((Teams1=U28)*(Teams1_Score>Teams2_Score))+SUMPRODUCT((Teams2=U28)*(Teams2_Score>Teams1_Score)) -> 2 | X28: =SUMPRODUCT((Teams1=U28)*(Teams1_Score=Teams2_Score)*(Teams1_Score<>""))+SUMPRODUCT((Teams2=U28)*(Teams2_Score=Teams1_Score)*(Teams2_Score<>"")) -> 0 | Y28: =SUMPRODUCT((Teams1=U28)*(Teams1_Score<Teams2_Score))+SUMPRODUCT((Teams2=U28)*(Teams2_Score<Teams1_Score)) -> 1 | Z28: =SUMPRODUCT((Teams1=U28)*(Teams1_Score))+SUMPRODUCT((Teams2=U28)*(Teams2_Score)) -> 5 | AA28: =SUMPRODUCT((Teams1=U28)*(Teams2_Score))+SUMPRODUCT((Teams2=U28)*(Teams1_Score)) -> 4 | AB28: =Z28-AA28 -> 1 | AC28: =3*W28+X28 -> 6
B29: =VLOOKUP($D29,TABLEAU_MATCHS[#All],2,FALSE) -> 2018-06-21 | C29: =VLOOKUP($D29,TABLEAU_MATCHS[#All],3,FALSE) -> 17:00:00 | D29: 22 | E29: ="Groupe "&VLOOKUP($I29,TABLEAU_TEAMS[[#All],[TEAM]:[GROUP_INITIAL_RANK]],2,FALSE) -> Groupe C | F29: 2.3 | G29: 3 | H29: 2.9 | I29: =VLOOKUP($D29,TABLEAU_MATCHS[#All],4,FALSE) -> France | J29: 2 | L29: =VLOOKUP($D29,TABLEAU_MATCHS[#All],5,FALSE) -> Pérou | M29: 0 | N29: =IF(OR(ISBLANK(RESULTATS!J29),ISBLANK(J29)),"",IF(AND(Vincent!J29=RESULTATS!J29,Vincent!M29=RESULTATS!M29),3,IF(OR(AND(Vincent!J29>Vincent!M29,RESULTATS!J29>RESULTATS!M29),AND(Vincent!J29<Vincent!M29,RESULTATS!J29<RESULTATS!M29),AND(Vincent!J29=Vincent!M29,RESULTATS!J29=RESULTATS!M29)),1,0))) ->  | R29: 00850Croatie | S29: 850 | T29: 3 | U29: Croatie | V29: =SUMPRODUCT((Teams1=U29)*(Teams1_Score<>""))+SUMPRODUCT((Teams2=U29)*(Teams2_Score<>"")) -> 3 | W29: =SUMPRODUCT((Teams1=U29)*(Teams1_Score>Teams2_Score))+SUMPRODUCT((Teams2=U29)*(Teams2_Score>Teams1_Score)) -> 0 | X29: =SUMPRODUCT((Teams1=U29)*(Teams1_Score=Teams2_Score)*(Teams1_Score<>""))+SUMPRODUCT((Teams2=U29)*(Teams2_Score=Teams1_Score)*(Teams2_Score<>"")) -> 1 | Y29: =SUMPRODUCT((Teams1=U29)*(Teams1_Score<Teams2_Score))+SUMPRODUCT((Teams2=U29)*(Teams2_Score<Teams1_Score)) -> 2 | Z29: =SUMPRODUCT((Teams1=U29)*(Teams1_Score))+SUMPRODUCT((Teams2=U29)*(Teams2_Score)) -> 5 | AA29: =SUMPRODUCT((Teams1=U29)*(Teams2_Score))+SUMPRODUCT((Teams2=U29)*(Teams1_Score)) -> 7 | AB29: =Z29-AA29 -> -2 | AC29: =3*W29+X29 -> 1 | AF29: 2018-07-14 | AH29: =+IF(AJ33<>"",IF(AI33>AO33,AN33,AH33),"Perdant 1") -> Perdant 1 | AI29: =AJ29*10+AL29 -> 0 | AN29: =+IF(AJ34<>"",IF(AI34>AO34,AN34,AH34),"Perdant 2") -> Perdant 2 | AO29: =AP29*10+AR29 -> 0
B30: =VLOOKUP($D30,TABLEAU_MATCHS[#All],2,FALSE) -> 2018-06-21 | C30: =VLOOKUP($D30,TABLEAU_MATCHS[#All],3,FALSE) -> 20:00:00 | D30: 23 | E30: ="Groupe "&VLOOKUP($I30,TABLEAU_TEAMS[[#All],[TEAM]:[GROUP_INITIAL_RANK]],2,FALSE) -> Groupe D | F30: 2.4 | G30: 3 | H30: 2.8 | I30: =VLOOKUP($D30,TABLEAU_MATCHS[#All],4,FALSE) -> Argentine | J30: 2 | L30: =VLOOKUP($D30,TABLEAU_MATCHS[#All],5,FALSE) -> Croatie | M30: 1 | N30: =IF(OR(ISBLANK(RESULTATS!J30),ISBLANK(J30)),"",IF(AND(Vincent!J30=RESULTATS!J30,Vincent!M30=RESULTATS!M30),3,IF(OR(AND(Vincent!J30>Vincent!M30,RESULTATS!J30>RESULTATS!M30),AND(Vincent!J30<Vincent!M30,RESULTATS!J30<RESULTATS!M30),AND(Vincent!J30=Vincent!M30,RESULTATS!J30=RESULTATS!M30)),1,0))) ->  | R30: 00620Islande | S30: 620 | T30: 4 | U30: Islande | V30: =SUMPRODUCT((Teams1=U30)*(Teams1_Score<>""))+SUMPRODUCT((Teams2=U30)*(Teams2_Score<>"")) -> 3 | W30: =SUMPRODUCT((Teams1=U30)*(Teams1_Score>Teams2_Score))+SUMPRODUCT((Teams2=U30)*(Teams2_Score>Teams1_Score)) -> 0 | X30: =SUMPRODUCT((Teams1=U30)*(Teams1_Score=Teams2_Score)*(Teams1_Score<>""))+SUMPRODUCT((Teams2=U30)*(Teams2_Score=Teams1_Score)*(Teams2_Score<>"")) -> 1 | Y30: =SUMPRODUCT((Teams1=U30)*(Teams1_Score<Teams2_Score))+SUMPRODUCT((Teams2=U30)*(Teams2_Score<Teams1_Score)) -> 2 | Z30: =SUMPRODUCT((Teams1=U30)*(Teams1_Score))+SUMPRODUCT((Teams2=U30)*(Teams2_Score)) -> 2 | AA30: =SUMPRODUCT((Teams1=U30)*(Teams2_Score))+SUMPRODUCT((Teams2=U30)*(Teams1_Score)) -> 6 | AB30: =Z30-AA30 -> -4 | AC30: =3*W30+X30 -> 1
B31: =VLOOKUP($D31,TABLEAU_MATCHS[#All],2,FALSE) -> 2018-06-22 | C31: =VLOOKUP($D31,TABLEAU_MATCHS[#All],3,FALSE) -> 17:00:00 | D31: 24 | E31: ="Groupe "&VLOOKUP($I31,TABLEAU_TEAMS[[#All],[TEAM]:[GROUP_INITIAL_RANK]],2,FALSE) -> Groupe D | F31: 1.26 | G31: 4.6 | H31: 9.5 | I31: =VLOOKUP($D31,TABLEAU_MATCHS[#All],4,FALSE) -> Nigeria | J31: 2 | L31: =VLOOKUP($D31,TABLEAU_MATCHS[#All],5,FALSE) -> Islande | M31: 0 | N31: =IF(OR(ISBLANK(RESULTATS!J31),ISBLANK(J31)),"",IF(AND(Vincent!J31=RESULTATS!J31,Vincent!M31=RESULTATS!M31),3,IF(OR(AND(Vincent!J31>Vincent!M31,RESULTATS!J31>RESULTATS!M31),AND(Vincent!J31<Vincent!M31,RESULTATS!J31<RESULTATS!M31),AND(Vincent!J31=Vincent!M31,RESULTATS!J31=RESULTATS!M31)),1,0))) ->  | AF31: Date | AG31: Demi Finale | AJ31: Buts | AL31: Pen | AP31: Buts | AR31: Pen
B32: =VLOOKUP($D32,TABLEAU_MATCHS[#All],2,FALSE) -> 2018-06-22 | C32: =VLOOKUP($D32,TABLEAU_MATCHS[#All],3,FALSE) -> 14:00:00 | D32: 25 | E32: ="Groupe "&VLOOKUP($I32,TABLEAU_TEAMS[[#All],[TEAM]:[GROUP_INITIAL_RANK]],2,FALSE) -> Groupe E | F32: 3.5 | G32: 2.95 | H32: 2.1 | I32: =VLOOKUP($D32,TABLEAU_MATCHS[#All],4,FALSE) -> Brésil | J32: 2 | L32: =VLOOKUP($D32,TABLEAU_MATCHS[#All],5,FALSE) -> Costa Rica | M32: 1 | N32: =IF(OR(ISBLANK(RESULTATS!J32),ISBLANK(J32)),"",IF(AND(Vincent!J32=RESULTATS!J32,Vincent!M32=RESULTATS!M32),3,IF(OR(AND(Vincent!J32>Vincent!M32,RESULTATS!J32>RESULTATS!M32),AND(Vincent!J32<Vincent!M32,RESULTATS!J32<RESULTATS!M32),AND(Vincent!J32=Vincent!M32,RESULTATS!J32=RESULTATS!M32)),1,0))) ->  | T32: Rg | U32: Groupe E | V32: MJ | W32: G | X32: N | Y32: P | Z32: BP | AA32: BC | AB32: +/- | AC32: Pts
B33: =VLOOKUP($D33,TABLEAU_MATCHS[#All],2,FALSE) -> 2018-06-22 | C33: =VLOOKUP($D33,TABLEAU_MATCHS[#All],3,FALSE) -> 20:00:00 | D33: 26 | E33: ="Groupe "&VLOOKUP($I33,TABLEAU_TEAMS[[#All],[TEAM]:[GROUP_INITIAL_RANK]],2,FALSE) -> Groupe E | F33: 4.8 | G33: 3.25 | H33: 1.62 | I33: =VLOOKUP($D33,TABLEAU_MATCHS[#All],4,FALSE) -> Serbie | J33: 1 | L33: =VLOOKUP($D33,TABLEAU_MATCHS[#All],5,FALSE) -> Suisse | M33: 1 | N33: =IF(OR(ISBLANK(RESULTATS!J33),ISBLANK(J33)),"",IF(AND(Vincent!J33=RESULTATS!J33,Vincent!M33=RESULTATS!M33),3,IF(OR(AND(Vincent!J33>Vincent!M33,RESULTATS!J33>RESULTATS!M33),AND(Vincent!J33<Vincent!M33,RESULTATS!J33<RESULTATS!M33),AND(Vincent!J33=Vincent!M33,RESULTATS!J33=RESULTATS!M33)),1,0))) ->  | R33: =INDEX($R84:$R87,MATCH(SMALL(COUNTIF($R84:$R87,">="&$R84:$R87),ROW(INDIRECT("1:"&ROWS($R84:$R87)))),COUNTIF($R84:$R87,">="&$R84:$R87),0)) -> 09570Brésil | S33: =INDEX($S84:$S87,MATCH(SMALL(COUNTIF($R84:$R87,">="&$R84:$R87),ROW(INDIRECT("1:"&ROWS($R84:$R87)))),COUNTIF($R84:$R87,">="&$R84:$R87),0)) -> 9570 | T33: =INDEX($T84:$T87,MATCH(SMALL(COUNTIF($R84:$R87,">="&$R84:$R87),ROW(INDIRECT("1:"&ROWS($R84:$R87)))),COUNTIF($R84:$R87,">="&$R84:$R87),0)) -> 1 | U33: =INDEX($U84:$U87,MATCH(SMALL(COUNTIF($R84:$R87,">="&$R84:$R87),ROW(INDIRECT("1:"&ROWS($R84:$R87)))),COUNTIF($R84:$R87,">="&$R84:$R87),0)) -> Brésil | V33: =SUMPRODUCT((Teams1=U33)*(Teams1_Score<>""))+SUMPRODUCT((Teams2=U33)*(Teams2_Score<>"")) -> 3 | W33: =SUMPRODUCT((Teams1=U33)*(Teams1_Score>Teams2_Score))+SUMPRODUCT((Teams2=U33)*(Teams2_Score>Teams1_Score)) -> 3 | X33: =SUMPRODUCT((Teams1=U33)*(Teams1_Score=Teams2_Score)*(Teams1_Score<>""))+SUMPRODUCT((Teams2=U33)*(Teams2_Score=Teams1_Score)*(Teams2_Score<>"")) -> 0 | Y33: =SUMPRODUCT((Teams1=U33)*(Teams1_Score<Teams2_Score))+SUMPRODUCT((Teams2=U33)*(Teams2_Score<Teams1_Score)) -> 0 | Z33: =SUMPRODUCT((Teams1=U33)*(Teams1_Score))+SUMPRODUCT((Teams2=U33)*(Teams2_Score)) -> 7 | AA33: =SUMPRODUCT((Teams1=U33)*(Teams2_Score))+SUMPRODUCT((Teams2=U33)*(Teams1_Score)) -> 2 | AB33: =Z33-AA33 -> 5 | AC33: =3*W33+X33 -> 9 | AF33: 2018-07-10 | AG33: 1 | AH33: =+IF(AJ38<>"",IF(AI38>AO38,AH38,AN38),"Vainqueur A") -> Vainqueur A | AI33: =AJ33*10+AL33 -> 0 | AK33: =IF(LEFT(AH33,5)<>"Vainq",COUNTIF(RESULTATS!$AG$18:$AM$19,AH33),0) -> 0 | AN33: =+IF(AJ40<>"",IF(AI40>AO40,AH40,AN40),"Vainqueur C") -> Vainqueur C | AO33: =AP33*10+AR33 -> 0 | AQ33: =IF(LEFT(AN33,5)<>"Vainq",COUNTIF(RESULTATS!$AG$18:$AM$19,AN33),0) -> 0
B34: =VLOOKUP($D34,TABLEAU_MATCHS[#All],2,FALSE) -> 2018-06-23 | C34: =VLOOKUP($D34,TABLEAU_MATCHS[#All],3,FALSE) -> 20:00:00 | D34: 27 | E34: ="Groupe "&VLOOKUP($I34,TABLEAU_TEAMS[[#All],[TEAM]:[GROUP_INITIAL_RANK]],2,FALSE) -> Groupe F | F34: 1.12 | G34: 6.5 | H34: 15 | I34: =VLOOKUP($D34,TABLEAU_MATCHS[#All],4,FALSE) -> République de Corée | J34: 1 | L34: =VLOOKUP($D34,TABLEAU_MATCHS[#All],5,FALSE) -> Mexique | M34: 2 | N34: =IF(OR(ISBLANK(RESULTATS!J34),ISBLANK(J34)),"",IF(AND(Vincent!J34=RESULTATS!J34,Vincent!M34=RESULTATS!M34),3,IF(OR(AND(Vincent!J34>Vincent!M34,RESULTATS!J34>RESULTATS!M34),AND(Vincent!J34<Vincent!M34,RESULTATS!J34<RESULTATS!M34),AND(Vincent!J34=Vincent!M34,RESULTATS!J34=RESULTATS!M34)),1,0))) ->  | R34: 03930Serbie | S34: 3930 | T34: 2 | U34: Serbie | V34: =SUMPRODUCT((Teams1=U34)*(Teams1_Score<>""))+SUMPRODUCT((Teams2=U34)*(Teams2_Score<>"")) -> 3 | W34: =SUMPRODUCT((Teams1=U34)*(Teams1_Score>Teams2_Score))+SUMPRODUCT((Teams2=U34)*(Teams2_Score>Teams1_Score)) -> 1 | X34: =SUMPRODUCT((Teams1=U34)*(Teams1_Score=Teams2_Score)*(Teams1_Score<>""))+SUMPRODUCT((Teams2=U34)*(Teams2_Score=Teams1_Score)*(Teams2_Score<>"")) -> 1 | Y34: =SUMPRODUCT((Teams1=U34)*(Teams1_Score<Teams2_Score))+SUMPRODUCT((Teams2=U34)*(Teams2_Score<Teams1_Score)) -> 1 | Z34: =SUMPRODUCT((Teams1=U34)*(Teams1_Score))+SUMPRODUCT((Teams2=U34)*(Teams2_Score)) -> 3 | AA34: =SUMPRODUCT((Teams1=U34)*(Teams2_Score))+SUMPRODUCT((Teams2=U34)*(Teams1_Score)) -> 4 | AB34: =Z34-AA34 -> -1 | AC34: =3*W34+X34 -> 4 | AF34: 2018-07-11 | AG34: 2 | AH34: =+IF(AJ39<>"",IF(AI39>AO39,AH39,AN39),"Vainqueur B") -> Vainqueur B | AI34: =AJ34*10+AL34 -> 0 | AK34: =IF(LEFT(AH34,5)<>"Vainq",COUNTIF(RESULTATS!$AG$18:$AM$19,AH34),0) -> 0 | AN34: =+IF(AJ41<>"",IF(AI41>AO41,AH41,AN41),"Vainqueur D") -> Vainqueur D | AO34: =AP34*10+AR34 -> 0 | AQ34: =IF(LEFT(AN34,5)<>"Vainq",COUNTIF(RESULTATS!$AG$18:$AM$19,AN34),0) -> 0
B35: =VLOOKUP($D35,TABLEAU_MATCHS[#All],2,FALSE) -> 2018-06-23 | C35: =VLOOKUP($D35,TABLEAU_MATCHS[#All],3,FALSE) -> 17:00:00 | D35: 28 | E35: ="Groupe "&VLOOKUP($I35,TABLEAU_TEAMS[[#All],[TEAM]:[GROUP_INITIAL_RANK]],2,FALSE) -> Groupe F | F35: 2.8 | G35: 2.95 | H35: 2.4 | I35: =VLOOKUP($D35,TABLEAU_MATCHS[#All],4,FALSE) -> Allemagne | J35: 4 | L35: =VLOOKUP($D35,TABLEAU_MATCHS[#All],5,FALSE) -> Suède | M35: 1 | N35: =IF(OR(ISBLANK(RESULTATS!J35),ISBLANK(J35)),"",IF(AND(Vincent!J35=RESULTATS!J35,Vincent!M35=RESULTATS!M35),3,IF(OR(AND(Vincent!J35>Vincent!M35,RESULTATS!J35>RESULTATS!M35),AND(Vincent!J35<Vincent!M35,RESULTATS!J35<RESULTATS!M35),AND(Vincent!J35=Vincent!M35,RESULTATS!J35=RESULTATS!M35)),1,0))) ->  | R35: 01830Suisse | S35: 1830 | T35: 3 | U35: Suisse | V35: =SUMPRODUCT((Teams1=U35)*(Teams1_Score<>""))+SUMPRODUCT((Teams2=U35)*(Teams2_Score<>"")) -> 3 | W35: =SUMPRODUCT((Teams1=U35)*(Teams1_Score>Teams2_Score))+SUMPRODUCT((Teams2=U35)*(Teams2_Score>Teams1_Score)) -> 0 | X35: =SUMPRODUCT((Teams1=U35)*(Teams1_Score=Teams2_Score)*(Teams1_Score<>""))+SUMPRODUCT((Teams2=U35)*(Teams2_Score=Teams1_Score)*(Teams2_Score<>"")) -> 2 | Y35: =SUMPRODUCT((Teams1=U35)*(Teams1_Score<Teams2_Score))+SUMPRODUCT((Teams2=U35)*(Teams2_Score<Teams1_Score)) -> 1 | Z35: =SUMPRODUCT((Teams1=U35)*(Teams1_Score))+SUMPRODUCT((Teams2=U35)*(Teams2_Score)) -> 3 | AA35: =SUMPRODUCT((Teams1=U35)*(Teams2_Score))+SUMPRODUCT((Teams2=U35)*(Teams1_Score)) -> 5 | AB35: =Z35-AA35 -> -2 | AC35: =3*W35+X35 -> 2 | AK35: =SUM(AK33:AK34) -> 0 | AQ35: =SUM(AQ33:AQ34) -> 0
B36: =VLOOKUP($D36,TABLEAU_MATCHS[#All],2,FALSE) -> 2018-06-23 | C36: =VLOOKUP($D36,TABLEAU_MATCHS[#All],3,FALSE) -> 14:00:00 | D36: 29 | E36: ="Groupe "&VLOOKUP($I36,TABLEAU_TEAMS[[#All],[TEAM]:[GROUP_INITIAL_RANK]],2,FALSE) -> Groupe G | F36: 1.36 | G36: 4 | H36: 7.5 | I36: =VLOOKUP($D36,TABLEAU_MATCHS[#All],4,FALSE) -> Belgique | J36: 2 | L36: =VLOOKUP($D36,TABLEAU_MATCHS[#All],5,FALSE) -> Tunisie | M36: 0 | N36: =IF(OR(ISBLANK(RESULTATS!J36),ISBLANK(J36)),"",IF(AND(Vincent!J36=RESULTATS!J36,Vincent!M36=RESULTATS!M36),3,IF(OR(AND(Vincent!J36>Vincent!M36,RESULTATS!J36>RESULTATS!M36),AND(Vincent!J36<Vincent!M36,RESULTATS!J36<RESULTATS!M36),AND(Vincent!J36=Vincent!M36,RESULTATS!J36=RESULTATS!M36)),1,0))) ->  | R36: 00830Costa Rica | S36: 830 | T36: 4 | U36: Costa Rica | V36: =SUMPRODUCT((Teams1=U36)*(Teams1_Score<>""))+SUMPRODUCT((Teams2=U36)*(Teams2_Score<>"")) -> 3 | W36: =SUMPRODUCT((Teams1=U36)*(Teams1_Score>Teams2_Score))+SUMPRODUCT((Teams2=U36)*(Teams2_Score>Teams1_Score)) -> 0 | X36: =SUMPRODUCT((Teams1=U36)*(Teams1_Score=Teams2_Score)*(Teams1_Score<>""))+SUMPRODUCT((Teams2=U36)*(Teams2_Score=Teams1_Score)*(Teams2_Score<>"")) -> 1 | Y36: =SUMPRODUCT((Teams1=U36)*(Teams1_Score<Teams2_Score))+SUMPRODUCT((Teams2=U36)*(Teams2_Score<Teams1_Score)) -> 2 | Z36: =SUMPRODUCT((Teams1=U36)*(Teams1_Score))+SUMPRODUCT((Teams2=U36)*(Teams2_Score)) -> 3 | AA36: =SUMPRODUCT((Teams1=U36)*(Teams2_Score))+SUMPRODUCT((Teams2=U36)*(Teams1_Score)) -> 5 | AB36: =Z36-AA36 -> -2 | AC36: =3*W36+X36 -> 1 | AF36: Date | AG36: Quart de Finale | AJ36: Buts | AL36: Pen | AP36: Buts | AR36: Pen
B37: =VLOOKUP($D37,TABLEAU_MATCHS[#All],2,FALSE) -> 2018-06-24 | C37: =VLOOKUP($D37,TABLEAU_MATCHS[#All],3,FALSE) -> 14:00:00 | D37: 30 | E37: ="Groupe "&VLOOKUP($I37,TABLEAU_TEAMS[[#All],[TEAM]:[GROUP_INITIAL_RANK]],2,FALSE) -> Groupe G | F37: 4.7 | G37: 3.4 | H37: 1.62 | I37: =VLOOKUP($D37,TABLEAU_MATCHS[#All],4,FALSE) -> Angleterre | J37: 2 | L37: =VLOOKUP($D37,TABLEAU_MATCHS[#All],5,FALSE) -> Panama | M37: 0 | N37: =IF(OR(ISBLANK(RESULTATS!J37),ISBLANK(J37)),"",IF(AND(Vincent!J37=RESULTATS!J37,Vincent!M37=RESULTATS!M37),3,IF(OR(AND(Vincent!J37>Vincent!M37,RESULTATS!J37>RESULTATS!M37),AND(Vincent!J37<Vincent!M37,RESULTATS!J37<RESULTATS!M37),AND(Vincent!J37=Vincent!M37,RESULTATS!J37=RESULTATS!M37)),1,0))) -> 
B38: =VLOOKUP($D38,TABLEAU_MATCHS[#All],2,FALSE) -> 2018-06-24 | C38: =VLOOKUP($D38,TABLEAU_MATCHS[#All],3,FALSE) -> 17:00:00 | D38: 31 | E38: ="Groupe "&VLOOKUP($I38,TABLEAU_TEAMS[[#All],[TEAM]:[GROUP_INITIAL_RANK]],2,FALSE) -> Groupe H | F38: 2.1 | G38: 2.95 | H38: 3.35 | I38: =VLOOKUP($D38,TABLEAU_MATCHS[#All],4,FALSE) -> Japon | J38: 2 | L38: =VLOOKUP($D38,TABLEAU_MATCHS[#All],5,FALSE) -> Sénégal | M38: 0 | N38: =IF(OR(ISBLANK(RESULTATS!J38),ISBLANK(J38)),"",IF(AND(Vincent!J38=RESULTATS!J38,Vincent!M38=RESULTATS!M38),3,IF(OR(AND(Vincent!J38>Vincent!M38,RESULTATS!J38>RESULTATS!M38),AND(Vincent!J38<Vincent!M38,RESULTATS!J38<RESULTATS!M38),AND(Vincent!J38=Vincent!M38,RESULTATS!J38=RESULTATS!M38)),1,0))) ->  | T38: Rg | U38: Groupe F | V38: MJ | W38: G | X38: N | Y38: P | Z38: BP | AA38: BC | AB38: +/- | AC38: Pts | AF38: 2018-07-06 | AG38: A | AH38: =+IF(AJ45<>"",IF(AI45>AO45,AH45,AN45),"Vainqueur 1") -> Vainqueur 1 | AI38: =AJ38*10+AL38 -> 0 | AK38: =IF(LEFT(AH38,5)<>"Vainq",COUNTIF(RESULTATS!$AG$23:$AM$26,AH38),0) -> 0 | AN38: =+IF(AJ47<>"",IF(AI47>AO47,AH47,AN47),"Vainqueur 3") -> Vainqueur 3 | AO38: =AP38*10+AR38 -> 0 | AQ38: =IF(LEFT(AN38,5)<>"Vainq",COUNTIF(RESULTATS!$AG$23:$AM$26,AN38),0) -> 0
B39: =VLOOKUP($D39,TABLEAU_MATCHS[#All],2,FALSE) -> 2018-06-24 | C39: =VLOOKUP($D39,TABLEAU_MATCHS[#All],3,FALSE) -> 20:00:00 | D39: 32 | E39: ="Groupe "&VLOOKUP($I39,TABLEAU_TEAMS[[#All],[TEAM]:[GROUP_INITIAL_RANK]],2,FALSE) -> Groupe H | F39: 1.9 | G39: 3 | H39: 3.8 | I39: =VLOOKUP($D39,TABLEAU_MATCHS[#All],4,FALSE) -> Pologne | J39: 1 | L39: =VLOOKUP($D39,TABLEAU_MATCHS[#All],5,FALSE) -> Colombie | M39: 2 | N39: =IF(OR(ISBLANK(RESULTATS!J39),ISBLANK(J39)),"",IF(AND(Vincent!J39=RESULTATS!J39,Vincent!M39=RESULTATS!M39),3,IF(OR(AND(Vincent!J39>Vincent!M39,RESULTATS!J39>RESULTATS!M39),AND(Vincent!J39<Vincent!M39,RESULTATS!J39<RESULTATS!M39),AND(Vincent!J39=Vincent!M39,RESULTATS!J39=RESULTATS!M39)),1,0))) ->  | R39: =INDEX($R90:$R93,MATCH(SMALL(COUNTIF($R90:$R93,">="&$R90:$R93),ROW(INDIRECT("1:"&ROWS($R90:$R93)))),COUNTIF($R90:$R93,">="&$R90:$R93),0)) -> 09800Allemagne | S39: =INDEX($S90:$S93,MATCH(SMALL(COUNTIF($R90:$R93,">="&$R90:$R93),ROW(INDIRECT("1:"&ROWS($R90:$R93)))),COUNTIF($R90:$R93,">="&$R90:$R93),0)) -> 9800 | T39: =INDEX($T90:$T93,MATCH(SMALL(COUNTIF($R90:$R93,">="&$R90:$R93),ROW(INDIRECT("1:"&ROWS($R90:$R93)))),COUNTIF($R90:$R93,">="&$R90:$R93),0)) -> 1 | U39: =INDEX($U90:$U93,MATCH(SMALL(COUNTIF($R90:$R93,">="&$R90:$R93),ROW(INDIRECT("1:"&ROWS($R90:$R93)))),COUNTIF($R90:$R93,">="&$R90:$R93),0)) -> Allemagne | V39: =SUMPRODUCT((Teams1=U39)*(Teams1_Score<>""))+SUMPRODUCT((Teams2=U39)*(Teams2_Score<>"")) -> 3 | W39: =SUMPRODUCT((Teams1=U39)*(Teams1_Score>Teams2_Score))+SUMPRODUCT((Teams2=U39)*(Teams2_Score>Teams1_Score)) -> 3 | X39: =SUMPRODUCT((Teams1=U39)*(Teams1_Score=Teams2_Score)*(Teams1_Score<>""))+SUMPRODUCT((Teams2=U39)*(Teams2_Score=Teams1_Score)*(Teams2_Score<>"")) -> 0 | Y39: =SUMPRODUCT((Teams1=U39)*(Teams1_Score<Teams2_Score))+SUMPRODUCT((Teams2=U39)*(Teams2_Score<Teams1_Score)) -> 0 | Z39: =SUMPRODUCT((Teams1=U39)*(Teams1_Score))+SUMPRODUCT((Teams2=U39)*(Teams2_Score)) -> 10 | AA39: =SUMPRODUCT((Teams1=U39)*(Teams2_Score))+SUMPRODUCT((Teams2=U39)*(Teams1_Score)) -> 3 | AB39: =Z39-AA39 -> 7 | AC39: =3*W39+X39 -> 9 | AF39: 2018-07-07 | AG39: B | AH39: =+IF(AJ46<>"",IF(AI46>AO46,AH46,AN46),"Vainqueur 2") -> Vainqueur 2 | AI39: =AJ39*10+AL39 -> 0 | AK39: =IF(LEFT(AH39,5)<>"Vainq",COUNTIF(RESULTATS!$AG$23:$AM$26,AH39),0) -> 0 | AN39: =+IF(AJ48<>"",IF(AI48>AO48,AH48,AN48),"Vainqueur 4") -> Vainqueur 4 | AO39: =AP39*10+AR39 -> 0 | AQ39: =IF(LEFT(AN39,5)<>"Vainq",COUNTIF(RESULTATS!$AG$23:$AM$26,AN39),0) -> 0
B40: =VLOOKUP($D40,TABLEAU_MATCHS[#All],2,FALSE) -> 2018-06-25 | C40: =VLOOKUP($D40,TABLEAU_MATCHS[#All],3,FALSE) -> 16:00:00 | D40: 33 | E40: ="Groupe "&VLOOKUP($I40,TABLEAU_TEAMS[[#All],[TEAM]:[GROUP_INITIAL_RANK]],2,FALSE) -> Groupe A | F40: 11 | G40: 6.5 | H40: 1.17 | I40: =VLOOKUP($D40,TABLEAU_MATCHS[#All],4,FALSE) -> Uruguay | J40: 2 | L40: =VLOOKUP($D40,TABLEAU_MATCHS[#All],5,FALSE) -> Russie | M40: 2 | N40: =IF(OR(ISBLANK(RESULTATS!J40),ISBLANK(J40)),"",IF(AND(Vincent!J40=RESULTATS!J40,Vincent!M40=RESULTATS!M40),3,IF(OR(AND(Vincent!J40>Vincent!M40,RESULTATS!J40>RESULTATS!M40),AND(Vincent!J40<Vincent!M40,RESULTATS!J40<RESULTATS!M40),AND(Vincent!J40=Vincent!M40,RESULTATS!J40=RESULTATS!M40)),1,0))) ->  | R40: 03950Mexique | S40: 3950 | T40: 2 | U40: Mexique | V40: =SUMPRODUCT((Teams1=U40)*(Teams1_Score<>""))+SUMPRODUCT((Teams2=U40)*(Teams2_Score<>"")) -> 3 | W40: =SUMPRODUCT((Teams1=U40)*(Teams1_Score>Teams2_Score))+SUMPRODUCT((Teams2=U40)*(Teams2_Score>Teams1_Score)) -> 1 | X40: =SUMPRODUCT((Teams1=U40)*(Teams1_Score=Teams2_Score)*(Teams1_Score<>""))+SUMPRODUCT((Teams2=U40)*(Teams2_Score=Teams1_Score)*(Teams2_Score<>"")) -> 1 | Y40: =SUMPRODUCT((Teams1=U40)*(Teams1_Score<Teams2_Score))+SUMPRODUCT((Teams2=U40)*(Teams2_Score<Teams1_Score)) -> 1 | Z40: =SUMPRODUCT((Teams1=U40)*(Teams1_Score))+SUMPRODUCT((Teams2=U40)*(Teams2_Score)) -> 5 | AA40: =SUMPRODUCT((Teams1=U40)*(Teams2_Score))+SUMPRODUCT((Teams2=U40)*(Teams1_Score)) -> 6 | AB40: =Z40-AA40 -> -1 | AC40: =3*W40+X40 -> 4 | AF40: 2018-07-06 | AG40: C | AH40: =+IF(AJ49<>"",IF(AI49>AO49,AH49,AN49),"Vainqueur 5") -> Vainqueur 5 | AI40: =AJ40*10+AL40 -> 0 | AK40: =IF(LEFT(AH40,5)<>"Vainq",COUNTIF(RESULTATS!$AG$23:$AM$26,AH40),0) -> 0 | AN40: =+IF(AJ51<>"",IF(AI51>AO51,AH51,AN51),"Vainqueur 7") -> Vainqueur 7 | AO40: =AP40*10+AR40 -> 0 | AQ40: =IF(LEFT(AN40,5)<>"Vainq",COUNTIF(RESULTATS!$AG$23:$AM$26,AN40),0) -> 0
B41: =VLOOKUP($D41,TABLEAU_MATCHS[#All],2,FALSE) -> 2018-06-25 | C41: =VLOOKUP($D41,TABLEAU_MATCHS[#All],3,FALSE) -> 16:00:00 | D41: 34 | E41: ="Groupe "&VLOOKUP($I41,TABLEAU_TEAMS[[#All],[TEAM]:[GROUP_INITIAL_RANK]],2,FALSE) -> Groupe A | F41: 2.4 | G41: 2.95 | H41: 2.75 | I41: =VLOOKUP($D41,TABLEAU_MATCHS[#All],4,FALSE) -> Arabie Saoudite | J41: 0 | L41: =VLOOKUP($D41,TABLEAU_MATCHS[#All],5,FALSE) -> Egypte | M41: 2 | N41: =IF(OR(ISBLANK(RESULTATS!J41),ISBLANK(J41)),"",IF(AND(Vincent!J41=RESULTATS!J41,Vincent!M41=RESULTATS!M41),3,IF(OR(AND(Vincent!J41>Vincent!M41,RESULTATS!J41>RESULTATS!M41),AND(Vincent!J41<Vincent!M41,RESULTATS!J41<RESULTATS!M41),AND(Vincent!J41=Vincent!M41,RESULTATS!J41=RESULTATS!M41)),1,0))) ->  | R41: 01730Suède | S41: 1730 | T41: 3 | U41: Suède | V41: =SUMPRODUCT((Teams1=U41)*(Teams1_Score<>""))+SUMPRODUCT((Teams2=U41)*(Teams2_Score<>"")) -> 3 | W41: =SUMPRODUCT((Teams1=U41)*(Teams1_Score>Teams2_Score))+SUMPRODUCT((Teams2=U41)*(Teams2_Score>Teams1_Score)) -> 0 | X41: =SUMPRODUCT((Teams1=U41)*(Teams1_Score=Teams2_Score)*(Teams1_Score<>""))+SUMPRODUCT((Teams2=U41)*(Teams2_Score=Teams1_Score)*(Teams2_Score<>"")) -> 2 | Y41: =SUMPRODUCT((Teams1=U41)*(Teams1_Score<Teams2_Score))+SUMPRODUCT((Teams2=U41)*(Teams2_Score<Teams1_Score)) -> 1 | Z41: =SUMPRODUCT((Teams1=U41)*(Teams1_Score))+SUMPRODUCT((Teams2=U41)*(Teams2_Score)) -> 3 | AA41: =SUMPRODUCT((Teams1=U41)*(Teams2_Score))+SUMPRODUCT((Teams2=U41)*(Teams1_Score)) -> 6 | AB41: =Z41-AA41 -> -3 | AC41: =3*W41+X41 -> 2 | AF41: 2018-07-07 | AG41: D | AH41: =+IF(AJ50<>"",IF(AI50>AO50,AH50,AN50),"Vainqueur 6") -> Vainqueur 6 | AI41: =AJ41*10+AL41 -> 0 | AK41: =IF(LEFT(AH41,5)<>"Vainq",COUNTIF(RESULTATS!$AG$23:$AM$26,AH41),0) -> 0 | AN41: =+IF(AJ52<>"",IF(AI52>AO52,AH52,AN52),"Vainqueur 8") -> Vainqueur 8 | AO41: =AP41*10+AR41 -> 0 | AQ41: =IF(LEFT(AN41,5)<>"Vainq",COUNTIF(RESULTATS!$AG$23:$AM$26,AN41),0) -> 0
B42: =VLOOKUP($D42,TABLEAU_MATCHS[#All],2,FALSE) -> 2018-06-25 | C42: =VLOOKUP($D42,TABLEAU_MATCHS[#All],3,FALSE) -> 20:00:00 | D42: 35 | E42: ="Groupe "&VLOOKUP($I42,TABLEAU_TEAMS[[#All],[TEAM]:[GROUP_INITIAL_RANK]],2,FALSE) -> Groupe B | F42: 13 | G42: 6.5 | H42: 1.14 | I42: =VLOOKUP($D42,TABLEAU_MATCHS[#All],4,FALSE) -> RI Iran | J42: 0 | L42: =VLOOKUP($D42,TABLEAU_MATCHS[#All],5,FALSE) -> Portugal | M42: 4 | N42: =IF(OR(ISBLANK(RESULTATS!J42),ISBLANK(J42)),"",IF(AND(Vincent!J42=RESULTATS!J42,Vincent!M42=RESULTATS!M42),3,IF(OR(AND(Vincent!J42>Vincent!M42,RESULTATS!J42>RESULTATS!M42),AND(Vincent!J42<Vincent!M42,RESULTATS!J42<RESULTATS!M42),AND(Vincent!J42=Vincent!M42,RESULTATS!J42=RESULTATS!M42)),1,0))) ->  | R42: 00720République de Corée | S42: 720 | T42: 4 | U42: République de Corée | V42: =SUMPRODUCT((Teams1=U42)*(Teams1_Score<>""))+SUMPRODUCT((Teams2=U42)*(Teams2_Score<>"")) -> 3 | W42: =SUMPRODUCT((Teams1=U42)*(Teams1_Score>Teams2_Score))+SUMPRODUCT((Teams2=U42)*(Teams2_Score>Teams1_Score)) -> 0 | X42: =SUMPRODUCT((Teams1=U42)*(Teams1_Score=Teams2_Score)*(Teams1_Score<>""))+SUMPRODUCT((Teams2=U42)*(Teams2_Score=Teams1_Score)*(Teams2_Score<>"")) -> 1 | Y42: =SUMPRODUCT((Teams1=U42)*(Teams1_Score<Teams2_Score))+SUMPRODUCT((Teams2=U42)*(Teams2_Score<Teams1_Score)) -> 2 | Z42: =SUMPRODUCT((Teams1=U42)*(Teams1_Score))+SUMPRODUCT((Teams2=U42)*(Teams2_Score)) -> 2 | AA42: =SUMPRODUCT((Teams1=U42)*(Teams2_Score))+SUMPRODUCT((Teams2=U42)*(Teams1_Score)) -> 5 | AB42: =Z42-AA42 -> -3 | AC42: =3*W42+X42 -> 1 | AK42: =SUM(AK38:AK41) -> 0 | AQ42: =SUM(AQ38:AQ41) -> 0
B43: =VLOOKUP($D43,TABLEAU_MATCHS[#All],2,FALSE) -> 2018-06-25 | C43: =VLOOKUP($D43,TABLEAU_MATCHS[#All],3,FALSE) -> 20:00:00 | D43: 36 | E43: ="Groupe "&VLOOKUP($I43,TABLEAU_TEAMS[[#All],[TEAM]:[GROUP_INITIAL_RANK]],2,FALSE) -> Groupe B | F43: 2.25 | G43: 3.1 | H43: 2.95 | I43: =VLOOKUP($D43,TABLEAU_MATCHS[#All],4,FALSE) -> Espagne | J43: 3 | L43: =VLOOKUP($D43,TABLEAU_MATCHS[#All],5,FALSE) -> Maroc | M43: 1 | N43: =IF(OR(ISBLANK(RESULTATS!J43),ISBLANK(J43)),"",IF(AND(Vincent!J43=RESULTATS!J43,Vincent!M43=RESULTATS!M43),3,IF(OR(AND(Vincent!J43>Vincent!M43,RESULTATS!J43>RESULTATS!M43),AND(Vincent!J43<Vincent!M43,RESULTATS!J43<RESULTATS!M43),AND(Vincent!J43=Vincent!M43,RESULTATS!J43=RESULTATS!M43)),1,0))) ->  | AF43: Date | AG43: Huitième de Finale | AJ43: Buts | AL43: Pen | AP43: Buts | AR43: Pen
B44: =VLOOKUP($D44,TABLEAU_MATCHS[#All],2,FALSE) -> 2018-06-26 | C44: =VLOOKUP($D44,TABLEAU_MATCHS[#All],3,FALSE) -> 16:00:00 | D44: 37 | E44: ="Groupe "&VLOOKUP($I44,TABLEAU_TEAMS[[#All],[TEAM]:[GROUP_INITIAL_RANK]],2,FALSE) -> Groupe C | F44: 4.3 | G44: 3.25 | H44: 1.76 | I44: =VLOOKUP($D44,TABLEAU_MATCHS[#All],4,FALSE) -> Danemark | J44: 1 | L44: =VLOOKUP($D44,TABLEAU_MATCHS[#All],5,FALSE) -> France | M44: 3 | N44: =IF(OR(ISBLANK(RESULTATS!J44),ISBLANK(J44)),"",IF(AND(Vincent!J44=RESULTATS!J44,Vincent!M44=RESULTATS!M44),3,IF(OR(AND(Vincent!J44>Vincent!M44,RESULTATS!J44>RESULTATS!M44),AND(Vincent!J44<Vincent!M44,RESULTATS!J44<RESULTATS!M44),AND(Vincent!J44=Vincent!M44,RESULTATS!J44=RESULTATS!M44)),1,0))) ->  | T44: Rg | U44: Groupe G | V44: MJ | W44: G | X44: N | Y44: P | Z44: BP | AA44: BC | AB44: +/- | AC44: Pts
B45: =VLOOKUP($D45,TABLEAU_MATCHS[#All],2,FALSE) -> 2018-06-26 | C45: =VLOOKUP($D45,TABLEAU_MATCHS[#All],3,FALSE) -> 16:00:00 | D45: 38 | E45: ="Groupe "&VLOOKUP($I45,TABLEAU_TEAMS[[#All],[TEAM]:[GROUP_INITIAL_RANK]],2,FALSE) -> Groupe C | F45: 3.05 | G45: 3 | H45: 2.25 | I45: =VLOOKUP($D45,TABLEAU_MATCHS[#All],4,FALSE) -> Australie | J45: 1 | L45: =VLOOKUP($D45,TABLEAU_MATCHS[#All],5,FALSE) -> Pérou | M45: 2 | N45: =IF(OR(ISBLANK(RESULTATS!J45),ISBLANK(J45)),"",IF(AND(Vincent!J45=RESULTATS!J45,Vincent!M45=RESULTATS!M45),3,IF(OR(AND(Vincent!J45>Vincent!M45,RESULTATS!J45>RESULTATS!M45),AND(Vincent!J45<Vincent!M45,RESULTATS!J45<RESULTATS!M45),AND(Vincent!J45=Vincent!M45,RESULTATS!J45=RESULTATS!M45)),1,0))) ->  | R45: =INDEX($R96:$R99,MATCH(SMALL(COUNTIF($R96:$R99,">="&$R96:$R99),ROW(INDIRECT("1:"&ROWS($R96:$R99)))),COUNTIF($R96:$R99,">="&$R96:$R99),0)) -> 09680Belgique | S45: =INDEX($S96:$S99,MATCH(SMALL(COUNTIF($R96:$R99,">="&$R96:$R99),ROW(INDIRECT("1:"&ROWS($R96:$R99)))),COUNTIF($R96:$R99,">="&$R96:$R99),0)) -> 9680 | T45: =INDEX($T96:$T99,MATCH(SMALL(COUNTIF($R96:$R99,">="&$R96:$R99),ROW(INDIRECT("1:"&ROWS($R96:$R99)))),COUNTIF($R96:$R99,">="&$R96:$R99),0)) -> 1 | U45: =INDEX($U96:$U99,MATCH(SMALL(COUNTIF($R96:$R99,">="&$R96:$R99),ROW(INDIRECT("1:"&ROWS($R96:$R99)))),COUNTIF($R96:$R99,">="&$R96:$R99),0)) -> Belgique | V45: =SUMPRODUCT((Teams1=U45)*(Teams1_Score<>""))+SUMPRODUCT((Teams2=U45)*(Teams2_Score<>"")) -> 3 | W45: =SUMPRODUCT((Teams1=U45)*(Teams1_Score>Teams2_Score))+SUMPRODUCT((Teams2=U45)*(Teams2_Score>Teams1_Score)) -> 3 | X45: =SUMPRODUCT((Teams1=U45)*(Teams1_Score=Teams2_Score)*(Teams1_Score<>""))+SUMPRODUCT((Teams2=U45)*(Teams2_Score=Teams1_Score)*(Teams2_Score<>"")) -> 0 | Y45: =SUMPRODUCT((Teams1=U45)*(Teams1_Score<Teams2_Score))+SUMPRODUCT((Teams2=U45)*(Teams2_Score<Teams1_Score)) -> 0 | Z45: =SUMPRODUCT((Teams1=U45)*(Teams1_Score))+SUMPRODUCT((Teams2=U45)*(Teams2_Score)) -> 8 | AA45: =SUMPRODUCT((Teams1=U45)*(Teams2_Score))+SUMPRODUCT((Teams2=U45)*(Teams1_Score)) -> 2 | AB45: =Z45-AA45 -> 6 | AC45: =3*W45+X45 -> 9 | AF45: 2018-06-30 | AG45: 1 | AH45: =IF(SUM(V9:V12)=0,"1er Groupe A",IF(COUNTIF(T9:T12,1)=1,VLOOKUP(1,T9:U12,2,FALSE),IF(COUNTIF(T9:T12,1)>=2,"Tirage au Sort A1"))) -> Uruguay | AI45: =AJ45*10+AL45 -> 0 | AK45: =IF(AND(LEFT(AH45,3)<>"1er",LEFT(AH45,3)<>"2nd"),COUNTIF(RESULTATS!$AG$30:$AM$37,AH45),0) -> 1 | AN45: =IF(SUM(V15:V18)=0,"2nd Groupe B",IF(OR(COUNTIF(T15:T18,1)>1,COUNTIF(T15:T18,2)>1),"Tirage au sort B2",VLOOKUP(2,T15:U18,2,FALSE))) -> Portugal | AO45: =AP45*10+AR45 -> 0 | AQ45: =IF(AND(LEFT(AN45,3)<>"1er",LEFT(AN45,3)<>"2nd"),COUNTIF(RESULTATS!$AG$30:$AM$37,AN45),0) -> 0
B46: =VLOOKUP($D46,TABLEAU_MATCHS[#All],2,FALSE) -> 2018-06-26 | C46: =VLOOKUP($D46,TABLEAU_MATCHS[#All],3,FALSE) -> 20:00:00 | D46: 39 | E46: ="Groupe "&VLOOKUP($I46,TABLEAU_TEAMS[[#All],[TEAM]:[GROUP_INITIAL_RANK]],2,FALSE) -> Groupe D | F46: 2.4 | G46: 2.9 | H46: 2.85 | I46: =VLOOKUP($D46,TABLEAU_MATCHS[#All],4,FALSE) -> Nigeria | J46: 3 | L46: =VLOOKUP($D46,TABLEAU_MATCHS[#All],5,FALSE) -> Argentine | M46: 1 | N46: =IF(OR(ISBLANK(RESULTATS!J46),ISBLANK(J46)),"",IF(AND(Vincent!J46=RESULTATS!J46,Vincent!M46=RESULTATS!M46),3,IF(OR(AND(Vincent!J46>Vincent!M46,RESULTATS!J46>RESULTATS!M46),AND(Vincent!J46<Vincent!M46,RESULTATS!J46<RESULTATS!M46),AND(Vincent!J46=Vincent!M46,RESULTATS!J46=RESULTATS!M46)),1,0))) ->  | R46: 06260Angleterre | S46: 6260 | T46: 2 | U46: Angleterre | V46: =SUMPRODUCT((Teams1=U46)*(Teams1_Score<>""))+SUMPRODUCT((Teams2=U46)*(Teams2_Score<>"")) -> 3 | W46: =SUMPRODUCT((Teams1=U46)*(Teams1_Score>Teams2_Score))+SUMPRODUCT((Teams2=U46)*(Teams2_Score>Teams1_Score)) -> 2 | X46: =SUMPRODUCT((Teams1=U46)*(Teams1_Score=Teams2_Score)*(Teams1_Score<>""))+SUMPRODUCT((Teams2=U46)*(Teams2_Score=Teams1_Score)*(Teams2_Score<>"")) -> 0 | Y46: =SUMPRODUCT((Teams1=U46)*(Teams1_Score<Teams2_Score))+SUMPRODUCT((Teams2=U46)*(Teams2_Score<Teams1_Score)) -> 1 | Z46: =SUMPRODUCT((Teams1=U46)*(Teams1_Score))+SUMPRODUCT((Teams2=U46)*(Teams2_Score)) -> 6 | AA46: =SUMPRODUCT((Teams1=U46)*(Teams2_Score))+SUMPRODUCT((Teams2=U46)*(Teams1_Score)) -> 4 | AB46: =Z46-AA46 -> 2 | AC46: =3*W46+X46 -> 6 | AF46: 2018-07-01 | AG46: 2 | AH46: =IF(SUM(V15:V18)=0,"1er Groupe B",IF(COUNTIF(T15:T18,1)=1,VLOOKUP(1,T15:U18,2,FALSE),IF(COUNTIF(T15:T18,1)>=2,"Tirage au Sort B1"))) -> Espagne | AI46: =AJ46*10+AL46 -> 0 | AK46: =IF(AND(LEFT(AH46,3)<>"1er",LEFT(AH46,3)<>"2nd"),COUNTIF(RESULTATS!$AG$30:$AM$37,AH46),0) -> 0 | AN46: =IF(SUM(V9:V12)=0,"2nd Groupe A",IF(OR(COUNTIF(T9:T12,1)>1,COUNTIF(T9:T12,2)>1),"Tirage au sort A2",VLOOKUP(2,T9:U12,2,FALSE))) -> Russie | AO46: 0 | AQ46: =IF(AND(LEFT(AN46,3)<>"1er",LEFT(AN46,3)<>"2nd"),COUNTIF(RESULTATS!$AG$30:$AM$37,AN46),0) -> 1
B47: =VLOOKUP($D47,TABLEAU_MATCHS[#All],2,FALSE) -> 2018-06-26 | C47: =VLOOKUP($D47,TABLEAU_MATCHS[#All],3,FALSE) -> 20:00:00 | D47: 40 | E47: ="Groupe "&VLOOKUP($I47,TABLEAU_TEAMS[[#All],[TEAM]:[GROUP_INITIAL_RANK]],2,FALSE) -> Groupe D | F47: 6.5 | G47: 3.7 | H47: 1.44 | I47: =VLOOKUP($D47,TABLEAU_MATCHS[#All],4,FALSE) -> Islande | J47: 2 | L47: =VLOOKUP($D47,TABLEAU_MATCHS[#All],5,FALSE) -> Croatie | M47: 2 | N47: =IF(OR(ISBLANK(RESULTATS!J47),ISBLANK(J47)),"",IF(AND(Vincent!J47=RESULTATS!J47,Vincent!M47=RESULTATS!M47),3,IF(OR(AND(Vincent!J47>Vincent!M47,RESULTATS!J47>RESULTATS!M47),AND(Vincent!J47<Vincent!M47,RESULTATS!J47<RESULTATS!M47),AND(Vincent!J47=Vincent!M47,RESULTATS!J47=RESULTATS!M47)),1,0))) ->  | R47: 02930Tunisie | S47: 2930 | T47: 3 | U47: Tunisie | V47: =SUMPRODUCT((Teams1=U47)*(Teams1_Score<>""))+SUMPRODUCT((Teams2=U47)*(Teams2_Score<>"")) -> 3 | W47: =SUMPRODUCT((Teams1=U47)*(Teams1_Score>Teams2_Score))+SUMPRODUCT((Teams2=U47)*(Teams2_Score>Teams1_Score)) -> 1 | X47: =SUMPRODUCT((Teams1=U47)*(Teams1_Score=Teams2_Score)*(Teams1_Score<>""))+SUMPRODUCT((Teams2=U47)*(Teams2_Score=Teams1_Score)*(Teams2_Score<>"")) -> 0 | Y47: =SUMPRODUCT((Teams1=U47)*(Teams1_Score<Teams2_Score))+SUMPRODUCT((Teams2=U47)*(Teams2_Score<Teams1_Score)) -> 2 | Z47: =SUMPRODUCT((Teams1=U47)*(Teams1_Score))+SUMPRODUCT((Teams2=U47)*(Teams2_Score)) -> 3 | AA47: =SUMPRODUCT((Teams1=U47)*(Teams2_Score))+SUMPRODUCT((Teams2=U47)*(Teams1_Score)) -> 4 | AB47: =Z47-AA47 -> -1 | AC47: =3*W47+X47 -> 3 | AF47: 2017-06-30 | AG47: 3 | AH47: =IF(SUM(V21:V24)=0,"1er Groupe C",IF(COUNTIF(T21:T24,1)=1,VLOOKUP(1,T21:U24,2,FALSE),IF(COUNTIF(T21:T24,1)>=2,"Tirage au Sort C1"))) -> France | AI47: 0 | AK47: =IF(AND(LEFT(AH47,3)<>"1er",LEFT(AH47,3)<>"2nd"),COUNTIF(RESULTATS!$AG$30:$AM$37,AH47),0) -> 0 | AN47: =IF(SUM(V27:V30)=0,"2nd Groupe D",IF(OR(COUNTIF(T27:T30,1)>1,COUNTIF(T27:T30,2)>1),"Tirage au sort D2",VLOOKUP(2,T27:U30,2,FALSE))) -> Argentine | AO47: 0 | AQ47: =IF(AND(LEFT(AN47,3)<>"1er",LEFT(AN47,3)<>"2nd"),COUNTIF(RESULTATS!$AG$30:$AM$37,AN47),0) -> 0
B48: =VLOOKUP($D48,TABLEAU_MATCHS[#All],2,FALSE) -> 2018-06-27 | C48: =VLOOKUP($D48,TABLEAU_MATCHS[#All],3,FALSE) -> 20:00:00 | D48: 41 | E48: ="Groupe "&VLOOKUP($I48,TABLEAU_TEAMS[[#All],[TEAM]:[GROUP_INITIAL_RANK]],2,FALSE) -> Groupe E | F48: 6.5 | G48: 3.5 | H48: 1.48 | I48: =VLOOKUP($D48,TABLEAU_MATCHS[#All],4,FALSE) -> Serbie | J48: 0 | L48: =VLOOKUP($D48,TABLEAU_MATCHS[#All],5,FALSE) -> Brésil | M48: 2 | N48: =IF(OR(ISBLANK(RESULTATS!J48),ISBLANK(J48)),"",IF(AND(Vincent!J48=RESULTATS!J48,Vincent!M48=RESULTATS!M48),3,IF(OR(AND(Vincent!J48>Vincent!M48,RESULTATS!J48>RESULTATS!M48),AND(Vincent!J48<Vincent!M48,RESULTATS!J48<RESULTATS!M48),AND(Vincent!J48=Vincent!M48,RESULTATS!J48=RESULTATS!M48)),1,0))) ->  | R48: -00700Panama | S48: -700 | T48: 4 | U48: Panama | V48: =SUMPRODUCT((Teams1=U48)*(Teams1_Score<>""))+SUMPRODUCT((Teams2=U48)*(Teams2_Score<>"")) -> 3 | W48: =SUMPRODUCT((Teams1=U48)*(Teams1_Score>Teams2_Score))+SUMPRODUCT((Teams2=U48)*(Teams2_Score>Teams1_Score)) -> 0 | X48: =SUMPRODUCT((Teams1=U48)*(Teams1_Score=Teams2_Score)*(Teams1_Score<>""))+SUMPRODUCT((Teams2=U48)*(Teams2_Score=Teams1_Score)*(Teams2_Score<>"")) -> 0 | Y48: =SUMPRODUCT((Teams1=U48)*(Teams1_Score<Teams2_Score))+SUMPRODUCT((Teams2=U48)*(Teams2_Score<Teams1_Score)) -> 3 | Z48: =SUMPRODUCT((Teams1=U48)*(Teams1_Score))+SUMPRODUCT((Teams2=U48)*(Teams2_Score)) -> 0 | AA48: =SUMPRODUCT((Teams1=U48)*(Teams2_Score))+SUMPRODUCT((Teams2=U48)*(Teams1_Score)) -> 7 | AB48: =Z48-AA48 -> -7 | AC48: =3*W48+X48 -> 0 | AF48: 2018-07-01 | AG48: 4 | AH48: =IF(SUM(V27:V30)=0,"1er Groupe D",IF(COUNTIF(T27:T30,1)=1,VLOOKUP(1,T27:U30,2,FALSE),IF(COUNTIF(T27:T30,1)>=2,"Tirage au Sort D1"))) -> Nigeria | AI48: 0 | AK48: =IF(AND(LEFT(AH48,3)<>"1er",LEFT(AH48,3)<>"2nd"),COUNTIF(RESULTATS!$AG$30:$AM$37,AH48),0) -> 0 | AN48: =IF(SUM(V21:V24)=0,"2nd Groupe C",IF(OR(COUNTIF(T21:T24,1)>1,COUNTIF(T21:T24,2)>1),"Tirage au sort C2",VLOOKUP(2,T21:U24,2,FALSE))) -> Danemark | AO48: 0 | AQ48: =IF(AND(LEFT(AN48,3)<>"1er",LEFT(AN48,3)<>"2nd"),COUNTIF(RESULTATS!$AG$30:$AM$37,AN48),0) -> 0
B49: =VLOOKUP($D49,TABLEAU_MATCHS[#All],2,FALSE) -> 2018-06-27 | C49: =VLOOKUP($D49,TABLEAU_MATCHS[#All],3,FALSE) -> 20:00:00 | D49: 42 | E49: ="Groupe "&VLOOKUP($I49,TABLEAU_TEAMS[[#All],[TEAM]:[GROUP_INITIAL_RANK]],2,FALSE) -> Groupe E | F49: 4 | G49: 3.05 | H49: 1.9 | I49: =VLOOKUP($D49,TABLEAU_MATCHS[#All],4,FALSE) -> Suisse | J49: 1 | L49: =VLOOKUP($D49,TABLEAU_MATCHS[#All],5,FALSE) -> Costa Rica | M49: 1 | N49: =IF(OR(ISBLANK(RESULTATS!J49),ISBLANK(J49)),"",IF(AND(Vincent!J49=RESULTATS!J49,Vincent!M49=RESULTATS!M49),3,IF(OR(AND(Vincent!J49>Vincent!M49,RESULTATS!J49>RESULTATS!M49),AND(Vincent!J49<Vincent!M49,RESULTATS!J49<RESULTATS!M49),AND(Vincent!J49=Vincent!M49,RESULTATS!J49=RESULTATS!M49)),1,0))) ->  | AF49: 2018-07-02 | AG49: 5 | AH49: =IF(SUM(V33:V36)=0,"1er Groupe E",IF(COUNTIF(T33:T36,1)=1,VLOOKUP(1,T33:U36,2,FALSE),IF(COUNTIF(T33:T36,1)>=2,"Tirage au Sort E1"))) -> Brésil | AI49: 0 | AK49: =IF(AND(LEFT(AH49,3)<>"1er",LEFT(AH49,3)<>"2nd"),COUNTIF(RESULTATS!$AG$30:$AM$37,AH49),0) -> 0 | AN49: =IF(SUM(V39:V42)=0,"2nd Groupe F",IF(OR(COUNTIF(T39:T42,1)>1,COUNTIF(T39:T42,2)>1),"Tirage au sort F2",VLOOKUP(2,T39:U42,2,FALSE))) -> Mexique | AO49: 0 | AQ49: =IF(AND(LEFT(AN49,3)<>"1er",LEFT(AN49,3)<>"2nd"),COUNTIF(RESULTATS!$AG$30:$AM$37,AN49),0) -> 0
B50: =VLOOKUP($D50,TABLEAU_MATCHS[#All],2,FALSE) -> 2018-06-27 | C50: =VLOOKUP($D50,TABLEAU_MATCHS[#All],3,FALSE) -> 16:00:00 | D50: 43 | E50: ="Groupe "&VLOOKUP($I50,TABLEAU_TEAMS[[#All],[TEAM]:[GROUP_INITIAL_RANK]],2,FALSE) -> Groupe F | F50: 8.5 | G50: 4.3 | H50: 1.3 | I50: =VLOOKUP($D50,TABLEAU_MATCHS[#All],4,FALSE) -> Mexique | J50: 2 | L50: =VLOOKUP($D50,TABLEAU_MATCHS[#All],5,FALSE) -> Suède | M50: 2 | N50: =IF(OR(ISBLANK(RESULTATS!J50),ISBLANK(J50)),"",IF(AND(Vincent!J50=RESULTATS!J50,Vincent!M50=RESULTATS!M50),3,IF(OR(AND(Vincent!J50>Vincent!M50,RESULTATS!J50>RESULTATS!M50),AND(Vincent!J50<Vincent!M50,RESULTATS!J50<RESULTATS!M50),AND(Vincent!J50=Vincent!M50,RESULTATS!J50=RESULTATS!M50)),1,0))) ->  | T50: Rg | U50: Groupe H | V50: MJ | W50: G | X50: N | Y50: P | Z50: BP | AA50: BC | AB50: +/- | AC50: Pts | AF50: 2018-07-03 | AG50: 6 | AH50: =IF(SUM(V39:V42)=0,"1er Groupe F",IF(COUNTIF(T39:T42,1)=1,VLOOKUP(1,T39:U42,2,FALSE),IF(COUNTIF(T39:T42,1)>=2,"Tirage au Sort F1"))) -> Allemagne | AI50: 0 | AK50: =IF(AND(LEFT(AH50,3)<>"1er",LEFT(AH50,3)<>"2nd"),COUNTIF(RESULTATS!$AG$30:$AM$37,AH50),0) -> 0 | AN50: =IF(SUM(V33:V36)=0,"2nd Groupe E",IF(OR(COUNTIF(T33:T36,1)>1,COUNTIF(T33:T36,2)>1),"Tirage au sort E2",VLOOKUP(2,T33:U36,2,FALSE))) -> Serbie | AO50: 0 | AQ50: =IF(AND(LEFT(AN50,3)<>"1er",LEFT(AN50,3)<>"2nd"),COUNTIF(RESULTATS!$AG$30:$AM$37,AN50),0) -> 0
B51: =VLOOKUP($D51,TABLEAU_MATCHS[#All],2,FALSE) -> 2018-06-27 | C51: =VLOOKUP($D51,TABLEAU_MATCHS[#All],3,FALSE) -> 16:00:00 | D51: 44 | E51: ="Groupe "&VLOOKUP($I51,TABLEAU_TEAMS[[#All],[TEAM]:[GROUP_INITIAL_RANK]],2,FALSE) -> Groupe F | F51: 1.48 | G51: 3.6 | H51: 6.25 | I51: =VLOOKUP($D51,TABLEAU_MATCHS[#All],4,FALSE) -> République de Corée | J51: 1 | L51: =VLOOKUP($D51,TABLEAU_MATCHS[#All],5,FALSE) -> Allemagne | M51: 3 | N51: =IF(OR(ISBLANK(RESULTATS!J51),ISBLANK(J51)),"",IF(AND(Vincent!J51=RESULTATS!J51,Vincent!M51=RESULTATS!M51),3,IF(OR(AND(Vincent!J51>Vincent!M51,RESULTATS!J51>RESULTATS!M51),AND(Vincent!J51<Vincent!M51,RESULTATS!J51<RESULTATS!M51),AND(Vincent!J51=Vincent!M51,RESULTATS!J51=RESULTATS!M51)),1,0))) ->  | R51: =INDEX($R102:$R105,MATCH(SMALL(COUNTIF($R102:$R105,">="&$R102:$R105),ROW(INDIRECT("1:"&ROWS($R102:$R105)))),COUNTIF($R102:$R105,">="&$R102:$R105),0)) -> 06240Colombie | S51: =INDEX($S102:$S105,MATCH(SMALL(COUNTIF($R102:$R105,">="&$R102:$R105),ROW(INDIRECT("1:"&ROWS($R102:$R105)))),COUNTIF($R102:$R105,">="&$R102:$R105),0)) -> 6240 | T51: =INDEX($T102:$T105,MATCH(SMALL(COUNTIF($R102:$R105,">="&$R102:$R105),ROW(INDIRECT("1:"&ROWS($R102:$R105)))),COUNTIF($R102:$R105,">="&$R102:$R105),0)) -> 1 | U51: =INDEX($U102:$U105,MATCH(SMALL(COUNTIF($R102:$R105,">="&$R102:$R105),ROW(INDIRECT("1:"&ROWS($R102:$R105)))),COUNTIF($R102:$R105,">="&$R102:$R105),0)) -> Colombie | V51: =SUMPRODUCT((Teams1=U51)*(Teams1_Score<>""))+SUMPRODUCT((Teams2=U51)*(Teams2_Score<>"")) -> 2 | W51: =SUMPRODUCT((Teams1=U51)*(Teams1_Score>Teams2_Score))+SUMPRODUCT((Teams2=U51)*(Teams2_Score>Teams1_Score)) -> 2 | X51: =SUMPRODUCT((Teams1=U51)*(Teams1_Score=Teams2_Score)*(Teams1_Score<>""))+SUMPRODUCT((Teams2=U51)*(Teams2_Score=Teams1_Score)*(Teams2_Score<>"")) -> 0 | Y51: =SUMPRODUCT((Teams1=U51)*(Teams1_Score<Teams2_Score))+SUMPRODUCT((Teams2=U51)*(Teams2_Score<Teams1_Score)) -> 0 | Z51: =SUMPRODUCT((Teams1=U51)*(Teams1_Score))+SUMPRODUCT((Teams2=U51)*(Teams2_Score)) -> 4 | AA51: =SUMPRODUCT((Teams1=U51)*(Teams2_Score))+SUMPRODUCT((Teams2=U51)*(Teams1_Score)) -> 2 | AB51: =Z51-AA51 -> 2 | AC51: =3*W51+X51 -> 6 | AF51: 2018-07-02 | AG51: 7 | AH51: =IF(SUM(V45:V48)=0,"1er Groupe G",IF(COUNTIF(T45:T48,1)=1,VLOOKUP(1,T45:U48,2,FALSE),IF(COUNTIF(T45:T48,1)>=2,"Tirage au Sort G1"))) -> Belgique | AI51: 0 | AK51: =IF(AND(LEFT(AH51,3)<>"1er",LEFT(AH51,3)<>"2nd"),COUNTIF(RESULTATS!$AG$30:$AM$37,AH51),0) -> 0 | AN51: =IF(SUM(V51:V54)=0,"2nd Groupe H",IF(OR(COUNTIF(T51:T54,1)>1,COUNTIF(T51:T54,2)>1),"Tirage au sort H2",VLOOKUP(2,T51:U54,2,FALSE))) -> Japon | AO51: 0 | AQ51: =IF(AND(LEFT(AN51,3)<>"1er",LEFT(AN51,3)<>"2nd"),COUNTIF(RESULTATS!$AG$30:$AM$37,AN51),0) -> 0
B52: =VLOOKUP($D52,TABLEAU_MATCHS[#All],2,FALSE) -> 2018-06-28 | C52: =VLOOKUP($D52,TABLEAU_MATCHS[#All],3,FALSE) -> 20:00:00 | D52: 45 | E52: ="Groupe "&VLOOKUP($I52,TABLEAU_TEAMS[[#All],[TEAM]:[GROUP_INITIAL_RANK]],2,FALSE) -> Groupe G | F52: 8 | G52: 4.2 | H52: 1.32 | I52: =VLOOKUP($D52,TABLEAU_MATCHS[#All],4,FALSE) -> Panama | J52: 0 | L52: =VLOOKUP($D52,TABLEAU_MATCHS[#All],5,FALSE) -> Tunisie | M52: 2 | N52: =IF(OR(ISBLANK(RESULTATS!J52),ISBLANK(J52)),"",IF(AND(Vincent!J52=RESULTATS!J52,Vincent!M52=RESULTATS!M52),3,IF(OR(AND(Vincent!J52>Vincent!M52,RESULTATS!J52>RESULTATS!M52),AND(Vincent!J52<Vincent!M52,RESULTATS!J52<RESULTATS!M52),AND(Vincent!J52=Vincent!M52,RESULTATS!J52=RESULTATS!M52)),1,0))) ->  | R52: 04140Japon | S52: 4140 | T52: 2 | U52: Japon | V52: =SUMPRODUCT((Teams1=U52)*(Teams1_Score<>""))+SUMPRODUCT((Teams2=U52)*(Teams2_Score<>"")) -> 3 | W52: =SUMPRODUCT((Teams1=U52)*(Teams1_Score>Teams2_Score))+SUMPRODUCT((Teams2=U52)*(Teams2_Score>Teams1_Score)) -> 1 | X52: =SUMPRODUCT((Teams1=U52)*(Teams1_Score=Teams2_Score)*(Teams1_Score<>""))+SUMPRODUCT((Teams2=U52)*(Teams2_Score=Teams1_Score)*(Teams2_Score<>"")) -> 1 | Y52: =SUMPRODUCT((Teams1=U52)*(Teams1_Score<Teams2_Score))+SUMPRODUCT((Teams2=U52)*(Teams2_Score<Teams1_Score)) -> 1 | Z52: =SUMPRODUCT((Teams1=U52)*(Teams1_Score))+SUMPRODUCT((Teams2=U52)*(Teams2_Score)) -> 4 | AA52: =SUMPRODUCT((Teams1=U52)*(Teams2_Score))+SUMPRODUCT((Teams2=U52)*(Teams1_Score)) -> 3 | AB52: =Z52-AA52 -> 1 | AC52: =3*W52+X52 -> 4 | AF52: 2018-07-03 | AG52: 8 | AH52: =IF(SUM(V51:V54)=0,"1er Groupe H",IF(COUNTIF(T51:T54,1)=1,VLOOKUP(1,T51:U54,2,FALSE),IF(COUNTIF(T51:T54,1)>=2,"Tirage au Sort H1"))) -> Colombie | AI52: 0 | AK52: =IF(AND(LEFT(AH52,3)<>"1er",LEFT(AH52,3)<>"2nd"),COUNTIF(RESULTATS!$AG$30:$AM$37,AH52),0) -> 0 | AN52: =IF(SUM(V45:V48)=0,"2nd Groupe G",IF(OR(COUNTIF(T45:T48,1)>1,COUNTIF(T45:T48,2)>1),"Tirage au sort G2",VLOOKUP(2,T45:U48,2,FALSE))) -> Angleterre | AO52: 0 | AQ52: =IF(AND(LEFT(AN52,3)<>"1er",LEFT(AN52,3)<>"2nd"),COUNTIF(RESULTATS!$AG$30:$AM$37,AN52),0) -> 0
B53: =VLOOKUP($D53,TABLEAU_MATCHS[#All],2,FALSE) -> 2018-06-28 | C53: =VLOOKUP($D53,TABLEAU_MATCHS[#All],3,FALSE) -> 20:00:00 | D53: 46 | E53: ="Groupe "&VLOOKUP($I53,TABLEAU_TEAMS[[#All],[TEAM]:[GROUP_INITIAL_RANK]],2,FALSE) -> Groupe G | F53: 1.74 | G53: 3.2 | H53: 4.1 | I53: =VLOOKUP($D53,TABLEAU_MATCHS[#All],4,FALSE) -> Angleterre | J53: 2 | L53: =VLOOKUP($D53,TABLEAU_MATCHS[#All],5,FALSE) -> Belgique | M53: 3 | N53: =IF(OR(ISBLANK(RESULTATS!J53),ISBLANK(J53)),"",IF(AND(Vincent!J53=RESULTATS!J53,Vincent!M53=RESULTATS!M53),3,IF(OR(AND(Vincent!J53>Vincent!M53,RESULTATS!J53>RESULTATS!M53),AND(Vincent!J53<Vincent!M53,RESULTATS!J53<RESULTATS!M53),AND(Vincent!J53=Vincent!M53,RESULTATS!J53=RESULTATS!M53)),1,0))) ->  | R53: 01930Pologne | S53: 1930 | T53: 3 | U53: Pologne | V53: =SUMPRODUCT((Teams1=U53)*(Teams1_Score<>""))+SUMPRODUCT((Teams2=U53)*(Teams2_Score<>"")) -> 3 | W53: =SUMPRODUCT((Teams1=U53)*(Teams1_Score>Teams2_Score))+SUMPRODUCT((Teams2=U53)*(Teams2_Score>Teams1_Score)) -> 0 | X53: =SUMPRODUCT((Teams1=U53)*(Teams1_Score=Teams2_Score)*(Teams1_Score<>""))+SUMPRODUCT((Teams2=U53)*(Teams2_Score=Teams1_Score)*(Teams2_Score<>"")) -> 2 | Y53: =SUMPRODUCT((Teams1=U53)*(Teams1_Score<Teams2_Score))+SUMPRODUCT((Teams2=U53)*(Teams2_Score<Teams1_Score)) -> 1 | Z53: =SUMPRODUCT((Teams1=U53)*(Teams1_Score))+SUMPRODUCT((Teams2=U53)*(Teams2_Score)) -> 3 | AA53: =SUMPRODUCT((Teams1=U53)*(Teams2_Score))+SUMPRODUCT((Teams2=U53)*(Teams1_Score)) -> 4 | AB53: =Z53-AA53 -> -1 | AC53: =3*W53+X53 -> 2 | AK53: =SUM(AK45:AK52) -> 1 | AO53: 0 | AQ53: =SUM(AQ45:AQ52) -> 1
B54: =VLOOKUP($D54,TABLEAU_MATCHS[#All],2,FALSE) -> 2018-06-28 | C54: =VLOOKUP($D54,TABLEAU_MATCHS[#All],3,FALSE) -> 16:00:00 | D54: 47 | E54: ="Groupe "&VLOOKUP($I54,TABLEAU_TEAMS[[#All],[TEAM]:[GROUP_INITIAL_RANK]],2,FALSE) -> Groupe H | F54: 4.9 | G54: 3.25 | H54: 1.62 | I54: =VLOOKUP($D54,TABLEAU_MATCHS[#All],4,FALSE) -> Japon | J54: 1 | L54: =VLOOKUP($D54,TABLEAU_MATCHS[#All],5,FALSE) -> Pologne | M54: 1 | N54: =IF(OR(ISBLANK(RESULTATS!J54),ISBLANK(J54)),"",IF(AND(Vincent!J54=RESULTATS!J54,Vincent!M54=RESULTATS!M54),3,IF(OR(AND(Vincent!J54>Vincent!M54,RESULTATS!J54>RESULTATS!M54),AND(Vincent!J54<Vincent!M54,RESULTATS!J54<RESULTATS!M54),AND(Vincent!J54=Vincent!M54,RESULTATS!J54=RESULTATS!M54)),1,0))) ->  | R54: 00810Sénégal | S54: 810 | T54: 4 | U54: Sénégal | V54: =SUMPRODUCT((Teams1=U54)*(Teams1_Score<>""))+SUMPRODUCT((Teams2=U54)*(Teams2_Score<>"")) -> 2 | W54: =SUMPRODUCT((Teams1=U54)*(Teams1_Score>Teams2_Score))+SUMPRODUCT((Teams2=U54)*(Teams2_Score>Teams1_Score)) -> 0 | X54: =SUMPRODUCT((Teams1=U54)*(Teams1_Score=Teams2_Score)*(Teams1_Score<>""))+SUMPRODUCT((Teams2=U54)*(Teams2_Score=Teams1_Score)*(Teams2_Score<>"")) -> 1 | Y54: =SUMPRODUCT((Teams1=U54)*(Teams1_Score<Teams2_Score))+SUMPRODUCT((Teams2=U54)*(Teams2_Score<Teams1_Score)) -> 1 | Z54: =SUMPRODUCT((Teams1=U54)*(Teams1_Score))+SUMPRODUCT((Teams2=U54)*(Teams2_Score)) -> 1 | AA54: =SUMPRODUCT((Teams1=U54)*(Teams2_Score))+SUMPRODUCT((Teams2=U54)*(Teams1_Score)) -> 3 | AB54: =Z54-AA54 -> -2 | AC54: =3*W54+X54 -> 1
B55: =VLOOKUP($D55,TABLEAU_MATCHS[#All],2,FALSE) -> 2018-06-28 | C55: =VLOOKUP($D55,TABLEAU_MATCHS[#All],3,FALSE) -> 16:00:00 | D55: 48 | E55: ="Groupe "&VLOOKUP($I55,TABLEAU_TEAMS[[#All],[TEAM]:[GROUP_INITIAL_RANK]],2,FALSE) -> Groupe H | F55: 6 | G55: 3.4 | H55: 1.52 | I55: =VLOOKUP($D55,TABLEAU_MATCHS[#All],4,FALSE) -> Sénégal | L55: =VLOOKUP($D55,TABLEAU_MATCHS[#All],5,FALSE) -> Colombie | N55: =IF(OR(ISBLANK(RESULTATS!J55),ISBLANK(J55)),"",IF(AND(Vincent!J55=RESULTATS!J55,Vincent!M55=RESULTATS!M55),3,IF(OR(AND(Vincent!J55>Vincent!M55,RESULTATS!J55>RESULTATS!M55),AND(Vincent!J55<Vincent!M55,RESULTATS!J55<RESULTATS!M55),AND(Vincent!J55=Vincent!M55,RESULTATS!J55=RESULTATS!M55)),1,0))) -> 
N56: =SUM(N8:N55) -> 5
B59: Tirage au sort A1 | T59: Rg | U59: Groupe A | V59: MJ | W59: G | X59: N | Y59: P | Z59: BP | AA59: BC | AB59: +/- | AC59: Pts
B60: =IF(ROWS($1:1)<=COUNTIF($T$9:$T$12,1),INDEX($U$9:$U$12,SMALL(IF($T$9:$T$12=1,ROW(INDIRECT("1:"&ROWS($T$9:$T$12)))),ROWS($1:1))),"") -> Uruguay | Q60: A_1 | R60: =TEXT(S60,"00000")&U60 -> 07350Russie | S60: =AC60*1000+AB60*100+Z60*10 -> 7350 | T60: =RANK(S60,$S60:$S64,0) -> 2 | U60: =VLOOKUP(Q60,TABLEAU_TEAMS[#All],2,FALSE) -> Russie | V60: =SUMPRODUCT((Teams1=U60)*(Teams1_Score<>""))+SUMPRODUCT((Teams2=U60)*(Teams2_Score<>"")) -> 3 | W60: =SUMPRODUCT((Teams1=U60)*(Teams1_Score>Teams2_Score))+SUMPRODUCT((Teams2=U60)*(Teams2_Score>Teams1_Score)) -> 2 | X60: =SUMPRODUCT((Teams1=U60)*(Teams1_Score=Teams2_Score)*(Teams1_Score<>""))+SUMPRODUCT((Teams2=U60)*(Teams2_Score=Teams1_Score)*(Teams2_Score<>"")) -> 1 | Y60: =SUMPRODUCT((Teams1=U60)*(Teams1_Score<Teams2_Score))+SUMPRODUCT((Teams2=U60)*(Teams2_Score<Teams1_Score)) -> 0 | Z60: =SUMPRODUCT((Teams1=U60)*(Teams1_Score))+SUMPRODUCT((Teams2=U60)*(Teams2_Score)) -> 5 | AA60: =SUMPRODUCT((Teams1=U60)*(Teams2_Score))+SUMPRODUCT((Teams2=U60)*(Teams1_Score)) -> 2 | AB60: =Z60-AA60 -> 3 | AC60: =3*W60+X60 -> 7
B61: =IF(ROWS($1:2)<=COUNTIF($T$9:$T$12,1),INDEX($U$9:$U$12,SMALL(IF($T$9:$T$12=1,ROW(INDIRECT("1:"&ROWS($T$9:$T$12)))),ROWS($1:2))),"") ->  | Q61: A_2 | R61: =TEXT(S61,"00000")&U61 -> -00800Arabie Saoudite | S61: =AC61*1000+AB61*100+Z61*10 -> -800 | T61: =RANK(S61,$S60:$S64,0) -> 4 | U61: =VLOOKUP(Q61,TABLEAU_TEAMS[#All],2,FALSE) -> Arabie Saoudite | V61: =SUMPRODUCT((Teams1=U61)*(Teams1_Score<>""))+SUMPRODUCT((Teams2=U61)*(Teams2_Score<>"")) -> 3 | W61: =SUMPRODUCT((Teams1=U61)*(Teams1_Score>Teams2_Score))+SUMPRODUCT((Teams2=U61)*(Teams2_Score>Teams1_Score)) -> 0 | X61: =SUMPRODUCT((Teams1=U61)*(Teams1_Score=Teams2_Score)*(Teams1_Score<>""))+SUMPRODUCT((Teams2=U61)*(Teams2_Score=Teams1_Score)*(Teams2_Score<>"")) -> 0 | Y61: =SUMPRODUCT((Teams1=U61)*(Teams1_Score<Teams2_Score))+SUMPRODUCT((Teams2=U61)*(Teams2_Score<Teams1_Score)) -> 3 | Z61: =SUMPRODUCT((Teams1=U61)*(Teams1_Score))+SUMPRODUCT((Teams2=U61)*(Teams2_Score)) -> 0 | AA61: =SUMPRODUCT((Teams1=U61)*(Teams2_Score))+SUMPRODUCT((Teams2=U61)*(Teams1_Score)) -> 8 | AB61: =Z61-AA61 -> -8 | AC61: =3*W61+X61 -> 0
B62: =IF(ROWS($1:3)<=COUNTIF($T$9:$T$12,1),INDEX($U$9:$U$12,SMALL(IF($T$9:$T$12=1,ROW(INDIRECT("1:"&ROWS($T$9:$T$12)))),ROWS($1:3))),"") ->  | Q62: A_3 | R62: =TEXT(S62,"00000")&U62 -> 03020Egypte | S62: =AC62*1000+AB62*100+Z62*10 -> 3020 | T62: =RANK(S62,$S60:$S64,0) -> 3 | U62: =VLOOKUP(Q62,TABLEAU_TEAMS[#All],2,FALSE) -> Egypte | V62: =SUMPRODUCT((Teams1=U62)*(Teams1_Score<>""))+SUMPRODUCT((Teams2=U62)*(Teams2_Score<>"")) -> 3 | W62: =SUMPRODUCT((Teams1=U62)*(Teams1_Score>Teams2_Score))+SUMPRODUCT((Teams2=U62)*(Teams2_Score>Teams1_Score)) -> 1 | X62: =SUMPRODUCT((Teams1=U62)*(Teams1_Score=Teams2_Score)*(Teams1_Score<>""))+SUMPRODUCT((Teams2=U62)*(Teams2_Score=Teams1_Score)*(Teams2_Score<>"")) -> 0 | Y62: =SUMPRODUCT((Teams1=U62)*(Teams1_Score<Teams2_Score))+SUMPRODUCT((Teams2=U62)*(Teams2_Score<Teams1_Score)) -> 2 | Z62: =SUMPRODUCT((Teams1=U62)*(Teams1_Score))+SUMPRODUCT((Teams2=U62)*(Teams2_Score)) -> 2 | AA62: =SUMPRODUCT((Teams1=U62)*(Teams2_Score))+SUMPRODUCT((Teams2=U62)*(Teams1_Score)) -> 2 | AB62: =Z62-AA62 -> 0 | AC62: =3*W62+X62 -> 3
B63: =IF(ROWS($1:4)<=COUNTIF($T$9:$T$12,1),INDEX($U$9:$U$12,SMALL(IF($T$9:$T$12=1,ROW(INDIRECT("1:"&ROWS($T$9:$T$12)))),ROWS($1:4))),"") ->  | Q63: A_4 | R63: =TEXT(S63,"00000")&U63 -> 07570Uruguay | S63: =AC63*1000+AB63*100+Z63*10 -> 7570 | T63: =RANK(S63,$S60:$S64,0) -> 1 | U63: =VLOOKUP(Q63,TABLEAU_TEAMS[#All],2,FALSE) -> Uruguay | V63: =SUMPRODUCT((Teams1=U63)*(Teams1_Score<>""))+SUMPRODUCT((Teams2=U63)*(Teams2_Score<>"")) -> 3 | W63: =SUMPRODUCT((Teams1=U63)*(Teams1_Score>Teams2_Score))+SUMPRODUCT((Teams2=U63)*(Teams2_Score>Teams1_Score)) -> 2 | X63: =SUMPRODUCT((Teams1=U63)*(Teams1_Score=Teams2_Score)*(Teams1_Score<>""))+SUMPRODUCT((Teams2=U63)*(Teams2_Score=Teams1_Score)*(Teams2_Score<>"")) -> 1 | Y63: =SUMPRODUCT((Teams1=U63)*(Teams1_Score<Teams2_Score))+SUMPRODUCT((Teams2=U63)*(Teams2_Score<Teams1_Score)) -> 0 | Z63: =SUMPRODUCT((Teams1=U63)*(Teams1_Score))+SUMPRODUCT((Teams2=U63)*(Teams2_Score)) -> 7 | AA63: =SUMPRODUCT((Teams1=U63)*(Teams2_Score))+SUMPRODUCT((Teams2=U63)*(Teams1_Score)) -> 2 | AB63: =Z63-AA63 -> 5 | AC63: =3*W63+X63 -> 7
B64: Tirage au sort A2
B65: =IF(COUNTIF($T$9:$T$12,1)>1,IF(ROWS($1:1)<=COUNTIF($T$9:$T$12,1),INDEX($U$9:$U$12,SMALL(IF($T$9:$T$12=1,ROW(INDIRECT("1:"&ROWS($T$9:$T$12)))),ROWS($1:1))),""),IF(COUNTIF($T$9:$T$12,2)>1,IF(ROWS($1:1)<=COUNTIF($T$9:$T$12,2),INDEX($U$9:$U$12,SMALL(IF($T$9:$T$12=2,ROW(INDIRECT("1:"&ROWS($T$9:$T$12)))),ROWS($1:1))),""))) -> FALSE | T65: Rg | U65: Groupe B | V65: MJ | W65: G | X65: N | Y65: P | Z65: BP | AA65: BC | AB65: Pts | AC65: Pts
B66: =IF(COUNTIF($T$9:$T$12,1)>1,IF(ROWS($1:2)<=COUNTIF($T$9:$T$12,1),INDEX($U$9:$U$12,SMALL(IF($T$9:$T$12=1,ROW(INDIRECT("1:"&ROWS($T$9:$T$12)))),ROWS($1:2))),""),IF(COUNTIF($T$9:$T$12,2)>1,IF(ROWS($1:2)<=COUNTIF($T$9:$T$12,2),INDEX($U$9:$U$12,SMALL(IF($T$9:$T$12=2,ROW(INDIRECT("1:"&ROWS($T$9:$T$12)))),ROWS($1:2))),""))) -> FALSE | Q66: B_1 | R66: =TEXT(S66,"00000")&U66 -> 02830Maroc | S66: =AC66*1000+AB66*100+Z66*10 -> 2830 | T66: =RANK(S66,$S66:$S70,0) -> 3 | U66: =VLOOKUP(Q66,TABLEAU_TEAMS[#All],2,FALSE) -> Maroc | V66: =SUMPRODUCT((Teams1=U66)*(Teams1_Score<>""))+SUMPRODUCT((Teams2=U66)*(Teams2_Score<>"")) -> 3 | W66: =SUMPRODUCT((Teams1=U66)*(Teams1_Score>Teams2_Score))+SUMPRODUCT((Teams2=U66)*(Teams2_Score>Teams1_Score)) -> 1 | X66: =SUMPRODUCT((Teams1=U66)*(Teams1_Score=Teams2_Score)*(Teams1_Score<>""))+SUMPRODUCT((Teams2=U66)*(Teams2_Score=Teams1_Score)*(Teams2_Score<>"")) -> 0 | Y66: =SUMPRODUCT((Teams1=U66)*(Teams1_Score<Teams2_Score))+SUMPRODUCT((Teams2=U66)*(Teams2_Score<Teams1_Score)) -> 2 | Z66: =SUMPRODUCT((Teams1=U66)*(Teams1_Score))+SUMPRODUCT((Teams2=U66)*(Teams2_Score)) -> 3 | AA66: =SUMPRODUCT((Teams1=U66)*(Teams2_Score))+SUMPRODUCT((Teams2=U66)*(Teams1_Score)) -> 5 | AB66: =Z66-AA66 -> -2 | AC66: =3*W66+X66 -> 3
B67: =IF(COUNTIF($T$9:$T$12,1)>1,IF(ROWS($1:3)<=COUNTIF($T$9:$T$12,1),INDEX($U$9:$U$12,SMALL(IF($T$9:$T$12=1,ROW(INDIRECT("1:"&ROWS($T$9:$T$12)))),ROWS($1:3))),""),IF(COUNTIF($T$9:$T$12,2)>1,IF(ROWS($1:3)<=COUNTIF($T$9:$T$12,2),INDEX($U$9:$U$12,SMALL(IF($T$9:$T$12=2,ROW(INDIRECT("1:"&ROWS($T$9:$T$12)))),ROWS($1:3))),""))) -> FALSE | Q67: B_2 | R67: =TEXT(S67,"00000")&U67 -> -01000RI Iran | S67: =AC67*1000+AB67*100+Z67*10 -> -1000 | T67: =RANK(S67,$S66:$S70,0) -> 4 | U67: =VLOOKUP(Q67,TABLEAU_TEAMS[#All],2,FALSE) -> RI Iran | V67: =SUMPRODUCT((Teams1=U67)*(Teams1_Score<>""))+SUMPRODUCT((Teams2=U67)*(Teams2_Score<>"")) -> 3 | W67: =SUMPRODUCT((Teams1=U67)*(Teams1_Score>Teams2_Score))+SUMPRODUCT((Teams2=U67)*(Teams2_Score>Teams1_Score)) -> 0 | X67: =SUMPRODUCT((Teams1=U67)*(Teams1_Score=Teams2_Score)*(Teams1_Score<>""))+SUMPRODUCT((Teams2=U67)*(Teams2_Score=Teams1_Score)*(Teams2_Score<>"")) -> 0 | Y67: =SUMPRODUCT((Teams1=U67)*(Teams1_Score<Teams2_Score))+SUMPRODUCT((Teams2=U67)*(Teams2_Score<Teams1_Score)) -> 3 | Z67: =SUMPRODUCT((Teams1=U67)*(Teams1_Score))+SUMPRODUCT((Teams2=U67)*(Teams2_Score)) -> 0 | AA67: =SUMPRODUCT((Teams1=U67)*(Teams2_Score))+SUMPRODUCT((Teams2=U67)*(Teams1_Score)) -> 10 | AB67: =Z67-AA67 -> -10 | AC67: =3*W67+X67 -> 0
B68: =IF(COUNTIF($T$9:$T$12,1)>1,IF(ROWS($1:4)<=COUNTIF($T$9:$T$12,1),INDEX($U$9:$U$12,SMALL(IF($T$9:$T$12=1,ROW(INDIRECT("1:"&ROWS($T$9:$T$12)))),ROWS($1:4))),""),IF(COUNTIF($T$9:$T$12,2)>1,IF(ROWS($1:4)<=COUNTIF($T$9:$T$12,2),INDEX($U$9:$U$12,SMALL(IF($T$9:$T$12=2,ROW(INDIRECT("1:"&ROWS($T$9:$T$12)))),ROWS($1:4))),""))) -> FALSE | Q68: B_3 | R68: =TEXT(S68,"00000")&U68 -> 07670Portugal | S68: =AC68*1000+AB68*100+Z68*10 -> 7670 | T68: =RANK(S68,$S66:$S70,0) -> 2 | U68: =VLOOKUP(Q68,TABLEAU_TEAMS[#All],2,FALSE) -> Portugal | V68: =SUMPRODUCT((Teams1=U68)*(Teams1_Score<>""))+SUMPRODUCT((Teams2=U68)*(Teams2_Score<>"")) -> 3 | W68: =SUMPRODUCT((Teams1=U68)*(Teams1_Score>Teams2_Score))+SUMPRODUCT((Teams2=U68)*(Teams2_Score>Teams1_Score)) -> 2 | X68: =SUMPRODUCT((Teams1=U68)*(Teams1_Score=Teams2_Score)*(Teams1_Score<>""))+SUMPRODUCT((Teams2=U68)*(Teams2_Score=Teams1_Score)*(Teams2_Score<>"")) -> 1 | Y68: =SUMPRODUCT((Teams1=U68)*(Teams1_Score<Teams2_Score))+SUMPRODUCT((Teams2=U68)*(Teams2_Score<Teams1_Score)) -> 0 | Z68: =SUMPRODUCT((Teams1=U68)*(Teams1_Score))+SUMPRODUCT((Teams2=U68)*(Teams2_Score)) -> 7 | AA68: =SUMPRODUCT((Teams1=U68)*(Teams2_Score))+SUMPRODUCT((Teams2=U68)*(Teams1_Score)) -> 1 | AB68: =Z68-AA68 -> 6 | AC68: =3*W68+X68 -> 7
B69: Tirage au sort B1 | Q69: B_4 | R69: =TEXT(S69,"00000")&U69 -> 07680Espagne | S69: =AC69*1000+AB69*100+Z69*10 -> 7680 | T69: =RANK(S69,$S66:$S70,0) -> 1 | U69: =VLOOKUP(Q69,TABLEAU_TEAMS[#All],2,FALSE) -> Espagne | V69: =SUMPRODUCT((Teams1=U69)*(Teams1_Score<>""))+SUMPRODUCT((Teams2=U69)*(Teams2_Score<>"")) -> 3 | W69: =SUMPRODUCT((Teams1=U69)*(Teams1_Score>Teams2_Score))+SUMPRODUCT((Teams2=U69)*(Teams2_Score>Teams1_Score)) -> 2 | X69: =SUMPRODUCT((Teams1=U69)*(Teams1_Score=Teams2_Score)*(Teams1_Score<>""))+SUMPRODUCT((Teams2=U69)*(Teams2_Score=Teams1_Score)*(Teams2_Score<>"")) -> 1 | Y69: =SUMPRODUCT((Teams1=U69)*(Teams1_Score<Teams2_Score))+SUMPRODUCT((Teams2=U69)*(Teams2_Score<Teams1_Score)) -> 0 | Z69: =SUMPRODUCT((Teams1=U69)*(Teams1_Score))+SUMPRODUCT((Teams2=U69)*(Teams2_Score)) -> 8 | AA69: =SUMPRODUCT((Teams1=U69)*(Teams2_Score))+SUMPRODUCT((Teams2=U69)*(Teams1_Score)) -> 2 | AB69: =Z69-AA69 -> 6 | AC69: =3*W69+X69 -> 7
B70: =IF(ROWS($1:1)<=COUNTIF($T$15:$T$18,1),INDEX($U$15:$U$18,SMALL(IF($T$15:$T$18=1,ROW(INDIRECT("1:"&ROWS($T$15:$T$18)))),ROWS($1:1))),"") -> Espagne
B71: =IF(ROWS($1:2)<=COUNTIF($T$15:$T$18,1),INDEX($U$15:$U$18,SMALL(IF($T$15:$T$18=1,ROW(INDIRECT("1:"&ROWS($T$15:$T$18)))),ROWS($1:2))),"") ->  | T71: Rg | U71: Groupe C | V71: MJ | W71: G | X71: N | Y71: P | Z71: BP | AA71: BC | AB71: Pts | AC71: Pts
B72: =IF(ROWS($1:3)<=COUNTIF($T$15:$T$18,1),INDEX($U$15:$U$18,SMALL(IF($T$15:$T$18=1,ROW(INDIRECT("1:"&ROWS($T$15:$T$18)))),ROWS($1:3))),"") ->  | Q72: C_1 | R72: =TEXT(S72,"00000")&U72 -> 09670France | S72: =AC72*1000+AB72*100+Z72*10 -> 9670 | T72: =RANK(S72,$S72:$S76,0) -> 1 | U72: =VLOOKUP(Q72,TABLEAU_TEAMS[#All],2,FALSE) -> France | V72: =SUMPRODUCT((Teams1=U72)*(Teams1_Score<>""))+SUMPRODUCT((Teams2=U72)*(Teams2_Score<>"")) -> 3 | W72: =SUMPRODUCT((Teams1=U72)*(Teams1_Score>Teams2_Score))+SUMPRODUCT((Teams2=U72)*(Teams2_Score>Teams1_Score)) -> 3 | X72: =SUMPRODUCT((Teams1=U72)*(Teams1_Score=Teams2_Score)*(Teams1_Score<>""))+SUMPRODUCT((Teams2=U72)*(Teams2_Score=Teams1_Score)*(Teams2_Score<>"")) -> 0 | Y72: =SUMPRODUCT((Teams1=U72)*(Teams1_Score<Teams2_Score))+SUMPRODUCT((Teams2=U72)*(Teams2_Score<Teams1_Score)) -> 0 | Z72: =SUMPRODUCT((Teams1=U72)*(Teams1_Score))+SUMPRODUCT((Teams2=U72)*(Teams2_Score)) -> 7 | AA72: =SUMPRODUCT((Teams1=U72)*(Teams2_Score))+SUMPRODUCT((Teams2=U72)*(Teams1_Score)) -> 1 | AB72: =Z72-AA72 -> 6 | AC72: =3*W72+X72 -> 9
B73: =IF(ROWS($1:4)<=COUNTIF($T$15:$T$18,1),INDEX($U$15:$U$18,SMALL(IF($T$15:$T$18=1,ROW(INDIRECT("1:"&ROWS($T$15:$T$18)))),ROWS($1:4))),"") ->  | Q73: C_2 | R73: =TEXT(S73,"00000")&U73 -> -00490Australie | S73: =AC73*1000+AB73*100+Z73*10 -> -490 | T73: =RANK(S73,$S72:$S76,0) -> 4 | U73: =VLOOKUP(Q73,TABLEAU_TEAMS[#All],2,FALSE) -> Australie | V73: =SUMPRODUCT((Teams1=U73)*(Teams1_Score<>""))+SUMPRODUCT((Teams2=U73)*(Teams2_Score<>"")) -> 3 | W73: =SUMPRODUCT((Teams1=U73)*(Teams1_Score>Teams2_Score))+SUMPRODUCT((Teams2=U73)*(Teams2_Score>Teams1_Score)) -> 0 | X73: =SUMPRODUCT((Teams1=U73)*(Teams1_Score=Teams2_Score)*(Teams1_Score<>""))+SUMPRODUCT((Teams2=U73)*(Teams2_Score=Teams1_Score)*(Teams2_Score<>"")) -> 0 | Y73: =SUMPRODUCT((Teams1=U73)*(Teams1_Score<Teams2_Score))+SUMPRODUCT((Teams2=U73)*(Teams2_Score<Teams1_Score)) -> 3 | Z73: =SUMPRODUCT((Teams1=U73)*(Teams1_Score))+SUMPRODUCT((Teams2=U73)*(Teams2_Score)) -> 1 | AA73: =SUMPRODUCT((Teams1=U73)*(Teams2_Score))+SUMPRODUCT((Teams2=U73)*(Teams1_Score)) -> 6 | AB73: =Z73-AA73 -> -5 | AC73: =3*W73+X73 -> 0
B74: Tirage au sort B2 | Q74: C_3 | R74: =TEXT(S74,"00000")&U74 -> 02830Pérou | S74: =AC74*1000+AB74*100+Z74*10 -> 2830 | T74: =RANK(S74,$S72:$S76,0) -> 3 | U74: =VLOOKUP(Q74,TABLEAU_TEAMS[#All],2,FALSE) -> Pérou | V74: =SUMPRODUCT((Teams1=U74)*(Teams1_Score<>""))+SUMPRODUCT((Teams2=U74)*(Teams2_Score<>"")) -> 3 | W74: =SUMPRODUCT((Teams1=U74)*(Teams1_Score>Teams2_Score))+SUMPRODUCT((Teams2=U74)*(Teams2_Score>Teams1_Score)) -> 1 | X74: =SUMPRODUCT((Teams1=U74)*(Teams1_Score=Teams2_Score)*(Teams1_Score<>""))+SUMPRODUCT((Teams2=U74)*(Teams2_Score=Teams1_Score)*(Teams2_Score<>"")) -> 0 | Y74: =SUMPRODUCT((Teams1=U74)*(Teams1_Score<Teams2_Score))+SUMPRODUCT((Teams2=U74)*(Teams2_Score<Teams1_Score)) -> 2 | Z74: =SUMPRODUCT((Teams1=U74)*(Teams1_Score))+SUMPRODUCT((Teams2=U74)*(Teams2_Score)) -> 3 | AA74: =SUMPRODUCT((Teams1=U74)*(Teams2_Score))+SUMPRODUCT((Teams2=U74)*(Teams1_Score)) -> 5 | AB74: =Z74-AA74 -> -2 | AC74: =3*W74+X74 -> 3
B75: =IF(COUNTIF($T$15:$T$18,1)>1,IF(ROWS($1:1)<=COUNTIF($T$15:$T$18,1),INDEX($U$15:$U$18,SMALL(IF($T$15:$T$18=1,ROW(INDIRECT("1:"&ROWS($T$15:$T$18)))),ROWS($1:1))),""),IF(COUNTIF($T$15:$T$18,2)>1,IF(ROWS($1:1)<=COUNTIF($T$15:$T$18,2),INDEX($U$15:$U$18,SMALL(IF($T$15:$T$18=2,ROW(INDIRECT("1:"&ROWS($T$15:$T$18)))),ROWS($1:1))),""))) -> FALSE | Q75: C_4 | R75: =TEXT(S75,"00000")&U75 -> 06150Danemark | S75: =AC75*1000+AB75*100+Z75*10 -> 6150 | T75: =RANK(S75,$S72:$S76,0) -> 2 | U75: =VLOOKUP(Q75,TABLEAU_TEAMS[#All],2,FALSE) -> Danemark | V75: =SUMPRODUCT((Teams1=U75)*(Teams1_Score<>""))+SUMPRODUCT((Teams2=U75)*(Teams2_Score<>"")) -> 3 | W75: =SUMPRODUCT((Teams1=U75)*(Teams1_Score>Teams2_Score))+SUMPRODUCT((Teams2=U75)*(Teams2_Score>Teams1_Score)) -> 2 | X75: =SUMPRODUCT((Teams1=U75)*(Teams1_Score=Teams2_Score)*(Teams1_Score<>""))+SUMPRODUCT((Teams2=U75)*(Teams2_Score=Teams1_Score)*(Teams2_Score<>"")) -> 0 | Y75: =SUMPRODUCT((Teams1=U75)*(Teams1_Score<Teams2_Score))+SUMPRODUCT((Teams2=U75)*(Teams2_Score<Teams1_Score)) -> 1 | Z75: =SUMPRODUCT((Teams1=U75)*(Teams1_Score))+SUMPRODUCT((Teams2=U75)*(Teams2_Score)) -> 5 | AA75: =SUMPRODUCT((Teams1=U75)*(Teams2_Score))+SUMPRODUCT((Teams2=U75)*(Teams1_Score)) -> 4 | AB75: =Z75-AA75 -> 1 | AC75: =3*W75+X75 -> 6
B76: =IF(COUNTIF($T$15:$T$18,1)>1,IF(ROWS($1:2)<=COUNTIF($T$15:$T$18,1),INDEX($U$15:$U$18,SMALL(IF($T$15:$T$18=1,ROW(INDIRECT("1:"&ROWS($T$15:$T$18)))),ROWS($1:2))),""),IF(COUNTIF($T$15:$T$18,2)>1,IF(ROWS($1:2)<=COUNTIF($T$15:$T$18,2),INDEX($U$15:$U$18,SMALL(IF($T$15:$T$18=2,ROW(INDIRECT("1:"&ROWS($T$15:$T$18)))),ROWS($1:2))),""))) -> FALSE
B77: =IF(COUNTIF($T$15:$T$18,1)>1,IF(ROWS($1:3)<=COUNTIF($T$15:$T$18,1),INDEX($U$15:$U$18,SMALL(IF($T$15:$T$18=1,ROW(INDIRECT("1:"&ROWS($T$15:$T$18)))),ROWS($1:3))),""),IF(COUNTIF($T$15:$T$18,2)>1,IF(ROWS($1:3)<=COUNTIF($T$15:$T$18,2),INDEX($U$15:$U$18,SMALL(IF($T$15:$T$18=2,ROW(INDIRECT("1:"&ROWS($T$15:$T$18)))),ROWS($1:3))),""))) -> FALSE | T77: Rg | U77: Groupe D | V77: MJ | W77: G | X77: N | Y77: P | Z77: BP | AA77: BC | AB77: Pts | AC77: Pts
B78: =IF(COUNTIF($T$15:$T$18,1)>1,IF(ROWS($1:4)<=COUNTIF($T$15:$T$18,1),INDEX($U$15:$U$18,SMALL(IF($T$15:$T$18=1,ROW(INDIRECT("1:"&ROWS($T$15:$T$18)))),ROWS($1:4))),""),IF(COUNTIF($T$15:$T$18,2)>1,IF(ROWS($1:4)<=COUNTIF($T$15:$T$18,2),INDEX($U$15:$U$18,SMALL(IF($T$15:$T$18=2,ROW(INDIRECT("1:"&ROWS($T$15:$T$18)))),ROWS($1:4))),""))) -> FALSE | Q78: D_1 | R78: =TEXT(S78,"00000")&U78 -> 06150Argentine | S78: =AC78*1000+AB78*100+Z78*10 -> 6150 | T78: =RANK(S78,$S78:$S82,0) -> 2 | U78: =VLOOKUP(Q78,TABLEAU_TEAMS[#All],2,FALSE) -> Argentine | V78: =SUMPRODUCT((Teams1=U78)*(Teams1_Score<>""))+SUMPRODUCT((Teams2=U78)*(Teams2_Score<>"")) -> 3 | W78: =SUMPRODUCT((Teams1=U78)*(Teams1_Score>Teams2_Score))+SUMPRODUCT((Teams2=U78)*(Teams2_Score>Teams1_Score)) -> 2 | X78: =SUMPRODUCT((Teams1=U78)*(Teams1_Score=Teams2_Score)*(Teams1_Score<>""))+SUMPRODUCT((Teams2=U78)*(Teams2_Score=Teams1_Score)*(Teams2_Score<>"")) -> 0 | Y78: =SUMPRODUCT((Teams1=U78)*(Teams1_Score<Teams2_Score))+SUMPRODUCT((Teams2=U78)*(Teams2_Score<Teams1_Score)) -> 1 | Z78: =SUMPRODUCT((Teams1=U78)*(Teams1_Score))+SUMPRODUCT((Teams2=U78)*(Teams2_Score)) -> 5 | AA78: =SUMPRODUCT((Teams1=U78)*(Teams2_Score))+SUMPRODUCT((Teams2=U78)*(Teams1_Score)) -> 4 | AB78: =Z78-AA78 -> 1 | AC78: =3*W78+X78 -> 6
B79: Tirage au sort C1 | Q79: D_2 | R79: =TEXT(S79,"00000")&U79 -> 00620Islande | S79: =AC79*1000+AB79*100+Z79*10 -> 620 | T79: =RANK(S79,$S78:$S82,0) -> 4 | U79: =VLOOKUP(Q79,TABLEAU_TEAMS[#All],2,FALSE) -> Islande | V79: =SUMPRODUCT((Teams1=U79)*(Teams1_Score<>""))+SUMPRODUCT((Teams2=U79)*(Teams2_Score<>"")) -> 3 | W79: =SUMPRODUCT((Teams1=U79)*(Teams1_Score>Teams2_Score))+SUMPRODUCT((Teams2=U79)*(Teams2_Score>Teams1_Score)) -> 0 | X79: =SUMPRODUCT((Teams1=U79)*(Teams1_Score=Teams2_Score)*(Teams1_Score<>""))+SUMPRODUCT((Teams2=U79)*(Teams2_Score=Teams1_Score)*(Teams2_Score<>"")) -> 1 | Y79: =SUMPRODUCT((Teams1=U79)*(Teams1_Score<Teams2_Score))+SUMPRODUCT((Teams2=U79)*(Teams2_Score<Teams1_Score)) -> 2 | Z79: =SUMPRODUCT((Teams1=U79)*(Teams1_Score))+SUMPRODUCT((Teams2=U79)*(Teams2_Score)) -> 2 | AA79: =SUMPRODUCT((Teams1=U79)*(Teams2_Score))+SUMPRODUCT((Teams2=U79)*(Teams1_Score)) -> 6 | AB79: =Z79-AA79 -> -4 | AC79: =3*W79+X79 -> 1
B80: =IF(ROWS($1:1)<=COUNTIF($T$21:$T$24,1),INDEX($U$21:$U$24,SMALL(IF($T$21:$T$24=1,ROW(INDIRECT("1:"&ROWS($T$21:$T$24)))),ROWS($1:1))),"") -> France | Q80: D_3 | R80: =TEXT(S80,"00000")&U80 -> 00850Croatie | S80: =AC80*1000+AB80*100+Z80*10 -> 850 | T80: =RANK(S80,$S78:$S82,0) -> 3 | U80: =VLOOKUP(Q80,TABLEAU_TEAMS[#All],2,FALSE) -> Croatie | V80: =SUMPRODUCT((Teams1=U80)*(Teams1_Score<>""))+SUMPRODUCT((Teams2=U80)*(Teams2_Score<>"")) -> 3 | W80: =SUMPRODUCT((Teams1=U80)*(Teams1_Score>Teams2_Score))+SUMPRODUCT((Teams2=U80)*(Teams2_Score>Teams1_Score)) -> 0 | X80: =SUMPRODUCT((Teams1=U80)*(Teams1_Score=Teams2_Score)*(Teams1_Score<>""))+SUMPRODUCT((Teams2=U80)*(Teams2_Score=Teams1_Score)*(Teams2_Score<>"")) -> 1 | Y80: =SUMPRODUCT((Teams1=U80)*(Teams1_Score<Teams2_Score))+SUMPRODUCT((Teams2=U80)*(Teams2_Score<Teams1_Score)) -> 2 | Z80: =SUMPRODUCT((Teams1=U80)*(Teams1_Score))+SUMPRODUCT((Teams2=U80)*(Teams2_Score)) -> 5 | AA80: =SUMPRODUCT((Teams1=U80)*(Teams2_Score))+SUMPRODUCT((Teams2=U80)*(Teams1_Score)) -> 7 | AB80: =Z80-AA80 -> -2 | AC80: =3*W80+X80 -> 1
B81: =IF(ROWS($1:2)<=COUNTIF($T$21:$T$24,1),INDEX($U$21:$U$24,SMALL(IF($T$21:$T$24=1,ROW(INDIRECT("1:"&ROWS($T$21:$T$24)))),ROWS($1:2))),"") ->  | Q81: D_4 | R81: =TEXT(S81,"00000")&U81 -> 09580Nigeria | S81: =AC81*1000+AB81*100+Z81*10 -> 9580 | T81: =RANK(S81,$S78:$S82,0) -> 1 | U81: =VLOOKUP(Q81,TABLEAU_TEAMS[#All],2,FALSE) -> Nigeria | V81: =SUMPRODUCT((Teams1=U81)*(Teams1_Score<>""))+SUMPRODUCT((Teams2=U81)*(Teams2_Score<>"")) -> 3 | W81: =SUMPRODUCT((Teams1=U81)*(Teams1_Score>Teams2_Score))+SUMPRODUCT((Teams2=U81)*(Teams2_Score>Teams1_Score)) -> 3 | X81: =SUMPRODUCT((Teams1=U81)*(Teams1_Score=Teams2_Score)*(Teams1_Score<>""))+SUMPRODUCT((Teams2=U81)*(Teams2_Score=Teams1_Score)*(Teams2_Score<>"")) -> 0 | Y81: =SUMPRODUCT((Teams1=U81)*(Teams1_Score<Teams2_Score))+SUMPRODUCT((Teams2=U81)*(Teams2_Score<Teams1_Score)) -> 0 | Z81: =SUMPRODUCT((Teams1=U81)*(Teams1_Score))+SUMPRODUCT((Teams2=U81)*(Teams2_Score)) -> 8 | AA81: =SUMPRODUCT((Teams1=U81)*(Teams2_Score))+SUMPRODUCT((Teams2=U81)*(Teams1_Score)) -> 3 | AB81: =Z81-AA81 -> 5 | AC81: =3*W81+X81 -> 9
B82: =IF(ROWS($1:3)<=COUNTIF($T$21:$T$24,1),INDEX($U$21:$U$24,SMALL(IF($T$21:$T$24=1,ROW(INDIRECT("1:"&ROWS($T$21:$T$24)))),ROWS($1:3))),"") -> 
B83: =IF(ROWS($1:4)<=COUNTIF($T$21:$T$24,1),INDEX($U$21:$U$24,SMALL(IF($T$21:$T$24=1,ROW(INDIRECT("1:"&ROWS($T$21:$T$24)))),ROWS($1:4))),"") ->  | T83: Rg | U83: Groupe E | V83: MJ | W83: G | X83: N | Y83: P | Z83: BP | AA83: BC | AB83: Pts | AC83: Pts
B84: Tirage au sort C2 | Q84: E_1 | R84: =TEXT(S84,"00000")&U84 -> 00830Costa Rica | S84: =AC84*1000+AB84*100+Z84*10 -> 830 | T84: =RANK(S84,$S84:$S88,0) -> 4 | U84: =VLOOKUP(Q84,TABLEAU_TEAMS[#All],2,FALSE) -> Costa Rica | V84: =SUMPRODUCT((Teams1=U84)*(Teams1_Score<>""))+SUMPRODUCT((Teams2=U84)*(Teams2_Score<>"")) -> 3 | W84: =SUMPRODUCT((Teams1=U84)*(Teams1_Score>Teams2_Score))+SUMPRODUCT((Teams2=U84)*(Teams2_Score>Teams1_Score)) -> 0 | X84: =SUMPRODUCT((Teams1=U84)*(Teams1_Score=Teams2_Score)*(Teams1_Score<>""))+SUMPRODUCT((Teams2=U84)*(Teams2_Score=Teams1_Score)*(Teams2_Score<>"")) -> 1 | Y84: =SUMPRODUCT((Teams1=U84)*(Teams1_Score<Teams2_Score))+SUMPRODUCT((Teams2=U84)*(Teams2_Score<Teams1_Score)) -> 2 | Z84: =SUMPRODUCT((Teams1=U84)*(Teams1_Score))+SUMPRODUCT((Teams2=U84)*(Teams2_Score)) -> 3 | AA84: =SUMPRODUCT((Teams1=U84)*(Teams2_Score))+SUMPRODUCT((Teams2=U84)*(Teams1_Score)) -> 5 | AB84: =Z84-AA84 -> -2 | AC84: =3*W84+X84 -> 1
B85: =IF(COUNTIF($T$21:$T$24,1)>1,IF(ROWS($1:1)<=COUNTIF($T$21:$T$24,1),INDEX($U$21:$U$24,SMALL(IF($T$21:$T$24=1,ROW(INDIRECT("1:"&ROWS($T$21:$T$24)))),ROWS($1:1))),""),IF(COUNTIF($T$21:$T$24,2)>1,IF(ROWS($1:1)<=COUNTIF($T$21:$T$24,2),INDEX($U$21:$U$24,SMALL(IF($T$21:$T$24=2,ROW(INDIRECT("1:"&ROWS($T$21:$T$24)))),ROWS($1:1))),""))) -> FALSE | Q85: E_2 | R85: =TEXT(S85,"00000")&U85 -> 03930Serbie | S85: =AC85*1000+AB85*100+Z85*10 -> 3930 | T85: =RANK(S85,$S84:$S88,0) -> 2 | U85: =VLOOKUP(Q85,TABLEAU_TEAMS[#All],2,FALSE) -> Serbie | V85: =SUMPRODUCT((Teams1=U85)*(Teams1_Score<>""))+SUMPRODUCT((Teams2=U85)*(Teams2_Score<>"")) -> 3 | W85: =SUMPRODUCT((Teams1=U85)*(Teams1_Score>Teams2_Score))+SUMPRODUCT((Teams2=U85)*(Teams2_Score>Teams1_Score)) -> 1 | X85: =SUMPRODUCT((Teams1=U85)*(Teams1_Score=Teams2_Score)*(Teams1_Score<>""))+SUMPRODUCT((Teams2=U85)*(Teams2_Score=Teams1_Score)*(Teams2_Score<>"")) -> 1 | Y85: =SUMPRODUCT((Teams1=U85)*(Teams1_Score<Teams2_Score))+SUMPRODUCT((Teams2=U85)*(Teams2_Score<Teams1_Score)) -> 1 | Z85: =SUMPRODUCT((Teams1=U85)*(Teams1_Score))+SUMPRODUCT((Teams2=U85)*(Teams2_Score)) -> 3 | AA85: =SUMPRODUCT((Teams1=U85)*(Teams2_Score))+SUMPRODUCT((Teams2=U85)*(Teams1_Score)) -> 4 | AB85: =Z85-AA85 -> -1 | AC85: =3*W85+X85 -> 4
B86: =IF(COUNTIF($T$21:$T$24,1)>1,IF(ROWS($1:2)<=COUNTIF($T$21:$T$24,1),INDEX($U$21:$U$24,SMALL(IF($T$21:$T$24=1,ROW(INDIRECT("1:"&ROWS($T$21:$T$24)))),ROWS($1:2))),""),IF(COUNTIF($T$21:$T$24,2)>1,IF(ROWS($1:2)<=COUNTIF($T$21:$T$24,2),INDEX($U$21:$U$24,SMALL(IF($T$21:$T$24=2,ROW(INDIRECT("1:"&ROWS($T$21:$T$24)))),ROWS($1:2))),""))) -> FALSE | Q86: E_3 | R86: =TEXT(S86,"00000")&U86 -> 09570Brésil | S86: =AC86*1000+AB86*100+Z86*10 -> 9570 | T86: =RANK(S86,$S84:$S88,0) -> 1 | U86: =VLOOKUP(Q86,TABLEAU_TEAMS[#All],2,FALSE) -> Brésil | V86: =SUMPRODUCT((Teams1=U86)*(Teams1_Score<>""))+SUMPRODUCT((Teams2=U86)*(Teams2_Score<>"")) -> 3 | W86: =SUMPRODUCT((Teams1=U86)*(Teams1_Score>Teams2_Score))+SUMPRODUCT((Teams2=U86)*(Teams2_Score>Teams1_Score)) -> 3 | X86: =SUMPRODUCT((Teams1=U86)*(Teams1_Score=Teams2_Score)*(Teams1_Score<>""))+SUMPRODUCT((Teams2=U86)*(Teams2_Score=Teams1_Score)*(Teams2_Score<>"")) -> 0 | Y86: =SUMPRODUCT((Teams1=U86)*(Teams1_Score<Teams2_Score))+SUMPRODUCT((Teams2=U86)*(Teams2_Score<Teams1_Score)) -> 0 | Z86: =SUMPRODUCT((Teams1=U86)*(Teams1_Score))+SUMPRODUCT((Teams2=U86)*(Teams2_Score)) -> 7 | AA86: =SUMPRODUCT((Teams1=U86)*(Teams2_Score))+SUMPRODUCT((Teams2=U86)*(Teams1_Score)) -> 2 | AB86: =Z86-AA86 -> 5 | AC86: =3*W86+X86 -> 9
B87: =IF(COUNTIF($T$21:$T$24,1)>1,IF(ROWS($1:3)<=COUNTIF($T$21:$T$24,1),INDEX($U$21:$U$24,SMALL(IF($T$21:$T$24=1,ROW(INDIRECT("1:"&ROWS($T$21:$T$24)))),ROWS($1:3))),""),IF(COUNTIF($T$21:$T$24,2)>1,IF(ROWS($1:3)<=COUNTIF($T$21:$T$24,2),INDEX($U$21:$U$24,SMALL(IF($T$21:$T$24=2,ROW(INDIRECT("1:"&ROWS($T$21:$T$24)))),ROWS($1:3))),""))) -> FALSE | Q87: E_4 | R87: =TEXT(S87,"00000")&U87 -> 01830Suisse | S87: =AC87*1000+AB87*100+Z87*10 -> 1830 | T87: =RANK(S87,$S84:$S88,0) -> 3 | U87: =VLOOKUP(Q87,TABLEAU_TEAMS[#All],2,FALSE) -> Suisse | V87: =SUMPRODUCT((Teams1=U87)*(Teams1_Score<>""))+SUMPRODUCT((Teams2=U87)*(Teams2_Score<>"")) -> 3 | W87: =SUMPRODUCT((Teams1=U87)*(Teams1_Score>Teams2_Score))+SUMPRODUCT((Teams2=U87)*(Teams2_Score>Teams1_Score)) -> 0 | X87: =SUMPRODUCT((Teams1=U87)*(Teams1_Score=Teams2_Score)*(Teams1_Score<>""))+SUMPRODUCT((Teams2=U87)*(Teams2_Score=Teams1_Score)*(Teams2_Score<>"")) -> 2 | Y87: =SUMPRODUCT((Teams1=U87)*(Teams1_Score<Teams2_Score))+SUMPRODUCT((Teams2=U87)*(Teams2_Score<Teams1_Score)) -> 1 | Z87: =SUMPRODUCT((Teams1=U87)*(Teams1_Score))+SUMPRODUCT((Teams2=U87)*(Teams2_Score)) -> 3 | AA87: =SUMPRODUCT((Teams1=U87)*(Teams2_Score))+SUMPRODUCT((Teams2=U87)*(Teams1_Score)) -> 5 | AB87: =Z87-AA87 -> -2 | AC87: =3*W87+X87 -> 2
B88: =IF(COUNTIF($T$21:$T$24,1)>1,IF(ROWS($1:4)<=COUNTIF($T$21:$T$24,1),INDEX($U$21:$U$24,SMALL(IF($T$21:$T$24=1,ROW(INDIRECT("1:"&ROWS($T$21:$T$24)))),ROWS($1:4))),""),IF(COUNTIF($T$21:$T$24,2)>1,IF(ROWS($1:4)<=COUNTIF($T$21:$T$24,2),INDEX($U$21:$U$24,SMALL(IF($T$21:$T$24=2,ROW(INDIRECT("1:"&ROWS($T$21:$T$24)))),ROWS($1:4))),""))) -> FALSE
B89: Tirage au sort D1 | T89: Rg | U89: Groupe F | V89: MJ | W89: G | X89: N | Y89: P | Z89: BP | AA89: BC | AB89: Pts | AC89: Pts
B90: =IF(ROWS($1:1)<=COUNTIF($T$27:$T$30,1),INDEX($U$27:$U$30,SMALL(IF($T$27:$T$30=1,ROW(INDIRECT("1:"&ROWS($T$27:$T$30)))),ROWS($1:1))),"") -> Nigeria | Q90: F_1 | R90: =TEXT(S90,"00000")&U90 -> 09800Allemagne | S90: =AC90*1000+AB90*100+Z90*10 -> 9800 | T90: =RANK(S90,$S90:$S94,0) -> 1 | U90: =VLOOKUP(Q90,TABLEAU_TEAMS[#All],2,FALSE) -> Allemagne | V90: =SUMPRODUCT((Teams1=U90)*(Teams1_Score<>""))+SUMPRODUCT((Teams2=U90)*(Teams2_Score<>"")) -> 3 | W90: =SUMPRODUCT((Teams1=U90)*(Teams1_Score>Teams2_Score))+SUMPRODUCT((Teams2=U90)*(Teams2_Score>Teams1_Score)) -> 3 | X90: =SUMPRODUCT((Teams1=U90)*(Teams1_Score=Teams2_Score)*(Teams1_Score<>""))+SUMPRODUCT((Teams2=U90)*(Teams2_Score=Teams1_Score)*(Teams2_Score<>"")) -> 0 | Y90: =SUMPRODUCT((Teams1=U90)*(Teams1_Score<Teams2_Score))+SUMPRODUCT((Teams2=U90)*(Teams2_Score<Teams1_Score)) -> 0 | Z90: =SUMPRODUCT((Teams1=U90)*(Teams1_Score))+SUMPRODUCT((Teams2=U90)*(Teams2_Score)) -> 10 | AA90: =SUMPRODUCT((Teams1=U90)*(Teams2_Score))+SUMPRODUCT((Teams2=U90)*(Teams1_Score)) -> 3 | AB90: =Z90-AA90 -> 7 | AC90: =3*W90+X90 -> 9
B91: =IF(ROWS($1:2)<=COUNTIF($T$27:$T$30,1),INDEX($U$27:$U$30,SMALL(IF($T$27:$T$30=1,ROW(INDIRECT("1:"&ROWS($T$27:$T$30)))),ROWS($1:2))),"") ->  | Q91: F_2 | R91: =TEXT(S91,"00000")&U91 -> 03950Mexique | S91: =AC91*1000+AB91*100+Z91*10 -> 3950 | T91: =RANK(S91,$S90:$S94,0) -> 2 | U91: =VLOOKUP(Q91,TABLEAU_TEAMS[#All],2,FALSE) -> Mexique | V91: =SUMPRODUCT((Teams1=U91)*(Teams1_Score<>""))+SUMPRODUCT((Teams2=U91)*(Teams2_Score<>"")) -> 3 | W91: =SUMPRODUCT((Teams1=U91)*(Teams1_Score>Teams2_Score))+SUMPRODUCT((Teams2=U91)*(Teams2_Score>Teams1_Score)) -> 1 | X91: =SUMPRODUCT((Teams1=U91)*(Teams1_Score=Teams2_Score)*(Teams1_Score<>""))+SUMPRODUCT((Teams2=U91)*(Teams2_Score=Teams1_Score)*(Teams2_Score<>"")) -> 1 | Y91: =SUMPRODUCT((Teams1=U91)*(Teams1_Score<Teams2_Score))+SUMPRODUCT((Teams2=U91)*(Teams2_Score<Teams1_Score)) -> 1 | Z91: =SUMPRODUCT((Teams1=U91)*(Teams1_Score))+SUMPRODUCT((Teams2=U91)*(Teams2_Score)) -> 5 | AA91: =SUMPRODUCT((Teams1=U91)*(Teams2_Score))+SUMPRODUCT((Teams2=U91)*(Teams1_Score)) -> 6 | AB91: =Z91-AA91 -> -1 | AC91: =3*W91+X91 -> 4
B92: =IF(ROWS($1:3)<=COUNTIF($T$27:$T$30,1),INDEX($U$27:$U$30,SMALL(IF($T$27:$T$30=1,ROW(INDIRECT("1:"&ROWS($T$27:$T$30)))),ROWS($1:3))),"") ->  | Q92: F_3 | R92: =TEXT(S92,"00000")&U92 -> 01730Suède | S92: =AC92*1000+AB92*100+Z92*10 -> 1730 | T92: =RANK(S92,$S90:$S94,0) -> 3 | U92: =VLOOKUP(Q92,TABLEAU_TEAMS[#All],2,FALSE) -> Suède | V92: =SUMPRODUCT((Teams1=U92)*(Teams1_Score<>""))+SUMPRODUCT((Teams2=U92)*(Teams2_Score<>"")) -> 3 | W92: =SUMPRODUCT((Teams1=U92)*(Teams1_Score>Teams2_Score))+SUMPRODUCT((Teams2=U92)*(Teams2_Score>Teams1_Score)) -> 0 | X92: =SUMPRODUCT((Teams1=U92)*(Teams1_Score=Teams2_Score)*(Teams1_Score<>""))+SUMPRODUCT((Teams2=U92)*(Teams2_Score=Teams1_Score)*(Teams2_Score<>"")) -> 2 | Y92: =SUMPRODUCT((Teams1=U92)*(Teams1_Score<Teams2_Score))+SUMPRODUCT((Teams2=U92)*(Teams2_Score<Teams1_Score)) -> 1 | Z92: =SUMPRODUCT((Teams1=U92)*(Teams1_Score))+SUMPRODUCT((Teams2=U92)*(Teams2_Score)) -> 3 | AA92: =SUMPRODUCT((Teams1=U92)*(Teams2_Score))+SUMPRODUCT((Teams2=U92)*(Teams1_Score)) -> 6 | AB92: =Z92-AA92 -> -3 | AC92: =3*W92+X92 -> 2
B93: =IF(ROWS($1:4)<=COUNTIF($T$27:$T$30,1),INDEX($U$27:$U$30,SMALL(IF($T$27:$T$30=1,ROW(INDIRECT("1:"&ROWS($T$27:$T$30)))),ROWS($1:4))),"") ->  | Q93: F_4 | R93: =TEXT(S93,"00000")&U93 -> 00720République de Corée | S93: =AC93*1000+AB93*100+Z93*10 -> 720 | T93: =RANK(S93,$S90:$S94,0) -> 4 | U93: =VLOOKUP(Q93,TABLEAU_TEAMS[#All],2,FALSE) -> République de Corée | V93: =SUMPRODUCT((Teams1=U93)*(Teams1_Score<>""))+SUMPRODUCT((Teams2=U93)*(Teams2_Score<>"")) -> 3 | W93: =SUMPRODUCT((Teams1=U93)*(Teams1_Score>Teams2_Score))+SUMPRODUCT((Teams2=U93)*(Teams2_Score>Teams1_Score)) -> 0 | X93: =SUMPRODUCT((Teams1=U93)*(Teams1_Score=Teams2_Score)*(Teams1_Score<>""))+SUMPRODUCT((Teams2=U93)*(Teams2_Score=Teams1_Score)*(Teams2_Score<>"")) -> 1 | Y93: =SUMPRODUCT((Teams1=U93)*(Teams1_Score<Teams2_Score))+SUMPRODUCT((Teams2=U93)*(Teams2_Score<Teams1_Score)) -> 2 | Z93: =SUMPRODUCT((Teams1=U93)*(Teams1_Score))+SUMPRODUCT((Teams2=U93)*(Teams2_Score)) -> 2 | AA93: =SUMPRODUCT((Teams1=U93)*(Teams2_Score))+SUMPRODUCT((Teams2=U93)*(Teams1_Score)) -> 5 | AB93: =Z93-AA93 -> -3 | AC93: =3*W93+X93 -> 1
B94: Tirage au sort D2
B95: =IF(COUNTIF($T$27:$T$30,1)>1,IF(ROWS($1:1)<=COUNTIF($T$27:$T$30,1),INDEX($U$27:$U$30,SMALL(IF($T$27:$T$30=1,ROW(INDIRECT("1:"&ROWS($T$27:$T$30)))),ROWS($1:1))),""),IF(COUNTIF($T$27:$T$30,2)>1,IF(ROWS($1:1)<=COUNTIF($T$27:$T$30,2),INDEX($U$27:$U$30,SMALL(IF($T$27:$T$30=2,ROW(INDIRECT("1:"&ROWS($T$27:$T$30)))),ROWS($1:1))),""))) -> FALSE | T95: Rg | U95: Groupe G | V95: MJ | W95: G | X95: N | Y95: P | Z95: BP | AA95: BC | AB95: Pts | AC95: Pts
B96: =IF(COUNTIF($T$27:$T$30,1)>1,IF(ROWS($1:2)<=COUNTIF($T$27:$T$30,1),INDEX($U$27:$U$30,SMALL(IF($T$27:$T$30=1,ROW(INDIRECT("1:"&ROWS($T$27:$T$30)))),ROWS($1:2))),""),IF(COUNTIF($T$27:$T$30,2)>1,IF(ROWS($1:2)<=COUNTIF($T$27:$T$30,2),INDEX($U$27:$U$30,SMALL(IF($T$27:$T$30=2,ROW(INDIRECT("1:"&ROWS($T$27:$T$30)))),ROWS($1:2))),""))) -> FALSE | Q96: G_1 | R96: =TEXT(S96,"00000")&U96 -> 09680Belgique | S96: =AC96*1000+AB96*100+Z96*10 -> 9680 | T96: =RANK(S96,$S96:$S100,0) -> 1 | U96: =VLOOKUP(Q96,TABLEAU_TEAMS[#All],2,FALSE) -> Belgique | V96: =SUMPRODUCT((Teams1=U96)*(Teams1_Score<>""))+SUMPRODUCT((Teams2=U96)*(Teams2_Score<>"")) -> 3 | W96: =SUMPRODUCT((Teams1=U96)*(Teams1_Score>Teams2_Score))+SUMPRODUCT((Teams2=U96)*(Teams2_Score>Teams1_Score)) -> 3 | X96: =SUMPRODUCT((Teams1=U96)*(Teams1_Score=Teams2_Score)*(Teams1_Score<>""))+SUMPRODUCT((Teams2=U96)*(Teams2_Score=Teams1_Score)*(Teams2_Score<>"")) -> 0 | Y96: =SUMPRODUCT((Teams1=U96)*(Teams1_Score<Teams2_Score))+SUMPRODUCT((Teams2=U96)*(Teams2_Score<Teams1_Score)) -> 0 | Z96: =SUMPRODUCT((Teams1=U96)*(Teams1_Score))+SUMPRODUCT((Teams2=U96)*(Teams2_Score)) -> 8 | AA96: =SUMPRODUCT((Teams1=U96)*(Teams2_Score))+SUMPRODUCT((Teams2=U96)*(Teams1_Score)) -> 2 | AB96: =Z96-AA96 -> 6 | AC96: =3*W96+X96 -> 9
B97: =IF(COUNTIF($T$27:$T$30,1)>1,IF(ROWS($1:3)<=COUNTIF($T$27:$T$30,1),INDEX($U$27:$U$30,SMALL(IF($T$27:$T$30=1,ROW(INDIRECT("1:"&ROWS($T$27:$T$30)))),ROWS($1:3))),""),IF(COUNTIF($T$27:$T$30,2)>1,IF(ROWS($1:3)<=COUNTIF($T$27:$T$30,2),INDEX($U$27:$U$30,SMALL(IF($T$27:$T$30=2,ROW(INDIRECT("1:"&ROWS($T$27:$T$30)))),ROWS($1:3))),""))) -> FALSE | Q97: G_2 | R97: =TEXT(S97,"00000")&U97 -> -00700Panama | S97: =AC97*1000+AB97*100+Z97*10 -> -700 | T97: =RANK(S97,$S96:$S100,0) -> 4 | U97: =VLOOKUP(Q97,TABLEAU_TEAMS[#All],2,FALSE) -> Panama | V97: =SUMPRODUCT((Teams1=U97)*(Teams1_Score<>""))+SUMPRODUCT((Teams2=U97)*(Teams2_Score<>"")) -> 3 | W97: =SUMPRODUCT((Teams1=U97)*(Teams1_Score>Teams2_Score))+SUMPRODUCT((Teams2=U97)*(Teams2_Score>Teams1_Score)) -> 0 | X97: =SUMPRODUCT((Teams1=U97)*(Teams1_Score=Teams2_Score)*(Teams1_Score<>""))+SUMPRODUCT((Teams2=U97)*(Teams2_Score=Teams1_Score)*(Teams2_Score<>"")) -> 0 | Y97: =SUMPRODUCT((Teams1=U97)*(Teams1_Score<Teams2_Score))+SUMPRODUCT((Teams2=U97)*(Teams2_Score<Teams1_Score)) -> 3 | Z97: =SUMPRODUCT((Teams1=U97)*(Teams1_Score))+SUMPRODUCT((Teams2=U97)*(Teams2_Score)) -> 0 | AA97: =SUMPRODUCT((Teams1=U97)*(Teams2_Score))+SUMPRODUCT((Teams2=U97)*(Teams1_Score)) -> 7 | AB97: =Z97-AA97 -> -7 | AC97: =3*W97+X97 -> 0
B98: =IF(COUNTIF($T$27:$T$30,1)>1,IF(ROWS($1:4)<=COUNTIF($T$27:$T$30,1),INDEX($U$27:$U$30,SMALL(IF($T$27:$T$30=1,ROW(INDIRECT("1:"&ROWS($T$27:$T$30)))),ROWS($1:4))),""),IF(COUNTIF($T$27:$T$30,2)>1,IF(ROWS($1:4)<=COUNTIF($T$27:$T$30,2),INDEX($U$27:$U$30,SMALL(IF($T$27:$T$30=2,ROW(INDIRECT("1:"&ROWS($T$27:$T$30)))),ROWS($1:4))),""))) -> FALSE | Q98: G_3 | R98: =TEXT(S98,"00000")&U98 -> 02930Tunisie | S98: =AC98*1000+AB98*100+Z98*10 -> 2930 | T98: =RANK(S98,$S96:$S100,0) -> 3 | U98: =VLOOKUP(Q98,TABLEAU_TEAMS[#All],2,FALSE) -> Tunisie | V98: =SUMPRODUCT((Teams1=U98)*(Teams1_Score<>""))+SUMPRODUCT((Teams2=U98)*(Teams2_Score<>"")) -> 3 | W98: =SUMPRODUCT((Teams1=U98)*(Teams1_Score>Teams2_Score))+SUMPRODUCT((Teams2=U98)*(Teams2_Score>Teams1_Score)) -> 1 | X98: =SUMPRODUCT((Teams1=U98)*(Teams1_Score=Teams2_Score)*(Teams1_Score<>""))+SUMPRODUCT((Teams2=U98)*(Teams2_Score=Teams1_Score)*(Teams2_Score<>"")) -> 0 | Y98: =SUMPRODUCT((Teams1=U98)*(Teams1_Score<Teams2_Score))+SUMPRODUCT((Teams2=U98)*(Teams2_Score<Teams1_Score)) -> 2 | Z98: =SUMPRODUCT((Teams1=U98)*(Teams1_Score))+SUMPRODUCT((Teams2=U98)*(Teams2_Score)) -> 3 | AA98: =SUMPRODUCT((Teams1=U98)*(Teams2_Score))+SUMPRODUCT((Teams2=U98)*(Teams1_Score)) -> 4 | AB98: =Z98-AA98 -> -1 | AC98: =3*W98+X98 -> 3
B99: Tirage au sort E1 | Q99: G_4 | R99: =TEXT(S99,"00000")&U99 -> 06260Angleterre | S99: =AC99*1000+AB99*100+Z99*10 -> 6260 | T99: =RANK(S99,$S96:$S100,0) -> 2 | U99: =VLOOKUP(Q99,TABLEAU_TEAMS[#All],2,FALSE) -> Angleterre | V99: =SUMPRODUCT((Teams1=U99)*(Teams1_Score<>""))+SUMPRODUCT((Teams2=U99)*(Teams2_Score<>"")) -> 3 | W99: =SUMPRODUCT((Teams1=U99)*(Teams1_Score>Teams2_Score))+SUMPRODUCT((Teams2=U99)*(Teams2_Score>Teams1_Score)) -> 2 | X99: =SUMPRODUCT((Teams1=U99)*(Teams1_Score=Teams2_Score)*(Teams1_Score<>""))+SUMPRODUCT((Teams2=U99)*(Teams2_Score=Teams1_Score)*(Teams2_Score<>"")) -> 0 | Y99: =SUMPRODUCT((Teams1=U99)*(Teams1_Score<Teams2_Score))+SUMPRODUCT((Teams2=U99)*(Teams2_Score<Teams1_Score)) -> 1 | Z99: =SUMPRODUCT((Teams1=U99)*(Teams1_Score))+SUMPRODUCT((Teams2=U99)*(Teams2_Score)) -> 6 | AA99: =SUMPRODUCT((Teams1=U99)*(Teams2_Score))+SUMPRODUCT((Teams2=U99)*(Teams1_Score)) -> 4 | AB99: =Z99-AA99 -> 2 | AC99: =3*W99+X99 -> 6
B100: =IF(ROWS($1:1)<=COUNTIF($T$33:$T$36,1),INDEX($U$33:$U$36,SMALL(IF($T$33:$T$36=1,ROW(INDIRECT("1:"&ROWS($T$33:$T$36)))),ROWS($1:1))),"") -> Brésil
B101: =IF(ROWS($1:2)<=COUNTIF($T$33:$T$36,1),INDEX($U$33:$U$36,SMALL(IF($T$33:$T$36=1,ROW(INDIRECT("1:"&ROWS($T$33:$T$36)))),ROWS($1:2))),"") ->  | T101: Rg | U101: Groupe H | V101: MJ | W101: G | X101: N | Y101: P | Z101: BP | AA101: BC | AB101: Pts | AC101: Pts
B102: =IF(ROWS($1:3)<=COUNTIF($T$33:$T$36,1),INDEX($U$33:$U$36,SMALL(IF($T$33:$T$36=1,ROW(INDIRECT("1:"&ROWS($T$33:$T$36)))),ROWS($1:3))),"") ->  | Q102: H_1 | R102: =TEXT(S102,"00000")&U102 -> 06240Colombie | S102: =AC102*1000+AB102*100+Z102*10 -> 6240 | T102: =RANK(S102,$S102:$S106,0) -> 1 | U102: =VLOOKUP(Q102,TABLEAU_TEAMS[#All],2,FALSE) -> Colombie | V102: =SUMPRODUCT((Teams1=U102)*(Teams1_Score<>""))+SUMPRODUCT((Teams2=U102)*(Teams2_Score<>"")) -> 2 | W102: =SUMPRODUCT((Teams1=U102)*(Teams1_Score>Teams2_Score))+SUMPRODUCT((Teams2=U102)*(Teams2_Score>Teams1_Score)) -> 2 | X102: =SUMPRODUCT((Teams1=U102)*(Teams1_Score=Teams2_Score)*(Teams1_Score<>""))+SUMPRODUCT((Teams2=U102)*(Teams2_Score=Teams1_Score)*(Teams2_Score<>"")) -> 0 | Y102: =SUMPRODUCT((Teams1=U102)*(Teams1_Score<Teams2_Score))+SUMPRODUCT((Teams2=U102)*(Teams2_Score<Teams1_Score)) -> 0 | Z102: =SUMPRODUCT((Teams1=U102)*(Teams1_Score))+SUMPRODUCT((Teams2=U102)*(Teams2_Score)) -> 4 | AA102: =SUMPRODUCT((Teams1=U102)*(Teams2_Score))+SUMPRODUCT((Teams2=U102)*(Teams1_Score)) -> 2 | AB102: =Z102-AA102 -> 2 | AC102: =3*W102+X102 -> 6
B103: =IF(ROWS($1:4)<=COUNTIF($T$33:$T$36,1),INDEX($U$33:$U$36,SMALL(IF($T$33:$T$36=1,ROW(INDIRECT("1:"&ROWS($T$33:$T$36)))),ROWS($1:4))),"") ->  | Q103: H_2 | R103: =TEXT(S103,"00000")&U103 -> 04140Japon | S103: =AC103*1000+AB103*100+Z103*10 -> 4140 | T103: =RANK(S103,$S102:$S106,0) -> 2 | U103: =VLOOKUP(Q103,TABLEAU_TEAMS[#All],2,FALSE) -> Japon | V103: =SUMPRODUCT((Teams1=U103)*(Teams1_Score<>""))+SUMPRODUCT((Teams2=U103)*(Teams2_Score<>"")) -> 3 | W103: =SUMPRODUCT((Teams1=U103)*(Teams1_Score>Teams2_Score))+SUMPRODUCT((Teams2=U103)*(Teams2_Score>Teams1_Score)) -> 1 | X103: =SUMPRODUCT((Teams1=U103)*(Teams1_Score=Teams2_Score)*(Teams1_Score<>""))+SUMPRODUCT((Teams2=U103)*(Teams2_Score=Teams1_Score)*(Teams2_Score<>"")) -> 1 | Y103: =SUMPRODUCT((Teams1=U103)*(Teams1_Score<Teams2_Score))+SUMPRODUCT((Teams2=U103)*(Teams2_Score<Teams1_Score)) -> 1 | Z103: =SUMPRODUCT((Teams1=U103)*(Teams1_Score))+SUMPRODUCT((Teams2=U103)*(Teams2_Score)) -> 4 | AA103: =SUMPRODUCT((Teams1=U103)*(Teams2_Score))+SUMPRODUCT((Teams2=U103)*(Teams1_Score)) -> 3 | AB103: =Z103-AA103 -> 1 | AC103: =3*W103+X103 -> 4
B104: Tirage au sort E2 | Q104: H_3 | R104: =TEXT(S104,"00000")&U104 -> 01930Pologne | S104: =AC104*1000+AB104*100+Z104*10 -> 1930 | T104: =RANK(S104,$S102:$S106,0) -> 3 | U104: =VLOOKUP(Q104,TABLEAU_TEAMS[#All],2,FALSE) -> Pologne | V104: =SUMPRODUCT((Teams1=U104)*(Teams1_Score<>""))+SUMPRODUCT((Teams2=U104)*(Teams2_Score<>"")) -> 3 | W104: =SUMPRODUCT((Teams1=U104)*(Teams1_Score>Teams2_Score))+SUMPRODUCT((Teams2=U104)*(Teams2_Score>Teams1_Score)) -> 0 | X104: =SUMPRODUCT((Teams1=U104)*(Teams1_Score=Teams2_Score)*(Teams1_Score<>""))+SUMPRODUCT((Teams2=U104)*(Teams2_Score=Teams1_Score)*(Teams2_Score<>"")) -> 2 | Y104: =SUMPRODUCT((Teams1=U104)*(Teams1_Score<Teams2_Score))+SUMPRODUCT((Teams2=U104)*(Teams2_Score<Teams1_Score)) -> 1 | Z104: =SUMPRODUCT((Teams1=U104)*(Teams1_Score))+SUMPRODUCT((Teams2=U104)*(Teams2_Score)) -> 3 | AA104: =SUMPRODUCT((Teams1=U104)*(Teams2_Score))+SUMPRODUCT((Teams2=U104)*(Teams1_Score)) -> 4 | AB104: =Z104-AA104 -> -1 | AC104: =3*W104+X104 -> 2
B105: =IF(COUNTIF($T$33:$T$36,1)>1,IF(ROWS($1:1)<=COUNTIF($T$33:$T$36,1),INDEX($U$33:$U$36,SMALL(IF($T$33:$T$36=1,ROW(INDIRECT("1:"&ROWS($T$33:$T$36)))),ROWS($1:1))),""),IF(COUNTIF($T$33:$T$36,2)>1,IF(ROWS($1:1)<=COUNTIF($T$33:$T$36,2),INDEX($U$33:$U$36,SMALL(IF($T$33:$T$36=2,ROW(INDIRECT("1:"&ROWS($T$33:$T$36)))),ROWS($1:1))),""))) -> FALSE | Q105: H_4 | R105: =TEXT(S105,"00000")&U105 -> 00810Sénégal | S105: =AC105*1000+AB105*100+Z105*10 -> 810 | T105: =RANK(S105,$S102:$S106,0) -> 4 | U105: =VLOOKUP(Q105,TABLEAU_TEAMS[#All],2,FALSE) -> Sénégal | V105: =SUMPRODUCT((Teams1=U105)*(Teams1_Score<>""))+SUMPRODUCT((Teams2=U105)*(Teams2_Score<>"")) -> 2 | W105: =SUMPRODUCT((Teams1=U105)*(Teams1_Score>Teams2_Score))+SUMPRODUCT((Teams2=U105)*(Teams2_Score>Teams1_Score)) -> 0 | X105: =SUMPRODUCT((Teams1=U105)*(Teams1_Score=Teams2_Score)*(Teams1_Score<>""))+SUMPRODUCT((Teams2=U105)*(Teams2_Score=Teams1_Score)*(Teams2_Score<>"")) -> 1 | Y105: =SUMPRODUCT((Teams1=U105)*(Teams1_Score<Teams2_Score))+SUMPRODUCT((Teams2=U105)*(Teams2_Score<Teams1_Score)) -> 1 | Z105: =SUMPRODUCT((Teams1=U105)*(Teams1_Score))+SUMPRODUCT((Teams2=U105)*(Teams2_Score)) -> 1 | AA105: =SUMPRODUCT((Teams1=U105)*(Teams2_Score))+SUMPRODUCT((Teams2=U105)*(Teams1_Score)) -> 3 | AB105: =Z105-AA105 -> -2 | AC105: =3*W105+X105 -> 1
B106: =IF(COUNTIF($T$33:$T$36,1)>1,IF(ROWS($1:2)<=COUNTIF($T$33:$T$36,1),INDEX($U$33:$U$36,SMALL(IF($T$33:$T$36=1,ROW(INDIRECT("1:"&ROWS($T$33:$T$36)))),ROWS($1:2))),""),IF(COUNTIF($T$33:$T$36,2)>1,IF(ROWS($1:2)<=COUNTIF($T$33:$T$36,2),INDEX($U$33:$U$36,SMALL(IF($T$33:$T$36=2,ROW(INDIRECT("1:"&ROWS($T$33:$T$36)))),ROWS($1:2))),""))) -> FALSE
B107: =IF(COUNTIF($T$33:$T$36,1)>1,IF(ROWS($1:3)<=COUNTIF($T$33:$T$36,1),INDEX($U$33:$U$36,SMALL(IF($T$33:$T$36=1,ROW(INDIRECT("1:"&ROWS($T$33:$T$36)))),ROWS($1:3))),""),IF(COUNTIF($T$33:$T$36,2)>1,IF(ROWS($1:3)<=COUNTIF($T$33:$T$36,2),INDEX($U$33:$U$36,SMALL(IF($T$33:$T$36=2,ROW(INDIRECT("1:"&ROWS($T$33:$T$36)))),ROWS($1:3))),""))) -> FALSE
B108: =IF(COUNTIF($T$33:$T$36,1)>1,IF(ROWS($1:4)<=COUNTIF($T$33:$T$36,1),INDEX($U$33:$U$36,SMALL(IF($T$33:$T$36=1,ROW(INDIRECT("1:"&ROWS($T$33:$T$36)))),ROWS($1:4))),""),IF(COUNTIF($T$33:$T$36,2)>1,IF(ROWS($1:4)<=COUNTIF($T$33:$T$36,2),INDEX($U$33:$U$36,SMALL(IF($T$33:$T$36=2,ROW(INDIRECT("1:"&ROWS($T$33:$T$36)))),ROWS($1:4))),""))) -> FALSE
B109: Tirage au sort F1
B110: =IF(ROWS($1:1)<=COUNTIF($T$39:$T$42,1),INDEX($U$39:$U$42,SMALL(IF($T$39:$T$42=1,ROW(INDIRECT("1:"&ROWS($T$39:$T$42)))),ROWS($1:1))),"") -> Allemagne
B111: =IF(ROWS($1:2)<=COUNTIF($T$39:$T$42,1),INDEX($U$39:$U$42,SMALL(IF($T$39:$T$42=1,ROW(INDIRECT("1:"&ROWS($T$39:$T$42)))),ROWS($1:2))),"") -> 
B112: =IF(ROWS($1:3)<=COUNTIF($T$39:$T$42,1),INDEX($U$39:$U$42,SMALL(IF($T$39:$T$42=1,ROW(INDIRECT("1:"&ROWS($T$39:$T$42)))),ROWS($1:3))),"") -> 
B113: =IF(ROWS($1:4)<=COUNTIF($T$39:$T$42,1),INDEX($U$39:$U$42,SMALL(IF($T$39:$T$42=1,ROW(INDIRECT("1:"&ROWS($T$39:$T$42)))),ROWS($1:4))),"") -> 
B114: Tirage au sort F2
B115: =IF(COUNTIF($T$39:$T$42,1)>1,IF(ROWS($1:1)<=COUNTIF($T$39:$T$42,1),INDEX($U$39:$U$42,SMALL(IF($T$39:$T$42=1,ROW(INDIRECT("1:"&ROWS($T$39:$T$42)))),ROWS($1:1))),""),IF(COUNTIF($T$39:$T$42,2)>1,IF(ROWS($1:1)<=COUNTIF($T$39:$T$42,2),INDEX($U$39:$U$42,SMALL(IF($T$39:$T$42=2,ROW(INDIRECT("1:"&ROWS($T$39:$T$42)))),ROWS($1:1))),""))) -> FALSE
B116: =IF(COUNTIF($T$39:$T$42,1)>1,IF(ROWS($1:2)<=COUNTIF($T$39:$T$42,1),INDEX($U$39:$U$42,SMALL(IF($T$39:$T$42=1,ROW(INDIRECT("1:"&ROWS($T$39:$T$42)))),ROWS($1:2))),""),IF(COUNTIF($T$39:$T$42,2)>1,IF(ROWS($1:2)<=COUNTIF($T$39:$T$42,2),INDEX($U$39:$U$42,SMALL(IF($T$39:$T$42=2,ROW(INDIRECT("1:"&ROWS($T$39:$T$42)))),ROWS($1:2))),""))) -> FALSE
B117: =IF(COUNTIF($T$39:$T$42,1)>1,IF(ROWS($1:3)<=COUNTIF($T$39:$T$42,1),INDEX($U$39:$U$42,SMALL(IF($T$39:$T$42=1,ROW(INDIRECT("1:"&ROWS($T$39:$T$42)))),ROWS($1:3))),""),IF(COUNTIF($T$39:$T$42,2)>1,IF(ROWS($1:3)<=COUNTIF($T$39:$T$42,2),INDEX($U$39:$U$42,SMALL(IF($T$39:$T$42=2,ROW(INDIRECT("1:"&ROWS($T$39:$T$42)))),ROWS($1:3))),""))) -> FALSE
B118: =IF(COUNTIF($T$39:$T$42,1)>1,IF(ROWS($1:4)<=COUNTIF($T$39:$T$42,1),INDEX($U$39:$U$42,SMALL(IF($T$39:$T$42=1,ROW(INDIRECT("1:"&ROWS($T$39:$T$42)))),ROWS($1:4))),""),IF(COUNTIF($T$39:$T$42,2)>1,IF(ROWS($1:4)<=COUNTIF($T$39:$T$42,2),INDEX($U$39:$U$42,SMALL(IF($T$39:$T$42=2,ROW(INDIRECT("1:"&ROWS($T$39:$T$42)))),ROWS($1:4))),""))) -> FALSE
B119: Tirage au sort G1
B120: =IF(ROWS($1:1)<=COUNTIF($T$45:$T$48,1),INDEX($U$45:$U$48,SMALL(IF($T$45:$T$48=1,ROW(INDIRECT("1:"&ROWS($T$45:$T$48)))),ROWS($1:1))),"") -> Belgique
B121: =IF(ROWS($1:2)<=COUNTIF($T$45:$T$48,1),INDEX($U$45:$U$48,SMALL(IF($T$45:$T$48=1,ROW(INDIRECT("1:"&ROWS($T$45:$T$48)))),ROWS($1:2))),"") -> 
B122: =IF(ROWS($1:3)<=COUNTIF($T$45:$T$48,1),INDEX($U$45:$U$48,SMALL(IF($T$45:$T$48=1,ROW(INDIRECT("1:"&ROWS($T$45:$T$48)))),ROWS($1:3))),"") -> 
B123: =IF(ROWS($1:4)<=COUNTIF($T$45:$T$48,1),INDEX($U$45:$U$48,SMALL(IF($T$45:$T$48=1,ROW(INDIRECT("1:"&ROWS($T$45:$T$48)))),ROWS($1:4))),"") -> 
B124: Tirage au sort G2
B125: =IF(COUNTIF($T$45:$T$48,1)>1,IF(ROWS($1:1)<=COUNTIF($T$45:$T$48,1),INDEX($U$45:$U$48,SMALL(IF($T$45:$T$48=1,ROW(INDIRECT("1:"&ROWS($T$45:$T$48)))),ROWS($1:1))),""),IF(COUNTIF($T$45:$T$48,2)>1,IF(ROWS($1:1)<=COUNTIF($T$45:$T$48,2),INDEX($U$45:$U$48,SMALL(IF($T$45:$T$48=2,ROW(INDIRECT("1:"&ROWS($T$45:$T$48)))),ROWS($1:1))),""))) -> FALSE
B126: =IF(COUNTIF($T$45:$T$48,1)>1,IF(ROWS($1:2)<=COUNTIF($T$45:$T$48,1),INDEX($U$45:$U$48,SMALL(IF($T$45:$T$48=1,ROW(INDIRECT("1:"&ROWS($T$45:$T$48)))),ROWS($1:2))),""),IF(COUNTIF($T$45:$T$48,2)>1,IF(ROWS($1:2)<=COUNTIF($T$45:$T$48,2),INDEX($U$45:$U$48,SMALL(IF($T$45:$T$48=2,ROW(INDIRECT("1:"&ROWS($T$45:$T$48)))),ROWS($1:2))),""))) -> FALSE
B127: =IF(COUNTIF($T$45:$T$48,1)>1,IF(ROWS($1:3)<=COUNTIF($T$45:$T$48,1),INDEX($U$45:$U$48,SMALL(IF($T$45:$T$48=1,ROW(INDIRECT("1:"&ROWS($T$45:$T$48)))),ROWS($1:3))),""),IF(COUNTIF($T$45:$T$48,2)>1,IF(ROWS($1:3)<=COUNTIF($T$45:$T$48,2),INDEX($U$45:$U$48,SMALL(IF($T$45:$T$48=2,ROW(INDIRECT("1:"&ROWS($T$45:$T$48)))),ROWS($1:3))),""))) -> FALSE
B128: =IF(COUNTIF($T$45:$T$48,1)>1,IF(ROWS($1:4)<=COUNTIF($T$45:$T$48,1),INDEX($U$45:$U$48,SMALL(IF($T$45:$T$48=1,ROW(INDIRECT("1:"&ROWS($T$45:$T$48)))),ROWS($1:4))),""),IF(COUNTIF($T$45:$T$48,2)>1,IF(ROWS($1:4)<=COUNTIF($T$45:$T$48,2),INDEX($U$45:$U$48,SMALL(IF($T$45:$T$48=2,ROW(INDIRECT("1:"&ROWS($T$45:$T$48)))),ROWS($1:4))),""))) -> FALSE
B129: Tirage au sort H1
B130: =IF(ROWS($1:1)<=COUNTIF($T$51:$T$54,1),INDEX($U$51:$U$54,SMALL(IF($T$51:$T$54=1,ROW(INDIRECT("1:"&ROWS($T$51:$T$54)))),ROWS($1:1))),"") -> Colombie
B131: =IF(ROWS($1:2)<=COUNTIF($T$51:$T$54,1),INDEX($U$51:$U$54,SMALL(IF($T$51:$T$54=1,ROW(INDIRECT("1:"&ROWS($T$51:$T$54)))),ROWS($1:2))),"") -> 
B132: =IF(ROWS($1:3)<=COUNTIF($T$51:$T$54,1),INDEX($U$51:$U$54,SMALL(IF($T$51:$T$54=1,ROW(INDIRECT("1:"&ROWS($T$51:$T$54)))),ROWS($1:3))),"") -> 
B133: =IF(ROWS($1:4)<=COUNTIF($T$51:$T$54,1),INDEX($U$51:$U$54,SMALL(IF($T$51:$T$54=1,ROW(INDIRECT("1:"&ROWS($T$51:$T$54)))),ROWS($1:4))),"") -> 
B134: Tirage au sort H2
B135: =IF(COUNTIF($T$51:$T$54,1)>1,IF(ROWS($1:1)<=COUNTIF($T$51:$T$54,1),INDEX($U$51:$U$54,SMALL(IF($T$51:$T$54=1,ROW(INDIRECT("1:"&ROWS($T$51:$T$54)))),ROWS($1:1))),""),IF(COUNTIF($T$51:$T$54,2)>1,IF(ROWS($1:1)<=COUNTIF($T$51:$T$54,2),INDEX($U$51:$U$54,SMALL(IF($T$51:$T$54=2,ROW(INDIRECT("1:"&ROWS($T$51:$T$54)))),ROWS($1:1))),""))) -> FALSE
B136: =IF(COUNTIF($T$51:$T$54,1)>1,IF(ROWS($1:2)<=COUNTIF($T$51:$T$54,1),INDEX($U$51:$U$54,SMALL(IF($T$51:$T$54=1,ROW(INDIRECT("1:"&ROWS($T$51:$T$54)))),ROWS($1:2))),""),IF(COUNTIF($T$51:$T$54,2)>1,IF(ROWS($1:2)<=COUNTIF($T$51:$T$54,2),INDEX($U$51:$U$54,SMALL(IF($T$51:$T$54=2,ROW(INDIRECT("1:"&ROWS($T$51:$T$54)))),ROWS($1:2))),""))) -> FALSE
B137: =IF(COUNTIF($T$51:$T$54,1)>1,IF(ROWS($1:3)<=COUNTIF($T$51:$T$54,1),INDEX($U$51:$U$54,SMALL(IF($T$51:$T$54=1,ROW(INDIRECT("1:"&ROWS($T$51:$T$54)))),ROWS($1:3))),""),IF(COUNTIF($T$51:$T$54,2)>1,IF(ROWS($1:3)<=COUNTIF($T$51:$T$54,2),INDEX($U$51:$U$54,SMALL(IF($T$51:$T$54=2,ROW(INDIRECT("1:"&ROWS($T$51:$T$54)))),ROWS($1:3))),""))) -> FALSE
B138: =IF(COUNTIF($T$51:$T$54,1)>1,IF(ROWS($1:4)<=COUNTIF($T$51:$T$54,1),INDEX($U$51:$U$54,SMALL(IF($T$51:$T$54=1,ROW(INDIRECT("1:"&ROWS($T$51:$T$54)))),ROWS($1:4))),""),IF(COUNTIF($T$51:$T$54,2)>1,IF(ROWS($1:4)<=COUNTIF($T$51:$T$54,2),INDEX($U$51:$U$54,SMALL(IF($T$51:$T$54=2,ROW(INDIRECT("1:"&ROWS($T$51:$T$54)))),ROWS($1:4))),""))) -> FALSE

Sheet Vildary
B2: Pronostics de :
B4: =MID(CELL("filename",A1),FIND("]",CELL("filename",A1))+1,32) -> Vildary
B6: SAISIE DES PRONOSTICS | T6: GROUPES | AG6: SCORE PRONOSTIQUEUR | AP6: =AN8+AN12 -> 2
B7: Date | C7: Heure | D7: Match | E7: Groupe | F7: 1 | G7: N | H7: 2 | J7: Buts | M7: Buts
B8: =VLOOKUP($D8,TABLEAU_MATCHS[#All],2,FALSE) -> 2018-06-14 | C8: =VLOOKUP($D8,TABLEAU_MATCHS[#All],3,FALSE) -> 17:00:00 | D8: 1 | E8: ="Groupe "&VLOOKUP($I8,TABLEAU_TEAMS[[#All],[TEAM]:[GROUP_INITIAL_RANK]],2,FALSE) -> Groupe A | F8: 1.3 | G8: 4.3 | H8: 10 | I8: =VLOOKUP($D8,TABLEAU_MATCHS[#All],4,FALSE) -> Russie | J8: 2 | L8: =VLOOKUP($D8,TABLEAU_MATCHS[#All],5,FALSE) -> Arabie Saoudite | M8: 0 | N8: =IF(OR(ISBLANK(RESULTATS!J8),ISBLANK(J8)),"",IF(AND(Vildary!J8=RESULTATS!J8,Vildary!M8=RESULTATS!M8),3,IF(OR(AND(Vildary!J8>Vildary!M8,RESULTATS!J8>RESULTATS!M8),AND(Vildary!J8<Vildary!M8,RESULTATS!J8<RESULTATS!M8),AND(Vildary!J8=Vildary!M8,RESULTATS!J8=RESULTATS!M8)),1,0))) -> 1 | T8: Rg | U8: Groupe A | V8: MJ | W8: G | X8: N | Y8: P | Z8: BP | AA8: BC | AB8: +/- | AC8: Pts | AG8: Phases de groupes | AN8: =N56 -> 2 | AP8: points
B9: =VLOOKUP($D9,TABLEAU_MATCHS[#All],2,FALSE) -> 2018-06-15 | C9: =VLOOKUP($D9,TABLEAU_MATCHS[#All],3,FALSE) -> 14:00:00 | D9: 2 | E9: ="Groupe "&VLOOKUP($I9,TABLEAU_TEAMS[[#All],[TEAM]:[GROUP_INITIAL_RANK]],2,FALSE) -> Groupe A | F9: 2.2 | G9: 2.9 | H9: 3.25 | I9: =VLOOKUP($D9,TABLEAU_MATCHS[#All],4,FALSE) -> Egypte | J9: 2 | L9: =VLOOKUP($D9,TABLEAU_MATCHS[#All],5,FALSE) -> Uruguay | M9: 0 | N9: =IF(OR(ISBLANK(RESULTATS!J9),ISBLANK(J9)),"",IF(AND(Vildary!J9=RESULTATS!J9,Vildary!M9=RESULTATS!M9),3,IF(OR(AND(Vildary!J9>Vildary!M9,RESULTATS!J9>RESULTATS!M9),AND(Vildary!J9<Vildary!M9,RESULTATS!J9<RESULTATS!M9),AND(Vildary!J9=Vildary!M9,RESULTATS!J9=RESULTATS!M9)),1,0))) -> 0 | R9: =INDEX($R60:$R63,MATCH(SMALL(COUNTIF($R60:$R63,">="&$R60:$R63),ROW(INDIRECT("1:"&ROWS($R60:$R63)))),COUNTIF($R60:$R63,">="&$R60:$R63),0)) -> 09670Egypte | S9: =INDEX($S60:$S63,MATCH(SMALL(COUNTIF($R60:$R63,">="&$R60:$R63),ROW(INDIRECT("1:"&ROWS($R60:$R63)))),COUNTIF($R60:$R63,">="&$R60:$R63),0)) -> 9670 | T9: =INDEX($T60:$T63,MATCH(SMALL(COUNTIF($R60:$R63,">="&$R60:$R63),ROW(INDIRECT("1:"&ROWS($R60:$R63)))),COUNTIF($R60:$R63,">="&$R60:$R63),0)) -> 1 | U9: =INDEX($U60:$U63,MATCH(SMALL(COUNTIF($R60:$R63,">="&$R60:$R63),ROW(INDIRECT("1:"&ROWS($R60:$R63)))),COUNTIF($R60:$R63,">="&$R60:$R63),0)) -> Egypte | V9: =SUMPRODUCT((Teams1=U9)*(Teams1_Score<>""))+SUMPRODUCT((Teams2=U9)*(Teams2_Score<>"")) -> 3 | W9: =SUMPRODUCT((Teams1=U9)*(Teams1_Score>Teams2_Score))+SUMPRODUCT((Teams2=U9)*(Teams2_Score>Teams1_Score)) -> 3 | X9: =SUMPRODUCT((Teams1=U9)*(Teams1_Score=Teams2_Score)*(Teams1_Score<>""))+SUMPRODUCT((Teams2=U9)*(Teams2_Score=Teams1_Score)*(Teams2_Score<>"")) -> 0 | Y9: =SUMPRODUCT((Teams1=U9)*(Teams1_Score<Teams2_Score))+SUMPRODUCT((Teams2=U9)*(Teams2_Score<Teams1_Score)) -> 0 | Z9: =SUMPRODUCT((Teams1=U9)*(Teams1_Score))+SUMPRODUCT((Teams2=U9)*(Teams2_Score)) -> 7 | AA9: =SUMPRODUCT((Teams1=U9)*(Teams2_Score))+SUMPRODUCT((Teams2=U9)*(Teams1_Score)) -> 1 | AB9: =Z9-AA9 -> 6 | AC9: =3*W9+X9 -> 9 | AG9: Vainqueur ou nul trouvé (1 pt) | AJ9: =COUNTIF($N$8:$N$55,1)+COUNTIF($N$8:$N$55,3) -> 2 | AK9: matchs | AN9: =AJ9 -> 2 | AP9: points
B10: =VLOOKUP($D10,TABLEAU_MATCHS[#All],2,FALSE) -> 2018-06-15 | C10: =VLOOKUP($D10,TABLEAU_MATCHS[#All],3,FALSE) -> 17:00:00 | D10: 3 | E10: ="Groupe "&VLOOKUP($I10,TABLEAU_TEAMS[[#All],[TEAM]:[GROUP_INITIAL_RANK]],2,FALSE) -> Groupe B | F10: 1.8 | G10: 3.05 | H10: 4.5 | I10: =VLOOKUP($D10,TABLEAU_MATCHS[#All],4,FALSE) -> Maroc | J10: 1 | L10: =VLOOKUP($D10,TABLEAU_MATCHS[#All],5,FALSE) -> RI Iran | M10: 0 | N10: =IF(OR(ISBLANK(RESULTATS!J10),ISBLANK(J10)),"",IF(AND(Vildary!J10=RESULTATS!J10,Vildary!M10=RESULTATS!M10),3,IF(OR(AND(Vildary!J10>Vildary!M10,RESULTATS!J10>RESULTATS!M10),AND(Vildary!J10<Vildary!M10,RESULTATS!J10<RESULTATS!M10),AND(Vildary!J10=Vildary!M10,RESULTATS!J10=RESULTATS!M10)),1,0))) -> 0 | R10: 04140Russie | S10: 4140 | T10: 2 | U10: Russie | V10: =SUMPRODUCT((Teams1=U10)*(Teams1_Score<>""))+SUMPRODUCT((Teams2=U10)*(Teams2_Score<>"")) -> 3 | W10: =SUMPRODUCT((Teams1=U10)*(Teams1_Score>Teams2_Score))+SUMPRODUCT((Teams2=U10)*(Teams2_Score>Teams1_Score)) -> 1 | X10: =SUMPRODUCT((Teams1=U10)*(Teams1_Score=Teams2_Score)*(Teams1_Score<>""))+SUMPRODUCT((Teams2=U10)*(Teams2_Score=Teams1_Score)*(Teams2_Score<>"")) -> 1 | Y10: =SUMPRODUCT((Teams1=U10)*(Teams1_Score<Teams2_Score))+SUMPRODUCT((Teams2=U10)*(Teams2_Score<Teams1_Score)) -> 1 | Z10: =SUMPRODUCT((Teams1=U10)*(Teams1_Score))+SUMPRODUCT((Teams2=U10)*(Teams2_Score)) -> 4 | AA10: =SUMPRODUCT((Teams1=U10)*(Teams2_Score))+SUMPRODUCT((Teams2=U10)*(Teams1_Score)) -> 3 | AB10: =Z10-AA10 -> 1 | AC10: =3*W10+X10 -> 4 | AG10: Bonus score exact (2 pts) | AJ10: =+COUNTIF($N$8:$N$55,3) -> 0 | AK10: matchs | AN10: =AJ10*2 -> 0 | AP10: points
B11: =VLOOKUP($D11,TABLEAU_MATCHS[#All],2,FALSE) -> 2018-06-15 | C11: =VLOOKUP($D11,TABLEAU_MATCHS[#All],3,FALSE) -> 20:00:00 | D11: 4 | E11: ="Groupe "&VLOOKUP($I11,TABLEAU_TEAMS[[#All],[TEAM]:[GROUP_INITIAL_RANK]],2,FALSE) -> Groupe B | F11: 1.42 | G11: 3.9 | H11: 7 | I11: =VLOOKUP($D11,TABLEAU_MATCHS[#All],4,FALSE) -> Portugal | J11: 2 | L11: =VLOOKUP($D11,TABLEAU_MATCHS[#All],5,FALSE) -> Espagne | M11: 2 | N11: =IF(OR(ISBLANK(RESULTATS!J11),ISBLANK(J11)),"",IF(AND(Vildary!J11=RESULTATS!J11,Vildary!M11=RESULTATS!M11),3,IF(OR(AND(Vildary!J11>Vildary!M11,RESULTATS!J11>RESULTATS!M11),AND(Vildary!J11<Vildary!M11,RESULTATS!J11<RESULTATS!M11),AND(Vildary!J11=Vildary!M11,RESULTATS!J11=RESULTATS!M11)),1,0))) -> 1 | R11: 04030Uruguay | S11: 4030 | T11: 3 | U11: Uruguay | V11: =SUMPRODUCT((Teams1=U11)*(Teams1_Score<>""))+SUMPRODUCT((Teams2=U11)*(Teams2_Score<>"")) -> 3 | W11: =SUMPRODUCT((Teams1=U11)*(Teams1_Score>Teams2_Score))+SUMPRODUCT((Teams2=U11)*(Teams2_Score>Teams1_Score)) -> 1 | X11: =SUMPRODUCT((Teams1=U11)*(Teams1_Score=Teams2_Score)*(Teams1_Score<>""))+SUMPRODUCT((Teams2=U11)*(Teams2_Score=Teams1_Score)*(Teams2_Score<>"")) -> 1 | Y11: =SUMPRODUCT((Teams1=U11)*(Teams1_Score<Teams2_Score))+SUMPRODUCT((Teams2=U11)*(Teams2_Score<Teams1_Score)) -> 1 | Z11: =SUMPRODUCT((Teams1=U11)*(Teams1_Score))+SUMPRODUCT((Teams2=U11)*(Teams2_Score)) -> 3 | AA11: =SUMPRODUCT((Teams1=U11)*(Teams2_Score))+SUMPRODUCT((Teams2=U11)*(Teams1_Score)) -> 3 | AB11: =Z11-AA11 -> 0 | AC11: =3*W11+X11 -> 4
B12: =VLOOKUP($D12,TABLEAU_MATCHS[#All],2,FALSE) -> 2018-06-16 | C12: =VLOOKUP($D12,TABLEAU_MATCHS[#All],3,FALSE) -> 12:00:00 | D12: 5 | E12: ="Groupe "&VLOOKUP($I12,TABLEAU_TEAMS[[#All],[TEAM]:[GROUP_INITIAL_RANK]],2,FALSE) -> Groupe C | F12: 1.7 | G12: 3.1 | H12: 5 | I12: =VLOOKUP($D12,TABLEAU_MATCHS[#All],4,FALSE) -> France | J12: 3 | L12: =VLOOKUP($D12,TABLEAU_MATCHS[#All],5,FALSE) -> Australie | M12: 0 | N12: =IF(OR(ISBLANK(RESULTATS!J12),ISBLANK(J12)),"",IF(AND(Vildary!J12=RESULTATS!J12,Vildary!M12=RESULTATS!M12),3,IF(OR(AND(Vildary!J12>Vildary!M12,RESULTATS!J12>RESULTATS!M12),AND(Vildary!J12<Vildary!M12,RESULTATS!J12<RESULTATS!M12),AND(Vildary!J12=Vildary!M12,RESULTATS!J12=RESULTATS!M12)),1,0))) ->  | R12: -00700Arabie Saoudite | S12: -700 | T12: 4 | U12: Arabie Saoudite | V12: =SUMPRODUCT((Teams1=U12)*(Teams1_Score<>""))+SUMPRODUCT((Teams2=U12)*(Teams2_Score<>"")) -> 3 | W12: =SUMPRODUCT((Teams1=U12)*(Teams1_Score>Teams2_Score))+SUMPRODUCT((Teams2=U12)*(Teams2_Score>Teams1_Score)) -> 0 | X12: =SUMPRODUCT((Teams1=U12)*(Teams1_Score=Teams2_Score)*(Teams1_Score<>""))+SUMPRODUCT((Teams2=U12)*(Teams2_Score=Teams1_Score)*(Teams2_Score<>"")) -> 0 | Y12: =SUMPRODUCT((Teams1=U12)*(Teams1_Score<Teams2_Score))+SUMPRODUCT((Teams2=U12)*(Teams2_Score<Teams1_Score)) -> 3 | Z12: =SUMPRODUCT((Teams1=U12)*(Teams1_Score))+SUMPRODUCT((Teams2=U12)*(Teams2_Score)) -> 0 | AA12: =SUMPRODUCT((Teams1=U12)*(Teams2_Score))+SUMPRODUCT((Teams2=U12)*(Teams1_Score)) -> 7 | AB12: =Z12-AA12 -> -7 | AC12: =3*W12+X12 -> 0 | AG12: Phases finales | AN12: =SUM(AN13:AN17) -> 0 | AP12: points
B13: =VLOOKUP($D13,TABLEAU_MATCHS[#All],2,FALSE) -> 2018-06-16 | C13: =VLOOKUP($D13,TABLEAU_MATCHS[#All],3,FALSE) -> 18:00:00 | D13: 6 | E13: ="Groupe "&VLOOKUP($I13,TABLEAU_TEAMS[[#All],[TEAM]:[GROUP_INITIAL_RANK]],2,FALSE) -> Groupe C | F13: 2.55 | G13: 2.9 | H13: 2.7 | I13: =VLOOKUP($D13,TABLEAU_MATCHS[#All],4,FALSE) -> Pérou | J13: 2 | L13: =VLOOKUP($D13,TABLEAU_MATCHS[#All],5,FALSE) -> Danemark | M13: 2 | N13: =IF(OR(ISBLANK(RESULTATS!J13),ISBLANK(J13)),"",IF(AND(Vildary!J13=RESULTATS!J13,Vildary!M13=RESULTATS!M13),3,IF(OR(AND(Vildary!J13>Vildary!M13,RESULTATS!J13>RESULTATS!M13),AND(Vildary!J13<Vildary!M13,RESULTATS!J13<RESULTATS!M13),AND(Vildary!J13=Vildary!M13,RESULTATS!J13=RESULTATS!M13)),1,0))) ->  | AG13: Huitièmes de finaliste trouvés (2 pts) | AJ13: =IF(CLASSEMENT!PHASES_FINALES="OUI",$AK$53+$AQ$53,0) -> 0 | AK13: équipe(s) | AN13: =AJ13*2 -> 0 | AP13: points
B14: =VLOOKUP($D14,TABLEAU_MATCHS[#All],2,FALSE) -> 2018-06-16 | C14: =VLOOKUP($D14,TABLEAU_MATCHS[#All],3,FALSE) -> 15:00:00 | D14: 7 | E14: ="Groupe "&VLOOKUP($I14,TABLEAU_TEAMS[[#All],[TEAM]:[GROUP_INITIAL_RANK]],2,FALSE) -> Groupe D | F14: 1.4 | G14: 4 | H14: 7.25 | I14: =VLOOKUP($D14,TABLEAU_MATCHS[#All],4,FALSE) -> Argentine | J14: 3 | L14: =VLOOKUP($D14,TABLEAU_MATCHS[#All],5,FALSE) -> Islande | M14: 0 | N14: =IF(OR(ISBLANK(RESULTATS!J14),ISBLANK(J14)),"",IF(AND(Vildary!J14=RESULTATS!J14,Vildary!M14=RESULTATS!M14),3,IF(OR(AND(Vildary!J14>Vildary!M14,RESULTATS!J14>RESULTATS!M14),AND(Vildary!J14<Vildary!M14,RESULTATS!J14<RESULTATS!M14),AND(Vildary!J14=Vildary!M14,RESULTATS!J14=RESULTATS!M14)),1,0))) ->  | T14: Rg | U14: Groupe B | V14: MJ | W14: G | X14: N | Y14: P | Z14: BP | AA14: BC | AB14: +/- | AC14: Pts | AG14: Quarts de finalistes trouvés (4 pts) | AJ14: =IF(CLASSEMENT!PHASES_FINALES="OUI",$AK$42+$AQ$42,0) -> 0 | AK14: équipe(s) | AN14: =AJ14*4 -> 0 | AP14: points
B15: =VLOOKUP($D15,TABLEAU_MATCHS[#All],2,FALSE) -> 2018-06-16 | C15: =VLOOKUP($D15,TABLEAU_MATCHS[#All],3,FALSE) -> 21:00:00 | D15: 8 | E15: ="Groupe "&VLOOKUP($I15,TABLEAU_TEAMS[[#All],[TEAM]:[GROUP_INITIAL_RANK]],2,FALSE) -> Groupe D | F15: 2.95 | G15: 2.7 | H15: 2.55 | I15: =VLOOKUP($D15,TABLEAU_MATCHS[#All],4,FALSE) -> Croatie | J15: 1 | L15: =VLOOKUP($D15,TABLEAU_MATCHS[#All],5,FALSE) -> Nigeria | M15: 1 | N15: =IF(OR(ISBLANK(RESULTATS!J15),ISBLANK(J15)),"",IF(AND(Vildary!J15=RESULTATS!J15,Vildary!M15=RESULTATS!M15),3,IF(OR(AND(Vildary!J15>Vildary!M15,RESULTATS!J15>RESULTATS!M15),AND(Vildary!J15<Vildary!M15,RESULTATS!J15<RESULTATS!M15),AND(Vildary!J15=Vildary!M15,RESULTATS!J15=RESULTATS!M15)),1,0))) ->  | R15: =INDEX($R66:$R69,MATCH(SMALL(COUNTIF($R66:$R69,">="&$R66:$R69),ROW(INDIRECT("1:"&ROWS($R66:$R69)))),COUNTIF($R66:$R69,">="&$R66:$R69),0)) -> 07680Espagne | S15: =INDEX($S66:$S69,MATCH(SMALL(COUNTIF($R66:$R69,">="&$R66:$R69),ROW(INDIRECT("1:"&ROWS($R66:$R69)))),COUNTIF($R66:$R69,">="&$R66:$R69),0)) -> 7680 | T15: =INDEX($T66:$T69,MATCH(SMALL(COUNTIF($R66:$R69,">="&$R66:$R69),ROW(INDIRECT("1:"&ROWS($R66:$R69)))),COUNTIF($R66:$R69,">="&$R66:$R69),0)) -> 1 | U15: =INDEX($U66:$U69,MATCH(SMALL(COUNTIF($R66:$R69,">="&$R66:$R69),ROW(INDIRECT("1:"&ROWS($R66:$R69)))),COUNTIF($R66:$R69,">="&$R66:$R69),0)) -> Espagne | V15: =SUMPRODUCT((Teams1=U15)*(Teams1_Score<>""))+SUMPRODUCT((Teams2=U15)*(Teams2_Score<>"")) -> 3 | W15: =SUMPRODUCT((Teams1=U15)*(Teams1_Score>Teams2_Score))+SUMPRODUCT((Teams2=U15)*(Teams2_Score>Teams1_Score)) -> 2 | X15: =SUMPRODUCT((Teams1=U15)*(Teams1_Score=Teams2_Score)*(Teams1_Score<>""))+SUMPRODUCT((Teams2=U15)*(Teams2_Score=Teams1_Score)*(Teams2_Score<>"")) -> 1 | Y15: =SUMPRODUCT((Teams1=U15)*(Teams1_Score<Teams2_Score))+SUMPRODUCT((Teams2=U15)*(Teams2_Score<Teams1_Score)) -> 0 | Z15: =SUMPRODUCT((Teams1=U15)*(Teams1_Score))+SUMPRODUCT((Teams2=U15)*(Teams2_Score)) -> 8 | AA15: =SUMPRODUCT((Teams1=U15)*(Teams2_Score))+SUMPRODUCT((Teams2=U15)*(Teams1_Score)) -> 2 | AB15: =Z15-AA15 -> 6 | AC15: =3*W15+X15 -> 7 | AG15: Demi finalistes trouvés (5 pts) | AJ15: =IF(CLASSEMENT!PHASES_FINALES="OUI",$AK$35+$AQ$35,0) -> 0 | AK15: équipe(s) | AN15: =AJ15*5 -> 0 | AP15: points
B16: =VLOOKUP($D16,TABLEAU_MATCHS[#All],2,FALSE) -> 2018-06-17 | C16: =VLOOKUP($D16,TABLEAU_MATCHS[#All],3,FALSE) -> 14:00:00 | D16: 9 | E16: ="Groupe "&VLOOKUP($I16,TABLEAU_TEAMS[[#All],[TEAM]:[GROUP_INITIAL_RANK]],2,FALSE) -> Groupe E | F16: 2.35 | G16: 2.9 | H16: 2.95 | I16: =VLOOKUP($D16,TABLEAU_MATCHS[#All],4,FALSE) -> Costa Rica | J16: 1 | L16: =VLOOKUP($D16,TABLEAU_MATCHS[#All],5,FALSE) -> Serbie | M16: 1 | N16: =IF(OR(ISBLANK(RESULTATS!J16),ISBLANK(J16)),"",IF(AND(Vildary!J16=RESULTATS!J16,Vildary!M16=RESULTATS!M16),3,IF(OR(AND(Vildary!J16>Vildary!M16,RESULTATS!J16>RESULTATS!M16),AND(Vildary!J16<Vildary!M16,RESULTATS!J16<RESULTATS!M16),AND(Vildary!J16=Vildary!M16,RESULTATS!J16=RESULTATS!M16)),1,0))) ->  | R16: 07580Portugal | S16: 7580 | T16: 2 | U16: Portugal | V16: =SUMPRODUCT((Teams1=U16)*(Teams1_Score<>""))+SUMPRODUCT((Teams2=U16)*(Teams2_Score<>"")) -> 3 | W16: =SUMPRODUCT((Teams1=U16)*(Teams1_Score>Teams2_Score))+SUMPRODUCT((Teams2=U16)*(Teams2_Score>Teams1_Score)) -> 2 | X16: =SUMPRODUCT((Teams1=U16)*(Teams1_Score=Teams2_Score)*(Teams1_Score<>""))+SUMPRODUCT((Teams2=U16)*(Teams2_Score=Teams1_Score)*(Teams2_Score<>"")) -> 1 | Y16: =SUMPRODUCT((Teams1=U16)*(Teams1_Score<Teams2_Score))+SUMPRODUCT((Teams2=U16)*(Teams2_Score<Teams1_Score)) -> 0 | Z16: =SUMPRODUCT((Teams1=U16)*(Teams1_Score))+SUMPRODUCT((Teams2=U16)*(Teams2_Score)) -> 8 | AA16: =SUMPRODUCT((Teams1=U16)*(Teams2_Score))+SUMPRODUCT((Teams2=U16)*(Teams1_Score)) -> 3 | AB16: =Z16-AA16 -> 5 | AC16: =3*W16+X16 -> 7 | AG16: Finalistes trouvés (6 pts) | AJ16: =IF(CLASSEMENT!PHASES_FINALES="OUI",$AK$25+$AQ$25,0) -> 0 | AK16: équipe(s) | AN16: =AJ16*6 -> 0 | AP16: points
B17: =VLOOKUP($D17,TABLEAU_MATCHS[#All],2,FALSE) -> 2018-06-17 | C17: =VLOOKUP($D17,TABLEAU_MATCHS[#All],3,FALSE) -> 20:00:00 | D17: 10 | E17: ="Groupe "&VLOOKUP($I17,TABLEAU_TEAMS[[#All],[TEAM]:[GROUP_INITIAL_RANK]],2,FALSE) -> Groupe E | F17: 1.28 | G17: 4.7 | H17: 9.5 | I17: =VLOOKUP($D17,TABLEAU_MATCHS[#All],4,FALSE) -> Brésil | J17: 3 | L17: =VLOOKUP($D17,TABLEAU_MATCHS[#All],5,FALSE) -> Suisse | M17: 0 | N17: =IF(OR(ISBLANK(RESULTATS!J17),ISBLANK(J17)),"",IF(AND(Vildary!J17=RESULTATS!J17,Vildary!M17=RESULTATS!M17),3,IF(OR(AND(Vildary!J17>Vildary!M17,RESULTATS!J17>RESULTATS!M17),AND(Vildary!J17<Vildary!M17,RESULTATS!J17<RESULTATS!M17),AND(Vildary!J17=Vildary!M17,RESULTATS!J17=RESULTATS!M17)),1,0))) ->  | R17: 02720Maroc | S17: 2720 | T17: 3 | U17: Maroc | V17: =SUMPRODUCT((Teams1=U17)*(Teams1_Score<>""))+SUMPRODUCT((Teams2=U17)*(Teams2_Score<>"")) -> 3 | W17: =SUMPRODUCT((Teams1=U17)*(Teams1_Score>Teams2_Score))+SUMPRODUCT((Teams2=U17)*(Teams2_Score>Teams1_Score)) -> 1 | X17: =SUMPRODUCT((Teams1=U17)*(Teams1_Score=Teams2_Score)*(Teams1_Score<>""))+SUMPRODUCT((Teams2=U17)*(Teams2_Score=Teams1_Score)*(Teams2_Score<>"")) -> 0 | Y17: =SUMPRODUCT((Teams1=U17)*(Teams1_Score<Teams2_Score))+SUMPRODUCT((Teams2=U17)*(Teams2_Score<Teams1_Score)) -> 2 | Z17: =SUMPRODUCT((Teams1=U17)*(Teams1_Score))+SUMPRODUCT((Teams2=U17)*(Teams2_Score)) -> 2 | AA17: =SUMPRODUCT((Teams1=U17)*(Teams2_Score))+SUMPRODUCT((Teams2=U17)*(Teams1_Score)) -> 5 | AB17: =Z17-AA17 -> -3 | AC17: =3*W17+X17 -> 3 | AG17: Champion du monde trouvé (7 pts) | AJ17: =IF(CLASSEMENT!PHASES_FINALES="OUI",IF(AJ25<>"",IF($AT$25=RESULTATS!AS10,1,0),0),0) -> 0 | AK17: équipe | AN17: =AJ17*7 -> 0 | AP17: points
B18: =VLOOKUP($D18,TABLEAU_MATCHS[#All],2,FALSE) -> 2018-06-17 | C18: =VLOOKUP($D18,TABLEAU_MATCHS[#All],3,FALSE) -> 17:00:00 | D18: 11 | E18: ="Groupe "&VLOOKUP($I18,TABLEAU_TEAMS[[#All],[TEAM]:[GROUP_INITIAL_RANK]],2,FALSE) -> Groupe F | F18: 1.34 | G18: 4.3 | H18: 7.5 | I18: =VLOOKUP($D18,TABLEAU_MATCHS[#All],4,FALSE) -> Allemagne | J18: 4 | L18: =VLOOKUP($D18,TABLEAU_MATCHS[#All],5,FALSE) -> Mexique | M18: 0 | N18: =IF(OR(ISBLANK(RESULTATS!J18),ISBLANK(J18)),"",IF(AND(Vildary!J18=RESULTATS!J18,Vildary!M18=RESULTATS!M18),3,IF(OR(AND(Vildary!J18>Vildary!M18,RESULTATS!J18>RESULTATS!M18),AND(Vildary!J18<Vildary!M18,RESULTATS!J18<RESULTATS!M18),AND(Vildary!J18=Vildary!M18,RESULTATS!J18=RESULTATS!M18)),1,0))) ->  | R18: -00800RI Iran | S18: -800 | T18: 4 | U18: RI Iran | V18: =SUMPRODUCT((Teams1=U18)*(Teams1_Score<>""))+SUMPRODUCT((Teams2=U18)*(Teams2_Score<>"")) -> 3 | W18: =SUMPRODUCT((Teams1=U18)*(Teams1_Score>Teams2_Score))+SUMPRODUCT((Teams2=U18)*(Teams2_Score>Teams1_Score)) -> 0 | X18: =SUMPRODUCT((Teams1=U18)*(Teams1_Score=Teams2_Score)*(Teams1_Score<>""))+SUMPRODUCT((Teams2=U18)*(Teams2_Score=Teams1_Score)*(Teams2_Score<>"")) -> 0 | Y18: =SUMPRODUCT((Teams1=U18)*(Teams1_Score<Teams2_Score))+SUMPRODUCT((Teams2=U18)*(Teams2_Score<Teams1_Score)) -> 3 | Z18: =SUMPRODUCT((Teams1=U18)*(Teams1_Score))+SUMPRODUCT((Teams2=U18)*(Teams2_Score)) -> 0 | AA18: =SUMPRODUCT((Teams1=U18)*(Teams2_Score))+SUMPRODUCT((Teams2=U18)*(Teams1_Score)) -> 8 | AB18: =Z18-AA18 -> -8 | AC18: =3*W18+X18 -> 0
B19: =VLOOKUP($D19,TABLEAU_MATCHS[#All],2,FALSE) -> 2018-06-18 | C19: =VLOOKUP($D19,TABLEAU_MATCHS[#All],3,FALSE) -> 14:00:00 | D19: 12 | E19: ="Groupe "&VLOOKUP($I19,TABLEAU_TEAMS[[#All],[TEAM]:[GROUP_INITIAL_RANK]],2,FALSE) -> Groupe F | F19: 3.3 | G19: 2.95 | H19: 2.15 | I19: =VLOOKUP($D19,TABLEAU_MATCHS[#All],4,FALSE) -> Suède | J19: 2 | L19: =VLOOKUP($D19,TABLEAU_MATCHS[#All],5,FALSE) -> République de Corée | M19: 1 | N19: =IF(OR(ISBLANK(RESULTATS!J19),ISBLANK(J19)),"",IF(AND(Vildary!J19=RESULTATS!J19,Vildary!M19=RESULTATS!M19),3,IF(OR(AND(Vildary!J19>Vildary!M19,RESULTATS!J19>RESULTATS!M19),AND(Vildary!J19<Vildary!M19,RESULTATS!J19<RESULTATS!M19),AND(Vildary!J19=Vildary!M19,RESULTATS!J19=RESULTATS!M19)),1,0))) -> 
B20: =VLOOKUP($D20,TABLEAU_MATCHS[#All],2,FALSE) -> 2018-06-18 | C20: =VLOOKUP($D20,TABLEAU_MATCHS[#All],3,FALSE) -> 17:00:00 | D20: 13 | E20: ="Groupe "&VLOOKUP($I20,TABLEAU_TEAMS[[#All],[TEAM]:[GROUP_INITIAL_RANK]],2,FALSE) -> Groupe G | F20: 1.95 | G20: 2.95 | H20: 4 | I20: =VLOOKUP($D20,TABLEAU_MATCHS[#All],4,FALSE) -> Belgique | J20: 3 | L20: =VLOOKUP($D20,TABLEAU_MATCHS[#All],5,FALSE) -> Panama | M20: 0 | N20: =IF(OR(ISBLANK(RESULTATS!J20),ISBLANK(J20)),"",IF(AND(Vildary!J20=RESULTATS!J20,Vildary!M20=RESULTATS!M20),3,IF(OR(AND(Vildary!J20>Vildary!M20,RESULTATS!J20>RESULTATS!M20),AND(Vildary!J20<Vildary!M20,RESULTATS!J20<RESULTATS!M20),AND(Vildary!J20=Vildary!M20,RESULTATS!J20=RESULTATS!M20)),1,0))) ->  | T20: Rg | U20: Groupe C | V20: MJ | W20: G | X20: N | Y20: P | Z20: BP | AA20: BC | AB20: +/- | AC20: Pts
B21: =VLOOKUP($D21,TABLEAU_MATCHS[#All],2,FALSE) -> 2018-06-18 | C21: =VLOOKUP($D21,TABLEAU_MATCHS[#All],3,FALSE) -> 20:00:00 | D21: 14 | E21: ="Groupe "&VLOOKUP($I21,TABLEAU_TEAMS[[#All],[TEAM]:[GROUP_INITIAL_RANK]],2,FALSE) -> Groupe G | F21: 2.55 | G21: 2.9 | H21: 2.7 | I21: =VLOOKUP($D21,TABLEAU_MATCHS[#All],4,FALSE) -> Tunisie | J21: 0 | L21: =VLOOKUP($D21,TABLEAU_MATCHS[#All],5,FALSE) -> Angleterre | M21: 3 | N21: =IF(OR(ISBLANK(RESULTATS!J21),ISBLANK(J21)),"",IF(AND(Vildary!J21=RESULTATS!J21,Vildary!M21=RESULTATS!M21),3,IF(OR(AND(Vildary!J21>Vildary!M21,RESULTATS!J21>RESULTATS!M21),AND(Vildary!J21<Vildary!M21,RESULTATS!J21<RESULTATS!M21),AND(Vildary!J21=Vildary!M21,RESULTATS!J21=RESULTATS!M21)),1,0))) ->  | R21: =INDEX($R72:$R75,MATCH(SMALL(COUNTIF($R72:$R75,">="&$R72:$R75),ROW(INDIRECT("1:"&ROWS($R72:$R75)))),COUNTIF($R72:$R75,">="&$R72:$R75),0)) -> 09890France | S21: =INDEX($S72:$S75,MATCH(SMALL(COUNTIF($R72:$R75,">="&$R72:$R75),ROW(INDIRECT("1:"&ROWS($R72:$R75)))),COUNTIF($R72:$R75,">="&$R72:$R75),0)) -> 9890 | T21: =INDEX($T72:$T75,MATCH(SMALL(COUNTIF($R72:$R75,">="&$R72:$R75),ROW(INDIRECT("1:"&ROWS($R72:$R75)))),COUNTIF($R72:$R75,">="&$R72:$R75),0)) -> 1 | U21: =INDEX($U72:$U75,MATCH(SMALL(COUNTIF($R72:$R75,">="&$R72:$R75),ROW(INDIRECT("1:"&ROWS($R72:$R75)))),COUNTIF($R72:$R75,">="&$R72:$R75),0)) -> France | V21: =SUMPRODUCT((Teams1=U21)*(Teams1_Score<>""))+SUMPRODUCT((Teams2=U21)*(Teams2_Score<>"")) -> 3 | W21: =SUMPRODUCT((Teams1=U21)*(Teams1_Score>Teams2_Score))+SUMPRODUCT((Teams2=U21)*(Teams2_Score>Teams1_Score)) -> 3 | X21: =SUMPRODUCT((Teams1=U21)*(Teams1_Score=Teams2_Score)*(Teams1_Score<>""))+SUMPRODUCT((Teams2=U21)*(Teams2_Score=Teams1_Score)*(Teams2_Score<>"")) -> 0 | Y21: =SUMPRODUCT((Teams1=U21)*(Teams1_Score<Teams2_Score))+SUMPRODUCT((Teams2=U21)*(Teams2_Score<Teams1_Score)) -> 0 | Z21: =SUMPRODUCT((Teams1=U21)*(Teams1_Score))+SUMPRODUCT((Teams2=U21)*(Teams2_Score)) -> 9 | AA21: =SUMPRODUCT((Teams1=U21)*(Teams2_Score))+SUMPRODUCT((Teams2=U21)*(Teams1_Score)) -> 1 | AB21: =Z21-AA21 -> 8 | AC21: =3*W21+X21 -> 9 | AG21: PHASES FINALES
B22: =VLOOKUP($D22,TABLEAU_MATCHS[#All],2,FALSE) -> 2018-06-19 | C22: =VLOOKUP($D22,TABLEAU_MATCHS[#All],3,FALSE) -> 17:00:00 | D22: 15 | E22: ="Groupe "&VLOOKUP($I22,TABLEAU_TEAMS[[#All],[TEAM]:[GROUP_INITIAL_RANK]],2,FALSE) -> Groupe H | F22: 1.38 | G22: 3.9 | H22: 8 | I22: =VLOOKUP($D22,TABLEAU_MATCHS[#All],4,FALSE) -> Colombie | J22: 1 | L22: =VLOOKUP($D22,TABLEAU_MATCHS[#All],5,FALSE) -> Japon | M22: 0 | N22: =IF(OR(ISBLANK(RESULTATS!J22),ISBLANK(J22)),"",IF(AND(Vildary!J22=RESULTATS!J22,Vildary!M22=RESULTATS!M22),3,IF(OR(AND(Vildary!J22>Vildary!M22,RESULTATS!J22>RESULTATS!M22),AND(Vildary!J22<Vildary!M22,RESULTATS!J22<RESULTATS!M22),AND(Vildary!J22=Vildary!M22,RESULTATS!J22=RESULTATS!M22)),1,0))) ->  | R22: 04060Danemark | S22: 4060 | T22: 2 | U22: Danemark | V22: =SUMPRODUCT((Teams1=U22)*(Teams1_Score<>""))+SUMPRODUCT((Teams2=U22)*(Teams2_Score<>"")) -> 3 | W22: =SUMPRODUCT((Teams1=U22)*(Teams1_Score>Teams2_Score))+SUMPRODUCT((Teams2=U22)*(Teams2_Score>Teams1_Score)) -> 1 | X22: =SUMPRODUCT((Teams1=U22)*(Teams1_Score=Teams2_Score)*(Teams1_Score<>""))+SUMPRODUCT((Teams2=U22)*(Teams2_Score=Teams1_Score)*(Teams2_Score<>"")) -> 1 | Y22: =SUMPRODUCT((Teams1=U22)*(Teams1_Score<Teams2_Score))+SUMPRODUCT((Teams2=U22)*(Teams2_Score<Teams1_Score)) -> 1 | Z22: =SUMPRODUCT((Teams1=U22)*(Teams1_Score))+SUMPRODUCT((Teams2=U22)*(Teams2_Score)) -> 6 | AA22: =SUMPRODUCT((Teams1=U22)*(Teams2_Score))+SUMPRODUCT((Teams2=U22)*(Teams1_Score)) -> 6 | AB22: =Z22-AA22 -> 0 | AC22: =3*W22+X22 -> 4
B23: =VLOOKUP($D23,TABLEAU_MATCHS[#All],2,FALSE) -> 2018-06-19 | C23: =VLOOKUP($D23,TABLEAU_MATCHS[#All],3,FALSE) -> 14:00:00 | D23: 16 | E23: ="Groupe "&VLOOKUP($I23,TABLEAU_TEAMS[[#All],[TEAM]:[GROUP_INITIAL_RANK]],2,FALSE) -> Groupe H | F23: 2.05 | G23: 2.9 | H23: 3.5 | I23: =VLOOKUP($D23,TABLEAU_MATCHS[#All],4,FALSE) -> Pologne | J23: 2 | L23: =VLOOKUP($D23,TABLEAU_MATCHS[#All],5,FALSE) -> Sénégal | M23: 1 | N23: =IF(OR(ISBLANK(RESULTATS!J23),ISBLANK(J23)),"",IF(AND(Vildary!J23=RESULTATS!J23,Vildary!M23=RESULTATS!M23),3,IF(OR(AND(Vildary!J23>Vildary!M23,RESULTATS!J23>RESULTATS!M23),AND(Vildary!J23<Vildary!M23,RESULTATS!J23<RESULTATS!M23),AND(Vildary!J23=Vildary!M23,RESULTATS!J23=RESULTATS!M23)),1,0))) ->  | R23: 03840Pérou | S23: 3840 | T23: 3 | U23: Pérou | V23: =SUMPRODUCT((Teams1=U23)*(Teams1_Score<>""))+SUMPRODUCT((Teams2=U23)*(Teams2_Score<>"")) -> 3 | W23: =SUMPRODUCT((Teams1=U23)*(Teams1_Score>Teams2_Score))+SUMPRODUCT((Teams2=U23)*(Teams2_Score>Teams1_Score)) -> 1 | X23: =SUMPRODUCT((Teams1=U23)*(Teams1_Score=Teams2_Score)*(Teams1_Score<>""))+SUMPRODUCT((Teams2=U23)*(Teams2_Score=Teams1_Score)*(Teams2_Score<>"")) -> 1 | Y23: =SUMPRODUCT((Teams1=U23)*(Teams1_Score<Teams2_Score))+SUMPRODUCT((Teams2=U23)*(Teams2_Score<Teams1_Score)) -> 1 | Z23: =SUMPRODUCT((Teams1=U23)*(Teams1_Score))+SUMPRODUCT((Teams2=U23)*(Teams2_Score)) -> 4 | AA23: =SUMPRODUCT((Teams1=U23)*(Teams2_Score))+SUMPRODUCT((Teams2=U23)*(Teams1_Score)) -> 6 | AB23: =Z23-AA23 -> -2 | AC23: =3*W23+X23 -> 4 | AF23: Date | AG23: Finale | AJ23: Buts | AL23: Pen | AP23: Buts | AR23: Pen
B24: =VLOOKUP($D24,TABLEAU_MATCHS[#All],2,FALSE) -> 2018-06-19 | C24: =VLOOKUP($D24,TABLEAU_MATCHS[#All],3,FALSE) -> 20:00:00 | D24: 17 | E24: ="Groupe "&VLOOKUP($I24,TABLEAU_TEAMS[[#All],[TEAM]:[GROUP_INITIAL_RANK]],2,FALSE) -> Groupe A | F24: 1.26 | G24: 4.8 | H24: 9 | I24: =VLOOKUP($D24,TABLEAU_MATCHS[#All],4,FALSE) -> Russie | J24: 1 | L24: =VLOOKUP($D24,TABLEAU_MATCHS[#All],5,FALSE) -> Egypte | M24: 2 | N24: =IF(OR(ISBLANK(RESULTATS!J24),ISBLANK(J24)),"",IF(AND(Vildary!J24=RESULTATS!J24,Vildary!M24=RESULTATS!M24),3,IF(OR(AND(Vildary!J24>Vildary!M24,RESULTATS!J24>RESULTATS!M24),AND(Vildary!J24<Vildary!M24,RESULTATS!J24<RESULTATS!M24),AND(Vildary!J24=Vildary!M24,RESULTATS!J24=RESULTATS!M24)),1,0))) ->  | R24: -00580Australie | S24: -580 | T24: 4 | U24: Australie | V24: =SUMPRODUCT((Teams1=U24)*(Teams1_Score<>""))+SUMPRODUCT((Teams2=U24)*(Teams2_Score<>"")) -> 3 | W24: =SUMPRODUCT((Teams1=U24)*(Teams1_Score>Teams2_Score))+SUMPRODUCT((Teams2=U24)*(Teams2_Score>Teams1_Score)) -> 0 | X24: =SUMPRODUCT((Teams1=U24)*(Teams1_Score=Teams2_Score)*(Teams1_Score<>""))+SUMPRODUCT((Teams2=U24)*(Teams2_Score=Teams1_Score)*(Teams2_Score<>"")) -> 0 | Y24: =SUMPRODUCT((Teams1=U24)*(Teams1_Score<Teams2_Score))+SUMPRODUCT((Teams2=U24)*(Teams2_Score<Teams1_Score)) -> 3 | Z24: =SUMPRODUCT((Teams1=U24)*(Teams1_Score))+SUMPRODUCT((Teams2=U24)*(Teams2_Score)) -> 2 | AA24: =SUMPRODUCT((Teams1=U24)*(Teams2_Score))+SUMPRODUCT((Teams2=U24)*(Teams1_Score)) -> 8 | AB24: =Z24-AA24 -> -6 | AC24: =3*W24+X24 -> 0
B25: =VLOOKUP($D25,TABLEAU_MATCHS[#All],2,FALSE) -> 2018-06-20 | C25: =VLOOKUP($D25,TABLEAU_MATCHS[#All],3,FALSE) -> 17:00:00 | D25: 18 | E25: ="Groupe "&VLOOKUP($I25,TABLEAU_TEAMS[[#All],[TEAM]:[GROUP_INITIAL_RANK]],2,FALSE) -> Groupe A | F25: 3.5 | G25: 3 | H25: 2 | I25: =VLOOKUP($D25,TABLEAU_MATCHS[#All],4,FALSE) -> Uruguay | J25: 2 | L25: =VLOOKUP($D25,TABLEAU_MATCHS[#All],5,FALSE) -> Arabie Saoudite | M25: 0 | N25: =IF(OR(ISBLANK(RESULTATS!J25),ISBLANK(J25)),"",IF(AND(Vildary!J25=RESULTATS!J25,Vildary!M25=RESULTATS!M25),3,IF(OR(AND(Vildary!J25>Vildary!M25,RESULTATS!J25>RESULTATS!M25),AND(Vildary!J25<Vildary!M25,RESULTATS!J25<RESULTATS!M25),AND(Vildary!J25=Vildary!M25,RESULTATS!J25=RESULTATS!M25)),1,0))) ->  | AF25: 2018-07-15 | AH25: =+IF(AJ33<>"",IF(AI33>AO33,AH33,AN33),"Vainqueur 1") -> Vainqueur 1 | AI25: =AJ25*10+AL25 -> 30 | AJ25: 3 | AK25: =IF(LEFT(AH25,5)<>"Vainq",COUNTIF(RESULTATS!$AG$10:$AM$10,AH25),0) -> 0 | AN25: =+IF(AJ34<>"",IF(AI34>AO34,AH34,AN34),"Vainqueur 2") -> Vainqueur 2 | AO25: =AP25*10+AR25 -> 0 | AQ25: =IF(LEFT(AN25,5)<>"Vainq",COUNTIF(RESULTATS!$AG$10:$AM$10,AN25),0) -> 0 | AT25: =IF(AJ25<>"",IF(AI25>AO25,AH25,AN25),"") -> Vainqueur 1
B26: =VLOOKUP($D26,TABLEAU_MATCHS[#All],2,FALSE) -> 2018-06-20 | C26: =VLOOKUP($D26,TABLEAU_MATCHS[#All],3,FALSE) -> 14:00:00 | D26: 19 | E26: ="Groupe "&VLOOKUP($I26,TABLEAU_TEAMS[[#All],[TEAM]:[GROUP_INITIAL_RANK]],2,FALSE) -> Groupe B | F26: 1.66 | G26: 3.35 | H26: 4.8 | I26: =VLOOKUP($D26,TABLEAU_MATCHS[#All],4,FALSE) -> Portugal | J26: 3 | L26: =VLOOKUP($D26,TABLEAU_MATCHS[#All],5,FALSE) -> Maroc | M26: 1 | N26: =IF(OR(ISBLANK(RESULTATS!J26),ISBLANK(J26)),"",IF(AND(Vildary!J26=RESULTATS!J26,Vildary!M26=RESULTATS!M26),3,IF(OR(AND(Vildary!J26>Vildary!M26,RESULTATS!J26>RESULTATS!M26),AND(Vildary!J26<Vildary!M26,RESULTATS!J26<RESULTATS!M26),AND(Vildary!J26=Vildary!M26,RESULTATS!J26=RESULTATS!M26)),1,0))) ->  | T26: Rg | U26: Groupe D | V26: MJ | W26: G | X26: N | Y26: P | Z26: BP | AA26: BC | AB26: +/- | AC26: Pts
B27: =VLOOKUP($D27,TABLEAU_MATCHS[#All],2,FALSE) -> 2018-06-20 | C27: =VLOOKUP($D27,TABLEAU_MATCHS[#All],3,FALSE) -> 20:00:00 | D27: 20 | E27: ="Groupe "&VLOOKUP($I27,TABLEAU_TEAMS[[#All],[TEAM]:[GROUP_INITIAL_RANK]],2,FALSE) -> Groupe B | F27: 8.5 | G27: 4.7 | H27: 1.28 | I27: =VLOOKUP($D27,TABLEAU_MATCHS[#All],4,FALSE) -> RI Iran | J27: 0 | L27: =VLOOKUP($D27,TABLEAU_MATCHS[#All],5,FALSE) -> Espagne | M27: 4 | N27: =IF(OR(ISBLANK(RESULTATS!J27),ISBLANK(J27)),"",IF(AND(Vildary!J27=RESULTATS!J27,Vildary!M27=RESULTATS!M27),3,IF(OR(AND(Vildary!J27>Vildary!M27,RESULTATS!J27>RESULTATS!M27),AND(Vildary!J27<Vildary!M27,RESULTATS!J27<RESULTATS!M27),AND(Vildary!J27=Vildary!M27,RESULTATS!J27=RESULTATS!M27)),1,0))) ->  | R27: =INDEX($R78:$R81,MATCH(SMALL(COUNTIF($R78:$R81,">="&$R78:$R81),ROW(INDIRECT("1:"&ROWS($R78:$R81)))),COUNTIF($R78:$R81,">="&$R78:$R81),0)) -> 09790Argentine | S27: =INDEX($S78:$S81,MATCH(SMALL(COUNTIF($R78:$R81,">="&$R78:$R81),ROW(INDIRECT("1:"&ROWS($R78:$R81)))),COUNTIF($R78:$R81,">="&$R78:$R81),0)) -> 9790 | T27: =INDEX($T78:$T81,MATCH(SMALL(COUNTIF($R78:$R81,">="&$R78:$R81),ROW(INDIRECT("1:"&ROWS($R78:$R81)))),COUNTIF($R78:$R81,">="&$R78:$R81),0)) -> 1 | U27: =INDEX($U78:$U81,MATCH(SMALL(COUNTIF($R78:$R81,">="&$R78:$R81),ROW(INDIRECT("1:"&ROWS($R78:$R81)))),COUNTIF($R78:$R81,">="&$R78:$R81),0)) -> Argentine | V27: =SUMPRODUCT((Teams1=U27)*(Teams1_Score<>""))+SUMPRODUCT((Teams2=U27)*(Teams2_Score<>"")) -> 3 | W27: =SUMPRODUCT((Teams1=U27)*(Teams1_Score>Teams2_Score))+SUMPRODUCT((Teams2=U27)*(Teams2_Score>Teams1_Score)) -> 3 | X27: =SUMPRODUCT((Teams1=U27)*(Teams1_Score=Teams2_Score)*(Teams1_Score<>""))+SUMPRODUCT((Teams2=U27)*(Teams2_Score=Teams1_Score)*(Teams2_Score<>"")) -> 0 | Y27: =SUMPRODUCT((Teams1=U27)*(Teams1_Score<Teams2_Score))+SUMPRODUCT((Teams2=U27)*(Teams2_Score<Teams1_Score)) -> 0 | Z27: =SUMPRODUCT((Teams1=U27)*(Teams1_Score))+SUMPRODUCT((Teams2=U27)*(Teams2_Score)) -> 9 | AA27: =SUMPRODUCT((Teams1=U27)*(Teams2_Score))+SUMPRODUCT((Teams2=U27)*(Teams1_Score)) -> 2 | AB27: =Z27-AA27 -> 7 | AC27: =3*W27+X27 -> 9 | AF27: Date | AG27: Petite Finale | AJ27: Buts | AL27: Pen | AP27: Buts | AR27: Pen
B28: =VLOOKUP($D28,TABLEAU_MATCHS[#All],2,FALSE) -> 2018-06-21 | C28: =VLOOKUP($D28,TABLEAU_MATCHS[#All],3,FALSE) -> 14:00:00 | D28: 21 | E28: ="Groupe "&VLOOKUP($I28,TABLEAU_TEAMS[[#All],[TEAM]:[GROUP_INITIAL_RANK]],2,FALSE) -> Groupe C | F28: 1.85 | G28: 3 | H28: 4 | I28: =VLOOKUP($D28,TABLEAU_MATCHS[#All],4,FALSE) -> Danemark | J28: 3 | L28: =VLOOKUP($D28,TABLEAU_MATCHS[#All],5,FALSE) -> Australie | M28: 1 | N28: =IF(OR(ISBLANK(RESULTATS!J28),ISBLANK(J28)),"",IF(AND(Vildary!J28=RESULTATS!J28,Vildary!M28=RESULTATS!M28),3,IF(OR(AND(Vildary!J28>Vildary!M28,RESULTATS!J28>RESULTATS!M28),AND(Vildary!J28<Vildary!M28,RESULTATS!J28<RESULTATS!M28),AND(Vildary!J28=Vildary!M28,RESULTATS!J28=RESULTATS!M28)),1,0))) ->  | R28: 04040Croatie | S28: 4040 | T28: 2 | U28: Croatie | V28: =SUMPRODUCT((Teams1=U28)*(Teams1_Score<>""))+SUMPRODUCT((Teams2=U28)*(Teams2_Score<>"")) -> 3 | W28: =SUMPRODUCT((Teams1=U28)*(Teams1_Score>Teams2_Score))+SUMPRODUCT((Teams2=U28)*(Teams2_Score>Teams1_Score)) -> 1 | X28: =SUMPRODUCT((Teams1=U28)*(Teams1_Score=Teams2_Score)*(Teams1_Score<>""))+SUMPRODUCT((Teams2=U28)*(Teams2_Score=Teams1_Score)*(Teams2_Score<>"")) -> 1 | Y28: =SUMPRODUCT((Teams1=U28)*(Teams1_Score<Teams2_Score))+SUMPRODUCT((Teams2=U28)*(Teams2_Score<Teams1_Score)) -> 1 | Z28: =SUMPRODUCT((Teams1=U28)*(Teams1_Score))+SUMPRODUCT((Teams2=U28)*(Teams2_Score)) -> 4 | AA28: =SUMPRODUCT((Teams1=U28)*(Teams2_Score))+SUMPRODUCT((Teams2=U28)*(Teams1_Score)) -> 4 | AB28: =Z28-AA28 -> 0 | AC28: =3*W28+X28 -> 4
B29: =VLOOKUP($D29,TABLEAU_MATCHS[#All],2,FALSE) -> 2018-06-21 | C29: =VLOOKUP($D29,TABLEAU_MATCHS[#All],3,FALSE) -> 17:00:00 | D29: 22 | E29: ="Groupe "&VLOOKUP($I29,TABLEAU_TEAMS[[#All],[TEAM]:[GROUP_INITIAL_RANK]],2,FALSE) -> Groupe C | F29: 2.3 | G29: 3 | H29: 2.9 | I29: =VLOOKUP($D29,TABLEAU_MATCHS[#All],4,FALSE) -> France | J29: 3 | L29: =VLOOKUP($D29,TABLEAU_MATCHS[#All],5,FALSE) -> Pérou | M29: 0 | N29: =IF(OR(ISBLANK(RESULTATS!J29),ISBLANK(J29)),"",IF(AND(Vildary!J29=RESULTATS!J29,Vildary!M29=RESULTATS!M29),3,IF(OR(AND(Vildary!J29>Vildary!M29,RESULTATS!J29>RESULTATS!M29),AND(Vildary!J29<Vildary!M29,RESULTATS!J29<RESULTATS!M29),AND(Vildary!J29=Vildary!M29,RESULTATS!J29=RESULTATS!M29)),1,0))) ->  | R29: 03930Nigeria | S29: 3930 | T29: 3 | U29: Nigeria | V29: =SUMPRODUCT((Teams1=U29)*(Teams1_Score<>""))+SUMPRODUCT((Teams2=U29)*(Teams2_Score<>"")) -> 3 | W29: =SUMPRODUCT((Teams1=U29)*(Teams1_Score>Teams2_Score))+SUMPRODUCT((Teams2=U29)*(Teams2_Score>Teams1_Score)) -> 1 | X29: =SUMPRODUCT((Teams1=U29)*(Teams1_Score=Teams2_Score)*(Teams1_Score<>""))+SUMPRODUCT((Teams2=U29)*(Teams2_Score=Teams1_Score)*(Teams2_Score<>"")) -> 1 | Y29: =SUMPRODUCT((Teams1=U29)*(Teams1_Score<Teams2_Score))+SUMPRODUCT((Teams2=U29)*(Teams2_Score<Teams1_Score)) -> 1 | Z29: =SUMPRODUCT((Teams1=U29)*(Teams1_Score))+SUMPRODUCT((Teams2=U29)*(Teams2_Score)) -> 3 | AA29: =SUMPRODUCT((Teams1=U29)*(Teams2_Score))+SUMPRODUCT((Teams2=U29)*(Teams1_Score)) -> 4 | AB29: =Z29-AA29 -> -1 | AC29: =3*W29+X29 -> 4 | AF29: 2018-07-14 | AH29: =+IF(AJ33<>"",IF(AI33>AO33,AN33,AH33),"Perdant 1") -> Perdant 1 | AI29: =AJ29*10+AL29 -> 0 | AN29: =+IF(AJ34<>"",IF(AI34>AO34,AN34,AH34),"Perdant 2") -> Perdant 2 | AO29: =AP29*10+AR29 -> 0
B30: =VLOOKUP($D30,TABLEAU_MATCHS[#All],2,FALSE) -> 2018-06-21 | C30: =VLOOKUP($D30,TABLEAU_MATCHS[#All],3,FALSE) -> 20:00:00 | D30: 23 | E30: ="Groupe "&VLOOKUP($I30,TABLEAU_TEAMS[[#All],[TEAM]:[GROUP_INITIAL_RANK]],2,FALSE) -> Groupe D | F30: 2.4 | G30: 3 | H30: 2.8 | I30: =VLOOKUP($D30,TABLEAU_MATCHS[#All],4,FALSE) -> Argentine | J30: 3 | L30: =VLOOKUP($D30,TABLEAU_MATCHS[#All],5,FALSE) -> Croatie | M30: 1 | N30: =IF(OR(ISBLANK(RESULTATS!J30),ISBLANK(J30)),"",IF(AND(Vildary!J30=RESULTATS!J30,Vildary!M30=RESULTATS!M30),3,IF(OR(AND(Vildary!J30>Vildary!M30,RESULTATS!J30>RESULTATS!M30),AND(Vildary!J30<Vildary!M30,RESULTATS!J30<RESULTATS!M30),AND(Vildary!J30=Vildary!M30,RESULTATS!J30=RESULTATS!M30)),1,0))) ->  | R30: -00600Islande | S30: -600 | T30: 4 | U30: Islande | V30: =SUMPRODUCT((Teams1=U30)*(Teams1_Score<>""))+SUMPRODUCT((Teams2=U30)*(Teams2_Score<>"")) -> 3 | W30: =SUMPRODUCT((Teams1=U30)*(Teams1_Score>Teams2_Score))+SUMPRODUCT((Teams2=U30)*(Teams2_Score>Teams1_Score)) -> 0 | X30: =SUMPRODUCT((Teams1=U30)*(Teams1_Score=Teams2_Score)*(Teams1_Score<>""))+SUMPRODUCT((Teams2=U30)*(Teams2_Score=Teams1_Score)*(Teams2_Score<>"")) -> 0 | Y30: =SUMPRODUCT((Teams1=U30)*(Teams1_Score<Teams2_Score))+SUMPRODUCT((Teams2=U30)*(Teams2_Score<Teams1_Score)) -> 3 | Z30: =SUMPRODUCT((Teams1=U30)*(Teams1_Score))+SUMPRODUCT((Teams2=U30)*(Teams2_Score)) -> 0 | AA30: =SUMPRODUCT((Teams1=U30)*(Teams2_Score))+SUMPRODUCT((Teams2=U30)*(Teams1_Score)) -> 6 | AB30: =Z30-AA30 -> -6 | AC30: =3*W30+X30 -> 0
B31: =VLOOKUP($D31,TABLEAU_MATCHS[#All],2,FALSE) -> 2018-06-22 | C31: =VLOOKUP($D31,TABLEAU_MATCHS[#All],3,FALSE) -> 17:00:00 | D31: 24 | E31: ="Groupe "&VLOOKUP($I31,TABLEAU_TEAMS[[#All],[TEAM]:[GROUP_INITIAL_RANK]],2,FALSE) -> Groupe D | F31: 1.26 | G31: 4.6 | H31: 9.5 | I31: =VLOOKUP($D31,TABLEAU_MATCHS[#All],4,FALSE) -> Nigeria | J31: 1 | L31: =VLOOKUP($D31,TABLEAU_MATCHS[#All],5,FALSE) -> Islande | M31: 0 | N31: =IF(OR(ISBLANK(RESULTATS!J31),ISBLANK(J31)),"",IF(AND(Vildary!J31=RESULTATS!J31,Vildary!M31=RESULTATS!M31),3,IF(OR(AND(Vildary!J31>Vildary!M31,RESULTATS!J31>RESULTATS!M31),AND(Vildary!J31<Vildary!M31,RESULTATS!J31<RESULTATS!M31),AND(Vildary!J31=Vildary!M31,RESULTATS!J31=RESULTATS!M31)),1,0))) ->  | AF31: Date | AG31: Demi Finale | AJ31: Buts | AL31: Pen | AP31: Buts | AR31: Pen
B32: =VLOOKUP($D32,TABLEAU_MATCHS[#All],2,FALSE) -> 2018-06-22 | C32: =VLOOKUP($D32,TABLEAU_MATCHS[#All],3,FALSE) -> 14:00:00 | D32: 25 | E32: ="Groupe "&VLOOKUP($I32,TABLEAU_TEAMS[[#All],[TEAM]:[GROUP_INITIAL_RANK]],2,FALSE) -> Groupe E | F32: 3.5 | G32: 2.95 | H32: 2.1 | I32: =VLOOKUP($D32,TABLEAU_MATCHS[#All],4,FALSE) -> Brésil | J32: 3 | L32: =VLOOKUP($D32,TABLEAU_MATCHS[#All],5,FALSE) -> Costa Rica | M32: 0 | N32: =IF(OR(ISBLANK(RESULTATS!J32),ISBLANK(J32)),"",IF(AND(Vildary!J32=RESULTATS!J32,Vildary!M32=RESULTATS!M32),3,IF(OR(AND(Vildary!J32>Vildary!M32,RESULTATS!J32>RESULTATS!M32),AND(Vildary!J32<Vildary!M32,RESULTATS!J32<RESULTATS!M32),AND(Vildary!J32=Vildary!M32,RESULTATS!J32=RESULTATS!M32)),1,0))) ->  | T32: Rg | U32: Groupe E | V32: MJ | W32: G | X32: N | Y32: P | Z32: BP | AA32: BC | AB32: +/- | AC32: Pts
B33: =VLOOKUP($D33,TABLEAU_MATCHS[#All],2,FALSE) -> 2018-06-22 | C33: =VLOOKUP($D33,TABLEAU_MATCHS[#All],3,FALSE) -> 20:00:00 | D33: 26 | E33: ="Groupe "&VLOOKUP($I33,TABLEAU_TEAMS[[#All],[TEAM]:[GROUP_INITIAL_RANK]],2,FALSE) -> Groupe E | F33: 4.8 | G33: 3.25 | H33: 1.62 | I33: =VLOOKUP($D33,TABLEAU_MATCHS[#All],4,FALSE) -> Serbie | J33: 1 | L33: =VLOOKUP($D33,TABLEAU_MATCHS[#All],5,FALSE) -> Suisse | M33: 1 | N33: =IF(OR(ISBLANK(RESULTATS!J33),ISBLANK(J33)),"",IF(AND(Vildary!J33=RESULTATS!J33,Vildary!M33=RESULTATS!M33),3,IF(OR(AND(Vildary!J33>Vildary!M33,RESULTATS!J33>RESULTATS!M33),AND(Vildary!J33<Vildary!M33,RESULTATS!J33<RESULTATS!M33),AND(Vildary!J33=Vildary!M33,RESULTATS!J33=RESULTATS!M33)),1,0))) ->  | R33: =INDEX($R84:$R87,MATCH(SMALL(COUNTIF($R84:$R87,">="&$R84:$R87),ROW(INDIRECT("1:"&ROWS($R84:$R87)))),COUNTIF($R84:$R87,">="&$R84:$R87),0)) -> 10000Brésil | S33: =INDEX($S84:$S87,MATCH(SMALL(COUNTIF($R84:$R87,">="&$R84:$R87),ROW(INDIRECT("1:"&ROWS($R84:$R87)))),COUNTIF($R84:$R87,">="&$R84:$R87),0)) -> 10000 | T33: =INDEX($T84:$T87,MATCH(SMALL(COUNTIF($R84:$R87,">="&$R84:$R87),ROW(INDIRECT("1:"&ROWS($R84:$R87)))),COUNTIF($R84:$R87,">="&$R84:$R87),0)) -> 1 | U33: =INDEX($U84:$U87,MATCH(SMALL(COUNTIF($R84:$R87,">="&$R84:$R87),ROW(INDIRECT("1:"&ROWS($R84:$R87)))),COUNTIF($R84:$R87,">="&$R84:$R87),0)) -> Brésil | V33: =SUMPRODUCT((Teams1=U33)*(Teams1_Score<>""))+SUMPRODUCT((Teams2=U33)*(Teams2_Score<>"")) -> 3 | W33: =SUMPRODUCT((Teams1=U33)*(Teams1_Score>Teams2_Score))+SUMPRODUCT((Teams2=U33)*(Teams2_Score>Teams1_Score)) -> 3 | X33: =SUMPRODUCT((Teams1=U33)*(Teams1_Score=Teams2_Score)*(Teams1_Score<>""))+SUMPRODUCT((Teams2=U33)*(Teams2_Score=Teams1_Score)*(Teams2_Score<>"")) -> 0 | Y33: =SUMPRODUCT((Teams1=U33)*(Teams1_Score<Teams2_Score))+SUMPRODUCT((Teams2=U33)*(Teams2_Score<Teams1_Score)) -> 0 | Z33: =SUMPRODUCT((Teams1=U33)*(Teams1_Score))+SUMPRODUCT((Teams2=U33)*(Teams2_Score)) -> 10 | AA33: =SUMPRODUCT((Teams1=U33)*(Teams2_Score))+SUMPRODUCT((Teams2=U33)*(Teams1_Score)) -> 1 | AB33: =Z33-AA33 -> 9 | AC33: =3*W33+X33 -> 9 | AF33: 2018-07-10 | AG33: 1 | AH33: =+IF(AJ38<>"",IF(AI38>AO38,AH38,AN38),"Vainqueur A") -> Vainqueur A | AI33: =AJ33*10+AL33 -> 0 | AK33: =IF(LEFT(AH33,5)<>"Vainq",COUNTIF(RESULTATS!$AG$18:$AM$19,AH33),0) -> 0 | AN33: =+IF(AJ40<>"",IF(AI40>AO40,AH40,AN40),"Vainqueur C") -> Vainqueur C | AO33: =AP33*10+AR33 -> 0 | AQ33: =IF(LEFT(AN33,5)<>"Vainq",COUNTIF(RESULTATS!$AG$18:$AM$19,AN33),0) -> 0
B34: =VLOOKUP($D34,TABLEAU_MATCHS[#All],2,FALSE) -> 2018-06-23 | C34: =VLOOKUP($D34,TABLEAU_MATCHS[#All],3,FALSE) -> 20:00:00 | D34: 27 | E34: ="Groupe "&VLOOKUP($I34,TABLEAU_TEAMS[[#All],[TEAM]:[GROUP_INITIAL_RANK]],2,FALSE) -> Groupe F | F34: 1.12 | G34: 6.5 | H34: 15 | I34: =VLOOKUP($D34,TABLEAU_MATCHS[#All],4,FALSE) -> République de Corée | J34: 0 | L34: =VLOOKUP($D34,TABLEAU_MATCHS[#All],5,FALSE) -> Mexique | M34: 2 | N34: =IF(OR(ISBLANK(RESULTATS!J34),ISBLANK(J34)),"",IF(AND(Vildary!J34=RESULTATS!J34,Vildary!M34=RESULTATS!M34),3,IF(OR(AND(Vildary!J34>Vildary!M34,RESULTATS!J34>RESULTATS!M34),AND(Vildary!J34<Vildary!M34,RESULTATS!J34<RESULTATS!M34),AND(Vildary!J34=Vildary!M34,RESULTATS!J34=RESULTATS!M34)),1,0))) ->  | R34: 01730Suisse | S34: 1730 | T34: 2 | U34: Suisse | V34: =SUMPRODUCT((Teams1=U34)*(Teams1_Score<>""))+SUMPRODUCT((Teams2=U34)*(Teams2_Score<>"")) -> 3 | W34: =SUMPRODUCT((Teams1=U34)*(Teams1_Score>Teams2_Score))+SUMPRODUCT((Teams2=U34)*(Teams2_Score>Teams1_Score)) -> 0 | X34: =SUMPRODUCT((Teams1=U34)*(Teams1_Score=Teams2_Score)*(Teams1_Score<>""))+SUMPRODUCT((Teams2=U34)*(Teams2_Score=Teams1_Score)*(Teams2_Score<>"")) -> 2 | Y34: =SUMPRODUCT((Teams1=U34)*(Teams1_Score<Teams2_Score))+SUMPRODUCT((Teams2=U34)*(Teams2_Score<Teams1_Score)) -> 1 | Z34: =SUMPRODUCT((Teams1=U34)*(Teams1_Score))+SUMPRODUCT((Teams2=U34)*(Teams2_Score)) -> 3 | AA34: =SUMPRODUCT((Teams1=U34)*(Teams2_Score))+SUMPRODUCT((Teams2=U34)*(Teams1_Score)) -> 6 | AB34: =Z34-AA34 -> -3 | AC34: =3*W34+X34 -> 2 | AF34: 2018-07-11 | AG34: 2 | AH34: =+IF(AJ39<>"",IF(AI39>AO39,AH39,AN39),"Vainqueur B") -> Vainqueur B | AI34: =AJ34*10+AL34 -> 0 | AK34: =IF(LEFT(AH34,5)<>"Vainq",COUNTIF(RESULTATS!$AG$18:$AM$19,AH34),0) -> 0 | AN34: =+IF(AJ41<>"",IF(AI41>AO41,AH41,AN41),"Vainqueur D") -> Vainqueur D | AO34: =AP34*10+AR34 -> 0 | AQ34: =IF(LEFT(AN34,5)<>"Vainq",COUNTIF(RESULTATS!$AG$18:$AM$19,AN34),0) -> 0
B35: =VLOOKUP($D35,TABLEAU_MATCHS[#All],2,FALSE) -> 2018-06-23 | C35: =VLOOKUP($D35,TABLEAU_MATCHS[#All],3,FALSE) -> 17:00:00 | D35: 28 | E35: ="Groupe "&VLOOKUP($I35,TABLEAU_TEAMS[[#All],[TEAM]:[GROUP_INITIAL_RANK]],2,FALSE) -> Groupe F | F35: 2.8 | G35: 2.95 | H35: 2.4 | I35: =VLOOKUP($D35,TABLEAU_MATCHS[#All],4,FALSE) -> Allemagne | J35: 3 | L35: =VLOOKUP($D35,TABLEAU_MATCHS[#All],5,FALSE) -> Suède | M35: 0 | N35: =IF(OR(ISBLANK(RESULTATS!J35),ISBLANK(J35)),"",IF(AND(Vildary!J35=RESULTATS!J35,Vildary!M35=RESULTATS!M35),3,IF(OR(AND(Vildary!J35>Vildary!M35,RESULTATS!J35>RESULTATS!M35),AND(Vildary!J35<Vildary!M35,RESULTATS!J35<RESULTATS!M35),AND(Vildary!J35=Vildary!M35,RESULTATS!J35=RESULTATS!M35)),1,0))) ->  | R35: 01730Serbie | S35: 1730 | T35: 2 | U35: Serbie | V35: =SUMPRODUCT((Teams1=U35)*(Teams1_Score<>""))+SUMPRODUCT((Teams2=U35)*(Teams2_Score<>"")) -> 3 | W35: =SUMPRODUCT((Teams1=U35)*(Teams1_Score>Teams2_Score))+SUMPRODUCT((Teams2=U35)*(Teams2_Score>Teams1_Score)) -> 0 | X35: =SUMPRODUCT((Teams1=U35)*(Teams1_Score=Teams2_Score)*(Teams1_Score<>""))+SUMPRODUCT((Teams2=U35)*(Teams2_Score=Teams1_Score)*(Teams2_Score<>"")) -> 2 | Y35: =SUMPRODUCT((Teams1=U35)*(Teams1_Score<Teams2_Score))+SUMPRODUCT((Teams2=U35)*(Teams2_Score<Teams1_Score)) -> 1 | Z35: =SUMPRODUCT((Teams1=U35)*(Teams1_Score))+SUMPRODUCT((Teams2=U35)*(Teams2_Score)) -> 3 | AA35: =SUMPRODUCT((Teams1=U35)*(Teams2_Score))+SUMPRODUCT((Teams2=U35)*(Teams1_Score)) -> 6 | AB35: =Z35-AA35 -> -3 | AC35: =3*W35+X35 -> 2 | AK35: =SUM(AK33:AK34) -> 0 | AQ35: =SUM(AQ33:AQ34) -> 0
B36: =VLOOKUP($D36,TABLEAU_MATCHS[#All],2,FALSE) -> 2018-06-23 | C36: =VLOOKUP($D36,TABLEAU_MATCHS[#All],3,FALSE) -> 14:00:00 | D36: 29 | E36: ="Groupe "&VLOOKUP($I36,TABLEAU_TEAMS[[#All],[TEAM]:[GROUP_INITIAL_RANK]],2,FALSE) -> Groupe G | F36: 1.36 | G36: 4 | H36: 7.5 | I36: =VLOOKUP($D36,TABLEAU_MATCHS[#All],4,FALSE) -> Belgique | J36: 2 | L36: =VLOOKUP($D36,TABLEAU_MATCHS[#All],5,FALSE) -> Tunisie | M36: 0 | N36: =IF(OR(ISBLANK(RESULTATS!J36),ISBLANK(J36)),"",IF(AND(Vildary!J36=RESULTATS!J36,Vildary!M36=RESULTATS!M36),3,IF(OR(AND(Vildary!J36>Vildary!M36,RESULTATS!J36>RESULTATS!M36),AND(Vildary!J36<Vildary!M36,RESULTATS!J36<RESULTATS!M36),AND(Vildary!J36=Vildary!M36,RESULTATS!J36=RESULTATS!M36)),1,0))) ->  | R36: 01730Costa Rica | S36: 1730 | T36: 2 | U36: Costa Rica | V36: =SUMPRODUCT((Teams1=U36)*(Teams1_Score<>""))+SUMPRODUCT((Teams2=U36)*(Teams2_Score<>"")) -> 3 | W36: =SUMPRODUCT((Teams1=U36)*(Teams1_Score>Teams2_Score))+SUMPRODUCT((Teams2=U36)*(Teams2_Score>Teams1_Score)) -> 0 | X36: =SUMPRODUCT((Teams1=U36)*(Teams1_Score=Teams2_Score)*(Teams1_Score<>""))+SUMPRODUCT((Teams2=U36)*(Teams2_Score=Teams1_Score)*(Teams2_Score<>"")) -> 2 | Y36: =SUMPRODUCT((Teams1=U36)*(Teams1_Score<Teams2_Score))+SUMPRODUCT((Teams2=U36)*(Teams2_Score<Teams1_Score)) -> 1 | Z36: =SUMPRODUCT((Teams1=U36)*(Teams1_Score))+SUMPRODUCT((Teams2=U36)*(Teams2_Score)) -> 3 | AA36: =SUMPRODUCT((Teams1=U36)*(Teams2_Score))+SUMPRODUCT((Teams2=U36)*(Teams1_Score)) -> 6 | AB36: =Z36-AA36 -> -3 | AC36: =3*W36+X36 -> 2 | AF36: Date | AG36: Quart de Finale | AJ36: Buts | AL36: Pen | AP36: Buts | AR36: Pen
B37: =VLOOKUP($D37,TABLEAU_MATCHS[#All],2,FALSE) -> 2018-06-24 | C37: =VLOOKUP($D37,TABLEAU_MATCHS[#All],3,FALSE) -> 14:00:00 | D37: 30 | E37: ="Groupe "&VLOOKUP($I37,TABLEAU_TEAMS[[#All],[TEAM]:[GROUP_INITIAL_RANK]],2,FALSE) -> Groupe G | F37: 4.7 | G37: 3.4 | H37: 1.62 | I37: =VLOOKUP($D37,TABLEAU_MATCHS[#All],4,FALSE) -> Angleterre | J37: 2 | L37: =VLOOKUP($D37,TABLEAU_MATCHS[#All],5,FALSE) -> Panama | M37: 0 | N37: =IF(OR(ISBLANK(RESULTATS!J37),ISBLANK(J37)),"",IF(AND(Vildary!J37=RESULTATS!J37,Vildary!M37=RESULTATS!M37),3,IF(OR(AND(Vildary!J37>Vildary!M37,RESULTATS!J37>RESULTATS!M37),AND(Vildary!J37<Vildary!M37,RESULTATS!J37<RESULTATS!M37),AND(Vildary!J37=Vildary!M37,RESULTATS!J37=RESULTATS!M37)),1,0))) -> 
